Workbook

Sheet EONIA
A2: Instrument | B2: Tenor | C2: Stamp | D2: Maturity | E2: Mkt.Values | F2: Zero Cpn. | G2: Discount | H2: Forward 3M | J2: Days | K2: t(ACT/360) | L2: NSS | M2: NSS_F | N2: Discount NSS | O2: Implied Rate | P2: Mkt.Values | Q2: Error
A3: M. Mkt. | B3: O/N* | C3: 2012-11-14 | D3: 2012-11-15 | E3: 0.08 | F3: 0.081111021 | G3: 0.9999977778 | H3: 0.0717237882 | J3: =D3-C3 -> 1 | K3: =J3/360 -> 0.002777777778 | L3: =nss(K3,V3,V4,V5,V6,V7,V8) -> 0.1121610696 | M3: =nss_F(K3,V3,V4,V5,V6,V7,V8) -> 0.1117295691 | N3: =EXP(-L3/100*K3) -> 0.9999968844 | O3: =P3 -> 0.08 | P3: 0.08 | Q3: =POWER(O3-P3,2) -> 0 | T3: β₀ | U3: 1550.34814 | V3: =U3/1000 -> 1.55034814
A4: M. Mkt. | B4: T/N* | C4: 2012-11-14 | D4: =AddDays(D3,1) -> 2012-11-16 | E4: 0.08 | F4: 0.081111021 | G4: 0.9999955556 | H4: 0.071 | J4: 2 | K4: =J4/360 -> 0.005555555556 | L4: =nss(K4,V3,V4,V5,V6,V7,V8) -> 0.1117302537 | M4: =nss_F(K4,V3,V4,V5,V6,V7,V8) -> 0.1108699907 | N4: =EXP(-L4/100*K4) -> 0.9999937928 | O4: =P4 -> 0.08 | P4: 0.08 | Q4: 0 | T4: β₁ | U4: 1856.224512 | V4: =(U4/100)-20 -> -1.437754885
A5: Swap | B5: 1W | C5: 2012-11-16 | D5: =AddDays(D4,7) -> 2012-11-23 | E5: 0.082 | F5: 0.0826877361 | G5: 0.9999796115 | H5: 0.0685650698 | J5: 7 | K5: 0.01944444444 | L5: =nss(K5,V3,V4,V5,V6,V7,V8) -> 0.1095966679 | M5: =nss_F(K5,V3,V4,V5,V6,V7,V8) -> 0.1066335038 | N5: 0.9999786898 | O5: =P5 -> 0.082 | P5: 0.082 | Q5: 0 | T5: β₂ | U5: 1169.429678 | V5: =(U5/100)-20 -> -8.305703216
A6: Swap | B6: 1M | C6: 2012-11-16 | D6: =AddMonths(D4,1) -> 2012-12-17 | E6: 0.08 | F6: 0.0811084813 | G6: 0.9999266717 | H6: 0.0598859844 | J6: 31 | K6: 0.08611111111 | L6: =nss(K6,V3,V4,V5,V6,V7,V8) -> 0.099825642 | M6: =nss_F(K6,V3,V4,V5,V6,V7,V8) -> 0.08770193991 | N6: 0.9999140427 | O6: =-100*(LN(N6)-LN(N4))/(K6-K4) -> 0.09900463429 | P6: 0.08 | Q6: 0.0003611761246 | T6: β₃ | U6: 2900.714419 | V6: =(U6/100)-20 -> 9.007144193
A7: Swap | B7: 2M | C7: 2012-11-16 | D7: =AddMonths(D4,2) -> 2013-01-16 | E7: 0.078 | F7: 0.0791426446 | G7: 0.999863407 | H7: 0.0461161272 | J7: 61 | K7: 0.1694444444 | L7: =nss(K7,V3,V4,V5,V6,V7,V8) -> 0.08868246835 | M7: =nss_F(K7,V3,V4,V5,V6,V7,V8) -> 0.06720979943 | N7: 0.9998497438 | O7: =-100*(LN(N7)-LN(N4))/(K7-K4) -> 0.08790118749 | P7: 0.078 | Q7: 9.803351368e-05 | T7: τ₁ | U7: 389.1016623 | V7: =U7/100 -> 3.891016623
A8: Swap | B8: 3M | C8: 2012-11-16 | D8: =AddMonths(D4,3) -> 2013-02-18 | E8: 0.071 | F8: 0.0721696805 | G8: 0.9998102019 | H8: 0.0377036928 | J8: 94 | K8: 0.2611111111 | L8: =nss(K8,V3,V4,V5,V6,V7,V8) -> 0.07775482074 | M8: =nss_F(K8,V3,V4,V5,V6,V7,V8) -> 0.04856505958 | N8: 0.9997969941 | O8: =-100*(LN(N8)-LN(N4))/(K8-K4) -> 0.07701622437 | P8: 0.071 | Q8: 3.619495569e-05 | T8: τ₂ | U8: 619.7245364 | V8: =U8/100 -> 6.197245364
A9: Swap | B9: 4M | C9: 2012-11-16 | D9: =AddMonths(D4,4) -> 2013-03-18 | E9: 0.065 | F9: 0.0661409317 | G9: 0.9997753273 | H9: 0.0345929881 | J9: 122 | K9: 0.3388888889 | L9: =nss(K9,V3,V4,V5,V6,V7,V8) -> 0.06953847132 | M9: =nss_F(K9,V3,V4,V5,V6,V7,V8) -> 0.03580133313 | N9: 0.9997643696 | O9: =-100*(LN(N9)-LN(N4))/(K9-K4) -> 0.06883527495 | P9: 0.065 | Q9: 1.47093339e-05
A10: Swap | B10: 5M | C10: 2012-11-16 | D10: =AddMonths(D4,5) -> 2013-04-16 | E10: 0.059 | F10: 0.0600904618 | G10: 0.9997481457 | H10: 0.0350572584 | J10: 151 | K10: 0.4194444444 | L10: =nss(K10,V3,V4,V5,V6,V7,V8) -> 0.06201586746 | M10: =nss_F(K10,V3,V4,V5,V6,V7,V8) -> 0.02540504289 | N10: 0.9997399117 | O10: =-100*(LN(N10)-LN(N4))/(K10-K4) -> 0.06134856026 | P10: 0.059 | Q10: 5.515735304e-06
A11: Swap | B11: 6M | C11: 2012-11-16 | D11: =AddMonths(D4,6) -> 2013-05-16 | E11: 0.055 | F11: 0.0560332823 | G11: 0.9997191055 | H11: 0.0342187984 | J11: 181 | K11: 0.5027777778 | L11: =nss(K11,V3,V4,V5,V6,V7,V8) -> 0.05525624893 | M11: =nss_F(K11,V3,V4,V5,V6,V7,V8) -> 0.01753895184 | N11: 0.9997222224 | O11: =-100*(LN(N11)-LN(N4))/(K11-K4) -> 0.05462525446 | P11: 0.055 | Q11: 1.404342192e-07
A12: Swap | B12: 7M | C12: 2012-11-16 | D12: =AddMonths(D4,7) -> 2013-06-17 | E12: 0.052 | F12: 0.0529782707 | G12: 0.9996879849 | H12: 0.03541322 | J12: 213 | K12: 0.5916666667 | L12: =nss(K12,V3,V4,V5,V6,V7,V8) -> 0.04915240722 | M12: =nss_F(K12,V3,V4,V5,V6,V7,V8) -> 0.01223404289 | N12: 0.9997092239 | O12: =-100*(LN(N12)-LN(N4))/(K12-K4) -> 0.04855925227 | P12: 0.052 | Q12: 1.183874492e-05
A13: Swap | B13: 8M | C13: 2012-11-16 | D13: =AddMonths(D4,8) -> 2013-07-16 | E13: 0.05 | F13: 0.0509353129 | G13: 0.9996595589 | H13: 0.0390955552 | J13: 242 | K13: 0.6722222222 | L13: =nss(K13,V3,V4,V5,V6,V7,V8) -> 0.04457297508 | M13: =nss_F(K13,V3,V4,V5,V6,V7,V8) -> 0.0100464161 | N13: 0.9997004154 | O13: =-100*(LN(N13)-LN(N4))/(K13-K4) -> 0.04401333109 | P13: 0.05 | Q13: 3.584020459e-05
A14: Swap | B14: 9M | C14: 2012-11-16 | D14: =AddMonths(D4,9) -> 2013-08-16 | E14: 0.048 | F14: 0.0488938348 | G14: 0.9996316896 | H14: 0.0479825344 | J14: 273 | K14: 0.7583333333 | L14: =nss(K14,V3,V4,V5,V6,V7,V8) -> 0.04064336342 | M14: =nss_F(K14,V3,V4,V5,V6,V7,V8) -> 0.01032791107 | N14: 0.9996918353 | O14: =-100*(LN(N14)-LN(N4))/(K14-K4) -> 0.04011873693 | P14: 0.048 | Q14: 6.211430761e-05
A15: Swap | B15: 10M | C15: 2012-11-16 | D15: =AddMonths(D4,10) -> 2013-09-16 | E15: 0.047 | F15: 0.047862067 | G15: 0.9995988259 | H15: 0.0574579172 | J15: 304 | K15: 0.8444444444 | L15: =nss(K15,V3,V4,V5,V6,V7,V8) -> 0.03767628681 | M15: =nss_F(K15,V3,V4,V5,V6,V7,V8) -> 0.01318383074 | N15: 0.9996818953 | O15: =-100*(LN(N15)-LN(N4))/(K15-K4) -> 0.03718586319 | P15: 0.047 | Q15: 9.631728134e-05
A16: Swap | B16: 11M | C16: 2012-11-16 | D16: =AddMonths(D4,11) -> 2013-10-16 | E16: 0.047 | F16: 0.0478416092 | G16: 0.999559692 | H16: 0.0653905841 | J16: 334 | K16: 0.9277777778 | L16: =nss(K16,V3,V4,V5,V6,V7,V8) -> 0.03568833185 | M16: =nss_F(K16,V3,V4,V5,V6,V7,V8) -> 0.0182753032 | N16: 0.9996689464 | O16: =-100*(LN(N16)-LN(N4))/(K16-K4) -> 0.03523024799 | P16: 0.047 | Q16: 0.0001385270625
A17: Swap | B17: 1Y | C17: 2012-11-16 | D17: =AddYears(D4,1) -> 2013-11-18 | E17: 0.048 | F17: 0.0488306781 | G17: 0.9995064637 | H17: 0.0711118671 | J17: 367 | K17: 1.019444444 | L17: =nss(K17,V3,V4,V5,V6,V7,V8) -> 0.03446790749 | M17: =nss_F(K17,V3,V4,V5,V6,V7,V8) -> 0.02638207975 | N17: 0.9996486806 | O17: =100*(N4-N17)/R17 -> 0.03386486757 | P17: 0.048 | Q17: 0.0001998019689 | R17: =K17*N17 -> 1.019086294
A18: Swap | B18: 18M | C18: 2012-11-16 | D18: =AddMonths(D4,18) -> 2014-05-16 | E18: 0.057 | F18: 0.0578631126 | G18: 0.9991316379 | H18: 0.1539058859 | J18: 546 | K18: 1.516666667 | L18: =nss(K18,V3,V4,V5,V6,V7,V8) -> 0.04383982654 | M18: =nss_F(K18,V3,V4,V5,V6,V7,V8) -> 0.1101000488 | N18: 0.999335317 | O18: =100*(N4-N18)/SUM(R17:R18) -> 0.04343571015 | P18: 0.057 | Q18: 0.0001839899591 | R18: =(K18-K17)*N18 -> 0.496891727
A19: Swap | B19: 2Y | C19: 2012-11-16 | D19: =AddYears(D4,2) -> 2014-11-17 | E19: 0.085 | F19: 0.0861459267 | G19: 0.9982714966 | H19: 0.2933351848 | J19: 731 | K19: 2.030555556 | L19: =nss(K19,V3,V4,V5,V6,V7,V8) -> 0.07755648716 | M19: =nss_F(K19,V3,V4,V5,V6,V7,V8) -> 0.2517486692 | N19: 0.9984264118 | O19: =100*(N4-N19)/SUM(R17:R19) -> 0.07724671992 | P19: 0.085 | Q19: 6.011335196e-05 | R19: =(K19-K18)*N19 -> 0.5130802394
A20: Swap | B20: 3Y | C20: 2012-11-16 | D20: =AddYears(D4,3) -> 2015-11-16 | E20: 0.177 | F20: 0.1793087218 | G20: 0.9946254083 | H20: 0.6852026398 | J20: 1095 | K20: 3.041666667 | L20: =nss(K20,V3,V4,V5,V6,V7,V8) -> 0.1953547419 | M20: =nss_F(K20,V3,V4,V5,V6,V7,V8) -> 0.6273147772 | N20: 0.9940755789 | O20: =100*(N4-N20)/SUM(R17:R20) -> 0.1950515643 | P20: 0.177 | Q20: 0.0003258589743 | R20: 1.005120863
A21: Swap | B21: 4Y | C21: 2012-11-16 | D21: =AddYears(D4,4) -> 2016-11-16 | E21: 0.333 | F21: 0.3377762799 | G21: 0.9865524239 | H21: 1.162974023 | J21: 1461 | K21: 4.058333333 | L21: =nss(K21,V3,V4,V5,V6,V7,V8) -> 0.35687711 | M21: =nss_F(K21,V3,V4,V5,V6,V7,V8) -> 1.055254335 | N21: 0.9856211152 | O21: =100*(N4-N21)/SUM(R17:R21) -> 0.3560918811 | P21: 0.333 | Q21: 0.0005332349714 | R21: 1.002048134
A22: Swap | B22: 5Y | C22: 2012-11-16 | D22: =AddYears(D4,5) -> 2017-11-16 | E22: 0.526 | F22: 0.5348531397 | G22: 0.9735689619 | H22: 1.538770174 | J22: 1826 | K22: 5.072222222 | L22: =nss(K22,V3,V4,V5,V6,V7,V8) -> 0.5386054931 | M22: =nss_F(K22,V3,V4,V5,V6,V7,V8) -> 1.471572385 | N22: 0.9730505285 | O22: =100*(N4-N22)/SUM(R17:R22) -> 0.5364200281 | P22: 0.526 | Q22: 0.000108576985 | R22: 0.9865651192
A23: Swap | B23: 6Y | C23: 2012-11-16 | D23: =AddYears(D4,6) -> 2018-11-16 | E23: 0.715 | F23: 0.7291831887 | G23: 0.9571349114 | H23: 1.961286388 | J23: 2191 | K23: 6.086111111 | L23: =nss(K23,V3,V4,V5,V6,V7,V8) -> 0.7257934922 | M23: =nss_F(K23,V3,V4,V5,V6,V7,V8) -> 1.843823025 | N23: 0.956788803 | O23: =100*(N4-N23)/SUM(R17:R23) -> 0.7209398899 | P23: 0.715 | Q23: 3.52822926e-05 | R23: 0.9700775364
A24: Swap | B24: 7Y | C24: 2012-11-16 | D24: =AddYears(D4,7) -> 2019-11-18 | E24: 0.909 | F24: 0.9304585132 | G24: 0.9368242735 | H24: 2.180246213 | J24: 2558 | K24: 7.105555556 | L24: =nss(K24,V3,V4,V5,V6,V7,V8) -> 0.9094816632 | M24: =nss_F(K24,V3,V4,V5,V6,V7,V8) -> 2.157609378 | N24: 0.9374201249 | O24: =100*(N4-N24)/SUM(R17:R24) -> 0.9005326171 | P24: 0.909 | Q24: 7.169657337e-05 | R24: 0.9556477385
A25: Swap | B25: 8Y | C25: 2012-11-16 | D25: =AddYears(D4,8) -> 2020-11-16 | E25: 1.076 | F25: 1.105312122 | G25: 0.9152609164 | H25: 2.354569805 | J25: 2922 | K25: 8.116666667 | L25: =nss(K25,V3,V4,V5,V6,V7,V8) -> 1.080988303 | M25: =nss_F(K25,V3,V4,V5,V6,V7,V8) -> 2.404164042 | N25: 0.9159988065 | O25: =100*(N4-N25)/SUM(R17:R25) -> 1.066644417 | P25: 1.076 | Q25: 8.75269262e-05 | R25: 0.926176571
A26: Swap | B26: 9Y | C26: 2012-11-16 | D26: =AddYears(D4,9) -> 2021-11-16 | E26: 1.222 | F26: 1.25959074 | G26: 0.8927031216 | H26: 2.507695398 | J26: 3287 | K26: 9.130555556 | L26: =nss(K26,V3,V4,V5,V6,V7,V8) -> 1.238724148 | M26: =nss_F(K26,V3,V4,V5,V6,V7,V8) -> 2.588726825 | N26: 0.8930592093 | O26: =100*(N4-N26)/SUM(R17:R26) -> 1.21791197 | P26: 1.222 | Q26: 1.671199049e-05 | R26: 0.9054628095
A27: Swap | B27: 10Y | C27: 2012-11-16 | D27: =AddYears(D4,10) -> 2022-11-16 | E27: 1.351 | F27: 1.397215652 | G27: 0.8694671861 | H27: 2.627702784 | J27: 3652 | K27: 10.14444444 | L27: =nss(K27,V3,V4,V5,V6,V7,V8) -> 1.380469984 | M27: =nss_F(K27,V3,V4,V5,V6,V7,V8) -> 2.716289247 | N27: 0.8693225832 | O27: =100*(N4-N27)/SUM(R17:R27) -> 1.352486523 | P27: 1.351 | Q27: 2.209751695e-06 | R27: 0.881396508
A28: Swap | B28: 11Y | C28: 2012-11-16 | D28: =AddYears(D4,11) -> 2023-11-16 | J28: 4017 | K28: 11.15833333 | L28: =nss(K28,V3,V4,V5,V6,V7,V8) -> 1.50574068 | M28: =nss_F(K28,V3,V4,V5,V6,V7,V8) -> 2.794412596 | N28: 0.8453406776 | O28: =100*(N4-N28)/SUM(R17:R28) -> 1.470277411 | R28: 0.8570815203
A29: Swap | B29: 12Y | C29: 2012-11-16 | D29: =AddYears(D4,12) -> 2024-11-18 | E29: 1.578 | F29: 1.643390451 | G29: 0.8207620633 | H29: 2.662665408 | J29: 4385 | K29: 12.18055556 | L29: =nss(K29,V3,V4,V5,V6,V7,V8) -> 1.615704675 | M29: =nss_F(K29,V3,V4,V5,V6,V7,V8) -> 2.831368128 | N29: 0.8213534049 | O29: =100*(N4-N29)/SUM(R17:R29) -> 1.572782191 | P29: 1.578 | Q29: =POWER(O29-P29,2) -> 2.722553265e-05 | R29: 0.8396057028
A30: Swap | B30: 13Y | C30: 2012-11-16 | D30: =AddYears(D4,13) -> 2025-11-17 | J30: =D30-C30 -> 4749 | K30: 13.19166667 | L30: =nss(K30,V3,V4,V5,V6,V7,V8) -> 1.70919228 | M30: =nss_F(K30,V3,V4,V5,V6,V7,V8) -> 2.834548901 | N30: 0.7981402474 | O30: =100*(N4-N30)/SUM(R17:R30) -> 1.659263542 | R30: 0.8070084724
A31: Swap | B31: 14Y | C31: 2012-11-16 | D31: =AddYears(D4,14) -> 2026-11-16 | J31: 5113 | K31: 14.20277778 | L31: =nss(K31,V3,V4,V5,V6,V7,V8) -> 1.788631234 | M31: =nss_F(K31,V3,V4,V5,V6,V7,V8) -> 2.811779915 | N31: 0.7756644056 | O31: =100*(N4-N31)/SUM(R17:R31) -> 1.732335847 | R31: 0.784282899
A32: Swap | B32: 15Y | C32: 2012-11-16 | D32: =AddYears(D4,15) -> 2027-11-16 | E32: 1.809 | F32: 1.898914983 | G32: 0.7519410321 | H32: 2.35524235 | J32: 5478 | K32: 15.21666667 | L32: =nss(K32,V3,V4,V5,V6,V7,V8) -> 1.855481459 | M32: =nss_F(K32,V3,V4,V5,V6,V7,V8) -> 2.769293821 | N32: 0.7540154439 | O32: =100*(N4-N32)/SUM(R17:R32) -> 1.793626877 | P32: 1.809 | Q32: =POWER(O32-P32,2) -> 0.000236332904 | R32: 0.7644878806
A33: Swap | B33: 16Y | C33: 2012-11-16 | D33: =AddYears(D4,16) -> 2028-11-16 | J33: 5844 | K33: =J33/360 -> 16.23333333 | L33: =nss(K33,V3,V4,V5,V6,V7,V8) -> 1.910993524 | M33: =nss_F(K33,V3,V4,V5,V6,V7,V8) -> 2.71245033 | N33: 0.7332871198 | O33: =100*(N4-N33)/SUM(R17:R33) -> 1.844504621 | R33: 0.7455085718
A34: Swap | B34: 17Y | C34: 2012-11-16 | D34: =AddYears(D4,17) -> 2029-11-16 | J34: 6209 | K34: =J34/360 -> 17.24722222 | L34: =nss(K34,V3,V4,V5,V6,V7,V8) -> 1.956196231 | M34: =nss_F(K34,V3,V4,V5,V6,V7,V8) -> 2.646157734 | N34: 0.7136308187 | O34: =100*(N4-N34)/SUM(R17:R34) -> 1.886067549 | R34: 0.7235423579
A35: Swap | B35: 18Y | C35: 2012-11-16 | D35: =AddYears(D4,18) -> 2030-11-18 | J35: 6576 | K35: =J35/360 -> 18.26666667 | L35: =nss(K35,V3,V4,V5,V6,V7,V8) -> 1.992697729 | M35: =nss_F(K35,V3,V4,V5,V6,V7,V8) -> 2.573609557 | N35: 0.6948915757 | O35: =100*(N4-N35)/SUM(R17:R35) -> 1.919911339 | R35: 0.7084033564
A36: Swap | B36: 19Y | C36: 2012-11-16 | D36: =AddYears(D4,19) -> 2031-11-17 | J36: 6940 | K36: =J36/360 -> 19.27777778 | L36: =nss(K36,V3,V4,V5,V6,V7,V8) -> 2.021211177 | M36: =nss_F(K36,V3,V4,V5,V6,V7,V8) -> 2.498792977 | N36: 0.6772975439 | O36: =100*(N4-N36)/SUM(R17:R36) -> 1.946732987 | R36: 0.6848230721
A37: Swap | B37: 20Y | C37: 2012-11-16 | D37: =AddYears(D4,20) -> 2032-11-16 | E37: 1.956 | F37: 2.05691877 | G37: 0.6624711749 | H37: 2.187432011 | J37: 7305 | K37: 20.29166667 | L37: =nss(K37,V3,V4,V5,V6,V7,V8) -> 2.043184225 | M37: =nss_F(K37,V3,V4,V5,V6,V7,V8) -> 2.423223455 | N37: 0.6606070246 | O37: =100*(N4-N37)/SUM(R17:R37) -> 1.967906783 | P37: 1.956 | Q37: =POWER(O37-P37,2) -> 0.0001417714805 | R37: 0.6697821222
A38: Swap | B38: 21Y | C38: 2012-11-16 | D38: =AddYears(D4,21) -> 2033-11-16 | J38: 7670 | K38: 21.30555556 | L38: =nss(K38,V3,V4,V5,V6,V7,V8) -> 2.059492443 | M38: =nss_F(K38,V3,V4,V5,V6,V7,V8) -> 2.348857665 | N38: 0.6448185584 | O38: =100*(N4-N38)/SUM(R17:R38) -> 1.984235385 | R38: 0.6537743717
A39: Swap | B39: 22Y | C39: 2012-11-16 | D39: =AddYears(D4,22) -> 2034-11-16 | J39: 8035 | K39: 22.31944444 | L39: =nss(K39,V3,V4,V5,V6,V7,V8) -> 2.070993325 | M39: =nss_F(K39,V3,V4,V5,V6,V7,V8) -> 2.276981904 | N39: 0.6298748031 | O39: =100*(N4-N39)/SUM(R17:R39) -> 1.996490818 | R39: 0.6386230643
A40: Swap | B40: 23Y | C40: 2012-11-16 | D40: =AddYears(D4,23) -> 2035-11-16 | J40: 8400 | K40: 23.33333333 | L40: =nss(K40,V3,V4,V5,V6,V7,V8) -> 2.078442615 | M40: =nss_F(K40,V3,V4,V5,V6,V7,V8) -> 2.208499833 | N40: 0.6157157027 | O40: =100*(N4-N40)/SUM(R17:R40) -> 2.005339555 | R40: 0.6242673097
A41: Swap | B41: 24Y | C41: 2012-11-16 | D41: =AddYears(D4,24) -> 2036-11-17 | J41: 8767 | K41: 24.35277778 | L41: =nss(K41,V3,V4,V5,V6,V7,V8) -> 2.082515146 | M41: =nss_F(K41,V3,V4,V5,V6,V7,V8) -> 2.143665637 | N41: 0.6022092602 | O41: =100*(N4-N41)/SUM(R17:R41) -> 2.011383468 | R41: 0.6139188847
A42: Swap | B42: 25Y | C42: 2012-11-16 | D42: =AddYears(D4,25) -> 2037-11-16 | E42: 2 | F42: 2.095101727 | G42: 0.5920082952 | H42: 2.1355341 | J42: 9131 | K42: 25.36388889 | L42: =nss(K42,V3,V4,V5,V6,V7,V8) -> 2.083742865 | M42: =nss_F(K42,V3,V4,V5,V6,V7,V8) -> 2.083698057 | N42: 0.5894777963 | O42: =100*(N4-N42)/SUM(R17:R42) -> 2.015030822 | P42: 2 | Q42: =POWER(O42-P42,2) -> 0.0002259256205 | R42: 0.5960275496
A43: Swap | B43: 26Y | C43: 2012-11-16 | D43: =AddYears(D4,26) -> 2038-11-16 | J43: 9496 | K43: 26.37777778 | L43: =nss(K43,V3,V4,V5,V6,V7,V8) -> 2.082657423 | M43: =nss_F(K43,V3,V4,V5,V6,V7,V8) -> 2.028065381 | N43: 0.5773198998 | O43: =100*(N4-N43)/SUM(R17:R43) -> 2.016763575 | R43: 0.5853382318
A44: Swap | B44: 27Y | C44: 2012-11-16 | D44: =AddYears(D4,27) -> 2039-11-16 | J44: 9861 | K44: 27.39166667 | L44: =nss(K44,V3,V4,V5,V6,V7,V8) -> 2.079676994 | M44: =nss_F(K44,V3,V4,V5,V6,V7,V8) -> 1.976958021 | N44: 0.5657187741 | O44: =100*(N4-N44)/SUM(R17:R44) -> 2.016918948 | R44: 0.5735759793
A45: Swap | B45: 28Y | C45: 2012-11-16 | D45: =AddYears(D4,28) -> 2040-11-16 | J45: 10227 | K45: 28.40833333 | L45: =nss(K45,V3,V4,V5,V6,V7,V8) -> 2.075150564 | M45: =nss_F(K45,V3,V4,V5,V6,V7,V8) -> 1.930167392 | N45: 0.5545958164 | O45: =100*(N4-N45)/SUM(R17:R45) -> 2.015791025 | R45: 0.56383908
A46: Swap | B46: 29Y | C46: 2012-11-16 | D46: =AddYears(D4,29) -> 2041-11-18 | J46: 10594 | K46: 29.42777778 | L46: =nss(K46,V3,V4,V5,V6,V7,V8) -> 2.069377915 | M46: =nss_F(K46,V3,V4,V5,V6,V7,V8) -> 1.887565008 | N46: 0.5439097567 | O46: =100*(N4-N46)/SUM(R17:R46) -> 2.013622299 | R46: 0.5544857798
A47: Swap | B47: 30Y | C47: 2012-11-16 | D47: =AddYears(D4,30) -> 2042-11-17 | E47: 2.02 | F47: 2.107817593 | G47: 0.5310374344 | H47: 2.084475735 | J47: 10958 | K47: 30.43888889 | L47: =nss(K47,V3,V4,V5,V6,V7,V8) -> 2.062693191 | M47: =nss_F(K47,V3,V4,V5,V6,V7,V8) -> 1.849364661 | N47: 0.5337322936 | O47: =100*(N4-N47)/SUM(R17:R47) -> 2.010649826 | P47: 2.02 | Q47: =POWER(O47-P47,2) -> 8.742575299e-05 | R47: 0.5396626524
Q48: =SUM(Q3:Q47) -> 0.003204092734
A52: Tenor | B52: Stamp | C52: Maturity | D52: Days | E52: t (ACT/360) | F52: t from zero | G52: t0/360 | H52: NSS | I52: Discount NSS | J52: Discount 1M NSS | L52: Tenor | M52: Stamp | N52: Maturity | O52: Days | P52: t (ACT/360) | Q52: t from zero | S52: t0/360 | T52: NSS | U52: Discount NSS | V52: Discount 3M NSS
A53: T/N | B53: 2012-11-14 | C53: 2012-11-16 | D53: =C53-B53 -> 2 | E53: =D53/360 -> 0.005555555556 | F53: =C53-B53 -> 2 | G53: =F53/360 -> 0.005555555556 | H53: 0.08 | I53: =EXP(-H53/100*G53) -> 0.9999955556 | J53: =I54/I53 -> 0.9999184868 | L53: T/N | M53: 2012-11-14 | N53: 2012-11-16 | O53: =N53-M53 -> 2 | P53: =O53/360 -> 0.005555555556 | Q53: =N53-M53 -> 2 | S53: =Q53/360 -> 0.005555555556 | T53: 0.08 | U53: 0.9999977778 | V53: =U54/U53 -> 0.9997992159
A54: 1 M | B54: =C53 -> 2012-11-16 | C54: =AddMonths(C53,1) -> 2012-12-17 | D54: =C54-B54 -> 31 | E54: =D54/360 -> 0.08611111111 | F54: =C54-C53 -> 31 | G54: =F54/360 -> 0.08611111111 | H54: =nss(G54,V3,V4,V5,V6,V7,V8) -> 0.099825642 | I54: =EXP(-H54/100*G54) -> 0.9999140427 | J54: =I55/I54 -> 0.9999356955 | L54: 3M | M54: 2012-11-16 | N54: =AddMonths(M54,3) -> 2013-02-18 | O54: 94 | P54: =O54/360 -> 0.2611111111 | Q54: =N54-N53 -> 94 | S54: 0.2611111111 | T54: =nss(S54,V3,V4,V5,V6,V7,V8) -> 0.07775482074 | U54: =EXP(-T54/100*S54) -> 0.9997969941 | V54: =U55/U54 -> 0.9999252131
A55: 2 M | B55: =C54 -> 2012-12-17 | C55: =AddMonths(C53,2) -> 2013-01-16 | D55: =C55-B55 -> 30 | E55: 0.08333333333 | F55: =C55-C53 -> 61 | G55: 0.1694444444 | H55: =nss(G55,V3,V4,V5,V6,V7,V8) -> 0.08868246835 | I55: 0.9998497438 | J55: 0.9999472424 | L55: 6M | M55: =N54 -> 2013-02-18 | N55: =AddMonths(M54,6) -> 2013-05-16 | O55: 87 | P55: 0.2416666667 | Q55: =N55-M54 -> 181 | S55: 0.5027777778 | T55: =nss(S55,V3,V4,V5,V6,V7,V8) -> 0.05525624893 | U55: 0.9997222224 | V55: 0.9999696044
A56: 3 M | B56: =C55 -> 2013-01-16 | C56: =AddMonths(C53,3) -> 2013-02-18 | D56: =C56-B56 -> 33 | E56: 0.09166666667 | F56: =C56-C53 -> 94 | G56: 0.2611111111 | H56: =nss(G56,V3,V4,V5,V6,V7,V8) -> 0.07775482074 | I56: 0.9997969941 | J56: 0.9999673689 | L56: 9M | M56: 2013-05-16 | N56: =AddMonths(M54,9) -> 2013-08-16 | O56: 92 | P56: 0.2555555556 | Q56: =N56-M54 -> 273 | S56: 0.7583333333 | T56: =nss(S56,V3,V4,V5,V6,V7,V8) -> 0.04064336342 | U56: 0.9996918353 | V56: 0.9999568319
A57: 4 M | B57: 2013-02-18 | C57: =AddMonths(C53,4) -> 2013-03-18 | D57: =C57-B57 -> 28 | E57: 0.07777777778 | F57: =C57-C53 -> 122 | G57: 0.3388888889 | H57: =nss(G57,V3,V4,V5,V6,V7,V8) -> 0.06953847132 | I57: 0.9997643696 | J57: 0.9999755363 | L57: 1Y | M57: 2013-08-16 | N57: =AddMonths(M54,12) -> 2013-11-18 | O57: 94 | P57: 0.2611111111 | Q57: =N57-M54 -> 367 | S57: 1.019444444 | T57: =nss(S57,V3,V4,V5,V6,V7,V8) -> 0.03446790749 | U57: 0.9996486806 | V57: 0.9998930113
A58: 5 M | B58: 2013-03-18 | C58: =AddMonths(C53,5) -> 2013-04-16 | D58: =C58-B58 -> 29 | E58: 0.08055555556 | F58: =C58-C53 -> 151 | G58: 0.4194444444 | H58: =nss(G58,V3,V4,V5,V6,V7,V8) -> 0.06201586746 | I58: 0.9997399117 | J58: 0.9999823061 | M58: 2013-11-18 | N58: =AddMonths(M54,15) -> 2014-02-17 | O58: 91 | P58: 0.2527777778 | Q58: =N58-M54 -> 458 | S58: 1.272222222 | T58: =nss(S58,V3,V4,V5,V6,V7,V8) -> 0.0360295212 | U58: 0.9995417295 | V58: 0.9997934929
A59: 6 M | B59: 2013-04-16 | C59: =AddMonths(C53,6) -> 2013-05-16 | D59: 30 | E59: 0.08333333333 | F59: =C59-C53 -> 181 | G59: 0.5027777778 | H59: =nss(G59,V3,V4,V5,V6,V7,V8) -> 0.05525624893 | I59: 0.9997222224 | J59: 0.9999869978 | M59: 2014-02-17 | N59: =AddMonths(M54,18) -> 2014-05-16 | O59: 88 | P59: 0.2444444444 | Q59: =N59-M54 -> 546 | S59: 1.516666667 | T59: =nss(S59,V3,V4,V5,V6,V7,V8) -> 0.04383982654 | U59: 0.999335317 | V59: 0.99962902
A60: 7 M | B60: 2013-05-16 | C60: =AddMonths(C53,7) -> 2013-06-17 | D60: 32 | E60: 0.08888888889 | F60: =C60-C53 -> 213 | G60: 0.5916666667 | H60: =nss(G60,V3,V4,V5,V6,V7,V8) -> 0.04915240722 | I60: 0.9997092239 | J60: 0.999991189 | M60: 2014-05-16 | N60: =AddMonths(M54,21) -> 2014-08-18 | O60: 94 | P60: 0.2611111111 | Q60: =N60-M54 -> 640 | S60: 1.777777778 | T60: =nss(S60,V3,V4,V5,V6,V7,V8) -> 0.0582723464 | U60: 0.9989645836 | V60: 0.9994612704
A61: 8 M | B61: 2013-06-17 | C61: =AddMonths(C53,8) -> 2013-07-16 | D61: 29 | E61: 0.08055555556 | F61: =C61-C53 -> 242 | G61: 0.6722222222 | H61: =nss(G61,V3,V4,V5,V6,V7,V8) -> 0.04457297508 | I61: 0.9997004154 | J61: 0.9999914173 | L61: 2Y | M61: 2014-08-18 | N61: =AddMonths(M54,24) -> 2014-11-17 | O61: 91 | P61: 0.2527777778 | Q61: =N61-M54 -> 731 | S61: 2.030555556 | T61: =nss(S61,V3,V4,V5,V6,V7,V8) -> 0.07755648716 | U61: 0.9984264118 | V61: 0.9992587539
A62: 9 M | B62: 2013-07-16 | C62: =AddMonths(C53,9) -> 2013-08-16 | D62: 31 | E62: 0.08611111111 | F62: =C62-C53 -> 273 | G62: 0.7583333333 | H62: =nss(G62,V3,V4,V5,V6,V7,V8) -> 0.04064336342 | I62: 0.9996918353 | J62: 0.9999900569 | M62: 2014-11-17 | N62: =AddMonths(M54,27) -> 2015-02-16 | O62: 91 | P62: 0.2527777778 | Q62: =N62-M54 -> 822 | S62: 2.283333333 | T62: =nss(S62,V3,V4,V5,V6,V7,V8) -> 0.1014459217 | U62: 0.9976863321 | V62: 0.9990356392
A63: 10 M | B63: 2013-08-16 | C63: =AddMonths(C53,10) -> 2013-09-16 | D63: 31 | E63: 0.08611111111 | F63: =C63-C53 -> 304 | G63: 0.8444444444 | H63: =nss(G63,V3,V4,V5,V6,V7,V8) -> 0.03767628681 | I63: 0.9996818953 | J63: 0.999987047 | M63: 2015-02-16 | N63: =AddMonths(M54,30) -> 2015-05-18 | O63: 91 | P63: 0.2527777778 | Q63: =N63-M54 -> 913 | S63: 2.536111111 | T63: =nss(S63,V3,V4,V5,V6,V7,V8) -> 0.1293781876 | U63: 0.9967242026 | V63: 0.998796301
A64: 11 M | B64: 2013-09-16 | C64: =AddMonths(C53,11) -> 2013-10-16 | D64: 30 | E64: 0.08333333333 | F64: =C64-C53 -> 334 | G64: 0.9277777778 | H64: =nss(G64,V3,V4,V5,V6,V7,V8) -> 0.03568833185 | I64: 0.9996689464 | J64: 0.9999797274 | M64: 2015-05-18 | N64: =AddMonths(M54,33) -> 2015-08-17 | O64: 91 | P64: 0.2527777778 | Q64: =N64-M54 -> 1004 | S64: 2.788888889 | T64: =nss(S64,V3,V4,V5,V6,V7,V8) -> 0.1608381984 | U64: 0.9955244466 | V64: 0.9985446187
A65: 1Y | B65: 2013-10-16 | C65: =AddMonths(C53,12) -> 2013-11-18 | D65: 33 | E65: 0.09166666667 | F65: =C65-C53 -> 367 | G65: 1.019444444 | H65: =nss(G65,V3,V4,V5,V6,V7,V8) -> 0.03446790749 | I65: 0.9996486806 | J65: 0.9999761595 | L65: 3Y | M65: 2015-08-17 | N65: =AddMonths(M54,36) -> 2015-11-16 | O65: 91 | P65: 0.2527777778 | Q65: =N65-M54 -> 1095 | S65: 3.041666667 | T65: =nss(S65,V3,V4,V5,V6,V7,V8) -> 0.1953547419 | U65: 0.9940755789 | V65: 0.9982637095
B66: 2013-11-18 | C66: =AddMonths(C53,13) -> 2013-12-16 | D66: 28 | E66: 0.07777777778 | F66: =C66-C53 -> 395 | G66: 1.097222222 | H66: =nss(G66,V3,V4,V5,V6,V7,V8) -> 0.03419744402 | I66: 0.9996248484 | J66: 0.999964761 | M66: 2015-11-16 | N66: =AddMonths(M54,39) -> 2016-02-16 | O66: 92 | P66: 0.2555555556 | Q66: =N66-M54 -> 1187 | S66: 3.297222222 | T66: =nss(S66,V3,V4,V5,V6,V7,V8) -> 0.2329184722 | U66: 0.992349575 | V66: 0.9980378408
B67: 2013-12-16 | C67: =AddMonths(C53,14) -> 2014-01-16 | D67: 31 | E67: 0.08611111111 | F67: =C67-C53 -> 426 | G67: 1.183333333 | H67: =nss(G67,V3,V4,V5,V6,V7,V8) -> 0.03468689425 | I67: 0.9995896226 | J67: 0.9999520872 | M67: 2016-02-16 | N67: =AddMonths(M54,42) -> 2016-05-16 | O67: 90 | P67: 0.25 | Q67: =N67-M54 -> 1277 | S67: 3.547222222 | T67: =nss(S67,V3,V4,V5,V6,V7,V8) -> 0.2718726301 | U67: 0.9904024272 | V67: 0.9977215781
B68: 2014-01-16 | C68: =AddMonths(C53,15) -> 2014-02-17 | D68: 32 | E68: 0.08888888889 | F68: =C68-C53 -> 458 | G68: 1.272222222 | H68: =nss(G68,V3,V4,V5,V6,V7,V8) -> 0.0360295212 | I68: 0.9995417295 | J68: 0.99994705 | M68: 2016-05-16 | N68: =AddMonths(M54,45) -> 2016-08-16 | O68: 92 | P68: 0.2555555556 | Q68: =N68-M54 -> 1369 | S68: 3.802777778 | T68: =nss(S68,V3,V4,V5,V6,V7,V8) -> 0.3135851874 | U68: 0.9881458726 | V68: 0.9974449548
B69: 2014-02-17 | C69: =AddMonths(C53,16) -> 2014-03-17 | D69: 28 | E69: 0.07777777778 | F69: =C69-C53 -> 486 | G69: 1.35 | H69: =nss(G69,V3,V4,V5,V6,V7,V8) -> 0.03787606947 | I69: 0.9994888038 | J69: 0.9999304813 | L69: 4Y | M69: 2016-08-16 | N69: =AddMonths(M54,48) -> 2016-11-16 | O69: 92 | P69: 0.2555555556 | Q69: =N69-M54 -> 1461 | S69: 4.058333333 | T69: =nss(S69,V3,V4,V5,V6,V7,V8) -> 0.35687711 | U69: 0.9856211152 | V69: 0.9971694886
B70: 2014-03-17 | C70: =AddMonths(C53,17) -> 2014-04-16 | D70: 30 | E70: 0.08333333333 | F70: =C70-C53 -> 516 | G70: 1.433333333 | H70: =nss(G70,V3,V4,V5,V6,V7,V8) -> 0.04052428609 | I70: 0.9994193206 | J70: 0.9999159476 | M70: 2016-11-16 | N70: =AddMonths(M54,51) -> 2017-02-16 | O70: 92 | P70: 0.2555555556 | Q70: =N70-M54 -> 1553 | S70: 4.313888889 | T70: =nss(S70,V3,V4,V5,V6,V7,V8) -> 0.4014425976 | U70: 0.9828313034 | V70: 0.99700228
A71: 18M | B71: 2014-04-16 | C71: =AddMonths(C53,18) -> 2014-05-16 | D71: 30 | E71: 0.08333333333 | F71: =C71-C53 -> 546 | G71: 1.516666667 | H71: =nss(G71,V3,V4,V5,V6,V7,V8) -> 0.04383982654 | I71: 0.999335317 | J71: 0.9998965384 | M71: 2017-02-16 | N71: =AddMonths(M54,54) -> 2017-05-16 | O71: 89 | P71: 0.2472222222 | Q71: =N71-M54 -> 1642 | S71: 4.561111111 | T71: =nss(S71,V3,V4,V5,V6,V7,V8) -> 0.4455056953 | U71: 0.9798850503 | V71: 0.9966376684
B72: 2014-05-16 | C72: =AddMonths(C53,19) -> 2014-06-16 | D72: 31 | E72: 0.08611111111 | F72: =C72-C53 -> 577 | G72: 1.602777778 | H72: =nss(G72,V3,V4,V5,V6,V7,V8) -> 0.04793995587 | I72: 0.9992319242 | J72: 0.9998825834 | M72: 2017-05-16 | N72: =AddMonths(M54,57) -> 2017-08-16 | O72: 92 | P72: 0.2555555556 | Q72: =N72-M54 -> 1734 | S72: 4.816666667 | T72: =nss(S72,V3,V4,V5,V6,V7,V8) -> 0.4917925273 | U72: 0.9765903518 | V72: 0.9963753243
B73: 2014-06-16 | C73: =AddMonths(C53,20) -> 2014-07-16 | D73: 30 | E73: 0.08333333333 | F73: =C73-C53 -> 607 | G73: 1.686111111 | H73: =nss(G73,V3,V4,V5,V6,V7,V8) -> 0.05253476001 | I73: 0.9991145978 | J73: 0.9998498529 | L73: 5Y | M73: 2017-08-16 | N73: =AddMonths(M54,60) -> 2017-11-16 | O73: 92 | P73: 0.2555555556 | Q73: =N73-M54 -> 1826 | S73: 5.072222222 | T73: =nss(S73,V3,V4,V5,V6,V7,V8) -> 0.5386054931 | U73: 0.9730505285 | V73: 0.9961198978
B74: 2014-07-16 | C74: =AddMonths(C53,21) -> 2014-08-18 | D74: 33 | E74: 0.09166666667 | F74: =C74-C53 -> 640 | G74: 1.777777778 | H74: =nss(G74,V3,V4,V5,V6,V7,V8) -> 0.0582723464 | I74: 0.9989645836 | J74: 0.9998488308 | M74: 2017-11-16 | N74: =AddMonths(M54,63) -> 2018-02-16 | O74: 92 | P74: 0.2555555556 | Q74: =N74-M54 -> 1918 | S74: 5.327777778 | T74: =nss(S74,V3,V4,V5,V6,V7,V8) -> 0.5857398364 | U74: 0.969274993 | V74: 0.9960104651
B75: 2014-08-18 | C75: =AddMonths(C53,22) -> 2014-09-16 | D75: 29 | E75: 0.08055555556 | F75: =C75-C53 -> 669 | G75: 1.858333333 | H75: =nss(G75,V3,V4,V5,V6,V7,V8) -> 0.06388161813 | I75: 0.998813571 | J75: 0.9998237131 | M75: 2018-02-16 | N75: =AddMonths(M54,66) -> 2018-05-16 | O75: 89 | P75: 0.2472222222 | Q75: =N75-M54 -> 2007 | S75: 5.575 | T75: =nss(S75,V3,V4,V5,V6,V7,V8) -> 0.631469617 | U75: 0.9654080366 | V75: 0.995640994
B76: 2014-09-16 | C76: =AddMonths(C53,23) -> 2014-10-16 | D76: 30 | E76: 0.08333333333 | F76: =C76-C53 -> 699 | G76: 1.941666667 | H76: =nss(G76,V3,V4,V5,V6,V7,V8) -> 0.0702198726 | I76: 0.9986374932 | J76: 0.9997886306 | M76: 2018-05-16 | N76: =AddMonths(M54,69) -> 2018-08-16 | O76: 92 | P76: 0.2555555556 | Q76: =N76-M54 -> 2099 | S76: 5.830555556 | T76: =nss(S76,V3,V4,V5,V6,V7,V8) -> 0.6787168899 | U76: 0.9611998172 | V76: 0.9954109291
A77: 2 Y | B77: 2014-10-16 | C77: =AddMonths(C53,24) -> 2014-11-17 | D77: 32 | E77: 0.08888888889 | F77: =C77-C53 -> 731 | G77: 2.030555556 | H77: =nss(G77,V3,V4,V5,V6,V7,V8) -> 0.07755648716 | I77: 0.9984264118 | J77: 0.9997867925 | L77: 6Y | M77: 2018-08-16 | N77: =AddMonths(M54,72) -> 2018-11-16 | O77: 92 | P77: 0.2555555556 | Q77: =N77-M54 -> 2191 | S77: 6.086111111 | T77: =nss(S77,V3,V4,V5,V6,V7,V8) -> 0.7257934922 | U77: 0.956788803 | V77: 0.9950838769
B78: 2014-11-17 | C78: =AddMonths(C53,25) -> 2014-12-16 | D78: 29 | E78: 0.08055555556 | F78: =C78-C53 -> 760 | G78: 2.111111111 | H78: =nss(G78,V3,V4,V5,V6,V7,V8) -> 0.08469747481 | I78: 0.9982135398 | J78: 0.9997484844 | M78: 2018-11-16 | N78: =AddMonths(M54,75) -> 2019-02-18 | O78: 94 | P78: 0.2611111111 | Q78: =N78-M54 -> 2285 | S78: 6.347222222 | T78: =nss(S78,V3,V4,V5,V6,V7,V8) -> 0.7735800587 | U78: 0.9520851115 | V78: 0.9952533855
B79: 2014-12-16 | C79: =AddMonths(C53,26) -> 2015-01-16 | D79: 31 | E79: 0.08611111111 | F79: =C79-C53 -> 791 | G79: 2.197222222 | H79: =nss(G79,V3,V4,V5,V6,V7,V8) -> 0.0928265245 | I79: 0.9979624736 | J79: 0.9997232948 | M79: 2019-02-18 | N79: =AddMonths(M54,78) -> 2019-05-16 | O79: 87 | P79: 0.2416666667 | Q79: =N79-M54 -> 2372 | S79: 6.588888889 | T79: =nss(S79,V3,V4,V5,V6,V7,V8) -> 0.8174179555 | U79: 0.9475659305 | V79: 0.9947865297
B80: 2015-01-16 | C80: =AddMonths(C53,27) -> 2015-02-16 | D80: 31 | E80: 0.08611111111 | F80: =C80-C53 -> 822 | G80: 2.283333333 | H80: =nss(G80,V3,V4,V5,V6,V7,V8) -> 0.1014459217 | I80: 0.9976863321 | J80: 0.999727789 | M80: 2019-05-16 | N80: =AddMonths(M54,81) -> 2019-08-16 | O80: 92 | P80: 0.2555555556 | Q80: =N80-M54 -> 2464 | S80: 6.844444444 | T80: =nss(S80,V3,V4,V5,V6,V7,V8) -> 0.8632675626 | U80: 0.9426258236 | V80: 0.9944774495
B81: 2015-02-16 | C81: =AddMonths(C53,28) -> 2015-03-16 | D81: 28 | E81: 0.07777777778 | F81: =C81-C53 -> 850 | G81: 2.361111111 | H81: =nss(G81,V3,V4,V5,V6,V7,V8) -> 0.1096346793 | I81: 0.9974147509 | J81: 0.9996733179 | L81: 7Y | M81: 2019-08-16 | N81: =AddMonths(M54,84) -> 2019-11-18 | O81: 94 | P81: 0.2611111111 | Q81: =N81-M54 -> 2558 | S81: 7.105555556 | T81: =nss(S81,V3,V4,V5,V6,V7,V8) -> 0.9094816632 | U81: 0.9374201249 | V81: 0.9944749599
B82: 2015-03-16 | C82: =AddMonths(C53,29) -> 2015-04-16 | D82: 31 | E82: 0.08611111111 | F82: =C82-C53 -> 881 | G82: 2.447222222 | H82: =nss(G82,V3,V4,V5,V6,V7,V8) -> 0.119128211 | I82: 0.9970889134 | J82: 0.9996342244 | M82: 2019-11-18 | N82: =AddMonths(M54,87) -> 2020-02-17 | O82: 91 | P82: 0.2527777778 | Q82: =N82-M54 -> 2649 | S82: 7.358333333 | T82: =nss(S82,V3,V4,V5,V6,V7,V8) -> 0.9535322916 | U82: 0.9322408411 | V82: 0.9943099206
B83: 2015-04-16 | C83: =AddMonths(C53,30) -> 2015-05-18 | D83: 32 | E83: 0.08888888889 | F83: =C83-C53 -> 913 | G83: 2.536111111 | H83: =nss(G83,V3,V4,V5,V6,V7,V8) -> 0.1293781876 | I83: 0.9967242026 | J83: 0.9996429135 | M83: 2020-02-17 | N83: =AddMonths(M54,90) -> 2020-05-18 | O83: 91 | P83: 0.2527777778 | Q83: =N83-M54 -> 2740 | S83: 7.611111111 | T83: =nss(S83,V3,V4,V5,V6,V7,V8) -> 0.9968375561 | U83: 0.9269363168 | V83: 0.9941550633
B84: 2015-05-18 | C84: =AddMonths(C53,31) -> 2015-06-16 | D84: 29 | E84: 0.08055555556 | F84: =C84-C53 -> 942 | G84: 2.616666667 | H84: =nss(G84,V3,V4,V5,V6,V7,V8) -> 0.1390442618 | I84: 0.9963682858 | J84: 0.999604506 | M84: 2020-05-18 | N84: =AddMonths(M54,93) -> 2020-08-17 | O84: 91 | P84: 0.2527777778 | Q84: =N84-M54 -> 2831 | S84: 7.863888889 | T84: =nss(S84,V3,V4,V5,V6,V7,V8) -> 1.039339445 | U84: 0.9215184327 | V84: 0.9940102921
B85: 2015-06-16 | C85: =AddMonths(C53,32) -> 2015-07-16 | D85: 30 | E85: 0.08333333333 | F85: =C85-C53 -> 972 | G85: 2.7 | H85: =nss(G85,V3,V4,V5,V6,V7,V8) -> 0.1494035945 | I85: 0.9959742282 | J85: 0.9995484004 | L85: 8Y | M85: 2020-08-17 | N85: =AddMonths(M54,96) -> 2020-11-16 | O85: 91 | P85: 0.2527777778 | Q85: =N85-M54 -> 2922 | S85: =Q85/360 -> 8.116666667 | T85: =nss(S85,V3,V4,V5,V6,V7,V8) -> 1.080988303 | U85: 0.9159988065 | V85: 0.9938076611
B86: 2015-07-16 | C86: =AddMonths(C53,33) -> 2015-08-17 | D86: 32 | E86: 0.08888888889 | F86: =C86-C53 -> 1004 | G86: 2.788888889 | H86: =nss(G86,V3,V4,V5,V6,V7,V8) -> 0.1608381984 | I86: 0.9955244466 | J86: 0.9995483094 | M86: 2020-11-16 | N86: =AddMonths(M54,99) -> 2021-02-16 | O86: 92 | P86: 0.2555555556 | Q86: =N86-M54 -> 3014 | S86: 8.372222222 | T86: =nss(S86,V3,V4,V5,V6,V7,V8) -> 1.122184836 | U86: 0.9103266315 | V86: 0.9938182138
B87: 2015-08-17 | C87: =AddMonths(C53,34) -> 2015-09-16 | D87: 30 | E87: 0.08333333333 | F87: =C87-C53 -> 1034 | G87: 2.872222222 | H87: =nss(G87,V3,V4,V5,V6,V7,V8) -> 0.171901439 | I87: 0.9950747775 | J87: 0.9995205448 | M87: 2021-02-16 | N87: =AddMonths(M54,102) -> 2021-05-17 | O87: 90 | P87: 0.25 | Q87: =N87-M54 -> 3104 | S87: 8.622222222 | T87: =nss(S87,V3,V4,V5,V6,V7,V8) -> 1.161565756 | U87: 0.9046991868 | V87: 0.9936349159
B88: 2015-09-16 | C88: =AddMonths(C53,35) -> 2015-10-16 | D88: 30 | E88: 0.08333333333 | F88: =C88-C53 -> 1064 | G88: 2.955555556 | H88: =nss(G88,V3,V4,V5,V6,V7,V8) -> 0.1832806528 | I88: 0.9945976838 | J88: 0.9994750593 | M88: 2021-05-17 | N88: =AddMonths(M54,105) -> 2021-08-16 | O88: 91 | P88: 0.2527777778 | Q88: =N88-M54 -> 3195 | S88: 8.875 | T88: =nss(S88,V3,V4,V5,V6,V7,V8) -> 1.200430517 | U88: 0.8989407004 | V88: 0.9934573092
A89: 3 Y | B89: 2015-10-16 | C89: =AddMonths(C53,36) -> 2015-11-16 | D89: 31 | E89: 0.08611111111 | F89: =C89-C53 -> 1095 | G89: 3.041666667 | H89: =nss(G89,V3,V4,V5,V6,V7,V8) -> 0.1953547419 | I89: 0.9940755789 | J89: 0.9994631419 | L89: 9Y | M89: 2021-08-16 | N89: =AddMonths(M54,108) -> 2021-11-16 | O89: 92 | P89: 0.2555555556 | Q89: =N89-M54 -> 3287 | S89: 9.130555556 | T89: =nss(S89,V3,V4,V5,V6,V7,V8) -> 1.238724148 | U89: 0.8930592093 | V89: 0.993358165
B90: 2015-11-16 | C90: =AddMonths(C53,37) -> 2015-12-16 | D90: 30 | E90: 0.08333333333 | F90: =C90-C53 -> 1125 | G90: 3.125 | H90: =nss(G90,V3,V4,V5,V6,V7,V8) -> 0.2073293537 | I90: 0.9935419014 | J90: 0.9993764057 | M90: 2021-11-16 | N90: =AddMonths(M54,111) -> 2022-02-16 | O90: 92 | P90: 0.2555555556 | Q90: =N90-M54 -> 3379 | S90: 9.386111111 | T90: =nss(S90,V3,V4,V5,V6,V7,V8) -> 1.275995832 | U90: 0.8871276574 | V90: 0.9934882301
B91: 2015-12-16 | C91: =AddMonths(C53,38) -> 2016-01-18 | D91: 33 | E91: 0.09166666667 | F91: =C91-C53 -> 1158 | G91: 3.216666667 | H91: =nss(G91,V3,V4,V5,V6,V7,V8) -> 0.2208134019 | I91: 0.9929223344 | J91: 0.9994231579 | M91: 2022-02-16 | N91: =AddMonths(M54,114) -> 2022-05-16 | O91: 89 | P91: 0.2472222222 | Q91: =N91-M54 -> 3468 | S91: 9.633333333 | T91: =nss(S91,V3,V4,V5,V6,V7,V8) -> 1.31106696 | U91: 0.8813508863 | V91: 0.9931893224
B92: 2016-01-18 | C92: =AddMonths(C53,39) -> 2016-02-16 | D92: 29 | E92: 0.08055555556 | F92: =C92-C53 -> 1187 | G92: 3.297222222 | H92: =nss(G92,V3,V4,V5,V6,V7,V8) -> 0.2329184722 | I92: 0.992349575 | J92: 0.9993960345 | M92: 2022-05-16 | N92: =AddMonths(M54,117) -> 2022-08-16 | O92: 92 | P92: 0.2555555556 | Q92: =N92-M54 -> 3560 | S92: 9.888888889 | T92: =nss(S92,V3,V4,V5,V6,V7,V8) -> 1.346293078 | U92: 0.8753482895 | V92: 0.9931162185
B93: 2016-02-16 | C93: =AddMonths(C53,40) -> 2016-03-16 | D93: 29 | E93: 0.08055555556 | F93: =C93-C53 -> 1216 | G93: 3.377777778 | H93: =nss(G93,V3,V4,V5,V6,V7,V8) -> 0.2452496312 | I93: 0.9917502301 | J93: 0.9992796 | L93: 10Y | M93: 2022-08-16 | N93: =AddMonths(M54,120) -> 2022-11-16 | O93: 92 | P93: 0.2555555556 | Q93: =N93-M54 -> 3652 | S93: 10.14444444 | T93: =nss(S93,V3,V4,V5,V6,V7,V8) -> 1.380469984 | U93: 0.8693225832 | V93: 0.9930512605
B94: 2016-03-16 | C94: =AddMonths(C53,41) -> 2016-04-18 | D94: 33 | E94: 0.09166666667 | F94: =C94-C53 -> 1249 | G94: 3.469444444 | H94: =nss(G94,V3,V4,V5,V6,V7,V8) -> 0.2595414721 | I94: 0.9910357732 | J94: 0.9993609251 | M94: 2022-11-16 | N94: =AddMonths(M54,123) -> 2023-02-16 | O94: 92 | P94: 0.2555555556 | Q94: =N94-M54 -> 3744 | S94: 10.4 | T94: =nss(S94,V3,V4,V5,V6,V7,V8) -> 1.413596202 | U94: 0.863281887 | V94: 0.9932226185
B95: 2016-04-18 | C95: =AddMonths(C53,42) -> 2016-05-16 | D95: 28 | E95: 0.07777777778 | F95: =C95-C53 -> 1277 | G95: 3.547222222 | H95: =nss(G95,V3,V4,V5,V6,V7,V8) -> 0.2718726301 | I95: 0.9904024272 | J95: 0.9992626266 | M95: 2023-02-16 | N95: =AddMonths(M54,126) -> 2023-05-16 | O95: 89 | P95: 0.2472222222 | Q95: =N95-M54 -> 3833 | S95: 10.64722222 | T95: =nss(S95,V3,V4,V5,V6,V7,V8) -> 1.444644003 | U95: 0.8574310964 | V95: 0.9929459649
B96: 2016-05-16 | C96: =AddMonths(C53,43) -> 2016-06-16 | D96: 31 | E96: 0.08611111111 | F96: =C96-C53 -> 1308 | G96: 3.633333333 | H96: =nss(G96,V3,V4,V5,V6,V7,V8) -> 0.2857313325 | I96: 0.9896721308 | J96: 0.9992058811 | M96: 2023-05-16 | N96: =AddMonths(M54,129) -> 2023-08-16 | O96: 92 | P96: 0.2555555556 | Q96: =N96-M54 -> 3925 | S96: 10.90277778 | T96: =nss(S96,V3,V4,V5,V6,V7,V8) -> 1.475710988 | U96: 0.8513827473 | V96: 0.9929032274
B97: 2016-06-16 | C97: =AddMonths(C53,44) -> 2016-07-18 | D97: 32 | E97: 0.08888888889 | F97: =C97-C53 -> 1340 | G97: 3.722222222 | H97: =nss(G97,V3,V4,V5,V6,V7,V8) -> 0.3002509113 | I97: 0.9888862134 | J97: 0.9992513387 | L97: 11Y | M97: 2023-08-16 | N97: =AddMonths(M54,132) -> 2023-11-16 | O97: 92 | P97: 0.2555555556 | Q97: =N97-M54 -> 4017 | S97: 11.15833333 | T97: =nss(S97,V3,V4,V5,V6,V7,V8) -> 1.50574068 | U97: 0.8453406776 | V97: 0.9928673156
B98: 2016-07-18 | C98: =AddMonths(C53,45) -> 2016-08-16 | D98: 29 | E98: 0.08055555556 | F98: =C98-C53 -> 1369 | G98: 3.802777778 | H98: =nss(G98,V3,V4,V5,V6,V7,V8) -> 0.3135851874 | I98: 0.9881458726 | J98: 0.9991692671 | M98: 2023-11-16 | N98: =AddMonths(M54,135) -> 2024-02-16 | O98: 92 | P98: 0.2555555556 | Q98: =N98-M54 -> 4109 | S98: 11.41388889 | T98: =nss(S98,V3,V4,V5,V6,V7,V8) -> 1.534742535 | U98: 0.8393111293 | V98: 0.9929933179
B99: 2016-08-16 | C99: =AddMonths(C53,46) -> 2016-09-16 | D99: 31 | E99: 0.08611111111 | F99: =C99-C53 -> 1400 | G99: 3.888888889 | H99: =nss(G99,V3,V4,V5,V6,V7,V8) -> 0.3280120962 | I99: 0.9873249873 | J99: 0.9991378096 | M99: 2024-02-16 | N99: =AddMonths(M54,138) -> 2024-05-16 | O99: 90 | P99: 0.25 | Q99: =N99-M54 -> 4199 | S99: 11.66388889 | T99: =nss(S99,V3,V4,V5,V6,V7,V8) -> 1.562130381 | U99: 0.833430343 | V99: 0.9928150874
B100: 2016-09-16 | C100: =AddMonths(C53,47) -> 2016-10-17 | D100: 31 | E100: 0.08611111111 | F100: =C100-C53 -> 1431 | G100: 3.975 | H100: =nss(G100,V3,V4,V5,V6,V7,V8) -> 0.3426059941 | I100: 0.9864737252 | J100: 0.9991356993 | M100: 2024-05-16 | N100: =AddMonths(M54,141) -> 2024-08-16 | O100: 92 | P100: 0.2555555556 | Q100: =N100-M54 -> 4291 | S100: 11.91944444 | T100: =nss(S100,V3,V4,V5,V6,V7,V8) -> 1.58913447 | U100: 0.8274422189 | V100: 0.9926414027
A101: 4 Y | B101: 2016-10-17 | C101: =AddMonths(C53,48) -> 2016-11-16 | D101: 30 | E101: 0.08333333333 | F101: =C101-C53 -> 1461 | G101: 4.058333333 | H101: =nss(G101,V3,V4,V5,V6,V7,V8) -> 0.35687711 | I101: 0.9856211152 | J101: 0.9991063406 | L101: 12Y | M101: 2024-08-16 | N101: =AddMonths(M54,144) -> 2024-11-18 | O101: 94 | P101: 0.2611111111 | Q101: =N101-M54 -> 4385 | S101: 12.18055556 | T101: =nss(S101,V3,V4,V5,V6,V7,V8) -> 1.615704675 | U101: 0.8213534049 | V101: 0.9928635316
B102: 2016-11-16 | C102: =AddMonths(C53,49) -> 2016-12-16 | D102: 30 | E102: 0.08333333333 | F102: =C102-C53 -> 1491 | G102: 4.141666667 | H102: =nss(G102,V3,V4,V5,V6,V7,V8) -> 0.3712834211 | I102: 0.9847403056 | J102: 0.9990458112 | M102: 2024-11-18 | N102: =AddMonths(M54,147) -> 2025-02-17 | O102: 91 | P102: 0.2527777778 | Q102: =N102-M54 -> 4476 | S102: 12.43333333 | T102: =nss(S102,V3,V4,V5,V6,V7,V8) -> 1.640460002 | U102: 0.8154918423 | V102: 0.9930916712
B103: 2016-12-16 | C103: =AddMonths(C53,50) -> 2017-01-16 | D103: 31 | E103: 0.08611111111 | F103: =C103-C53 -> 1522 | G103: 4.227777778 | H103: =nss(G103,V3,V4,V5,V6,V7,V8) -> 0.3863014299 | I103: 0.9838006775 | J103: 0.9990146642 | M103: 2025-02-17 | N103: =AddMonths(M54,150) -> 2025-05-16 | O103: 88 | P103: 0.2444444444 | Q103: =N103-M54 -> 4564 | S103: 12.67777778 | T103: =nss(S103,V3,V4,V5,V6,V7,V8) -> 1.663510481 | U103: 0.8098581565 | V103: 0.992620448
B104: 2017-01-16 | C104: =AddMonths(C53,51) -> 2017-02-16 | D104: 31 | E104: 0.08611111111 | F104: =C104-C53 -> 1553 | G104: 4.313888889 | H104: =nss(G104,V3,V4,V5,V6,V7,V8) -> 0.4014425976 | I104: 0.9828313034 | J104: 0.9990833135 | M104: 2025-05-16 | N104: =AddMonths(M54,153) -> 2025-08-18 | O104: 94 | P104: 0.2611111111 | Q104: =N104-M54 -> 4658 | S104: 12.93888889 | T104: =nss(S104,V3,V4,V5,V6,V7,V8) -> 1.687185658 | U104: 0.8038817662 | V104: 0.9928577572
B105: 2017-02-16 | C105: =AddMonths(C53,52) -> 2017-03-16 | D105: 28 | E105: 0.07777777778 | F105: =C105-C53 -> 1581 | G105: 4.391666667 | H105: =nss(G105,V3,V4,V5,V6,V7,V8) -> 0.4152158145 | I105: 0.9819303552 | J105: 0.9988873821 | L105: 13Y | M105: 2025-08-18 | N105: =AddMonths(M54,156) -> 2025-11-17 | O105: 91 | P105: 0.2527777778 | Q105: =N105-M54 -> 4749 | S105: 13.19166667 | T105: =nss(S105,V3,V4,V5,V6,V7,V8) -> 1.70919228 | U105: 0.7981402474 | V105: 0.992864593
B106: 2017-03-16 | C106: =AddMonths(C53,53) -> 2017-04-18 | D106: 33 | E106: 0.09166666667 | F106: =C106-C53 -> 1614 | G106: 4.483333333 | H106: =nss(G106,V3,V4,V5,V6,V7,V8) -> 0.4315568448 | I106: 0.9808378419 | J106: 0.9990285942 | M106: 2025-11-17 | N106: =AddMonths(M54,159) -> 2026-02-16 | O106: 91 | P106: 0.2527777778 | Q106: =N106-M54 -> 4840 | S106: 13.44444444 | T106: =nss(S106,V3,V4,V5,V6,V7,V8) -> 1.730320171 | U106: 0.7924451919 | V106: 0.9928753563
B107: 2017-04-18 | C107: =AddMonths(C53,54) -> 2017-05-16 | D107: 28 | E107: 0.07777777778 | F107: =C107-C53 -> 1642 | G107: 4.561111111 | H107: =nss(G107,V3,V4,V5,V6,V7,V8) -> 0.4455056953 | I107: 0.9798850503 | J107: 0.9988955322 | M107: 2026-02-16 | N107: =AddMonths(M54,162) -> 2026-05-18 | O107: 91 | P107: 0.2527777778 | Q107: =N107-M54 -> 4931 | S107: 13.69722222 | T107: =nss(S107,V3,V4,V5,V6,V7,V8) -> 1.7505891 | U107: 0.7867993023 | V107: 0.9928897886
B108: 2017-05-16 | C108: =AddMonths(C53,55) -> 2017-06-16 | D108: 31 | E108: 0.08611111111 | F108: =C108-C53 -> 1673 | G108: 4.647222222 | H108: =nss(G108,V3,V4,V5,V6,V7,V8) -> 0.4610299861 | I108: 0.9788027988 | J108: 0.9988652162 | M108: 2026-05-18 | N108: =AddMonths(M54,165) -> 2026-08-17 | O108: 91 | P108: 0.2527777778 | Q108: =N108-M54 -> 5022 | S108: 13.95 | T108: =nss(S108,V3,V4,V5,V6,V7,V8) -> 1.770019274 | U108: 0.7812049929 | V108: 0.9929076397
B109: 2017-06-16 | C109: =AddMonths(C53,56) -> 2017-07-17 | D109: 31 | E109: 0.08611111111 | F109: =C109-C53 -> 1704 | G109: 4.733333333 | H109: =nss(G109,V3,V4,V5,V6,V7,V8) -> 0.4766306231 | I109: 0.9776920692 | J109: 0.9988731448 | L109: 14Y | M109: 2026-08-17 | N109: =AddMonths(M54,168) -> 2026-11-16 | O109: 91 | P109: 0.2527777778 | Q109: =N109-M54 -> 5113 | S109: 14.20277778 | T109: =nss(S109,V3,V4,V5,V6,V7,V8) -> 1.788631234 | U109: 0.7756644056 | V109: 0.9928513681
B110: 2017-07-17 | C110: =AddMonths(C53,57) -> 2017-08-16 | D110: 30 | E110: 0.08333333333 | F110: =C110-C53 -> 1734 | G110: 4.816666667 | H110: =nss(G110,V3,V4,V5,V6,V7,V8) -> 0.4917925273 | I110: 0.9765903518 | J110: 0.9987282356 | M110: 2026-11-16 | N110: =AddMonths(M54,171) -> 2027-02-16 | O110: 92 | P110: 0.2555555556 | Q110: =N110-M54 -> 5205 | S110: 14.45833333 | T110: =nss(S110,V3,V4,V5,V6,V7,V8) -> 1.806637177 | U110: 0.7701194663 | V110: 0.993029952
B111: 2017-08-16 | C111: =AddMonths(C53,58) -> 2017-09-18 | D111: 33 | E111: 0.09166666667 | F111: =C111-C53 -> 1767 | G111: 4.908333333 | H111: =nss(G111,V3,V4,V5,V6,V7,V8) -> 0.5085347483 | I111: 0.975348359 | J111: 0.9988945057 | M111: 2027-02-16 | N111: =AddMonths(M54,174) -> 2027-05-17 | O111: 90 | P111: 0.25 | Q111: =N111-M54 -> 5295 | S111: 14.70833333 | T111: =nss(S111,V3,V4,V5,V6,V7,V8) -> 1.823483813 | U111: 0.7647516966 | V111: 0.9929793417
B112: 2017-09-18 | C112: =AddMonths(C53,59) -> 2017-10-16 | D112: 28 | E112: 0.07777777778 | F112: =C112-C53 -> 1795 | G112: 4.986111111 | H112: =nss(G112,V3,V4,V5,V6,V7,V8) -> 0.52278591 | I112: 0.9742701169 | J112: 0.998748203 | M112: 2027-05-17 | N112: =AddMonths(M54,177) -> 2027-08-16 | O112: 91 | P112: 0.2527777778 | Q112: =N112-M54 -> 5386 | S112: 14.96111111 | T112: =nss(S112,V3,V4,V5,V6,V7,V8) -> 1.839766408 | U112: 0.7593826363 | V112: 0.9929321634
A113: 5 Y | B113: 2017-10-16 | C113: =AddMonths(C53,60) -> 2017-11-16 | D113: 31 | E113: 0.08611111111 | F113: =C113-C53 -> 1826 | G113: 5.072222222 | H113: =nss(G113,V3,V4,V5,V6,V7,V8) -> 0.5386054931 | I113: 0.9730505285 | J113: 0.9986773495 | L113: 15Y | M113: 2027-08-16 | N113: =AddMonths(M54,180) -> 2027-11-16 | O113: 92 | P113: 0.2555555556 | Q113: =N113-M54 -> 5478 | S113: 15.21666667 | T113: =nss(S113,V3,V4,V5,V6,V7,V8) -> 1.855481459 | U113: 0.7540154439 | V113: 0.9929643941
B114: 2017-11-16 | C114: =AddMonths(C53,61) -> 2017-12-18 | D114: 32 | E114: 0.08888888889 | F114: =C114-C53 -> 1858 | G114: 5.161111111 | H114: =nss(G114,V3,V4,V5,V6,V7,V8) -> 0.5549733942 | I114: 0.9717635227 | J114: 0.9987747711 | M114: 2027-11-16 | N114: =AddMonths(M54,183) -> 2028-02-16 | O114: 92 | P114: 0.2555555556 | Q114: =N114-M54 -> 5570 | S114: 15.47222222 | T114: =nss(S114,V3,V4,V5,V6,V7,V8) -> 1.870467583 | U114: 0.7487104883 | V114: 0.9931500983
B115: 2017-12-18 | C115: =AddMonths(C53,62) -> 2018-01-16 | D115: 29 | E115: 0.08055555556 | F115: =C115-C53 -> 1887 | G115: 5.241666667 | H115: =nss(G115,V3,V4,V5,V6,V7,V8) -> 0.5698335192 | I115: 0.97057289 | J115: 0.9986627517 | M115: 2028-02-16 | N115: =AddMonths(M54,186) -> 2028-05-16 | O115: 90 | P115: 0.25 | Q115: =N115-M54 -> 5660 | S115: 15.72222222 | T115: =nss(S115,V3,V4,V5,V6,V7,V8) -> 1.88444335 | U115: 0.7435818951 | V115: 0.993034378
B116: 2018-01-16 | C116: =AddMonths(C53,63) -> 2018-02-16 | D116: 31 | E116: 0.08611111111 | F116: =C116-C53 -> 1918 | G116: 5.327777778 | H116: =nss(G116,V3,V4,V5,V6,V7,V8) -> 0.5857398364 | I116: 0.969274993 | J116: 0.9987678415 | M116: 2028-05-16 | N116: =AddMonths(M54,189) -> 2028-08-16 | O116: 92 | P116: 0.2555555556 | Q116: =N116-M54 -> 5752 | S116: 15.97777778 | T116: =nss(S116,V3,V4,V5,V6,V7,V8) -> 1.898050971 | U116: 0.7384023846 | V116: 0.993072524
B117: 2018-02-16 | C117: =AddMonths(C53,64) -> 2018-03-16 | D117: 28 | E117: 0.07777777778 | F117: =C117-C53 -> 1946 | G117: 5.405555556 | H117: =nss(G117,V3,V4,V5,V6,V7,V8) -> 0.6001202792 | I117: 0.9680806926 | J117: 0.998609372 | L117: 16Y | M117: 2028-08-16 | N117: =AddMonths(M54,192) -> 2028-11-16 | O117: =N117-M117 -> 92 | P117: 0.2555555556 | Q117: =N117-M54 -> 5844 | S117: =Q117/360 -> 16.23333333 | T117: =nss(S117,V3,V4,V5,V6,V7,V8) -> 1.910993524 | U117: 0.7332871198 | V117: 0.9931122923
B118: 2018-03-16 | C118: =AddMonths(C53,65) -> 2018-04-16 | D118: 31 | E118: =D118/360 -> 0.08611111111 | F118: =C118-C53 -> 1977 | G118: =F118/360 -> 5.491666667 | H118: =nss(G118,V3,V4,V5,V6,V7,V8) -> 0.6160503362 | I118: =EXP(-H118/100*G118) -> 0.9667344524 | J118: =I119/I118 -> 0.9986279419 | M118: 2028-11-16 | N118: =AddMonths(M54,195) -> 2029-02-16 | O118: 92 | P118: =O118/360 -> 0.2555555556 | Q118: =N118-M54 -> 5936 | S118: 16.48888889 | T118: =nss(S118,V3,V4,V5,V6,V7,V8) -> 1.923292032 | U118: =EXP(-T118/100*S118) -> 0.7282364525 | V118: =U119/U118 -> 0.9933753643
B119: 2018-04-16 | C119: =AddMonths(C53,66) -> 2018-05-16 | D119: 30 | E119: 0.08333333333 | F119: =C119-C53 -> 2007 | G119: 5.575 | H119: =nss(G119,V3,V4,V5,V6,V7,V8) -> 0.631469617 | I119: 0.9654080366 | J119: 0.9984613807 | M119: =N118 -> 2029-02-16 | N119: =AddMonths(M54,198) -> 2029-05-16 | O119: 89 | P119: 0.2472222222 | Q119: =N119-M54 -> 6025 | S119: 16.73611111 | T119: =nss(S119,V3,V4,V5,V6,V7,V8) -> 1.934596156 | U119: 0.7234121513 | V119: 0.9931946262
B120: =C119 -> 2018-05-16 | C120: =AddMonths(C53,67) -> 2018-06-18 | D120: 33 | E120: 0.09166666667 | F120: =C120-C53 -> 2040 | G120: 5.666666667 | H120: =nss(G120,V3,V4,V5,V6,V7,V8) -> 0.6484276819 | I120: 0.9639226412 | J120: 0.998670445 | M120: 2029-05-16 | N120: =AddMonths(M54,201) -> 2029-08-16 | O120: 92 | P120: 0.2555555556 | Q120: =N120-M54 -> 6117 | S120: 16.99166667 | T120: =nss(S120,V3,V4,V5,V6,V7,V8) -> 1.945687875 | U120: 0.7184890612 | V120: 0.9932382513
B121: 2018-06-18 | C121: =AddMonths(C53,68) -> 2018-07-16 | D121: 28 | E121: 0.07777777778 | F121: =C121-C53 -> 2068 | G121: 5.744444444 | H121: =nss(G121,V3,V4,V5,V6,V7,V8) -> 0.6628086548 | I121: 0.962641053 | J121: 0.9985028315 | L121: 17Y | M121: 2029-08-16 | N121: =AddMonths(M54,204) -> 2029-11-16 | O121: 92 | P121: 0.2555555556 | Q121: =N121-M54 -> 6209 | S121: 17.24722222 | T121: =nss(S121,V3,V4,V5,V6,V7,V8) -> 1.956196231 | U121: 0.7136308187 | V121: 0.9931378615
B122: 2018-07-16 | C122: =AddMonths(C53,69) -> 2018-08-16 | D122: =C122-B122 -> 31 | E122: 0.08611111111 | F122: =C122-C53 -> 2099 | G122: 5.830555556 | H122: =nss(G122,V3,V4,V5,V6,V7,V8) -> 0.6787168899 | I122: 0.9611998172 | J122: 0.9984270936 | M122: 2029-11-16 | N122: =AddMonths(M54,207) -> 2030-02-18 | O122: 94 | P122: 0.2611111111 | Q122: =N122-M54 -> 6303 | S122: 17.50833333 | T122: =nss(S122,V3,V4,V5,V6,V7,V8) -> 1.966351083 | U122: 0.7087337852 | V122: 0.9936895833
B123: 2018-08-16 | C123: =AddMonths(C53,70) -> 2018-09-17 | D123: 32 | E123: 0.08888888889 | F123: =C123-C53 -> 2131 | G123: 5.919444444 | H123: =nss(G123,V3,V4,V5,V6,V7,V8) -> 0.6951177668 | I123: 0.9596879398 | J123: 0.9985506647 | M123: 2030-02-18 | N123: =AddMonths(M54,210) -> 2030-05-16 | O123: 87 | P123: 0.2416666667 | Q123: =N123-M54 -> 6390 | S123: 17.75 | T123: =nss(S123,V3,V4,V5,V6,V7,V8) -> 1.975243458 | U123: 0.7042613797 | V123: 0.9933731035
B124: 2018-09-17 | C124: =AddMonths(C53,71) -> 2018-10-16 | D124: 29 | E124: 0.08055555556 | F124: =C124-C53 -> 2160 | G124: 6 | H124: =nss(G124,V3,V4,V5,V6,V7,V8) -> 0.709958278 | I124: 0.9582970302 | J124: 0.9984261381 | M124: 2030-05-16 | N124: =AddMonths(M54,213) -> 2030-08-16 | O124: 92 | P124: 0.2555555556 | Q124: =N124-M54 -> 6482 | S124: 18.00555556 | T124: =nss(S124,V3,V4,V5,V6,V7,V8) -> 1.984135755 | U124: 0.6995943124 | V124: 0.9932779089
A125: 6 Y | B125: 2018-10-16 | C125: =AddMonths(C53,72) -> 2018-11-16 | D125: 31 | E125: 0.08611111111 | F125: =C125-C53 -> 2191 | G125: 6.086111111 | H125: =nss(G125,V3,V4,V5,V6,V7,V8) -> 0.7257934922 | I125: 0.956788803 | J125: 0.9984010345 | L125: 18Y | M125: 2030-08-16 | N125: =AddMonths(M54,216) -> 2030-11-18 | O125: 94 | P125: 0.2611111111 | Q125: =N125-M54 -> 6576 | S125: 18.26666667 | T125: =nss(S125,V3,V4,V5,V6,V7,V8) -> 1.992697729 | U125: 0.6948915757 | V125: 0.9935388477
B126: 2018-11-16 | C126: =AddMonths(C53,73) -> 2018-12-17 | D126: 31 | E126: 0.08611111111 | F126: =C126-C53 -> 2222 | G126: 6.172222222 | H126: =nss(G126,V3,V4,V5,V6,V7,V8) -> 0.7415942253 | I126: 0.9552589308 | J126: 0.9984290293 | M126: 2030-11-18 | N126: =AddMonths(M54,219) -> 2031-02-17 | O126: 91 | P126: 0.2527777778 | Q126: =N126-M54 -> 6667 | S126: 18.51944444 | T126: =nss(S126,V3,V4,V5,V6,V7,V8) -> 2.00050044 | U126: 0.6904017754 | V126: 0.9937956415
B127: 2018-12-17 | C127: =AddMonths(C53,74) -> 2019-01-16 | D127: 30 | E127: 0.08333333333 | F127: =C127-C53 -> 2252 | G127: 6.255555556 | H127: =nss(G127,V3,V4,V5,V6,V7,V8) -> 0.756848038 | I127: 0.953758247 | J127: 0.9982457446 | M127: 2031-02-17 | N127: =AddMonths(M54,222) -> 2031-05-16 | O127: 88 | P127: 0.2444444444 | Q127: =N127-M54 -> 6755 | S127: 18.76388889 | T127: =nss(S127,V3,V4,V5,V6,V7,V8) -> 2.007607567 | U127: 0.6861182753 | V127: 0.993422589
B128: 2019-01-16 | C128: =AddMonths(C53,75) -> 2019-02-18 | D128: 33 | E128: 0.09166666667 | F128: =C128-C53 -> 2285 | G128: 6.347222222 | H128: =nss(G128,V3,V4,V5,V6,V7,V8) -> 0.7735800587 | I128: 0.9520851115 | J128: 0.9984900491 | M128: 2031-05-16 | N128: =AddMonths(M54,225) -> 2031-08-18 | O128: 94 | P128: 0.2611111111 | Q128: =N128-M54 -> 6849 | S128: 19.025 | T128: =nss(S128,V3,V4,V5,V6,V7,V8) -> 2.014740555 | U128: 0.6816053934 | V128: 0.9936798483
B129: 2019-02-18 | C129: =AddMonths(C53,76) -> 2019-03-18 | D129: 28 | E129: 0.07777777778 | F129: =C129-C53 -> 2313 | G129: 6.425 | H129: =nss(G129,V3,V4,V5,V6,V7,V8) -> 0.7877344345 | I129: 0.9506475097 | J129: 0.9984158836 | L129: 19Y | M129: 2031-08-18 | N129: =AddMonths(M54,228) -> 2031-11-17 | O129: 91 | P129: 0.2527777778 | Q129: =N129-M54 -> 6940 | S129: 19.27777778 | T129: =nss(S129,V3,V4,V5,V6,V7,V8) -> 2.021211177 | U129: 0.6772975439 | V129: 0.9937272048
B130: 2019-03-18 | C130: =AddMonths(C53,77) -> 2019-04-16 | D130: 29 | E130: 0.08055555556 | F130: =C130-C53 -> 2342 | G130: 6.505555556 | H130: =nss(G130,V3,V4,V5,V6,V7,V8) -> 0.8023497677 | I130: 0.9491415734 | J130: 0.9983399285 | M130: 2031-11-17 | N130: =AddMonths(M54,231) -> 2032-02-16 | O130: 91 | P130: 0.2527777778 | Q130: =N130-M54 -> 7031 | S130: 19.53055556 | T130: =nss(S130,V3,V4,V5,V6,V7,V8) -> 2.027270293 | U130: 0.6730489951 | V130: 0.9937746045
B131: 2019-04-16 | C131: =AddMonths(C53,78) -> 2019-05-16 | D131: 30 | E131: 0.08333333333 | F131: =C131-C53 -> 2372 | G131: 6.588888889 | H131: =nss(G131,V3,V4,V5,V6,V7,V8) -> 0.8174179555 | I131: 0.9475659305 | J131: 0.9982057994 | M131: 2032-02-16 | N131: =AddMonths(M54,234) -> 2032-05-17 | O131: 91 | P131: 0.2527777778 | Q131: =N131-M54 -> 7122 | S131: 19.78333333 | T131: =nss(S131,V3,V4,V5,V6,V7,V8) -> 2.032933471 | U131: 0.6688589989 | V131: 0.9938219742
B132: 2019-05-16 | C132: =AddMonths(C53,79) -> 2019-06-17 | D132: 32 | E132: 0.08888888889 | F132: =C132-C53 -> 2404 | G132: 6.677777778 | H132: =nss(G132,V3,V4,V5,V6,V7,V8) -> 0.8334295449 | I132: 0.9458658071 | J132: 0.998353222 | M132: 2032-05-17 | N132: =AddMonths(M54,237) -> 2032-08-16 | O132: 91 | P132: 0.2527777778 | Q132: =N132-M54 -> 7213 | S132: 20.03611111 | T132: =nss(S132,V3,V4,V5,V6,V7,V8) -> 2.038215857 | U132: 0.6647267708 | V132: 0.9938023465
B133: 2019-06-17 | C133: =AddMonths(C53,80) -> 2019-07-16 | D133: 29 | E133: 0.08055555556 | F133: =C133-C53 -> 2433 | G133: 6.758333333 | H133: =nss(G133,V3,V4,V5,V6,V7,V8) -> 0.8478822451 | I133: 0.9443081761 | J133: 0.9982184286 | L133: 20Y | M133: 2032-08-16 | N133: =AddMonths(M54,240) -> 2032-11-16 | O133: 92 | P133: 0.2555555556 | Q133: =N133-M54 -> 7305 | S133: 20.29166667 | T133: =nss(S133,V3,V4,V5,V6,V7,V8) -> 2.043184225 | U133: 0.6606070246 | V133: 0.9938504933
B134: 2019-07-16 | C134: =AddMonths(C53,81) -> 2019-08-16 | D134: 31 | E134: 0.08611111111 | F134: =C134-C53 -> 2464 | G134: 6.844444444 | H134: =nss(G134,V3,V4,V5,V6,V7,V8) -> 0.8632675626 | I134: 0.9426258236 | J134: 0.9981967892 | M134: 2032-11-16 | N134: =AddMonths(M54,243) -> 2033-02-16 | O134: 92 | P134: 0.2555555556 | Q134: =N134-M54 -> 7397 | S134: 20.54722222 | T134: =nss(S134,V3,V4,V5,V6,V7,V8) -> 2.047793228 | U134: 0.6565446173 | V134: 0.9940960357
B135: 2019-08-16 | C135: =AddMonths(C53,82) -> 2019-09-16 | D135: 31 | E135: 0.08611111111 | F135: =C135-C53 -> 2495 | G135: 6.930555556 | H135: =nss(G135,V3,V4,V5,V6,V7,V8) -> 0.8785833511 | I135: 0.9409260706 | J135: 0.9982346821 | M135: 2033-02-16 | N135: =AddMonths(M54,246) -> 2033-05-16 | O135: 89 | P135: 0.2472222222 | Q135: =N135-M54 -> 7486 | S135: 20.79444444 | T135: =nss(S135,V3,V4,V5,V6,V7,V8) -> 2.051923474 | U135: 0.6526684013 | V135: 0.9939444997
B136: 2019-09-16 | C136: =AddMonths(C53,83) -> 2019-10-16 | D136: 30 | E136: 0.08333333333 | F136: =C136-C53 -> 2525 | G136: 7.013888889 | H136: =nss(G136,V3,V4,V5,V6,V7,V8) -> 0.8933358674 | I136: 0.9392650369 | J136: 0.9980357919 | M136: 2033-05-16 | N136: =AddMonths(M54,249) -> 2033-08-16 | O136: 92 | P136: 0.2555555556 | Q136: =N136-M54 -> 7578 | S136: 21.05 | T136: =nss(S136,V3,V4,V5,V6,V7,V8) -> 2.055866964 | U136: 0.6487161676 | V136: 0.9939918112
A137: 7 Y | B137: 2019-10-16 | C137: =AddMonths(C53,84) -> 2019-11-18 | D137: 33 | E137: 0.09166666667 | F137: =C137-C53 -> 2558 | G137: 7.105555556 | H137: =nss(G137,V3,V4,V5,V6,V7,V8) -> 0.9094816632 | I137: 0.9374201249 | J137: 0.9983149884 | L137: 21Y | M137: 2033-08-16 | N137: =AddMonths(M54,252) -> 2033-11-16 | O137: 92 | P137: 0.2555555556 | Q137: =N137-M54 -> 7670 | S137: 21.30555556 | T137: =nss(S137,V3,V4,V5,V6,V7,V8) -> 2.059492443 | U137: 0.6448185584 | V137: 0.9940387409
B138: 2019-11-18 | C138: =AddMonths(C53,85) -> 2019-12-16 | D138: 28 | E138: 0.07777777778 | F138: =C138-C53 -> 2586 | G138: 7.183333333 | H138: =nss(G138,V3,V4,V5,V6,V7,V8) -> 0.9231112441 | I138: 0.9358405611 | J138: 0.9981155556 | M138: 2033-11-16 | N138: =AddMonths(M54,255) -> 2034-02-16 | O138: 92 | P138: 0.2555555556 | Q138: =N138-M54 -> 7762 | S138: 21.56111111 | T138: =nss(S138,V3,V4,V5,V6,V7,V8) -> 2.062813009 | U138: 0.6409746279 | V138: 0.9942768354
B139: 2019-12-16 | C139: =AddMonths(C53,86) -> 2020-01-16 | D139: 31 | E139: 0.08611111111 | F139: =C139-C53 -> 2617 | G139: 7.269444444 | H139: =nss(G139,V3,V4,V5,V6,V7,V8) -> 0.9381236817 | I139: 0.9340770216 | J139: 0.9980342301 | M139: 2034-02-16 | N139: =AddMonths(M54,258) -> 2034-05-16 | O139: 89 | P139: 0.2472222222 | Q139: =N139-M54 -> 7851 | S139: 21.80833333 | T139: =nss(S139,V3,V4,V5,V6,V7,V8) -> 2.065747082 | U139: 0.6373062246 | V139: 0.9941297895
B140: 2020-01-16 | C140: =AddMonths(C53,87) -> 2020-02-17 | D140: 32 | E140: 0.08888888889 | F140: =C140-C53 -> 2649 | G140: 7.358333333 | H140: =nss(G140,V3,V4,V5,V6,V7,V8) -> 0.9535322916 | I140: 0.9322408411 | J140: 0.9982629185 | M140: 2034-05-16 | N140: =AddMonths(M54,261) -> 2034-08-16 | O140: 92 | P140: 0.2555555556 | Q140: =N140-M54 -> 7943 | S140: 22.06388889 | T140: =nss(S140,V3,V4,V5,V6,V7,V8) -> 2.068504423 | U140: 0.6335651029 | V140: 0.9941753425
B141: 2020-02-17 | C141: =AddMonths(C53,88) -> 2020-03-16 | D141: 28 | E141: 0.07777777778 | F141: =C141-C53 -> 2677 | G141: 7.436111111 | H141: =nss(G141,V3,V4,V5,V6,V7,V8) -> 0.9669392418 | I141: 0.9306214628 | J141: 0.9980590485 | L141: 22Y | M141: 2034-08-16 | N141: =AddMonths(M54,264) -> 2034-11-16 | O141: 92 | P141: 0.2555555556 | Q141: =N141-M54 -> 8035 | S141: 22.31944444 | T141: =nss(S141,V3,V4,V5,V6,V7,V8) -> 2.070993325 | U141: 0.6298748031 | V141: 0.9942203613
B142: 2020-03-16 | C142: =AddMonths(C53,89) -> 2020-04-16 | D142: 31 | E142: 0.08611111111 | F142: =C142-C53 -> 2708 | G142: 7.522222222 | H142: =nss(G142,V3,V4,V5,V6,V7,V8) -> 0.9816981176 | I142: 0.9288151717 | J142: 0.9979771487 | M142: 2034-11-16 | N142: =AddMonths(M54,267) -> 2035-02-16 | O142: 92 | P142: 0.2555555556 | Q142: =N142-M54 -> 8127 | S142: 22.575 | T142: =nss(S142,V3,V4,V5,V6,V7,V8) -> 2.073225293 | U142: 0.6262343543 | V142: 0.9944506178
B143: 2020-04-16 | C143: =AddMonths(C53,90) -> 2020-05-18 | D143: 32 | E143: 0.08888888889 | F143: =C143-C53 -> 2740 | G143: 7.611111111 | H143: =nss(G143,V3,V4,V5,V6,V7,V8) -> 0.9968375561 | I143: 0.9269363168 | J143: 0.9981500001 | M143: 2035-02-16 | N143: =AddMonths(M54,270) -> 2035-05-16 | O143: 89 | P143: 0.2472222222 | Q143: =N143-M54 -> 8216 | S143: 22.82222222 | T143: =nss(S143,V3,V4,V5,V6,V7,V8) -> 2.07515045 | U143: 0.6227591406 | V143: 0.9943072591
B144: 2020-05-18 | C144: =AddMonths(C53,91) -> 2020-06-16 | D144: 29 | E144: 0.08055555556 | F144: =C144-C53 -> 2769 | G144: 7.691666667 | H144: =nss(G144,V3,V4,V5,V6,V7,V8) -> 1.01047186 | I144: 0.9252214847 | J144: 0.9980700045 | M144: 2035-05-16 | N144: =AddMonths(M54,273) -> 2035-08-16 | O144: 92 | P144: 0.2555555556 | Q144: =N144-M54 -> 8308 | S144: 23.07777778 | T144: =nss(S144,V3,V4,V5,V6,V7,V8) -> 2.076909042 | U144: 0.6192139342 | V144: 0.9943505285
B145: 2020-06-16 | C145: =AddMonths(C53,92) -> 2020-07-16 | D145: 30 | E145: 0.08333333333 | F145: =C145-C53 -> 2799 | G145: 7.775 | H145: =nss(G145,V3,V4,V5,V6,V7,V8) -> 1.024488586 | I145: 0.9234358114 | J145: 0.997923647 | L145: 23Y | M145: 2035-08-16 | N145: =AddMonths(M54,276) -> 2035-11-16 | O145: 92 | P145: 0.2555555556 | Q145: =N145-M54 -> 8400 | S145: 23.33333333 | T145: =nss(S145,V3,V4,V5,V6,V7,V8) -> 2.078442615 | U145: 0.6157157027 | V145: 0.994272093
B146: 2020-07-16 | C146: =AddMonths(C53,93) -> 2020-08-17 | D146: 32 | E146: 0.08888888889 | F146: =C146-C53 -> 2831 | G146: 7.863888889 | H146: =nss(G146,V3,V4,V5,V6,V7,V8) -> 1.039339445 | I146: 0.9215184327 | J146: 0.9980369622 | M146: 2035-11-16 | N146: =AddMonths(M54,279) -> 2036-02-18 | O146: 94 | P146: 0.2611111111 | Q146: =N146-M54 -> 8494 | S146: 23.59444444 | T146: =nss(S146,V3,V4,V5,V6,V7,V8) -> 2.07978755 | U146: 0.6121889404 | V146: 0.9946764494
B147: 2020-08-17 | C147: =AddMonths(C53,94) -> 2020-09-16 | D147: 30 | E147: 0.08333333333 | F147: =C147-C53 -> 2861 | G147: 7.947222222 | H147: =nss(G147,V3,V4,V5,V6,V7,V8) -> 1.0531663 | I147: 0.9197094572 | J147: 0.9980215258 | M147: 2036-02-18 | N147: =AddMonths(M54,282) -> 2036-05-16 | O147: 88 | P147: 0.2444444444 | Q147: =N147-M54 -> 8582 | S147: 23.83888889 | T147: =nss(S147,V3,V4,V5,V6,V7,V8) -> 2.08085239 | U147: 0.6089299216 | V147: 0.9943562569
B148: 2020-09-16 | C148: =AddMonths(C53,95) -> 2020-10-16 | D148: 30 | E148: 0.08333333333 | F148: =C148-C53 -> 2891 | G148: 8.030555556 | H148: =nss(G148,V3,V4,V5,V6,V7,V8) -> 1.066898792 | I148: 0.9178898357 | J148: 0.9979398081 | M148: 2036-05-16 | N148: =AddMonths(M54,285) -> 2036-08-18 | O148: 94 | P148: 0.2611111111 | Q148: =N148-M54 -> 8676 | S148: 24.1 | T148: =nss(S148,V3,V4,V5,V6,V7,V8) -> 2.081791777 | U148: 0.6054932776 | V148: 0.9945762942
A149: 8 Y | B149: 2020-10-16 | C149: =AddMonths(C53,96) -> 2020-11-16 | D149: 31 | E149: 0.08611111111 | F149: =C149-C53 -> 2922 | G149: 8.116666667 | H149: =nss(G149,V3,V4,V5,V6,V7,V8) -> 1.080988303 | I149: 0.9159988065 | J149: 0.9979912389 | L149: 24Y | M149: 2036-08-18 | N149: =AddMonths(M54,288) -> 2036-11-17 | O149: 91 | P149: 0.2527777778 | Q149: =N149-M54 -> 8767 | S149: =Q149/360 -> 24.35277778 | T149: =nss(S149,V3,V4,V5,V6,V7,V8) -> 2.082515146 | U149: 0.6022092602 | V149: 0.9946153679
B150: 2020-11-16 | C150: =AddMonths(C53,97) -> 2020-12-16 | D150: 30 | E150: 0.08333333333 | F150: =C150-C53 -> 2952 | G150: 8.2 | H150: =nss(G150,V3,V4,V5,V6,V7,V8) -> 1.094524374 | I150: 0.9141587837 | J150: 0.9977740182 | M150: 2036-11-17 | N150: =AddMonths(M54,291) -> 2037-02-16 | O150: 91 | P150: 0.2527777778 | Q150: =N150-M54 -> 8858 | S150: 24.60555556 | T150: =nss(S150,V3,V4,V5,V6,V7,V8) -> 2.08306399 | U150: 0.5989665849 | V150: 0.9946537577
B151: 2020-12-16 | C151: =AddMonths(C53,98) -> 2021-01-18 | D151: 33 | E151: 0.09166666667 | F151: =C151-C53 -> 2985 | G151: 8.291666667 | H151: =nss(G151,V3,V4,V5,V6,V7,V8) -> 1.10930004 | I151: 0.9121238829 | J151: 0.9980295972 | M151: 2037-02-16 | N151: =AddMonths(M54,294) -> 2037-05-18 | O151: 91 | P151: 0.2527777778 | Q151: =N151-M54 -> 8949 | S151: 24.85833333 | T151: =nss(S151,V3,V4,V5,V6,V7,V8) -> 2.083446404 | U151: 0.5957643644 | V151: 0.9946914556
B152: 2021-01-18 | C152: =AddMonths(C53,99) -> 2021-02-16 | D152: 29 | E152: 0.08055555556 | F152: =C152-C53 -> 3014 | G152: 8.372222222 | H152: =nss(G152,V3,V4,V5,V6,V7,V8) -> 1.122184836 | I152: 0.9103266315 | J152: 0.9980853829 | M152: 2037-05-18 | N152: =AddMonths(M54,297) -> 2037-08-17 | O152: 91 | P152: 0.2527777778 | Q152: =N152-M54 -> 9040 | S152: 25.11111111 | T152: =nss(S152,V3,V4,V5,V6,V7,V8) -> 2.08367019 | U152: 0.5926017228 | V152: 0.9947284553
B153: 2021-02-16 | C153: =AddMonths(C53,100) -> 2021-03-16 | D153: 28 | E153: 0.07777777778 | F153: =C153-C53 -> 3042 | G153: 8.45 | H153: =nss(G153,V3,V4,V5,V6,V7,V8) -> 1.134535627 | I153: 0.9085837046 | J153: 0.9978669496 | L153: 25Y | M153: 2037-08-17 | N153: =AddMonths(M54,300) -> 2037-11-16 | O153: 91 | P153: 0.2527777778 | Q153: =N153-M54 -> 9131 | S153: 25.36388889 | T153: =nss(S153,V3,V4,V5,V6,V7,V8) -> 2.083742865 | U153: 0.5894777963 | V153: 0.9947075736
B154: 2021-03-16 | C154: =AddMonths(C53,101) -> 2021-04-16 | D154: 31 | E154: 0.08611111111 | F154: =C154-C53 -> 3073 | G154: 8.536111111 | H154: =nss(G154,V3,V4,V5,V6,V7,V8) -> 1.148105827 | I154: 0.9066456497 | J154: 0.9978531161 | M154: 2037-11-16 | N154: =AddMonths(M54,303) -> 2038-02-16 | O154: 92 | P154: 0.2555555556 | Q154: =N154-M54 -> 9223 | S154: 25.61944444 | T154: =nss(S154,V3,V4,V5,V6,V7,V8) -> 2.083670108 | U154: 0.5863580285 | V154: 0.9948575273
B155: 2021-04-16 | C155: =AddMonths(C53,102) -> 2021-05-17 | D155: 31 | E155: 0.08611111111 | F155: =C155-C53 -> 3104 | G155: 8.622222222 | H155: =nss(G155,V3,V4,V5,V6,V7,V8) -> 1.161565756 | I155: 0.9046991868 | J155: 0.9979094807 | M155: 2038-02-16 | N155: =AddMonths(M54,306) -> 2038-05-17 | O155: 90 | P155: 0.25 | Q155: =N155-M54 -> 9313 | S155: 25.86944444 | T155: =nss(S155,V3,V4,V5,V6,V7,V8) -> 2.083463554 | U155: 0.5833426984 | V155: 0.9948352263
B156: 2021-05-17 | C156: =AddMonths(C53,103) -> 2021-06-16 | D156: 30 | E156: 0.08333333333 | F156: =C156-C53 -> 3134 | G156: 8.705555556 | H156: =nss(G156,V3,V4,V5,V6,V7,V8) -> 1.174485506 | I156: 0.9028078958 | J156: 0.9978972152 | M156: =N155 -> 2038-05-17 | N156: =AddMonths(M54,309) -> 2038-08-16 | O156: 91 | P156: 0.2527777778 | Q156: =N156-M54 -> 9404 | S156: 26.12222222 | T156: =nss(S156,V3,V4,V5,V6,V7,V8) -> 2.083125238 | U156: 0.5803298653 | V156: 0.9948133541
B157: 2021-06-16 | C157: =AddMonths(C53,104) -> 2021-07-16 | D157: 30 | E157: 0.08333333333 | F157: =C157-C53 -> 3164 | G157: 8.788888889 | H157: =nss(G157,V3,V4,V5,V6,V7,V8) -> 1.187300105 | I157: 0.900909485 | J157: 0.9978146699 | L157: 26Y | M157: =N156 -> 2038-08-16 | N157: =AddMonths(M54,312) -> 2038-11-16 | O157: 92 | P157: 0.2555555556 | Q157: =N157-M54 -> 9496 | S157: 26.37777778 | T157: =nss(S157,V3,V4,V5,V6,V7,V8) -> 2.082657423 | U157: 0.5773198998 | V157: 0.99484755
B158: 2021-07-16 | C158: =AddMonths(C53,105) -> 2021-08-16 | D158: 31 | E158: 0.08611111111 | F158: =C158-C53 -> 3195 | G158: 8.875 | H158: =nss(G158,V3,V4,V5,V6,V7,V8) -> 1.200430517 | I158: 0.8989407004 | J158: 0.9978022986 | M158: =N157 -> 2038-11-16 | N158: =AddMonths(M54,315) -> 2039-02-16 | O158: 92 | P158: 0.2555555556 | Q158: =N158-M54 -> 9588 | S158: 26.63333333 | T158: =nss(S158,V3,V4,V5,V6,V7,V8) -> 2.082069524 | U158: 0.5743452879 | V158: 0.9950470048
B159: 2021-08-16 | C159: =AddMonths(C53,106) -> 2021-09-16 | D159: 31 | E159: 0.08611111111 | F159: =C159-C53 -> 3226 | G159: 8.961111111 | H159: =nss(G159,V3,V4,V5,V6,V7,V8) -> 1.213446937 | I159: 0.8969650972 | J159: 0.9977188951 | M159: 2039-02-16 | N159: =AddMonths(M54,318) -> 2039-05-16 | O159: 89 | P159: 0.2472222222 | Q159: =N159-M54 -> 9677 | S159: 26.88055556 | T159: =nss(S159,V3,V4,V5,V6,V7,V8) -> 2.081392319 | U159: 0.5715005584 | V159: 0.9949126981
B160: 2021-09-16 | C160: =AddMonths(C53,107) -> 2021-10-18 | D160: 32 | E160: 0.08888888889 | F160: =C160-C53 -> 3258 | G160: 9.05 | H160: =nss(G160,V3,V4,V5,V6,V7,V8) -> 1.22676286 | I160: 0.8949190258 | J160: 0.9979218048 | M160: 2039-05-16 | N160: =AddMonths(M54,321) -> 2039-08-16 | O160: 92 | P160: 0.2555555556 | Q160: =N160-M54 -> 9769 | S160: 27.13611111 | T160: =nss(S160,V3,V4,V5,V6,V7,V8) -> 2.080585912 | U160: 0.5685931625 | V160: 0.9949447361
A161: 9 Y | B161: 2021-10-18 | C161: =AddMonths(C53,108) -> 2021-11-16 | D161: 29 | E161: 0.08055555556 | F161: =C161-C53 -> 3287 | G161: 9.130555556 | H161: =nss(G161,V3,V4,V5,V6,V7,V8) -> 1.238724148 | I161: 0.8930592093 | J161: 0.9978398129 | L161: 27Y | M161: 2039-08-16 | N161: =AddMonths(M54,324) -> 2039-11-16 | O161: 92 | P161: 0.2555555556 | Q161: =N161-M54 -> 9861 | S161: 27.39166667 | T161: =nss(S161,V3,V4,V5,V6,V7,V8) -> 2.079676994 | U161: 0.5657187741 | V161: 0.9949760547
B162: 2021-11-16 | C162: =AddMonths(C53,109) -> 2021-12-16 | D162: 30 | E162: 0.08333333333 | F162: =C162-C53 -> 3317 | G162: 9.213888889 | H162: =nss(G162,V3,V4,V5,V6,V7,V8) -> 1.250990994 | I162: 0.8911300343 | J162: 0.9976846586 | M162: 2039-11-16 | N162: =AddMonths(M54,327) -> 2040-02-16 | O162: 92 | P162: 0.2555555556 | Q162: =N162-M54 -> 9953 | S162: 27.64722222 | T162: =nss(S162,V3,V4,V5,V6,V7,V8) -> 2.078671025 | U162: 0.5628766339 | V162: 0.9951146239
B163: 2021-12-16 | C163: =AddMonths(C53,110) -> 2022-01-17 | D163: 32 | E163: 0.08888888889 | F163: =C163-C53 -> 3349 | G163: 9.302777778 | H163: =nss(G163,V3,V4,V5,V6,V7,V8) -> 1.263955228 | I163: 0.8890667641 | J163: 0.9978189415 | M163: 2040-02-16 | N163: =AddMonths(M54,330) -> 2040-05-16 | O163: 90 | P163: 0.25 | Q163: =N163-M54 -> 10043 | S163: 27.89722222 | T163: =nss(S163,V3,V4,V5,V6,V7,V8) -> 2.077598054 | U163: 0.5601267699 | V163: 0.9950359128
B164: 2022-01-17 | C164: =AddMonths(C53,111) -> 2022-02-16 | D164: 30 | E164: 0.08333333333 | F164: =C164-C53 -> 3379 | G164: 9.386111111 | H164: =nss(G164,V3,V4,V5,V6,V7,V8) -> 1.275995832 | I164: 0.8871276574 | J164: 0.9979555122 | M164: 2040-05-16 | N164: =AddMonths(M54,333) -> 2040-08-16 | O164: 92 | P164: 0.2555555556 | Q164: =N164-M54 -> 10135 | S164: 28.15277778 | T164: =nss(S164,V3,V4,V5,V6,V7,V8) -> 2.076415336 | U164: 0.5573462518 | V164: 0.9950651227
B165: 2022-02-16 | C165: =AddMonths(C53,112) -> 2022-03-16 | D165: 28 | E165: 0.07777777778 | F165: =C165-C53 -> 3407 | G165: 9.463888889 | H165: =nss(G165,V3,V4,V5,V6,V7,V8) -> 1.287134376 | I165: 0.8853139358 | J165: 0.9975070533 | L165: 28Y | M165: 2040-08-16 | N165: =AddMonths(M54,336) -> 2040-11-16 | O165: 92 | P165: 0.2555555556 | Q165: =N165-M54 -> 10227 | S165: 28.40833333 | T165: =nss(S165,V3,V4,V5,V6,V7,V8) -> 2.075150564 | U165: 0.5545958164 | V165: 0.9949875574
B166: 2022-03-16 | C166: =AddMonths(C53,113) -> 2022-04-19 | D166: 34 | E166: 0.09444444444 | F166: =C166-C53 -> 3441 | G166: 9.558333333 | H166: =nss(G166,V3,V4,V5,V6,V7,V8) -> 1.300530355 | I166: 0.8831068953 | J166: 0.9980115555 | M166: 2040-11-16 | N166: =AddMonths(M54,339) -> 2041-02-18 | O166: 94 | P166: 0.2611111111 | Q166: =N166-M54 -> 10321 | S166: 28.66944444 | T166: =nss(S166,V3,V4,V5,V6,V7,V8) -> 2.073778365 | U166: 0.5518159367 | V166: 0.9953858536
B167: 2022-04-19 | C167: =AddMonths(C53,114) -> 2022-05-16 | D167: 27 | E167: 0.075 | F167: =C167-C53 -> 3468 | G167: 9.633333333 | H167: =nss(G167,V3,V4,V5,V6,V7,V8) -> 1.31106696 | I167: 0.8813508863 | J167: 0.9977086201 | M167: 2041-02-18 | N167: =AddMonths(M54,342) -> 2041-05-16 | O167: 87 | P167: 0.2416666667 | Q167: =N167-M54 -> 10408 | S167: 28.91111111 | T167: =nss(S167,V3,V4,V5,V6,V7,V8) -> 2.072440448 | U167: 0.5492697772 | V167: 0.9951477431
B168: 2022-05-16 | C168: =AddMonths(C53,115) -> 2022-06-16 | D168: 31 | E168: 0.08611111111 | F168: =C168-C53 -> 3499 | G168: 9.719444444 | H168: =nss(G168,V3,V4,V5,V6,V7,V8) -> 1.3230536 | I168: 0.8793313766 | J168: 0.9976253861 | M168: 2041-05-16 | N168: =AddMonths(M54,345) -> 2041-08-16 | O168: 92 | P168: 0.2555555556 | Q168: =N168-M54 -> 10500 | S168: 29.16666667 | T168: =nss(S168,V3,V4,V5,V6,V7,V8) -> 2.070958725 | U168: 0.5466045791 | V168: 0.9950698869
B169: 2022-06-16 | C169: =AddMonths(C53,116) -> 2022-07-18 | D169: 32 | E169: 0.08888888889 | F169: =C169-C53 -> 3531 | G169: 9.808333333 | H169: =nss(G169,V3,V4,V5,V6,V7,V8) -> 1.335302267 | I169: 0.8772433041 | J169: 0.9978398073 | L169: 29Y | M169: 2041-08-16 | N169: =AddMonths(M54,348) -> 2041-11-18 | O169: 94 | P169: 0.2611111111 | Q169: =N169-M54 -> 10594 | S169: 29.42777778 | T169: =nss(S169,V3,V4,V5,V6,V7,V8) -> 2.069377915 | U169: 0.5439097567 | V169: 0.9952525498
B170: 2022-07-18 | C170: =AddMonths(C53,117) -> 2022-08-16 | D170: 29 | E170: 0.08055555556 | F170: =C170-C53 -> 3560 | G170: 9.888888889 | H170: =nss(G170,V3,V4,V5,V6,V7,V8) -> 1.346293078 | I170: 0.8753482895 | J170: 0.9976829408 | M170: 2041-11-18 | N170: =AddMonths(M54,351) -> 2042-02-17 | O170: 91 | P170: 0.2527777778 | Q170: =N170-M54 -> 10685 | S170: 29.68055556 | T170: =nss(S170,V3,V4,V5,V6,V7,V8) -> 2.067787068 | U170: 0.5413275722 | V170: 0.9954321457
B171: 2022-08-16 | C171: =AddMonths(C53,118) -> 2022-09-16 | D171: 31 | E171: 0.08611111111 | F171: =C171-C53 -> 3591 | G171: 9.975 | H171: =nss(G171,V3,V4,V5,V6,V7,V8) -> 1.35792656 | I171: 0.8733200557 | J171: 0.9976749226 | M171: 2042-02-17 | N171: =AddMonths(M54,354) -> 2042-05-16 | O171: 88 | P171: 0.2444444444 | Q171: =N171-M54 -> 10773 | S171: 29.925 | T171: =nss(S171,V3,V4,V5,V6,V7,V8) -> 2.066195516 | U171: 0.5388548668 | V171: 0.9951462781
B172: 2022-09-16 | C172: =AddMonths(C53,119) -> 2022-10-17 | D172: 31 | E172: 0.08611111111 | F172: =C172-C53 -> 3622 | G172: 10.06111111 | H172: =nss(G172,V3,V4,V5,V6,V7,V8) -> 1.369440785 | I172: 0.871289519 | J172: 0.9977425004 | M172: 2042-05-16 | N172: =AddMonths(M54,357) -> 2042-08-18 | O172: 94 | P172: 0.2611111111 | Q172: =N172-M54 -> 10867 | S172: 30.18611111 | T172: =nss(S172,V3,V4,V5,V6,V7,V8) -> 2.06444131 | U172: 0.5362394151 | V172: 0.9953246227
A173: 10 Y | B173: 2022-10-17 | C173: =AddMonths(C53,120) -> 2022-11-16 | D173: 30 | E173: 0.08333333333 | F173: =C173-C53 -> 3652 | G173: 10.14444444 | H173: =nss(G173,V3,V4,V5,V6,V7,V8) -> 1.380469984 | I173: 0.8693225832 | J173: 0.9977355634 | L173: 30Y | M173: 2042-08-18 | N173: =AddMonths(M54,360) -> 2042-11-17 | O173: 91 | P173: 0.2527777778 | Q173: =N173-M54 -> 10958 | S173: 30.43888889 | T173: =nss(S173,V3,V4,V5,V6,V7,V8) -> 2.062693191 | U173: 0.5337322936 | V173: 0.9953474325
B174: 2022-11-16 | C174: =AddMonths(C53,121) -> 2022-12-16 | D174: 30 | E174: 0.08333333333 | F174: =C174-C53 -> 3682 | G174: 10.22777778 | H174: =nss(G174,V3,V4,V5,V6,V7,V8) -> 1.391387435 | I174: 0.8673540574 | J174: 0.9976531767 | M174: =N173 -> 2042-11-17 | N174: =AddMonths(M54,363) -> 2043-02-16 | O174: 91 | P174: 0.2527777778 | Q174: =N174-M54 -> 11049 | S174: 30.69166667 | T174: =nss(S174,V3,V4,V5,V6,V7,V8) -> 2.060899201 | U174: 0.531249068
B175: 2022-12-16 | C175: =AddMonths(C53,122) -> 2023-01-16 | D175: 31 | E175: 0.08611111111 | F175: =C175-C53 -> 3713 | G175: 10.31388889 | H175: =nss(G175,V3,V4,V5,V6,V7,V8) -> 1.402551432 | I175: 0.8653185307 | J175: 0.9976463654
B176: 2023-01-16 | C176: =AddMonths(C53,123) -> 2023-02-16 | D176: 31 | E176: 0.08611111111 | F176: =C176-C53 -> 3744 | G176: 10.4 | H176: =nss(G176,V3,V4,V5,V6,V7,V8) -> 1.413596202 | I176: 0.863281887 | J176: 0.9978682848
B177: 2023-02-16 | C177: =AddMonths(C53,124) -> 2023-03-16 | D177: 28 | E177: 0.07777777778 | F177: =C177-C53 -> 3772 | G177: 10.47777778 | H177: =nss(G177,V3,V4,V5,V6,V7,V8) -> 1.423469736 | I177: 0.8614416159 | J177: 0.9975578932
B178: 2023-03-16 | C178: =AddMonths(C53,125) -> 2023-04-17 | D178: 32 | E178: 0.08888888889 | F178: =C178-C53 -> 3804 | G178: 10.56666667 | H178: =nss(G178,V3,V4,V5,V6,V7,V8) -> 1.434634914 | I178: 0.8593378834 | J178: 0.9977810974
B179: 2023-04-17 | C179: =AddMonths(C53,126) -> 2023-05-16 | D179: 29 | E179: 0.08055555556 | F179: =C179-C53 -> 3833 | G179: 10.64722222 | H179: =nss(G179,V3,V4,V5,V6,V7,V8) -> 1.444644003 | I179: 0.8574310964 | J179: 0.9976227516
B180: 2023-05-16 | C180: =AddMonths(C53,127) -> 2023-06-16 | D180: 31 | E180: 0.08611111111 | F180: =C180-C53 -> 3864 | G180: 10.73333333 | H180: =nss(G180,V3,V4,V5,V6,V7,V8) -> 1.455228595 | I180: 0.8553927697 | J180: 0.9976173419
B181: 2023-06-16 | C181: =AddMonths(C53,128) -> 2023-07-17 | D181: 31 | E181: 0.08611111111 | F181: =C181-C53 -> 3895 | G181: 10.81944444 | H181: =nss(G181,V3,V4,V5,V6,V7,V8) -> 1.465694821 | I181: 0.8533546612 | J181: 0.9976892212
B182: 2023-07-17 | C182: =AddMonths(C53,129) -> 2023-08-16 | D182: 30 | E182: =D182/360 -> 0.08333333333 | F182: =C182-C53 -> 3925 | G182: =F182/360 -> 10.90277778 | H182: =nss(G182,V3,V4,V5,V6,V7,V8) -> 1.475710988 | I182: =EXP(-H182/100*G182) -> 0.8513827473 | J182: =I183/I182 -> 0.9974531769
B183: 2023-08-16 | C183: =AddMonths(C53,130) -> 2023-09-18 | D183: 33 | E183: 0.09166666667 | F183: =C183-C53 -> 3958 | G183: 10.99444444 | H183: =nss(G183,V3,V4,V5,V6,V7,V8) -> 1.486601367 | I183: 0.8492144261 | J183: 0.9978345503
B184: =C183 -> 2023-09-18 | C184: =AddMonths(C53,131) -> 2023-10-16 | D184: 28 | E184: 0.07777777778 | F184: =C184-C53 -> 3986 | G184: 11.07222222 | H184: =nss(G184,V3,V4,V5,V6,V7,V8) -> 1.495737312 | I184: 0.847375495 | J184: 0.9975986827
A185: 11 Y | B185: 2023-10-16 | C185: =AddMonths(C53,132) -> 2023-11-16 | D185: 31 | E185: 0.08611111111 | F185: =C185-C53 -> 4017 | G185: 11.15833333 | H185: =nss(G185,V3,V4,V5,V6,V7,V8) -> 1.50574068 | I185: 0.8453406776 | J185: 0.997517026
B186: 2023-11-16 | C186: =AddMonths(C53,133) -> 2023-12-18 | D186: =C186-B186 -> 32 | E186: 0.08888888889 | F186: =C186-C53 -> 4049 | G186: 11.24722222 | H186: =nss(G186,V3,V4,V5,V6,V7,V8) -> 1.515944315 | I186: 0.8432417186 | J186: 0.9977460076
B187: 2023-12-18 | C187: =AddMonths(C53,134) -> 2024-01-16 | D187: 29 | E187: 0.08055555556 | F187: =C187-C53 -> 4078 | G187: 11.32777778 | H187: =nss(G187,V3,V4,V5,V6,V7,V8) -> 1.525084317 | I187: 0.8413410582 | J187: 0.9975872699
B188: 2024-01-16 | C188: =AddMonths(C53,135) -> 2024-02-16 | D188: 31 | E188: 0.08611111111 | F188: =C188-C53 -> 4109 | G188: 11.41388889 | H188: =nss(G188,V3,V4,V5,V6,V7,V8) -> 1.534742535 | I188: 0.8393111293 | J188: 0.9975839167
B189: 2024-02-16 | C189: =AddMonths(C53,136) -> 2024-03-18 | D189: 31 | E189: 0.08611111111 | F189: =C189-C53 -> 4140 | G189: 11.5 | H189: =nss(G189,V3,V4,V5,V6,V7,V8) -> 1.544285344 | I189: 0.8372832837 | J189: 0.9977367942
B190: 2024-03-18 | C190: =AddMonths(C53,137) -> 2024-04-16 | D190: 29 | E190: 0.08055555556 | F190: =C190-C53 -> 4169 | G190: 11.58055556 | H190: =nss(G190,V3,V4,V5,V6,V7,V8) -> 1.553108436 | I190: 0.8353883393 | J190: 0.9976561844
B191: 2024-04-16 | C191: =AddMonths(C53,138) -> 2024-05-16 | D191: 30 | E191: 0.08333333333 | F191: =C191-C53 -> 4199 | G191: 11.66388889 | H191: =nss(G191,V3,V4,V5,V6,V7,V8) -> 1.562130381 | I191: 0.833430343 | J191: 0.99749738
B192: 2024-05-16 | C192: =AddMonths(C53,139) -> 2024-06-17 | D192: 32 | E192: 0.08888888889 | F192: =C192-C53 -> 4231 | G192: 11.75277778 | H192: =nss(G192,V3,V4,V5,V6,V7,V8) -> 1.571636189 | I192: 0.8313445836 | J192: 0.9977294919
B193: 2024-06-17 | C193: =AddMonths(C53,140) -> 2024-07-16 | D193: 29 | E193: 0.08055555556 | F193: =C193-C53 -> 4260 | G193: 11.83333333 | H193: =nss(G193,V3,V4,V5,V6,V7,V8) -> 1.580146465 | I193: 0.8294570089 | J193: 0.997570953
B194: 2024-07-16 | C194: =AddMonths(C53,141) -> 2024-08-16 | D194: 31 | E194: 0.08611111111 | F194: =C194-C53 -> 4291 | G194: 11.91944444 | H194: =nss(G194,V3,V4,V5,V6,V7,V8) -> 1.58913447 | I194: 0.8274422189 | J194: 0.9975689553
B195: 2024-08-16 | C195: =AddMonths(C53,142) -> 2024-09-16 | D195: 31 | E195: 0.08611111111 | F195: =C195-C53 -> 4322 | G195: 12.00555556 | H195: =nss(G195,V3,V4,V5,V6,V7,V8) -> 1.59801022 | I195: 0.8254306699 | J195: 0.9976455856
B196: 2024-09-16 | C196: =AddMonths(C53,143) -> 2024-10-16 | D196: 30 | E196: 0.08333333333 | F196: =C196-C53 -> 4352 | G196: 12.08888889 | H196: =nss(G196,V3,V4,V5,V6,V7,V8) -> 1.606493342 | I196: 0.823487264 | J196: 0.9974087527
A197: 12 Y | B197: 2024-10-16 | C197: =AddMonths(C53,144) -> 2024-11-18 | D197: 33 | E197: 0.09166666667 | F197: =C197-C53 -> 4385 | G197: 12.18055556 | H197: =nss(G197,V3,V4,V5,V6,V7,V8) -> 1.615704675 | I197: 0.8213534049 | J197: 0.9977997209
B198: 2024-11-18 | C198: =AddMonths(C53,145) -> 2024-12-16 | D198: 28 | E198: 0.07777777778 | F198: =C198-C53 -> 4413 | G198: 12.25833333 | H198: =nss(G198,V3,V4,V5,V6,V7,V8) -> 1.623422234 | I198: 0.8195461981 | J198: 0.997563158
B199: 2024-12-16 | C199: =AddMonths(C53,146) -> 2025-01-16 | D199: 31 | E199: 0.08611111111 | F199: =C199-C53 -> 4444 | G199: 12.34444444 | H199: =nss(G199,V3,V4,V5,V6,V7,V8) -> 1.631862217 | I199: 0.8175490935 | J199: 0.9974836358
B200: 2025-01-16 | C200: =AddMonths(C53,147) -> 2025-02-17 | D200: 32 | E200: 0.08888888889 | F200: =C200-C53 -> 4476 | G200: 12.43333333 | H200: =nss(G200,V3,V4,V5,V6,V7,V8) -> 1.640460002 | I200: 0.8154918423 | J200: 0.9977971584
B201: 2025-02-17 | C201: =AddMonths(C53,148) -> 2025-03-17 | D201: 28 | E201: 0.07777777778 | F201: =C201-C53 -> 4504 | G201: 12.51111111 | H201: =nss(G201,V3,V4,V5,V6,V7,V8) -> 1.647888265 | I201: 0.8136954429 | J201: 0.9976394669
B202: 2025-03-17 | C202: =AddMonths(C53,149) -> 2025-04-16 | D202: 30 | E202: 0.08333333333 | F202: =C202-C53 -> 4534 | G202: 12.59444444 | H202: =nss(G202,V3,V4,V5,V6,V7,V8) -> 1.655749535 | I202: 0.8117746878 | J202: 0.9976390847
B203: 2025-04-16 | C203: =AddMonths(C53,150) -> 2025-05-16 | D203: 30 | E203: 0.08333333333 | F203: =C203-C53 -> 4564 | G203: 12.67777778 | H203: =nss(G203,V3,V4,V5,V6,V7,V8) -> 1.663510481 | I203: 0.8098581565 | J203: 0.9975602605
B204: 2025-05-16 | C204: =AddMonths(C53,151) -> 2025-06-16 | D204: 31 | E204: 0.08611111111 | F204: =C204-C53 -> 4595 | G204: 12.76388889 | H204: =nss(G204,V3,V4,V5,V6,V7,V8) -> 1.671425413 | I204: 0.8078823136 | J204: 0.9976388221
... 210 more rows

Sheet EUR_1M
A2: Instrument | B2: Tenor | C2: Stamp | D2: Maturity | E2: Mkt.Values | F2: Zero Cpn. | G2: Discount | H2: Forward 3M | J2: Days | K2: t (ACT/360) | L2: NSS | M2: NSS_F | N2: Discounr NSS | O2: Implied Rate | P2: Mkt.Values | Q2: Error
A3: M. Mkt. | B3: O/N | C3: 2012-11-14 | D3: =AddDays(C3,1) -> 2012-11-15 | E3: 0.01429 | F3: 0.0144884693 | G3: 0.9999996031 | H3: 0.1016195991 | J3: =D3-C3 -> 1 | K3: =J3/360 -> 0.002777777778 | L3: =nss(K3,W4,W5,W6,W7,W8,W9) -> 0.1495963019 | M3: =nss_F(K3,W4,W5,W6,W7,W8,W9) -> 0.1492172933 | N3: =EXP(-L3/100*K3) -> 0.9999958446 | O3: =P3 -> 0.01429 | P3: 0.01429 | Q3: =POWER(O3-P3,2) -> 0
A4: M. Mkt. | B4: T/N | C4: 2012-11-14 | D4: =AddDays(C4,2) -> 2012-11-16 | E4: 0.01429 | F4: 0.0144884693 | G4: 0.9999992061 | H4: 0.1019771201 | I4: =100*(G4-G6)/(K6*G6) -> 0.1080000256 | J4: =D4-C4 -> 2 | K4: =J4/360 -> 0.005555555556 | L4: =nss(K4,W4,W5,W6,W7,W8,W9) -> 0.1492179352 | M4: =nss_F(K4,W4,W5,W6,W7,W8,W9) -> 0.148462485 | N4: =EXP(-L4/100*K4) -> 0.9999917101 | O4: =P4 -> 0.01429 | P4: 0.01429 | Q4: 0 | U4: β₀ | V4: 1454.107438 | W4: =V4/1000 -> 1.454107438
A5: M. Mkt. | B5: 1W | C5: 2012-11-14 | D5: =AddDays(D4,7) -> 2012-11-23 | E5: 0.078 | F5: 0.0647284527 | G5: 0.9999840397 | H5: 0.1028130962 | J5: =D5-D4 -> 7 | K5: 0.01944444444 | L5: =nss(K5,W4,W5,W6,W7,W8,W9) -> 0.1473453156 | M5: =nss_F(K5,W4,W5,W6,W7,W8,W9) -> 0.1447460155 | N5: 0.9999713499 | O5: =P5 -> 0.078 | P5: 0.078 | Q5: 0 | U5: β₁ | V5: 1869.586851 | W5: =(V5/100)-20 -> -1.304131485
A6: M. Mkt. | B6: 1M | C6: 2012-11-14 | D6: =AddMonths(D4,1) -> 2012-12-17 | E6: 0.108 | F6: 0.1037369426 | G6: 0.9999062148 | H6: 0.0953152888 | J6: =D6-D4 -> 31 | K6: 0.08611111111 | L6: =nss(K6,W4,W5,W6,W7,W8,W9) -> 0.138797657 | M6: =nss_F(K6,W4,W5,W6,W7,W8,W9) -> 0.1282232759 | N6: 0.9998804869 | O6: =P6 -> 0.108 | P6: 0.108 | Q6: 0 | U6: β₂ | V6: 1166.582273 | W6: =(V6/100)-20 -> -8.334177269
A7: Fra | B7: 1X2 | C7: 2012-11-14 | D7: =AddMonths(D4,2) -> 2013-01-16 | E7: 0.11 | F7: 0.1074444301 | G7: 0.9998145652 | H7: 0.0841947522 | J7: =D7-D4 -> 61 | K7: 0.1694444444 | L7: =nss(K7,W4,W5,W6,W7,W8,W9) -> 0.1291174385 | M7: =nss_F(K7,W4,W5,W6,W7,W8,W9) -> 0.1105465078 | N7: 0.9997812416 | O7: =-100*(LN(N7)-LN(N6))/(K7-K6) -> 0.1191145461 | P7: 0.11 | Q7: 8.307495006e-05 | U7: β₃ | V7: 2959.88039 | W7: =(V7/100)-20 -> 9.598803903
A8: Fra | B8: 2X3 | C8: 2012-11-14 | D8: =AddMonths(D4,3) -> 2013-02-18 | E8: 0.089 | F8: 0.1015278052 | G8: 0.9997330036 | H8: 0.0800952418 | J8: =D8-D4 -> 94 | K8: 0.2611111111 | L8: =nss(K8,W4,W5,W6,W7,W8,W9) -> 0.1197174695 | M8: =nss_F(K8,W4,W5,W6,W7,W8,W9) -> 0.09476120454 | N8: 0.9996874532 | O8: =-100*(LN(N8)-LN(N7))/(K8-K7) -> 0.1023417692 | P8: 0.089 | Q8: 0.0001780028046 | U8: τ₁ | V8: 400.8379801 | W8: =V8/100 -> 4.008379801
A9: Fra | B9: 3X4 | C9: 2012-11-14 | D9: =AddMonths(D4,4) -> 2013-03-18 | E9: 0.087 | F9: 0.0985195087 | G9: 0.9996653596 | H9: 0.0763343528 | J9: =D9-D4 -> 122 | K9: 0.3388888889 | L9: =nss(K9,W4,W5,W6,W7,W8,W9) -> 0.1127331863 | M9: =nss_F(K9,W4,W5,W6,W7,W8,W9) -> 0.08423978955 | N9: 0.9996180327 | O9: =-100*(LN(N9)-LN(N8))/(K9-K8) -> 0.08928594976 | P9: 0.087 | Q9: 5.225566321e-06 | U9: τ₂ | V9: 648.5564741 | W9: =V9/100 -> 6.485564741
A10: Fra | B10: 4X5 | C10: 2012-11-14 | D10: =AddMonths(D4,5) -> 2013-04-16 | E10: 0.076 | F10: 0.0944507306 | G10: 0.9996041616 | H10: 0.0766313189 | J10: =D10-D4 -> 151 | K10: 0.4194444444 | L10: =nss(K10,W4,W5,W6,W7,W8,W9) -> 0.1064272216 | M10: =nss_F(K10,W4,W5,W6,W7,W8,W9) -> 0.07599820577 | N10: 0.9995536966 | O10: =-100*(LN(N10)-LN(N9))/(K10-K9) -> 0.07989868049 | P10: 0.076 | Q10: 1.519970955e-05
A11: Fra | B11: 5X6 | C11: 2012-11-14 | D11: =AddMonths(D4,6) -> 2013-05-16 | E11: 0.078 | F11: 0.0919310638 | G11: 0.9995391916 | H11: 0.0773203048 | J11: =D11-D4 -> 181 | K11: 0.5027777778 | L11: =nss(K11,W4,W5,W6,W7,W8,W9) -> 0.1008652074 | M11: =nss_F(K11,W4,W5,W6,W7,W8,W9) -> 0.07019172551 | N11: 0.9994930007 | O11: 0.07286973591 | P11: 0.078 | Q11: 2.631960959e-05
A12: Fra | B12: 6X7 | C12: 2012-11-14 | D12: =AddMonths(D4,7) -> 2013-06-17 | E12: 0.075 | F12: 0.0895657531 | G12: 0.9994725601 | H12: 0.0808398046 | J12: =D12-D4 -> 213 | K12: 0.5916666667 | L12: =nss(K12,W4,W5,W6,W7,W8,W9) -> 0.09597344502 | M12: =nss_F(K12,W4,W5,W6,W7,W8,W9) -> 0.0669052468 | N12: 0.9994323183 | O12: 0.06830441412 | P12: 0.075 | Q12: 4.483087034e-05
A13: Fra | B13: 7X8 | C13: 2012-11-14 | D13: =AddMonths(D4,8) -> 2013-07-16 | E13: 0.077 | F13: 0.0881991008 | G13: 0.9994105688 | H13: 0.0846256619 | J13: =D13-D4 -> 242 | K13: 0.6722222222 | L13: =nss(K13,W4,W5,W6,W7,W8,W9) -> 0.09243675518 | M13: =nss_F(K13,W4,W5,W6,W7,W8,W9) -> 0.06639737686 | N13: 0.9993788126 | O13: 0.06646037807 | P13: 0.077 | Q13: 0.0001110836304
A14: Fra | B14: 8X9 | C14: 2012-11-14 | D14: =AddMonths(D4,9) -> 2013-08-16 | E14: 0.08 | F14: 0.0873997761 | G14: 0.9993417253 | H14: 0.0907179686 | J14: =D14-D4 -> 273 | K14: 0.7583333333 | L14: =nss(K14,W4,W5,W6,W7,W8,W9) -> 0.08956586966 | M14: =nss_F(K14,W4,W5,W6,W7,W8,W9) -> 0.06832717932 | N14: 0.9993210228 | O14: 0.06715444076 | P14: 0.08 | Q14: 0.0001650083921
A15: Fra | B15: 9X10 | C15: 2012-11-14 | D15: =AddMonths(D4,10) -> 2013-09-16 | E15: 0.085 | F15: 0.0872759408 | G15: 0.9992685844 | H15: 0.1065463003 | J15: =D15-D4 -> 304 | K15: 0.8444444444 | L15: =nss(K15,W4,W5,W6,W7,W8,W9) -> 0.08760232584 | M15: =nss_F(K15,W4,W5,W6,W7,W8,W9) -> 0.07268878932 | N15: 0.9992605206 | O15: 0.07031047219 | P15: 0.085 | Q15: 0.0002157822274
A16: Fra | B16: 10X11 | C16: 2012-11-14 | D16: =AddMonths(D4,11) -> 2013-10-16 | E16: 0.089 | F16: 0.0875399429 | G16: 0.9991944775 | H16: 0.1245640399 | J16: =D16-D4 -> 334 | K16: 0.9277777778 | L16: =nss(K16,W4,W5,W6,W7,W8,W9) -> 0.08653539281 | M16: =nss_F(K16,W4,W5,W6,W7,W8,W9) -> 0.07911039265 | N16: 0.9991974661 | O16: 0.07572380479 | P16: 0.089 | Q16: 0.0001762573592
A17: Swap | B17: 1Y | C17: 2012-11-14 | D17: =AddYears(D4,1) -> 2013-11-18 | E17: 0.089 | F17: 0.0885632547 | G17: 0.9991050626 | H17: 0.1436548585 | J17: =D17-D4 -> 367 | K17: 1.019444444 | L17: =nss(K17,W4,W5,W6,W7,W8,W9) -> 0.08627382685 | M17: =nss_F(K17,W4,W5,W6,W7,W8,W9) -> 0.08854576985 | N17: 0.9991208729 | O17: =100*(N4-N17)/S17 -> 0.08549788858 | P17: 0.089 | Q17: 1.226478438e-05 | R17: =K17 -> 1.019444444 | S17: =R17*N17 -> 1.018548223
A18: Swap | B18: 2Y | C18: 2012-11-14 | D18: =AddYears(D4,2) -> 2014-11-17 | E18: 0.134 | F18: 0.1336172018 | G18: 0.9973202706 | H18: 0.3643899043 | J18: =D18-D4 -> 731 | K18: 2.030555556 | L18: =nss(K18,W4,W5,W6,W7,W8,W9) -> 0.1369079887 | M18: =nss_F(K18,W4,W5,W6,W7,W8,W9) -> 0.3217817242 | N18: 0.9972238678 | O18: =100*(N4-N18)/SUM(S17:S18) -> 0.1365586551 | P18: 0.134 | Q18: 6.546716036e-06 | R18: =K18-K17 -> 1.011111111 | S18: 1.008304133
A19: Swap | B19: 3Y | C19: 2012-11-14 | D19: =AddYears(D4,3) -> 2015-11-16 | E19: 0.238 | F19: 0.2375940269 | G19: 0.9928845956 | H19: 0.7449215277 | J19: =D19-D4 -> 1095 | K19: 3.041666667 | L19: =nss(K19,W4,W5,W6,W7,W8,W9) -> 0.258591272 | M19: =nss_F(K19,W4,W5,W6,W7,W8,W9) -> 0.6988499634 | N19: 0.9921653675 | O19: =100*(N4-N19)/SUM(S17:S19) -> 0.2582915765 | P19: 0.238 | Q19: 0.0004117480785 | R19: =K19-K18 -> 1.011111111 | S19: 1.003189427
A20: Swap | B20: 4Y | C20: 2012-11-14 | D20: =AddYears(D4,4) -> 2016-11-16 | E20: 0.397 | F20: 0.3967241925 | G20: 0.9842241874 | H20: 1.205903012 | J20: =D20-D4 -> 1461 | K20: 4.058333333 | L20: =nss(K20,W4,W5,W6,W7,W8,W9) -> 0.4222303634 | M20: =nss_F(K20,W4,W5,W6,W7,W8,W9) -> 1.127158618 | N20: 0.9830104624 | O20: =100*(N4-N20)/SUM(S17:S20) -> 0.4214299176 | P20: 0.397 | Q20: 0.0005968208751 | R20: 1.016666667 | S20: 0.9993939701
A21: Swap | B21: 5Y | C21: 2012-11-14 | D21: =AddYears(D4,5) -> 2017-11-16 | E21: 0.589 | F21: 0.5901501046 | G21: 0.9708764966 | H21: 1.63857225 | J21: =D21-D4 -> 1826 | K21: 5.072222222 | L21: =nss(K21,W4,W5,W6,W7,W8,W9) -> 0.6053906857 | M21: =nss_F(K21,W4,W5,W6,W7,W8,W9) -> 1.544974862 | N21: 0.9697599029 | O21: =100*(N4-N21)/SUM(S17:S21) -> 0.6031085258 | P21: 0.589 | Q21: 0.0001990504989 | R21: 1.013888889 | S21: 0.9832287905
A22: Swap | B22: 6Y | C22: 2012-11-14 | D22: =AddYears(D4,6) -> 2018-11-16 | E22: 0.789 | F22: 0.7931264895 | G22: 0.9534647937 | H22: 1.970254241 | J22: =D22-D4 -> 2191 | K22: 6.086111111 | L22: =nss(K22,W4,W5,W6,W7,W8,W9) -> 0.7939250387 | M22: =nss_F(K22,W4,W5,W6,W7,W8,W9) -> 1.920433061 | N22: 0.9528296334 | O22: =100*(N4-N22)/SUM(S17:S22) -> 0.7888312919 | P22: 0.789 | Q22: 2.846243109e-08 | R22: 1.013888889 | S22: 0.9660633784
A23: Swap | B23: 7Y | C23: 2012-11-14 | D23: =AddYears(D4,7) -> 2019-11-18 | E23: 0.977 | F23: 0.9855923173 | G23: 0.9332086452 | H23: 2.23069241 | J23: =D23-D4 -> 2558 | K23: 7.105555556 | L23: =nss(K23,W4,W5,W6,W7,W8,W9) -> 0.9791504557 | M23: =nss_F(K23,W4,W5,W6,W7,W8,W9) -> 2.238883682 | N23: 0.93279103 | O23: =100*(N4-N23)/SUM(S17:S23) -> 0.9697548439 | P23: 0.977 | Q23: 5.249228754e-05 | R23: 1.019444444 | S23: 0.9509286334
A24: Swap | B24: 8Y | C24: 2012-11-14 | D24: =AddYears(D4,8) -> 2020-11-16 | E24: 1.146 | F24: 1.15985935 | G24: 0.9112701751 | H24: 2.418408207 | J24: =D24-D4 -> 2922 | K24: 8.116666667 | L24: =nss(K24,W4,W5,W6,W7,W8,W9) -> 1.152435412 | M24: =nss_F(K24,W4,W5,W6,W7,W8,W9) -> 2.490847843 | N24: 0.9107021889 | O24: =100*(N4-N24)/SUM(S17:S24) -> 1.137376924 | P24: 1.146 | Q24: 7.435744195e-05 | R24: 1.011111111 | S24: 0.9208211021
A25: Swap | B25: 9Y | C25: 2012-11-14 | D25: =AddYears(D4,9) -> 2021-11-16 | E25: 1.295 | F25: 1.315322217 | G25: 0.8882312578 | H25: 2.576562941 | J25: =D25-D4 -> 3287 | K25: 9.130555556 | L25: =nss(K25,W4,W5,W6,W7,W8,W9) -> 1.312170615 | M25: =nss_F(K25,W4,W5,W6,W7,W8,W9) -> 2.680901697 | N25: 0.8870903275 | O25: =100*(N4-N25)/SUM(S17:S25) -> 1.290317931 | P25: 1.295 | Q25: 2.192177236e-05 | R25: 1.013888889 | S25: 0.8994110265
A26: Swap | B26: 10Y | C26: 2012-11-14 | D26: =AddYears(D4,10) -> 2022-11-16 | E26: 1.427 | F26: 1.454419855 | G26: 0.8645022476 | H26: 2.683780394 | J26: =D26-D4 -> 3652 | K26: 10.14444444 | L26: =nss(K26,W4,W5,W6,W7,W8,W9) -> 1.456041104 | M26: =nss_F(K26,W4,W5,W6,W7,W8,W9) -> 2.813381709 | N26: 0.8626836019 | O26: =100*(N4-N26)/SUM(S17:S26) -> 1.426643855 | P26: 1.427 | Q26: 1.268395634e-07 | R26: 1.013888889 | S26: 0.8746653186
A27: Swap | B27: 11Y | C27: 2012-11-14 | D27: =AddYears(D4,11) -> 2023-11-16 | J27: =D27-D4 -> 4017 | K27: =J27/360 -> 11.15833333 | L27: =nss(K27,W4,W5,W6,W7,W8,W9) -> 1.583451663 | M27: =nss_F(K27,W4,W5,W6,W7,W8,W9) -> 2.895351272 | N27: 0.8380422059 | O27: =100*(N4-N27)/SUM(S17:S27) -> 1.546170137 | R27: 1.013888889 | S27: 0.849681681
A28: Swap | B28: 12Y | C28: 2012-11-14 | D28: =AddYears(D4,12) -> 2024-11-18 | E28: 1.657 | F28: 1.700451612 | G28: 0.8151523038 | H28: 2.711010139 | J28: =D28-D4 -> 4385 | K28: 12.18055556 | L28: =nss(K28,W4,W5,W6,W7,W8,W9) -> 1.695478704 | M28: =nss_F(K28,W4,W5,W6,W7,W8,W9) -> 2.934758044 | N28: 0.8134110298 | O28: =100*(N4-N28)/SUM(S17:S28) -> 1.650320713 | P28: 1.657 | Q28: =POWER(O28-P28,2) -> 4.461287706e-05 | R28: 1.022222222 | S28: 0.8314868304
A29: Swap | B29: 13Y | C29: 2012-11-14 | D29: =AddYears(D4,13) -> 2025-11-17 | J29: =D29-D4 -> 4749 | K29: =J29/360 -> 13.19166667 | L29: =nss(K29,W4,W5,W6,W7,W8,W9) -> 1.790818655 | M29: =nss_F(K29,W4,W5,W6,W7,W8,W9) -> 2.938768399 | N29: 0.7895920751 | O29: =100*(N4-N29)/SUM(S17:S29) -> 1.738252712 | R29: 1.011111111 | S29: 0.7983653203
A30: Swap | B30: 14Y | C30: 2012-11-14 | D30: =AddYears(D4,14) -> 2026-11-16 | J30: =D30-D4 -> 5113 | K30: =J30/360 -> 14.20277778 | L30: =nss(K30,W4,W5,W6,W7,W8,W9) -> 1.871846791 | M30: =nss_F(K30,W4,W5,W6,W7,W8,W9) -> 2.915185873 | N30: 0.7665508517 | O30: =100*(N4-N30)/SUM(S17:S30) -> 1.812547809 | R30: 1.011111111 | S30: 0.7750680834
A31: Swap | B31: 15Y | C31: 2012-11-14 | D31: =AddYears(D4,15) -> 2027-11-16 | E31: 1.889 | F31: 1.953931377 | G31: 0.7457555836 | H31: 2.390655386 | J31: =D31-D4 -> 5478 | K31: 15.21666667 | L31: =nss(K31,W4,W5,W6,W7,W8,W9) -> 1.939970285 | M31: =nss_F(K31,W4,W5,W6,W7,W8,W9) -> 2.870277807 | N31: 0.7443835806 | O31: =100*(N4-N31)/SUM(S17:S31) -> 1.874801333 | P31: 1.889 | Q31: =POWER(O31-P31,2) -> 0.000201602131 | R31: 1.013888889 | S31: 0.7547222415
A32: Swap | B32: 16Y | C32: 2012-11-14 | D32: =AddYears(D4,16) -> 2028-11-16 | J32: =D32-D4 -> 5844 | K32: =J32/360 -> 16.23333333 | L32: =nss(K32,W4,W5,W6,W7,W8,W9) -> 1.996399905 | M32: =nss_F(K32,W4,W5,W6,W7,W8,W9) -> 2.809508486 | N32: 0.7231907566 | O32: =100*(N4-N32)/SUM(S17:S32) -> 1.926359535 | R32: 1.016666667 | S32: 0.7352439359
A33: Swap | B33: 17Y | C33: 2012-11-14 | D33: =AddYears(D4,17) -> 2029-11-16 | J33: =D33-D4 -> 6209 | K33: =J33/360 -> 17.24722222 | L33: =nss(K33,W4,W5,W6,W7,W8,W9) -> 2.042139534 | M33: =nss_F(K33,W4,W5,W6,W7,W8,W9) -> 2.737974365 | N33: 0.7031308009 | O33: =100*(N4-N33)/SUM(S17:S33) -> 1.968310192 | R33: 1.013888889 | S33: 0.7128965065
A34: Swap | B34: 18Y | C34: 2012-11-14 | D34: =AddYears(D4,18) -> 2030-11-18 | J34: =D34-D4 -> 6576 | K34: =J34/360 -> 18.26666667 | L34: =nss(K34,W4,W5,W6,W7,W8,W9) -> 2.078794808 | M34: =nss_F(K34,W4,W5,W6,W7,W8,W9) -> 2.659017342 | N34: 0.6840484584 | O34: =100*(N4-N34)/SUM(S17:S34) -> 2.002255424 | R34: 1.019444444 | S34: 0.6973494007
A35: Swap | B35: 19Y | C35: 2012-11-14 | D35: =AddYears(D4,19) -> 2031-11-17 | J35: =D35-D4 -> 6940 | K35: =J35/360 -> 19.27777778 | L35: =nss(K35,W4,W5,W6,W7,W8,W9) -> 2.107084806 | M35: =nss_F(K35,W4,W5,W6,W7,W8,W9) -> 2.576923207 | N35: 0.6661775006 | O35: =100*(N4-N35)/SUM(S17:S35) -> 2.028902177 | R35: 1.011111111 | S35: 0.6735794729
A36: Swap | B36: 20Y | C36: 2012-11-14 | D36: =AddYears(D4,20) -> 2032-11-16 | E36: 2.033 | F36: 2.105597739 | G36: 0.6560466623 | H36: 2.217218599 | J36: =D36-D4 -> 7305 | K36: 20.29166667 | L36: =nss(K36,W4,W5,W6,W7,W8,W9) -> 2.128473336 | M36: =nss_F(K36,W4,W5,W6,W7,W8,W9) -> 2.493341191 | N36: 0.6492725384 | O36: =100*(N4-N36)/SUM(S17:S36) -> 2.049642335 | P36: 2.033 | Q36: =POWER(O36-P36,2) -> 0.0002769673237 | R36: 1.013888889 | S36: 0.6582902126
A37: Swap | B37: 21Y | C37: 2012-11-14 | D37: =AddYears(D4,21) -> 2033-11-16 | J37: =D37-D4 -> 7670 | K37: =J37/360 -> 21.30555556 | L37: =nss(K37,W4,W5,W6,W7,W8,W9) -> 2.14385826 | M37: =nss_F(K37,W4,W5,W6,W7,W8,W9) -> 2.410443607 | N37: 0.6333317436 | O37: =100*(N4-N37)/SUM(S17:S37) -> 2.065298336 | R37: 1.013888889 | S37: 0.6421280179
A38: Swap | B38: 22Y | C38: 2012-11-14 | D38: =AddYears(D4,22) -> 2034-11-16 | J38: =D38-D4 -> 8035 | K38: =J38/360 -> 22.31944444 | L38: =nss(K38,W4,W5,W6,W7,W8,W9) -> 2.154123836 | M38: =nss_F(K38,W4,W5,W6,W7,W8,W9) -> 2.329698134 | N38: 0.6182956902 | O38: =100*(N4-N38)/SUM(S17:S38) -> 2.07666405 | R38: 1.013888889 | S38: 0.6268831304
A39: Swap | B39: 23Y | C39: 2012-11-14 | D39: =AddYears(D4,23) -> 2035-11-16 | J39: =D39-D4 -> 8400 | K39: =J39/360 -> 23.33333333 | L39: =nss(K39,W4,W5,W6,W7,W8,W9) -> 2.160055399 | M39: =nss_F(K39,W4,W5,W6,W7,W8,W9) -> 2.252170763 | N39: 0.6041015739 | O39: =100*(N4-N39)/SUM(S17:S39) -> 2.084428689 | R39: 1.013888889 | S39: 0.6124918735
A40: Swap | B40: 24Y | C40: 2012-11-14 | D40: =AddYears(D4,24) -> 2036-11-17 | J40: =D40-D4 -> 8767 | K40: =J40/360 -> 24.35277778 | L40: =nss(K40,W4,W5,W6,W7,W8,W9) -> 2.162348443 | M40: =nss_F(K40,W4,W5,W6,W7,W8,W9) -> 2.178207551 | N40: 0.59061441 | O40: =100*(N4-N40)/SUM(S17:S40) -> 2.089209787 | R40: 1.019444444 | S40: 0.6020985791
A41: Swap | B41: 25Y | C41: 2012-11-14 | D41: =AddYears(D4,25) -> 2037-11-16 | E41: 2.074 | F41: 2.139178628 | G41: 0.5855149761 | H41: 2.178066484 | J41: =D41-D4 -> 9131 | K41: 25.36388889 | L41: =nss(K41,W4,W5,W6,W7,W8,W9) -> 2.161591441 | M41: =nss_F(K41,W4,W5,W6,W7,W8,W9) -> 2.109271885 | N41: 0.5779524667 | O41: =100*(N4-N41)/SUM(S17:S41) -> 2.091455371 | P41: 2.074 | Q41: =POWER(O41-P41,2) -> 0.0003046899736 | R41: 1.011111111 | S41: 0.5843741607
A42: Swap | B42: 26Y | C42: 2012-11-14 | D42: =AddYears(D4,26) -> 2038-11-16 | J42: =D42-D4 -> 9496 | K42: =J42/360 -> 26.37777778 | L42: =nss(K42,W4,W5,W6,W7,W8,W9) -> 2.15832671 | M42: =nss_F(K42,W4,W5,W6,W7,W8,W9) -> 2.044832243 | N42: 0.5659109059 | O42: =100*(N4-N42)/SUM(S17:S42) -> 2.091654865 | R42: 1.013888889 | S42: 0.5737707795
A43: Swap | B43: 27Y | C43: 2012-11-14 | D43: =AddYears(D4,27) -> 2039-11-16 | J43: =D43-D4 -> 9861 | K43: =J43/360 -> 27.39166667 | L43: =nss(K43,W4,W5,W6,W7,W8,W9) -> 2.153007041 | M43: =nss_F(K43,W4,W5,W6,W7,W8,W9) -> 1.985183905 | N43: 0.5544689269 | O43: =100*(N4-N43)/SUM(S17:S43) -> 2.090169186 | R43: 1.013888889 | S43: 0.5621698842
A44: Swap | B44: 28Y | C44: 2012-11-14 | D44: =AddYears(D4,28) -> 2040-11-16 | J44: =D44-D4 -> 10227 | K44: =J44/360 -> 28.40833333 | L44: =nss(K44,W4,W5,W6,W7,W8,W9) -> 2.146002275 | M44: =nss_F(K44,W4,W5,W6,W7,W8,W9) -> 1.930158572 | N44: 0.5435446193 | O44: =100*(N4-N44)/SUM(S17:S44) -> 2.08730632 | R44: 1.016666667 | S44: 0.5526036963
A45: Swap | B45: 29Y | C45: 2012-11-14 | D45: =AddYears(D4,29) -> 2041-11-18 | J45: =D45-D4 -> 10594 | K45: =J45/360 -> 29.42777778 | L45: =nss(K45,W4,W5,W6,W7,W8,W9) -> 2.13763724 | M45: =nss_F(K45,W4,W5,W6,W7,W8,W9) -> 1.879677407 | N45: 0.5330931329 | O45: =100*(N4-N45)/SUM(S17:S45) -> 2.083325438 | R45: 1.019444444 | S45: 0.5434588327
A46: Swap | B46: 30Y | C46: 2012-11-14 | D46: =AddYears(D4,30) -> 2042-11-17 | E46: 2.094 | F46: 2.151658782 | G46: 0.5240924756 | H46: 2.127949104 | J46: =D46-D4 -> 10958 | K46: 30.43888889 | L46: =nss(K46,W4,W5,W6,W7,W8,W9) -> 2.128298901 | M46: =nss_F(K46,W4,W5,W6,W7,W8,W9) -> 1.834069448 | N46: 0.5231795649 | O46: =100*(N4-N46)/SUM(S17:S46) -> 2.078499541 | P46: 2.094 | Q46: =POWER(O46-P46,2) -> 0.0002402642314 | R46: 1.011111111 | S46: 0.5289926712
Q47: =SUM(Q3:Q46) -> 0.003464279413
A50: Tenor | B50: Stamp | C50: Maturity | D50: Days | E50: t (ACT/360) | F50: t from zero | G50: t0/360 | H50: NSS | I50: Discount NSS | J50: Forward 1M NSS | K50: 1M Discount EONIA | L50: K*J | N50: 1M Discount EUR_6 | O50: M*J
A51: T/N | B51: 2012-11-14 | C51: 2012-11-16 | D51: =C51-B51 -> 2 | E51: =D51/360 -> 0.005555555556 | F51: =C51-B51 -> 2 | G51: =F51/360 -> 0.005555555556 | H51: 0.01429 | I51: 0.9999992061 | J51: =100*(I51-I52)/(E52*I52) -> 0.1378838934 | K51: 0.9999184868 | L51: =K51*J51 -> 0.137872654 | N51: 0.9999070086 | O51: =N51*J51 -> 0.1378710713
A52: 1 M | B52: =C51 -> 2012-11-16 | C52: =AddMonths(C51,1) -> 2012-12-17 | D52: =C52-B52 -> 31 | E52: =D52/360 -> 0.08611111111 | F52: =C52-C51 -> 31 | G52: =F52/360 -> 0.08611111111 | H52: =nss(G52,W4,W5,W6,W7,W8,W9) -> 0.138797657 | I52: =EXP(-(H52/100)*G52) -> 0.9998804869 | J52: =100*(I52-I53)/(E53*I53) -> 0.119120458 | K52: 0.9999356955 | L52: =K52*J52 -> 0.1191127981 | N52: 0.9998490368 | O52: 0.1191024752
A53: 2 M | B53: =C52 -> 2012-12-17 | C53: =AddMonths(C51,2) -> 2013-01-16 | D53: =C53-B53 -> 30 | E53: 0.08333333333 | F53: =C53-C51 -> 61 | G53: 0.1694444444 | H53: =nss(G53,W4,W5,W6,W7,W8,W9) -> 0.1291174385 | I53: =EXP(-(H53/100)*G53) -> 0.9997812416 | J53: 0.1023465698 | K53: 0.9999472424 | L53: 0.1023411703 | N53: 0.9997454048 | O53: 0.1023205129
A54: 3 M | B54: =C53 -> 2013-01-16 | C54: =AddMonths(C51,3) -> 2013-02-18 | D54: =C54-B54 -> 33 | E54: 0.09166666667 | F54: =C54-C51 -> 94 | G54: 0.2611111111 | H54: =nss(G54,W4,W5,W6,W7,W8,W9) -> 0.1197174695 | I54: 0.9996874532 | J54: 0.08928905005 | K54: 0.9999673689 | L54: 0.08928613645 | N54: 0.9994403969 | O54: 0.08923908362
A55: 4 M | B55: 2013-02-18 | C55: =AddMonths(C51,4) -> 2013-03-18 | D55: =C55-B55 -> 28 | E55: 0.07777777778 | F55: =C55-C51 -> 122 | G55: 0.3388888889 | H55: =nss(G55,W4,W5,W6,W7,W8,W9) -> 0.1127331863 | I55: 0.9996180327 | J55: 0.0799012518 | K55: 0.9999755363 | L55: 0.07989929712 | N55: 0.99975809 | O55: 0.07988192288
A56: 5 M | B56: 2013-03-18 | C56: =AddMonths(C51,5) -> 2013-04-16 | D56: =C56-B56 -> 29 | E56: 0.08055555556 | F56: =C56-C51 -> 151 | G56: 0.4194444444 | H56: =nss(G56,W4,W5,W6,W7,W8,W9) -> 0.1064272216 | I56: 0.9995536966 | J56: 0.07287194846 | K56: 0.9999823061 | L56: 0.07287065907 | N56: 0.9997497405 | O56: 0.07285371156
A57: 6 M | B57: 2013-04-16 | C57: =AddMonths(C51,6) -> 2013-05-16 | D57: 30 | E57: 0.08333333333 | F57: =C57-C51 -> 181 | G57: 0.5027777778 | H57: =nss(G57,W4,W5,W6,W7,W8,W9) -> 0.1008652074 | I57: 0.9994930007 | J57: 0.06830648771 | K57: 0.9999869978 | L57: 0.06830559958 | N57: 0.9997309878 | O57: 0.06828811243
A58: 7 M | B58: 2013-05-16 | C58: =AddMonths(C51,7) -> 2013-06-17 | D58: 32 | E58: 0.08888888889 | F58: =C58-C51 -> 213 | G58: 0.5916666667 | H58: =nss(G58,W4,W5,W6,W7,W8,W9) -> 0.09597344502 | I58: 0.9994323183 | J58: 0.06646215716 | K58: 0.999991189 | L58: 0.06646157157 | N58: 0.9997526068 | O58: 0.06644571488
A59: 8 M | B59: 2013-06-17 | C59: =AddMonths(C51,8) -> 2013-07-16 | D59: 29 | E59: 0.08055555556 | F59: =C59-C51 -> 242 | G59: 0.6722222222 | H59: =nss(G59,W4,W5,W6,W7,W8,W9) -> 0.09243675518 | I59: 0.9993788126 | J59: 0.06715638249 | K59: 0.9999914173 | L59: 0.0671558061 | N59: 0.9997299936 | O59: 0.06713824983
A60: 9 M | B60: 2013-07-16 | C60: =AddMonths(C51,9) -> 2013-08-16 | D60: 31 | E60: 0.08611111111 | F60: =C60-C51 -> 273 | G60: 0.7583333333 | H60: =nss(G60,W4,W5,W6,W7,W8,W9) -> 0.08956586966 | I60: 0.9993210228 | J60: 0.07031260071 | K60: 0.9999900569 | L60: 0.07031190158 | N60: 0.9997225344 | O60: 0.07029309138
A61: 10 M | B61: 2013-08-16 | C61: =AddMonths(C51,10) -> 2013-09-16 | D61: 31 | E61: 0.08611111111 | F61: =C61-C51 -> 304 | G61: 0.8444444444 | H61: =nss(G61,W4,W5,W6,W7,W8,W9) -> 0.08760232584 | I61: 0.9992605206 | J61: 0.07572619405 | K61: 0.999987047 | L61: 0.07572521316 | N61: 0.9997228082 | O61: 0.07570520337
A62: 11 M | B62: 2013-09-16 | C62: =AddMonths(C51,11) -> 2013-10-16 | D62: 30 | E62: 0.08333333333 | F62: =C62-C51 -> 334 | G62: 0.9277777778 | H62: =nss(G62,W4,W5,W6,W7,W8,W9) -> 0.08653539281 | I62: 0.9991974661 | J62: 0.08362966765 | K62: 0.9999797274 | L62: 0.08362797226 | N62: 0.9996835068 | O62: 0.08360319942
A63: 1Y | B63: 2013-10-16 | C63: =AddMonths(C51,12) -> 2013-11-18 | D63: 33 | E63: 0.09166666667 | F63: =C63-C51 -> 367 | G63: 1.019444444 | H63: =nss(G63,W4,W5,W6,W7,W8,W9) -> 0.08627382685 | I63: 0.9991208729 | J63: 0.09333919439 | K63: 0.9999761595 | L63: 0.09333696914 | N63: 0.9997206296 | O63: 0.09331311818
B64: 2013-11-18 | C64: =AddMonths(C51,13) -> 2013-12-16 | D64: 28 | E64: 0.07777777778 | F64: =C64-C51 -> 395 | G64: 1.097222222 | H64: =nss(G64,W4,W5,W6,W7,W8,W9) -> 0.08677442287 | I64: 0.9990483449 | J64: 0.104640164 | K64: 0.999964761 | L64: 0.1046364766 | N64: 0.9996777732 | O64: 0.1046064461
B65: 2013-12-16 | C65: =AddMonths(C51,14) -> 2014-01-16 | D65: 31 | E65: 0.08611111111 | F65: =C65-C51 -> 426 | G65: 1.183333333 | H65: =nss(G65,W4,W5,W6,W7,W8,W9) -> 0.08807416897 | I65: 0.9989583319 | J65: 0.1186162402 | K65: 0.9999520872 | L65: 0.1186105569 | N65: 0.9996517519 | O65: 0.1185749323
B66: 2014-01-16 | C66: =AddMonths(C51,15) -> 2014-02-17 | D66: 32 | E66: 0.08888888889 | F66: =C66-C51 -> 458 | G66: 1.272222222 | H66: =nss(G66,W4,W5,W6,W7,W8,W9) -> 0.09020767593 | I66: 0.9988530162 | J66: 0.1336494613 | K66: 0.99994705 | L66: 0.1336423846 | N66: 0.999681165 | O66: 0.1336068492
B67: 2014-02-17 | C67: =AddMonths(C51,16) -> 2014-03-17 | D67: 28 | E67: 0.07777777778 | F67: =C67-C51 -> 486 | G67: 1.35 | H67: =nss(G67,W4,W5,W6,W7,W8,W9) -> 0.09271009466 | I67: 0.9987491966 | J67: 0.149742278 | K67: 0.9999304813 | L67: 0.1497318681 | N67: 0.9996427291 | O67: 0.1496887794
B68: 2014-03-17 | C68: =AddMonths(C51,17) -> 2014-04-16 | D68: 30 | E68: 0.08333333333 | F68: =C68-C51 -> 516 | G68: 1.433333333 | H68: =nss(G68,W4,W5,W6,W7,W8,W9) -> 0.09602537613 | I68: 0.998624583 | J68: 0.1678809362 | K68: 0.9999159476 | L68: 0.1678668254 | N68: 0.9996255204 | O68: 0.1678180682
A69: 18M | B69: 2014-04-16 | C69: =AddMonths(C51,18) -> 2014-05-16 | D69: 30 | E69: 0.08333333333 | F69: =C69-C51 -> 546 | G69: 1.516666667 | H69: =nss(G69,W4,W5,W6,W7,W8,W9) -> 0.09997283865 | I69: 0.9984848942 | J69: 0.1878039981 | K69: 0.9998965384 | L69: 0.1877845676 | N69: 0.9995939351 | O69: 0.1877277375
B70: 2014-05-16 | C70: =AddMonths(C51,19) -> 2014-06-16 | D70: 31 | E70: 0.08611111111 | F70: =C70-C51 -> 577 | G70: 1.602777778 | H70: =nss(G70,W4,W5,W6,W7,W8,W9) -> 0.1046908547 | I70: 0.9983234452 | J70: 0.2091229064 | K70: 0.9998825834 | L70: 0.2090983519 | N70: 0.9995876086 | O70: 0.2090366659
B71: 2014-06-16 | C71: =AddMonths(C51,20) -> 2014-07-16 | D71: 30 | E71: 0.08333333333 | F71: =C71-C51 -> 607 | G71: 1.686111111 | H71: =nss(G71,W4,W5,W6,W7,W8,W9) -> 0.1098513406 | I71: 0.9981494986 | J71: 0.2325443802 | K71: 0.9998498529 | L71: 0.2325094643 | N71: 0.9995232875 | O71: 0.2324335234
B72: 2014-07-16 | C72: =AddMonths(C51,21) -> 2014-08-18 | D72: 33 | E72: 0.09166666667 | F72: =C72-C51 -> 640 | G72: 1.777777778 | H72: =nss(G72,W4,W5,W6,W7,W8,W9) -> 0.1161764226 | I72: 0.9979367728 | J72: 0.2568556785 | K72: 0.9998488308 | L72: 0.2568168499 | N72: 0.9995602742 | O72: 0.2567427324
B73: 2014-08-18 | C73: =AddMonths(C51,22) -> 2014-09-16 | D73: 29 | E73: 0.08055555556 | F73: =C73-C51 -> 669 | G73: 1.858333333 | H73: =nss(G73,W4,W5,W6,W7,W8,W9) -> 0.1222734748 | I73: 0.9977303309 | J73: 0.2811253574 | K73: 0.9998237131 | L73: 0.2810757987 | N73: 0.9995239063 | O73: 0.2809915154
B74: 2014-09-16 | C74: =AddMonths(C51,23) -> 2014-10-16 | D74: 30 | E74: 0.08333333333 | F74: =C74-C51 -> 699 | G74: 1.941666667 | H74: =nss(G74,W4,W5,W6,W7,W8,W9) -> 0.1290897391 | I74: 0.9974966462 | J74: 0.3077299598 | K74: 0.9997886306 | L74: 0.3076649152 | N74: 0.9994676312 | O74: 0.307566134
A75: 2 Y | B75: 2014-10-16 | C75: =AddMonths(C51,24) -> 2014-11-17 | D75: 32 | E75: 0.08888888889 | F75: =C75-C51 -> 731 | G75: 2.030555556 | H75: =nss(G75,W4,W5,W6,W7,W8,W9) -> 0.1369079887 | I75: 0.9972238678 | J75: 0.3349102911 | K75: 0.9997867925 | L75: 0.3348388858 | N75: 0.9994950031 | O75: 0.3347411625
B76: 2014-11-17 | C76: =AddMonths(C51,25) -> 2014-12-16 | D76: 29 | E76: 0.08055555556 | F76: =C76-C51 -> 760 | G76: 2.111111111 | H76: =nss(G76,W4,W5,W6,W7,W8,W9) -> 0.1444616162 | I76: 0.9969549005 | J76: 0.3625904246 | K76: 0.9997484844 | L76: 0.3624992274 | N76: 0.99943587 | O76: 0.3623858764
B77: 2014-12-16 | C77: =AddMonths(C51,26) -> 2015-01-16 | D77: 31 | E77: 0.08611111111 | F77: =C77-C51 -> 791 | G77: 2.197222222 | H77: =nss(G77,W4,W5,W6,W7,W8,W9) -> 0.153008062 | I77: 0.9966437178 | J77: 0.3920811281 | K77: 0.9997232948 | L77: 0.3919726372 | N77: 0.9994101481 | O77: 0.3918498583
B78: 2015-01-16 | C78: =AddMonths(C51,27) -> 2015-02-16 | D78: 31 | E78: 0.08611111111 | F78: =C78-C51 -> 822 | G78: 2.283333333 | H78: =nss(G78,W4,W5,W6,W7,W8,W9) -> 0.1620217039 | I78: 0.9963073391 | J78: 0.4209169473 | K78: 0.999727789 | L78: 0.4208023691 | N78: 0.9994446374 | O78: 0.4206831858
B79: 2015-02-16 | C79: =AddMonths(C51,28) -> 2015-03-16 | D79: 28 | E79: 0.07777777778 | F79: =C79-C51 -> 850 | G79: 2.361111111 | H79: =nss(G79,W4,W5,W6,W7,W8,W9) -> 0.1705477487 | I79: 0.9959812749 | J79: 0.4504889915 | K79: 0.9996733179 | L79: 0.4503418248 | N79: 0.9993596811 | O79: 0.4502005349
B80: 2015-03-16 | C80: =AddMonths(C51,29) -> 2015-04-16 | D80: 31 | E80: 0.08611111111 | F80: =C80-C51 -> 881 | G80: 2.447222222 | H80: =nss(G80,W4,W5,W6,W7,W8,W9) -> 0.1803950478 | I80: 0.9955950626 | J80: 0.4827795022 | K80: 0.9996342244 | L80: 0.4826029132 | N80: 0.9993104725 | O80: 0.4824466125
B81: 2015-04-16 | C81: =AddMonths(C51,30) -> 2015-05-18 | D81: 32 | E81: 0.08888888889 | F81: =C81-C51 -> 913 | G81: 2.536111111 | H81: =nss(G81,W4,W5,W6,W7,W8,W9) -> 0.190989778 | I81: 0.9951679989 | J81: 0.5146780033 | K81: 0.9996429135 | L81: 0.5144942187 | N81: 0.9993496412 | O81: 0.5143432779
B82: 2015-05-18 | C82: =AddMonths(C51,31) -> 2015-06-16 | D82: 29 | E82: 0.08055555556 | F82: =C82-C51 -> 942 | G82: 2.616666667 | H82: =nss(G82,W4,W5,W6,W7,W8,W9) -> 0.2009514184 | I82: 0.9947555715 | J82: 0.5461102504 | K82: 0.999604506 | L82: 0.5458942671 | N82: 0.9993014037 | O82: 0.5457287398
B83: 2015-06-16 | C83: =AddMonths(C51,32) -> 2015-07-16 | D83: 30 | E83: 0.08333333333 | F83: =C83-C51 -> 972 | G83: 2.7 | H83: =nss(G83,W4,W5,W6,W7,W8,W9) -> 0.2116006346 | I83: 0.9943030723 | J83: 0.5796875053 | K83: 0.9995484004 | L83: 0.5794257186 | N83: 0.999225556 | O83: 0.5792385698
B84: 2015-07-16 | C84: =AddMonths(C51,33) -> 2015-08-17 | D84: 32 | E84: 0.08888888889 | F84: =C84-C51 -> 1004 | G84: 2.788888889 | H84: =nss(G84,W4,W5,W6,W7,W8,W9) -> 0.2233277285 | I84: 0.9937909938 | J84: 0.6137421264 | K84: 0.9995483094 | L84: 0.6134649048 | N84: 0.9992461802 | O84: 0.6132794754
B85: 2015-08-17 | C85: =AddMonths(C51,34) -> 2015-09-16 | D85: 30 | E85: 0.08333333333 | F85: =C85-C51 -> 1034 | G85: 2.872222222 | H85: =nss(G85,W4,W5,W6,W7,W8,W9) -> 0.23465048 | I85: 0.9932829775 | J85: 0.6471392302 | K85: 0.9995205448 | L85: 0.6468289559 | N85: 0.9992190597 | O85: 0.6466338531
B86: 2015-09-16 | C86: =AddMonths(C51,35) -> 2015-10-16 | D86: 30 | E86: 0.08333333333 | F86: =C86-C51 -> 1064 | G86: 2.955555556 | H86: =nss(G86,W4,W5,W6,W7,W8,W9) -> 0.2462758837 | I86: 0.9927476059 | J86: 0.6814870637 | K86: 0.9994750593 | L86: 0.6811293233 | N86: 0.999164317 | O86: 0.6809175565
A87: 3 Y | B87: 2015-10-16 | C87: =AddMonths(C51,36) -> 2015-11-16 | D87: 31 | E87: 0.08611111111 | F87: =C87-C51 -> 1095 | G87: 3.041666667 | H87: =nss(G87,W4,W5,W6,W7,W8,W9) -> 0.258591272 | I87: 0.9921653675 | J87: 0.7161655258 | K87: 0.9994631419 | L87: 0.7157810465 | N87: 0.9991632751 | O87: 0.7155662922
B88: 2015-11-16 | C88: =AddMonths(C51,37) -> 2015-12-16 | D88: 30 | E88: 0.08333333333 | F88: =C88-C51 -> 1125 | G88: 3.125 | H88: =nss(G88,W4,W5,W6,W7,W8,W9) -> 0.2707875556 | I88: 0.9915735918 | J88: 0.7523314029 | K88: 0.9993764057 | L88: 0.7518622534 | N88: 0.9990476569 | O88: 0.7516149253
B89: 2015-12-16 | C89: =AddMonths(C51,38) -> 2016-01-18 | D89: 33 | E89: 0.09166666667 | F89: =C89-C51 -> 1158 | G89: 3.216666667 | H89: =nss(G89,W4,W5,W6,W7,W8,W9) -> 0.2845029184 | I89: 0.9908902371 | J89: 0.7881338201 | K89: 0.9994231579 | L89: 0.7876791914 | N89: 0.9991352477 | O89: 0.7874522796
B90: 2016-01-18 | C90: =AddMonths(C51,39) -> 2016-02-16 | D90: 29 | E90: 0.08055555556 | F90: =C90-C51 -> 1187 | G90: 3.297222222 | H90: =nss(G90,W4,W5,W6,W7,W8,W9) -> 0.2968011861 | I90: 0.9902615343 | J90: 0.8218648651 | K90: 0.9993960345 | L90: 0.8213684871 | N90: 0.9991091475 | O90: 0.8211327048
B91: 2016-02-16 | C91: =AddMonths(C51,40) -> 2016-03-16 | D91: 29 | E91: 0.08055555556 | F91: =C91-C51 -> 1216 | G91: 3.377777778 | H91: =nss(G91,W4,W5,W6,W7,W8,W9) -> 0.3093167785 | I91: 0.9896063577 | J91: 0.8581477083 | K91: 0.9992796 | L91: 0.8575294987 | N91: 0.9989545011 | O91: 0.8572505158
B92: 2016-03-16 | C92: =AddMonths(C51,41) -> 2016-04-18 | D92: 33 | E92: 0.09166666667 | F92: =C92-C51 -> 1249 | G92: 3.469444444 | H92: =nss(G92,W4,W5,W6,W7,W8,W9) -> 0.3238086026 | I92: 0.9888285102 | J92: 0.893898033 | K92: 0.9993609251 | L92: 0.8933267652 | N92: 0.9990862119 | O92: 0.8930811996
B93: 2016-04-18 | C93: =AddMonths(C51,42) -> 2016-05-16 | D93: 28 | E93: 0.07777777778 | F93: =C93-C51 -> 1277 | G93: 3.547222222 | H93: =nss(G93,W4,W5,W6,W7,W8,W9) -> 0.3363017954 | I93: 0.9881415008 | J93: 0.9286713127 | K93: 0.9992626266 | L93: 0.9279865351 | N93: 0.9989598137 | O93: 0.9277053215
B94: 2016-05-16 | C94: =AddMonths(C51,43) -> 2016-06-16 | D94: 31 | E94: 0.08611111111 | F94: =C94-C51 -> 1308 | G94: 3.633333333 | H94: =nss(G94,W4,W5,W6,W7,W8,W9) -> 0.3503323383 | I94: 0.9873519262 | J94: 0.9658608729 | K94: 0.9992058811 | L94: 0.9650938645 | N94: 0.9988948114 | O94: 0.9647934145
B95: 2016-06-16 | C95: =AddMonths(C51,44) -> 2016-07-18 | D95: 32 | E95: 0.08888888889 | F95: =C95-C51 -> 1340 | G95: 3.722222222 | H95: =nss(G95,W4,W5,W6,W7,W8,W9) -> 0.3650216316 | I95: 0.9865049692 | J95: 1.001864677 | K95: 0.9992513387 | L95: 1.00111462 | N95: 0.9989707724 | O95: 1.00083353
B96: 2016-07-18 | C96: =AddMonths(C51,45) -> 2016-08-16 | D96: 29 | E96: 0.08055555556 | F96: =C96-C51 -> 1369 | G96: 3.802777778 | H96: =nss(G96,W4,W5,W6,W7,W8,W9) -> 0.3785035384 | I96: 0.9857094449 | J96: 1.037363411 | K96: 0.9991692671 | L96: 1.036501639 | N96: 0.9988708517 | O96: 1.036192074
B97: 2016-08-16 | C97: =AddMonths(C51,46) -> 2016-09-16 | D97: 31 | E97: 0.08611111111 | F97: =C97-C51 -> 1400 | G97: 3.888888889 | H97: =nss(G97,W4,W5,W6,W7,W8,W9) -> 0.3930823251 | I97: 0.9848297111 | J97: 1.074004586 | K97: 0.9991378096 | L97: 1.07307859 | N97: 0.9988409673 | O97: 1.07275978
B98: 2016-09-16 | C98: =AddMonths(C51,47) -> 2016-10-17 | D98: 31 | E98: 0.08611111111 | F98: =C98-C51 -> 1431 | G98: 3.975 | H98: =nss(G98,W4,W5,W6,W7,W8,W9) -> 0.4078225094 | I98: 0.9839197455 | J98: 1.109998056 | K98: 0.9991356993 | L98: 1.109038684 | N98: 0.9988499565 | O98: 1.10872151
A99: 4 Y | B99: 2016-10-17 | C99: =AddMonths(C51,48) -> 2016-11-16 | D99: 30 | E99: 0.08333333333 | F99: =C99-C51 -> 1461 | G99: 4.058333333 | H99: =nss(G99,W4,W5,W6,W7,W8,W9) -> 0.4222303634 | I99: 0.9830104624 | J99: 1.145352774 | K99: 0.9991063406 | L99: 1.144329218 | N99: 0.9988221368 | O99: 1.144003705
B100: 2016-11-16 | C100: =AddMonths(C51,49) -> 2016-12-16 | D100: 30 | E100: 0.08333333333 | F100: =C100-C51 -> 1491 | G100: 4.141666667 | H100: =nss(G100,W4,W5,W6,W7,W8,W9) -> 0.4367691192 | I100: 0.9820731122 | J100: 1.181225505 | K100: 0.9990458112 | L100: 1.180098393 | N100: 0.9987537896 | O100: 1.179753449
B101: 2016-12-16 | C101: =AddMonths(C51,50) -> 2017-01-16 | D101: 31 | E101: 0.08611111111 | F101: =C101-C51 -> 1522 | G101: 4.227777778 | H101: =nss(G101,W4,W5,W6,W7,W8,W9) -> 0.4519199321 | I101: 0.9810751955 | J101: 1.217550182 | K101: 0.9990146642 | L101: 1.216350486 | N101: 0.9987243402 | O101: 1.215997002
B102: 2017-01-16 | C102: =AddMonths(C51,51) -> 2017-02-16 | D102: 31 | E102: 0.08611111111 | F102: =C102-C51 -> 1553 | G102: 4.313888889 | H102: =nss(G102,W4,W5,W6,W7,W8,W9) -> 0.4671902253 | I102: 0.9800476685 | J102: 1.251921007 | K102: 0.9990833135 | L102: 1.250773388 | N102: 0.9988225334 | O102: 1.250446911
B103: 2017-02-16 | C103: =AddMonths(C51,52) -> 2017-03-16 | D103: 28 | E103: 0.07777777778 | F103: =C103-C51 -> 1581 | G103: 4.391666667 | H103: =nss(G103,W4,W5,W6,W7,W8,W9) -> 0.481077263 | I103: 0.9790943083 | J103: 1.287475264 | K103: 0.9988873821 | L103: 1.286042796 | N103: 0.9985819112 | O103: 1.285649509
B104: 2017-03-16 | C104: =AddMonths(C51,53) -> 2017-04-18 | D104: 33 | E104: 0.09166666667 | F104: =C104-C51 -> 1614 | G104: 4.483333333 | H104: =nss(G104,W4,W5,W6,W7,W8,W9) -> 0.4975494332 | I104: 0.9779401574 | J104: 1.32262428 | K104: 0.9990285942 | L104: 1.321339476 | N104: 0.9987709128 | O104: 1.32099866
B105: 2017-04-18 | C105: =AddMonths(C51,54) -> 2017-05-16 | D105: 28 | E105: 0.07777777778 | F105: =C105-C51 -> 1642 | G105: 4.561111111 | H105: =nss(G105,W4,W5,W6,W7,W8,W9) -> 0.5116073263 | I105: 0.9769351766 | J105: 1.356614824 | K105: 0.9988955322 | L105: 1.355116487 | N105: 0.9986119534 | O105: 1.35473178
B106: 2017-05-16 | C106: =AddMonths(C51,55) -> 2017-06-16 | D106: 31 | E106: 0.08611111111 | F106: =C106-C51 -> 1673 | G106: 4.647222222 | H106: =nss(G106,W4,W5,W6,W7,W8,W9) -> 0.5272502954 | I106: 0.9757952564 | J106: 1.392038963 | K106: 0.9988652162 | L106: 1.390459299 | N106: 0.9985834091 | O106: 1.390067013
B107: 2017-06-16 | C107: =AddMonths(C51,56) -> 2017-07-17 | D107: 31 | E107: 0.08611111111 | F107: =C107-C51 -> 1704 | G107: 4.733333333 | H107: =nss(G107,W4,W5,W6,W7,W8,W9) -> 0.5429677868 | I107: 0.9746269708 | J107: 1.426626517 | K107: 0.9988731448 | L107: 1.425018915 | N107: 0.9986021097 | O107: 1.424632249
B108: 2017-07-17 | C108: =AddMonths(C51,57) -> 2017-08-16 | D108: 30 | E108: 0.08333333333 | F108: =C108-C51 -> 1734 | G108: 4.816666667 | H108: =nss(G108,W4,W5,W6,W7,W8,W9) -> 0.55824134 | I108: 0.9734696561 | J108: 1.462196546 | K108: 0.9987282356 | L108: 1.460336977 | N108: 0.998432062 | O108: 1.459903913
B109: 2017-08-16 | C109: =AddMonths(C51,58) -> 2017-09-18 | D109: 33 | E109: 0.09166666667 | F109: =C109-C51 -> 1767 | G109: 4.908333333 | H109: =nss(G109,W4,W5,W6,W7,W8,W9) -> 0.5751050713 | I109: 0.9721666157 | J109: 1.496132623 | K109: 0.9988945057 | L109: 1.494478657 | N109: 0.9986447365 | O109: 1.494104969
B110: 2017-09-18 | C110: =AddMonths(C51,59) -> 2017-10-16 | D110: 28 | E110: 0.07777777778 | F110: =C110-C51 -> 1795 | G110: 4.986111111 | H110: =nss(G110,W4,W5,W6,W7,W8,W9) -> 0.5894585067 | I110: 0.9710366604 | J110: 1.528920826 | K110: 0.998748203 | L110: 1.527006928 | N110: 0.9984734045 | O110: 1.526586782
A111: 5 Y | B111: 2017-10-16 | C111: =AddMonths(C51,60) -> 2017-11-16 | D111: 31 | E111: 0.08611111111 | F111: =C111-C51 -> 1826 | G111: 5.072222222 | H111: =nss(G111,W4,W5,W6,W7,W8,W9) -> 0.6053906857 | I111: 0.9697599029 | J111: 1.563560016 | K111: 0.9986773495 | L111: 1.561491972 | N111: 0.9983955645 | O111: 1.561051384
B112: 2017-11-16 | C112: =AddMonths(C51,61) -> 2017-12-18 | D112: 32 | E112: 0.08888888889 | F112: =C112-C51 -> 1858 | G112: 5.161111111 | H112: =nss(G112,W4,W5,W6,W7,W8,W9) -> 0.6218743678 | I112: 0.968413971 | J112: 1.596648896 | K112: 0.9987747711 | L112: 1.594692636 | N112: 0.9985209998 | O112: 1.594287452
B113: 2017-12-18 | C113: =AddMonths(C51,62) -> 2018-01-16 | D113: 29 | E113: 0.08055555556 | F113: =C113-C51 -> 1887 | G113: 5.241666667 | H113: =nss(G113,W4,W5,W6,W7,W8,W9) -> 0.6368392378 | I113: 0.9671700072 | J113: 1.629048621 | K113: 0.9986627517 | L113: 1.626870179 | N113: 0.998393213 | O113: 1.626431087
B114: 2018-01-16 | C114: =AddMonths(C51,63) -> 2018-02-16 | D114: 31 | E114: 0.08611111111 | F114: =C114-C51 -> 1918 | G114: 5.327777778 | H114: =nss(G114,W4,W5,W6,W7,W8,W9) -> 0.6528575397 | I114: 0.9658151696 | J114: 1.66041165 | K114: 0.9987678415 | L114: 1.65836576 | N114: 0.9985258625 | O114: 1.657963975
B115: 2018-02-16 | C115: =AddMonths(C51,64) -> 2018-03-16 | D115: 28 | E115: 0.07777777778 | F115: =C115-C51 -> 1946 | G115: 5.405555556 | H115: =nss(G115,W4,W5,W6,W7,W8,W9) -> 0.6673393078 | I115: 0.9645694944 | J115: 1.691674637 | K115: 0.998609372 | L115: 1.689322146 | N115: 0.998343168 | O115: =N115*J115 -> 1.688871816
B116: 2018-03-16 | C116: =AddMonths(C51,65) -> 2018-04-16 | D116: 31 | E116: =D116/360 -> 0.08611111111 | F116: =C116-C51 -> 1977 | G116: =F116/360 -> 5.491666667 | H116: =nss(G116,W4,W5,W6,W7,W8,W9) -> 0.6833819156 | I116: 0.9631664307 | J116: =100*(I116-I117)/(E117*I117) -> 1.723490388 | K116: 0.9986279419 | L116: =K116*J116 -> 1.721125659 | N116: 0.9983719649 | O116: 1.720684485
B117: 2018-04-16 | C117: =AddMonths(C51,66) -> 2018-05-16 | D117: 30 | E117: 0.08333333333 | F117: =C117-C51 -> 2007 | G117: 5.575 | H117: =nss(G117,W4,W5,W6,W7,W8,W9) -> 0.6989106448 | I117: =EXP(-(H117/100)*G117) -> 0.9617850746 | J117: 1.756129814 | K117: 0.9984613807 | L117: 1.753427799 | N117: 0.9981817112 | O117: 1.752936663
B118: =C117 -> 2018-05-16 | C118: =AddMonths(C51,67) -> 2018-06-18 | D118: 33 | E118: 0.09166666667 | F118: =C118-C51 -> 2040 | G118: 5.666666667 | H118: =nss(G118,W4,W5,W6,W7,W8,W9) -> 0.7159898787 | I118: 0.9602392952 | J118: 1.787018053 | K118: 0.998670445 | L118: 1.784642114 | N118: 0.9984346064 | O118: 1.784220667
B119: 2018-06-18 | C119: =AddMonths(C51,68) -> 2018-07-16 | D119: 28 | E119: 0.07777777778 | F119: =C119-C51 -> 2068 | G119: 5.744444444 | H119: =nss(G119,W4,W5,W6,W7,W8,W9) -> 0.7304744281 | I119: 0.9589065082 | J119: 1.81686447 | K119: 0.9985028315 | L119: 1.814144318 | N119: 0.9982433751 | O119: 1.813672921
B120: 2018-07-16 | C120: =AddMonths(C51,69) -> 2018-08-16 | D120: =C120-B120 -> 31 | E120: 0.08611111111 | F120: =C120-C51 -> 2099 | G120: 5.830555556 | H120: =nss(G120,W4,W5,W6,W7,W8,W9) -> 0.7464982861 | I120: 0.9574086212 | J120: 1.848237055 | K120: 0.9984270936 | L120: 1.845329951 | N120: 0.9981610391 | O120: 1.844838219
B121: 2018-08-16 | C121: =AddMonths(C51,70) -> 2018-09-17 | D121: 32 | E121: 0.08888888889 | F121: =C121-C51 -> 2131 | G121: 5.919444444 | H121: =nss(G121,W4,W5,W6,W7,W8,W9) -> 0.7630196897 | I121: 0.955838296 | J121: 1.878021041 | K121: 0.9985506647 | L121: 1.875299159 | N121: 0.9983110395 | O121: 1.874849138
B122: 2018-09-17 | C122: =AddMonths(C51,71) -> 2018-10-16 | D122: 29 | E122: 0.08055555556 | F122: =C122-C51 -> 2160 | G122: 6 | H122: =nss(G122,W4,W5,W6,W7,W8,W9) -> 0.7779705618 | I122: 0.9543944401 | J122: 1.90715614 | K122: 0.9984261381 | L122: 1.90415454 | N122: 0.9981716008 | O122: 1.903669098
A123: 6 Y | B123: 2018-10-16 | C123: =AddMonths(C51,72) -> 2018-11-16 | D123: 31 | E123: 0.08611111111 | F123: =C123-C51 -> 2191 | G123: 6.086111111 | H123: =nss(G123,W4,W5,W6,W7,W8,W9) -> 0.7939250387 | I123: 0.9528296334 | J123: 1.936744582 | K123: 0.9984010345 | L123: 1.933647794 | N123: 0.9981481168 | O123: 1.933157957
B124: 2018-11-16 | C124: =AddMonths(C51,73) -> 2018-12-17 | D124: 31 | E124: 0.08611111111 | F124: =C124-C51 -> 2222 | G124: 6.172222222 | H124: =nss(G124,W4,W5,W6,W7,W8,W9) -> 0.8098464592 | I124: 0.9512431954 | J124: 1.965382132 | K124: 0.9984290293 | L124: 1.962294575 | N124: 0.9981857793 | O124: 1.961816495
B125: 2018-12-17 | C125: =AddMonths(C51,74) -> 2019-01-16 | D125: 30 | E125: 0.08333333333 | F125: =C125-C51 -> 2252 | G125: 6.255555556 | H125: =nss(G125,W4,W5,W6,W7,W8,W9) -> 0.8252185013 | I125: 0.9496877793 | J125: 1.99472926 | K125: 0.9982457446 | L125: 1.991229995 | N125: 0.9979799219 | O125: 1.990699751
B126: 2019-01-16 | C126: =AddMonths(C51,75) -> 2019-02-18 | D126: 33 | E126: 0.09166666667 | F126: =C126-C51 -> 2285 | G126: 6.347222222 | H126: =nss(G126,W4,W5,W6,W7,W8,W9) -> 0.8420822854 | I126: 0.9479544428 | J126: 2.022279806 | K126: 0.9984900491 | L126: 2.019226263 | N126: 0.9982658211 | O126: 2.018772811
B127: 2019-02-18 | C127: =AddMonths(C51,76) -> 2019-03-18 | D127: 28 | E127: 0.07777777778 | F127: =C127-C51 -> 2313 | G127: 6.425 | H127: =nss(G127,W4,W5,W6,W7,W8,W9) -> 0.856349923 | I127: 0.9464657617 | J127: 2.047943179 | K127: 0.9984158836 | L127: 2.044698998 | N127: 0.998184981 | O127: 2.044226123
B128: 2019-03-18 | C128: =AddMonths(C51,77) -> 2019-04-16 | D128: 29 | E128: 0.08055555556 | F128: =C128-C51 -> 2342 | G128: 6.505555556 | H128: =nss(G128,W4,W5,W6,W7,W8,W9) -> 0.871084026 | I128: 0.9449069185 | J128: 2.074107556 | K128: 0.9983399285 | L128: 2.070664389 | N128: 0.9981024719 | O128: 2.070171879
B129: 2019-04-16 | C129: =AddMonths(C51,78) -> 2019-05-16 | D129: 30 | E129: 0.08333333333 | F129: =C129-C51 -> 2372 | G129: 6.588888889 | H129: =nss(G129,W4,W5,W6,W7,W8,W9) -> 0.8862766878 | I129: 0.9432765377 | J129: 2.101220325 | K129: 0.9982057994 | L129: 2.097450314 | N129: 0.9979540819 | O129: 2.0969214
B130: 2019-05-16 | C130: =AddMonths(C51,79) -> 2019-06-17 | D130: 32 | E130: 0.08888888889 | F130: =C130-C51 -> 2404 | G130: 6.677777778 | H130: =nss(G130,W4,W5,W6,W7,W8,W9) -> 0.9024228947 | I130: 0.9415180161 | J130: 2.127150778 | K130: 0.998353222 | L130: 2.123647833 | N130: 0.9981264132 | O130: 2.123165377
B131: 2019-06-17 | C131: =AddMonths(C51,80) -> 2019-07-16 | D131: 29 | E131: 0.08055555556 | F131: =C131-C51 -> 2433 | G131: 6.758333333 | H131: =nss(G131,W4,W5,W6,W7,W8,W9) -> 0.9169992684 | I131: 0.9399074489 | J131: 2.152526494 | K131: 0.9982184286 | L131: 2.148691614 | N131: 0.9979774056 | O131: 2.148172806
B132: 2019-07-16 | C132: =AddMonths(C51,81) -> 2019-08-16 | D132: 31 | E132: 0.08611111111 | F132: =C132-C51 -> 2464 | G132: 6.844444444 | H132: =nss(G132,W4,W5,W6,W7,W8,W9) -> 0.9325185775 | I132: 0.9381684931 | J132: 2.178167291 | K132: 0.9981967892 | L132: 2.174239597 | N132: 0.9979571877 | O132: 2.173717704
B133: 2019-08-16 | C133: =AddMonths(C51,82) -> 2019-09-16 | D133: 31 | E133: 0.08611111111 | F133: =C133-C51 -> 2495 | G133: 6.930555556 | H133: =nss(G133,W4,W5,W6,W7,W8,W9) -> 0.9479702266 | I133: 0.9364121172 | J133: 2.202876846 | K133: 0.9982346821 | L133: 2.198988068 | N133: 0.9980041258 | O133: 2.19848018
B134: 2019-09-16 | C134: =AddMonths(C51,83) -> 2019-10-16 | D134: 30 | E134: 0.08333333333 | F134: =C134-C51 -> 2525 | G134: 7.013888889 | H134: =nss(G134,W4,W5,W6,W7,W8,W9) -> 0.9628560145 | I134: 0.9346962666 | J134: 2.228194556 | K134: 0.9980357919 | L134: 2.223817918 | N134: 0.9977837129 | O134: 2.223256237
A135: 7 Y | B135: 2019-10-16 | C135: =AddMonths(C51,84) -> 2019-11-18 | D135: 33 | E135: 0.09166666667 | F135: =C135-C51 -> 2558 | G135: 7.105555556 | H135: =nss(G135,W4,W5,W6,W7,W8,W9) -> 0.9791504557 | I135: 0.93279103 | J135: 2.251713002 | K135: 0.9983149884 | L135: 2.247918839 | N135: 0.9981022341 | O135: 2.247439778
B136: 2019-11-18 | C136: =AddMonths(C51,85) -> 2019-12-16 | D136: 28 | E136: 0.07777777778 | F136: =C136-C51 -> 2586 | G136: 7.183333333 | H136: =nss(G136,W4,W5,W6,W7,W8,W9) -> 0.9929078442 | I136: 0.931160259 | J136: 2.274570296 | K136: 0.9981155556 | L136: 2.270283995 | N136: 0.9978813123 | O136: 2.269751192
B137: 2019-12-16 | C137: =AddMonths(C51,86) -> 2020-01-16 | D137: 31 | E137: 0.08611111111 | F137: =C137-C51 -> 2617 | G137: 7.269444444 | H137: =nss(G137,W4,W5,W6,W7,W8,W9) -> 1.008063584 | I137: 0.92934 | J137: 2.298361277 | K137: 0.9980342301 | L137: 2.293843228 | N137: 0.9977938108 | O137: 2.293290657
B138: 2020-01-16 | C138: =AddMonths(C51,87) -> 2020-02-17 | D138: 32 | E138: 0.08888888889 | F138: =C138-C51 -> 2649 | G138: 7.358333333 | H138: =nss(G138,W4,W5,W6,W7,W8,W9) -> 1.023622097 | I138: 0.9274452407 | J138: 2.320210176 | K138: 0.9982629185 | L138: 2.316179782 | N138: 0.9980536129 | O138: 2.315694149
B139: 2020-02-17 | C139: =AddMonths(C51,88) -> 2020-03-16 | D139: 28 | E139: 0.07777777778 | F139: =C139-C51 -> 2677 | G139: 7.436111111 | H139: =nss(G139,W4,W5,W6,W7,W8,W9) -> 1.03716185 | I139: 0.9257745805 | J139: 2.341777297 | K139: 0.9980590485 | L139: 2.337232021 | N139: 0.9978285556 | O139: 2.336692258
B140: 2020-03-16 | C140: =AddMonths(C51,89) -> 2020-04-16 | D140: 31 | E140: 0.08611111111 | F140: =C140-C51 -> 2708 | G140: 7.522222222 | H140: =nss(G140,W4,W5,W6,W7,W8,W9) -> 1.052069524 | I140: 0.9239114849 | J140: 2.364181416 | K140: 0.9979771487 | L140: 2.359399028 | N140: 0.9977405259 | O140: 2.358839609
B141: 2020-04-16 | C141: =AddMonths(C51,90) -> 2020-05-18 | D141: 32 | E141: 0.08888888889 | F141: =C141-C51 -> 2740 | G141: 7.611111111 | H141: =nss(G141,W4,W5,W6,W7,W8,W9) -> 1.067364487 | I141: 0.9219739616 | J141: 2.385110762 | K141: 0.9981500001 | L141: 2.380698308 | N141: 0.9979366271 | O141: 2.380189389
B142: 2020-05-18 | C142: =AddMonths(C51,91) -> 2020-06-16 | D142: 29 | E142: 0.08055555556 | F142: =C142-C51 -> 2769 | G142: 7.691666667 | H142: =nss(G142,W4,W5,W6,W7,W8,W9) -> 1.081141402 | I142: 0.9202059338 | J142: 2.405226879 | K142: 0.9980700045 | L142: 2.400584802 | N142: 0.9978503772 | O142: 2.400056548
B143: 2020-06-16 | C143: =AddMonths(C51,92) -> 2020-07-16 | D143: 30 | E143: 0.08333333333 | F143: =C143-C51 -> 2799 | G143: 7.775 | H143: =nss(G143,W4,W5,W6,W7,W8,W9) -> 1.0953073 | I143: 0.9183652033 | J143: 2.425993012 | K143: 0.997923647 | L143: 2.420955794 | N143: 0.9976906058 | O143: 2.420390438
B144: 2020-07-16 | C144: =AddMonths(C51,93) -> 2020-08-17 | D144: 32 | E144: 0.08888888889 | F144: =C144-C51 -> 2831 | G144: 7.863888889 | H144: =nss(G144,W4,W5,W6,W7,W8,W9) -> 1.110319083 | I144: 0.9163890668 | J144: 2.445975633 | K144: 0.9980369622 | L144: 2.441174091 | N144: 0.9978195547 | O144: 2.440642317
B145: 2020-08-17 | C145: =AddMonths(C51,94) -> 2020-09-16 | D145: 30 | E145: 0.08333333333 | F145: =C145-C51 -> 2861 | G145: 7.947222222 | H145: =nss(G145,W4,W5,W6,W7,W8,W9) -> 1.124298466 | I145: 0.9145249787 | J145: 2.465031259 | K145: 0.9980215258 | L145: 2.460154258 | N145: 0.9978051598 | O145: 2.459620909
B146: 2020-09-16 | C146: =AddMonths(C51,95) -> 2020-10-16 | D146: 30 | E146: 0.08333333333 | F146: =C146-C51 -> 2891 | G146: 8.030555556 | H146: =nss(G146,W4,W5,W6,W7,W8,W9) -> 1.138185056 | I146: 0.9126502192 | J146: 2.484048965 | K146: 0.9979398081 | L146: 2.478931348 | N146: 0.9977173173 | O146: 2.47837867
A147: 8 Y | B147: 2020-10-16 | C147: =AddMonths(C51,96) -> 2020-11-16 | D147: 31 | E147: 0.08611111111 | F147: =C147-C51 -> 2922 | G147: 8.116666667 | H147: =nss(G147,W4,W5,W6,W7,W8,W9) -> 1.152435412 | I147: 0.9107021889 | J147: 2.502456215 | K147: 0.9979912389 | L147: 2.497429378 | N147: 0.9977769261 | O147: 2.496893069
B148: 2020-11-16 | C148: =AddMonths(C51,97) -> 2020-12-16 | D148: 30 | E148: 0.08333333333 | F148: =C148-C51 -> 2952 | G148: 8.2 | H148: =nss(G148,W4,W5,W6,W7,W8,W9) -> 1.166128655 | I148: 0.9088069808 | J148: 2.521353906 | K148: 0.9977740182 | L148: 2.515741418 | N148: 0.9975394535 | O148: 2.515149998
B149: 2020-12-16 | C149: =AddMonths(C51,98) -> 2021-01-18 | D149: 33 | E149: 0.09166666667 | F149: =C149-C51 -> 2985 | G149: 8.291666667 | H149: =nss(G149,W4,W5,W6,W7,W8,W9) -> 1.181078882 | I149: 0.9067113523 | J149: 2.538890461 | K149: 0.9980295972 | L149: 2.533887824 | N149: 0.9978243621 | O149: 2.533366754
B150: 2021-01-18 | C150: =AddMonths(C51,99) -> 2021-02-16 | D150: 29 | E150: 0.08055555556 | F150: =C150-C51 -> 3014 | G150: 8.372222222 | H150: =nss(G150,W4,W5,W6,W7,W8,W9) -> 1.194118479 | I150: 0.9048607155 | J150: 2.554847251 | K150: 0.9980853829 | L150: 2.549955697 | N150: 0.9978880416 | O150: 2.54945152
B151: 2021-02-16 | C151: =AddMonths(C51,100) -> 2021-03-16 | D151: 28 | E151: 0.07777777778 | F151: =C151-C51 -> 3042 | G151: 8.45 | H151: =nss(G151,W4,W5,W6,W7,W8,W9) -> 1.206619934 | I151: 0.9030662295 | J151: 2.571330123 | K151: 0.9978669496 | L151: 2.565845346 | N151: 0.9976494446 | O151: 2.565286068
B152: 2021-03-16 | C152: =AddMonths(C51,101) -> 2021-04-16 | D152: 31 | E152: 0.08611111111 | F152: =C152-C51 -> 3073 | G152: 8.536111111 | H152: =nss(G152,W4,W5,W6,W7,W8,W9) -> 1.220358267 | I152: 0.901071077 | J152: 2.587936484 | K152: 0.9978531161 | L152: 2.582380484 | N152: 0.9976365707 | O152: 2.581820079
B153: 2021-04-16 | C153: =AddMonths(C51,102) -> 2021-05-17 | D153: 31 | E153: 0.08611111111 | F153: =C153-C51 -> 3104 | G153: 8.622222222 | H153: =nss(G153,W4,W5,W6,W7,W8,W9) -> 1.23398767 | I153: 0.8990675043 | J153: 2.603752388 | K153: 0.9979094807 | L153: 2.598309194 | N153: 0.9977007993 | O153: 2.597765839
B154: 2021-05-17 | C154: =AddMonths(C51,103) -> 2021-06-16 | D154: 30 | E154: 0.08333333333 | F154: =C154-C51 -> 3134 | G154: 8.705555556 | H154: =nss(G154,W4,W5,W6,W7,W8,W9) -> 1.247072647 | I154: 0.897120937 | J154: 2.618986588 | K154: 0.9978972152 | L154: 2.613479422 | N154: 0.997689394 | O154: 2.612935142
B155: 2021-06-16 | C155: =AddMonths(C51,104) -> 2021-07-16 | D155: 30 | E155: 0.08333333333 | F155: =C155-C51 -> 3164 | G155: 8.788888889 | H155: =nss(G155,W4,W5,W6,W7,W8,W9) -> 1.260053622 | I155: 0.8951672445 | J155: 2.634153451 | K155: 0.9978146699 | L155: 2.628396956 | N155: 0.9976008216 | O155: 2.627833647
B156: 2021-07-16 | C156: =AddMonths(C51,105) -> 2021-08-16 | D156: 31 | E156: 0.08611111111 | F156: =C156-C51 -> 3195 | G156: 8.875 | H156: =nss(G156,W4,W5,W6,W7,W8,W9) -> 1.273357103 | I156: 0.8931413331 | J156: 2.649046551 | K156: 0.9978022986 | L156: 2.643224738 | N156: 0.9975893295 | O156: 2.642660573
B157: 2021-08-16 | C157: =AddMonths(C51,106) -> 2021-09-16 | D157: 31 | E157: 0.08611111111 | F157: =C157-C51 -> 3226 | G157: 8.961111111 | H157: =nss(G157,W4,W5,W6,W7,W8,W9) -> 1.286547695 | I157: 0.8911086044 | J157: 2.663840166 | K157: 0.9977188951 | L157: 2.657763667 | N157: 0.997499974 | O157: 2.657180496
B158: 2021-09-16 | C158: =AddMonths(C51,107) -> 2021-10-18 | D158: 32 | E158: 0.08888888889 | F158: =C158-C51 -> 3258 | G158: 9.05 | H158: =nss(G158,W4,W5,W6,W7,W8,W9) -> 1.300044502 | I158: 0.8890035702 | J158: 2.677359721 | K158: 0.9979218048 | L158: 2.671795645 | N158: 0.9977241367 | O158: 2.671266416
A159: 9 Y | B159: 2021-10-18 | C159: =AddMonths(C51,108) -> 2021-11-16 | D159: 29 | E159: 0.08055555556 | F159: =C159-C51 -> 3287 | G159: 9.130555556 | H159: =nss(G159,W4,W5,W6,W7,W8,W9) -> 1.312170615 | I159: 0.8870903275 | J159: 2.690431987 | K159: 0.9978398129 | L159: 2.68462015 | N159: 0.9976361014 | O159: 2.684072078
B160: 2021-11-16 | C160: =AddMonths(C51,109) -> 2021-12-16 | D160: 30 | E160: 0.08333333333 | F160: =C160-C51 -> 3317 | G160: 9.213888889 | H160: =nss(G160,W4,W5,W6,W7,W8,W9) -> 1.324608811 | I160: 0.8851058965 | J160: 2.703861067 | K160: 0.9976846586 | L160: 2.697600706 | N160: 0.9974682298 | O160: 2.697015512
B161: 2021-12-16 | C161: =AddMonths(C51,110) -> 2022-01-17 | D161: 32 | E161: 0.08888888889 | F161: =C161-C51 -> 3349 | G161: 9.302777778 | H161: =nss(G161,W4,W5,W6,W7,W8,W9) -> 1.337756694 | I161: 0.8829837052 | J161: 2.716477545 | K161: 0.9978189415 | L161: 2.710552748 | N161: 0.9976167702 | O161: 2.710003555
B162: 2022-01-17 | C162: =AddMonths(C51,111) -> 2022-02-16 | D162: 30 | E162: 0.08333333333 | F162: =C162-C51 -> 3379 | G162: 9.386111111 | H162: =nss(G162,W4,W5,W6,W7,W8,W9) -> 1.349970226 | I162: 0.8809893819 | J162: 2.727894649 | K162: 0.9979555122 | L162: 2.722317502 | N162: 0.997767441 | O162: 2.721804464
B163: 2022-02-16 | C163: =AddMonths(C51,112) -> 2022-03-16 | D163: 28 | E163: 0.07777777778 | F163: =C163-C51 -> 3407 | G163: 9.463888889 | H163: =nss(G163,W4,W5,W6,W7,W8,W9) -> 1.361270775 | I163: 0.8791241479 | J163: 2.740544711 | K163: 0.9975070533 | L163: 2.733712679 | N163: 0.997279612 | O163: 2.733089366
B164: 2022-03-16 | C164: =AddMonths(C51,113) -> 2022-04-19 | D164: 34 | E164: 0.09444444444 | F164: =C164-C51 -> 3441 | G164: 9.558333333 | H164: =nss(G164,W4,W5,W6,W7,W8,W9) -> 1.374864188 | I164: 0.876854592 | J164: 2.751269745 | K164: 0.9980115555 | L164: 2.745798998 | N164: 0.9978314753 | O164: 2.745303549
B165: 2022-04-19 | C165: =AddMonths(C51,114) -> 2022-05-16 | D165: 27 | E165: 0.075 | F165: =C165-C51 -> 3468 | G165: 9.633333333 | H165: =nss(G165,W4,W5,W6,W7,W8,W9) -> 1.385558079 | I165: 0.8750489702 | J165: 2.762219214 | K165: 0.9977086201 | L165: 2.755889921 | N165: 0.9975026 | O165: 2.755320848
B166: 2022-05-16 | C166: =AddMonths(C51,115) -> 2022-06-16 | D166: 31 | E166: 0.08611111111 | F166: =C166-C51 -> 3499 | G166: 9.719444444 | H166: =nss(G166,W4,W5,W6,W7,W8,W9) -> 1.39772579 | I166: 0.8729725372 | J166: 2.773379045 | K166: 0.9976253861 | L166: 2.76679334 | N166: 0.9974134775 | O166: 2.766205637
B167: 2022-06-16 | C167: =AddMonths(C51,116) -> 2022-07-18 | D167: 32 | E167: 0.08888888889 | F167: =C167-C51 -> 3531 | G167: 9.808333333 | H167: =nss(G167,W4,W5,W6,W7,W8,W9) -> 1.410161839 | I167: 0.8708257551 | J167: 2.783383778 | K167: 0.9978398073 | L167: 2.777371132 | N167: 0.9976483565 | O167: 2.776838251
B168: 2022-07-18 | C168: =AddMonths(C51,117) -> 2022-08-16 | D168: 29 | E168: 0.08055555556 | F168: =C168-C51 -> 3560 | G168: 9.888888889 | H168: =nss(G168,W4,W5,W6,W7,W8,W9) -> 1.421322817 | I168: 0.8688775836 | J168: 2.793390841 | K168: 0.9976829408 | L168: 2.786918389 | N168: 0.997478973 | O168: 2.786348628
B169: 2022-08-16 | C169: =AddMonths(C51,118) -> 2022-09-16 | D169: 31 | E169: 0.08611111111 | F169: =C169-C51 -> 3591 | G169: 9.975 | H169: =nss(G169,W4,W5,W6,W7,W8,W9) -> 1.433138502 | I169: 0.8667925835 | J169: 2.803140404 | K169: 0.9976749226 | L169: 2.796622886 | N169: 0.9974716171 | O169: 2.796052992
B170: 2022-09-16 | C170: =AddMonths(C51,119) -> 2022-10-17 | D170: 31 | E170: 0.08611111111 | F170: =C170-C51 -> 3622 | G170: 10.06111111 | H170: =nss(G170,W4,W5,W6,W7,W8,W9) -> 1.444835175 | I170: 0.8647053444 | J170: 2.812260455 | K170: 0.9977425004 | L170: 2.805911778 | N170: 0.9975463552 | O170: 2.805360166
A171: 10 Y | B171: 2022-10-17 | C171: =AddMonths(C51,120) -> 2022-11-16 | D171: 30 | E171: 0.08333333333 | F171: =C171-C51 -> 3652 | G171: 10.14444444 | H171: =nss(G171,W4,W5,W6,W7,W8,W9) -> 1.456041104 | I171: 0.8626836019 | J171: 2.820989936 | K171: 0.9977355634 | L171: 2.814601984 | N171: 0.9975400131 | O171: 2.814050338
B172: 2022-11-16 | C172: =AddMonths(C51,121) -> 2022-12-16 | D172: 30 | E172: 0.08333333333 | F172: =C172-C51 -> 3682 | G172: 10.22777778 | H172: =nss(G172,W4,W5,W6,W7,W8,W9) -> 1.467135386 | I172: 0.8606603401 | J172: 2.82962635 | K172: 0.9976531767 | L172: 2.822985717 | N172: 0.9974517362 | O172: 2.822415715
B173: 2022-12-16 | C173: =AddMonths(C51,122) -> 2023-01-16 | D173: 31 | E173: 0.08611111111 | F173: =C173-C51 -> 3713 | G173: 10.31388889 | H173: =nss(G173,W4,W5,W6,W7,W8,W9) -> 1.478482148 | I173: 0.8585683331 | J173: 2.837937355 | K173: 0.9976463654 | L173: 2.831257888 | N173: 0.9974455345 | O173: 2.830687942
B174: 2023-01-16 | C174: =AddMonths(C51,123) -> 2023-02-16 | D174: 31 | E174: 0.08611111111 | F174: =C174-C51 -> 3744 | G174: 10.4 | H174: =nss(G174,W4,W5,W6,W7,W8,W9) -> 1.489709655 | I174: 0.8564752964 | J174: 2.84518315 | K174: 0.9978682848 | L174: 2.83911803 | N174: 0.9976873597 | O174: 2.838603265
B175: 2023-02-16 | C175: =AddMonths(C51,124) -> 2023-03-16 | D175: 28 | E175: 0.07777777778 | F175: =C175-C51 -> 3772 | G175: 10.47777778 | H175: =nss(G175,W4,W5,W6,W7,W8,W9) -> 1.49974816 | I175: 0.8545841698 | J175: 2.853013815 | K175: 0.9975578932 | L175: 2.84604645 | N175: 0.9973517728 | O175: 2.845458386
B176: 2023-03-16 | C176: =AddMonths(C51,125) -> 2023-04-17 | D176: 32 | E176: 0.08888888889 | F176: =C176-C51 -> 3804 | G176: 10.56666667 | H176: =nss(G176,W4,W5,W6,W7,W8,W9) -> 1.511101718 | I176: 0.8524224161 | J176: 2.859852988 | K176: 0.9977810974 | L176: 2.853507253 | N176: 0.9975947855 | O176: 2.852974428
B177: 2023-04-17 | C177: =AddMonths(C51,126) -> 2023-05-16 | D177: 29 | E177: 0.08055555556 | F177: =C177-C51 -> 3833 | G177: 10.64722222 | H177: =nss(G177,W4,W5,W6,W7,W8,W9) -> 1.521281316 | I177: 0.8504631442 | J177: 2.866815997 | K177: 0.9976227516 | L177: 2.860000863 | N177: 0.9974241681 | O177: 2.859431561
B178: 2023-05-16 | C178: =AddMonths(C51,127) -> 2023-06-16 | D178: 31 | E178: 0.08611111111 | F178: =C178-C51 -> 3864 | G178: 10.73333333 | H178: =nss(G178,W4,W5,W6,W7,W8,W9) -> 1.532047895 | I178: 0.848368821 | J178: 2.873448529 | K178: 0.9976173419 | L178: 2.866602083 | N178: 0.997419312 | O178: 2.866033055
B179: 2023-06-16 | C179: =AddMonths(C51,128) -> 2023-07-17 | D179: 31 | E179: 0.08611111111 | F179: =C179-C51 -> 3895 | G179: 10.81944444 | H179: =nss(G179,W4,W5,W6,W7,W8,W9) -> 1.54269575 | I179: 0.8462748337 | J179: 2.879537367 | K179: 0.9976892212 | L179: 2.872883393 | N179: 0.9974980812 | O179: =N179*J179 -> 2.872332998
B180: 2023-07-17 | C180: =AddMonths(C51,129) -> 2023-08-16 | D180: 30 | E180: =D180/360 -> 0.08333333333 | F180: =C180-C51 -> 3925 | G180: =F180/360 -> 10.90277778 | H180: =nss(G180,W4,W5,W6,W7,W8,W9) -> 1.552887283 | I180: 0.8442489616 | J180: =100*(I180-I181)/(E181*I181) -> 2.885956505 | K180: 0.9974531769 | L180: =K180*J180 -> 2.878606484 | N180: 0.9972435503 | O180: 2.878001511
B181: 2023-08-16 | C181: =AddMonths(C51,130) -> 2023-09-18 | D181: 33 | E181: 0.09166666667 | F181: =C181-C51 -> 3958 | G181: 10.99444444 | H181: =nss(G181,W4,W5,W6,W7,W8,W9) -> 1.563970036 | I181: =EXP(-(H181/100)*G181) -> 0.8420214275 | J181: 2.890948653 | K181: 0.9978345503 | L181: 2.884688449 | N181: 0.9976570794 | O181: 2.88417539
B182: =C181 -> 2023-09-18 | C182: =AddMonths(C51,131) -> 2023-10-16 | D182: 28 | E182: 0.07777777778 | F182: =C182-C51 -> 3986 | G182: 11.07222222 | H182: =nss(G182,W4,W5,W6,W7,W8,W9) -> 1.573268714 | I182: 0.8401323768 | J182: 2.896387762 | K182: 0.9975986827 | L182: 2.889432616 | N182: 0.9974027344 | O182: 2.888865074
A183: 11 Y | B183: 2023-10-16 | C183: =AddMonths(C51,132) -> 2023-11-16 | D183: 31 | E183: 0.08611111111 | F183: =C183-C51 -> 4017 | G183: 11.15833333 | H183: =nss(G183,W4,W5,W6,W7,W8,W9) -> 1.583451663 | I183: 0.8380422059 | J183: 2.90163146 | K183: 0.997517026 | L183: 2.894426784 | N183: 0.997315304 | O183: 2.893841462
B184: 2023-11-16 | C184: =AddMonths(C51,133) -> 2023-12-18 | D184: =C184-B184 -> 32 | E184: 0.08888888889 | F184: =C184-C51 -> 4049 | G184: 11.24722222 | H184: =nss(G184,W4,W5,W6,W7,W8,W9) -> 1.59383996 | I184: 0.8358862647 | J184: 2.905946025 | K184: 0.9977460076 | L184: 2.899396045 | N184: 0.9975636111 | O184: 2.89886601
B185: 2023-12-18 | C185: =AddMonths(C51,134) -> 2024-01-16 | D185: 29 | E185: 0.08055555556 | F185: =C185-C51 -> 4078 | G185: 11.32777778 | H185: =nss(G185,W4,W5,W6,W7,W8,W9) -> 1.603146628 | I185: 0.8339341075 | J185: 2.910480913 | K185: 0.9975872699 | L185: 2.903458708 | N185: 0.9973928 | O185: 2.902892707
B186: 2024-01-16 | C186: =AddMonths(C51,135) -> 2024-02-16 | D186: 31 | E186: 0.08611111111 | F186: =C186-C51 -> 4109 | G186: 11.41388889 | H186: =nss(G186,W4,W5,W6,W7,W8,W9) -> 1.61298223 | I186: 0.8318492874 | J186: 2.914634236 | K186: 0.9975839167 | L186: 2.907592237 | N186: 0.9973899291 | O186: 2.907026834
B187: 2024-02-16 | C187: =AddMonths(C51,136) -> 2024-03-18 | D187: 31 | E187: 0.08611111111 | F187: =C187-C51 -> 4140 | G187: 11.5 | H187: =nss(G187,W4,W5,W6,W7,W8,W9) -> 1.622701558 | I187: 0.829766719 | J187: 2.918140487 | K187: 0.9977367942 | L187: 2.911536134 | N187: 0.9975557228 | O187: 2.911007743
B188: 2024-03-18 | C188: =AddMonths(C51,137) -> 2024-04-16 | D188: 29 | E188: 0.08055555556 | F188: =C188-C51 -> 4169 | G188: 11.58055556 | H188: =nss(G188,W4,W5,W6,W7,W8,W9) -> 1.631688945 | I188: 0.8278207407 | J188: 2.921673836 | K188: 0.9976561844 | L188: 2.914825971 | N188: 0.9974693157 | O188: 2.914280002
B189: 2024-04-16 | C189: =AddMonths(C51,138) -> 2024-05-16 | D189: 30 | E189: 0.08333333333 | F189: =C189-C51 -> 4199 | G189: 11.66388889 | H189: =nss(G189,W4,W5,W6,W7,W8,W9) -> 1.640879947 | I189: 0.8258101175 | J189: 2.92522341 | K189: 0.99749738 | L189: 2.917902687 | N189: 0.9972985626 | O189: 2.917321102
B190: 2024-05-16 | C190: =AddMonths(C51,139) -> 2024-06-17 | D190: 32 | E190: 0.08888888889 | F190: =C190-C51 -> 4231 | G190: 11.75277778 | H190: =nss(G190,W4,W5,W6,W7,W8,W9) -> 1.650565011 | I190: 0.823668416 | J190: 2.927857839 | K190: 0.9977294919 | L190: 2.921210114 | N190: 0.9975496892 | O190: 2.920683677
B191: 2024-06-17 | C191: =AddMonths(C51,140) -> 2024-07-16 | D191: 29 | E191: 0.08055555556 | F191: =C191-C51 -> 4260 | G191: 11.83333333 | H191: =nss(G191,W4,W5,W6,W7,W8,W9) -> 1.659236729 | I191: 0.8217303222 | J191: 2.930776017 | K191: 0.997570953 | L191: 2.923657024 | N191: 0.9973792167 | O191: 2.923095088
B192: 2024-07-16 | C192: =AddMonths(C51,141) -> 2024-08-16 | D192: 31 | E192: 0.08611111111 | F192: =C192-C51 -> 4291 | G192: 11.91944444 | H192: =nss(G192,W4,W5,W6,W7,W8,W9) -> 1.668396194 | I192: 0.8196617224 | J192: 2.933282549 | K192: 0.9975689553 | L192: 2.926151608 | N192: 0.9973776632 | O192: 2.925590495
B193: 2024-08-16 | C193: =AddMonths(C51,142) -> 2024-09-16 | D193: 31 | E193: 0.08611111111 | F193: =C193-C51 -> 4322 | G193: 12.00555556 | H193: =nss(G193,W4,W5,W6,W7,W8,W9) -> 1.677442198 | I193: 0.8175965698 | J193: 2.935371913 | K193: 0.9976455856 | L193: 2.928460831 | N193: 0.9974608671 | O193: 2.927918614
B194: 2024-09-16 | C194: =AddMonths(C51,143) -> 2024-10-16 | D194: 30 | E194: 0.08333333333 | F194: =C194-C51 -> 4352 | G194: 12.08888889 | H194: =nss(G194,W4,W5,W6,W7,W8,W9) -> 1.68608888 | I194: 0.8156014917 | J194: 2.937745851 | K194: 0.9974087527 | L194: 2.930133425 | N194: 0.9972060813 | O194: 2.929538028
A195: 12 Y | B195: 2024-10-16 | C195: =AddMonths(C51,144) -> 2024-11-18 | D195: 33 | E195: 0.09166666667 | F195: =C195-C51 -> 4385 | G195: 12.18055556 | H195: =nss(G195,W4,W5,W6,W7,W8,W9) -> 1.695478704 | I195: 0.8134110298 | J195: 2.938852218 | K195: 0.9977997209 | L195: 2.932385923 | N195: 0.9976280685 | O195: 2.931881462
B196: 2024-11-18 | C196: =AddMonths(C51,145) -> 2024-12-16 | D196: 28 | E196: 0.07777777778 | F196: =C196-C51 -> 4413 | G196: 12.25833333 | H196: =nss(G196,W4,W5,W6,W7,W8,W9) -> 1.703346494 | I196: 0.8115559962 | J196: 2.940625757 | K196: 0.997563158 | L196: 2.933459917 | N196: 0.9973735651 | O196: 2.932902395
B197: 2024-12-16 | C197: =AddMonths(C51,146) -> 2025-01-16 | D197: 31 | E197: 0.08611111111 | F197: =C197-C51 -> 4444 | G197: 12.34444444 | H197: =nss(G197,W4,W5,W6,W7,W8,W9) -> 1.711951452 | I197: 0.8095061602 | J197: 2.942011316 | K197: 0.9974836358 | L197: 2.934608144 | N197: 0.9972883843 | O197: 2.934033712
B198: 2025-01-16 | C198: =AddMonths(C51,147) -> 2025-02-17 | D198: 32 | E198: 0.08888888889 | F198: =C198-C51 -> 4476 | G198: 12.43333333 | H198: =nss(G198,W4,W5,W6,W7,W8,W9) -> 1.720717992 | I198: 0.8073947252 | J198: 2.942507358 | K198: 0.9977971584 | L198: 2.936025481 | N198: 0.9976266218 | O198: 2.935523676
B199: 2025-02-17 | C199: =AddMonths(C51,148) -> 2025-03-17 | D199: 28 | E199: 0.07777777778 | F199: =C199-C51 -> 4504 | G199: 12.51111111 | H199: =nss(G199,W4,W5,W6,W7,W8,W9) -> 1.728292585 | I199: 0.8055511273 | J199: 2.94347729 | K199: 0.9976394669 | L199: 2.936529114 | N199: 0.9974571533 | O199: 2.935992478
B200: 2025-03-17 | C200: =AddMonths(C51,149) -> 2025-04-16 | D200: 30 | E200: 0.08333333333 | F200: =C200-C51 -> 4534 | G200: 12.59444444 | H200: =nss(G200,W4,W5,W6,W7,W8,W9) -> 1.736309218 | I200: 0.8035800277 | J200: 2.944019135 | K200: 0.9976390847 | L200: 2.937068555 | N200: 0.9974571554 | O200: 2.936532952
B201: 2025-04-16 | C201: =AddMonths(C51,150) -> 2025-05-16 | D201: 30 | E201: 0.08333333333 | F201: =C201-C51 -> 4564 | G201: 12.67777778 | H201: =nss(G201,W4,W5,W6,W7,W8,W9) -> 1.744224015 | I201: 0.8016133901 | J201: 2.944470634 | K201: 0.9975602605 | L201: 2.937286892 | N201: 0.9973726829 | O201: 2.936734576
B202: 2025-05-16 | C202: =AddMonths(C51,151) -> 2025-06-16 | D202: 31 | E202: 0.08611111111 | F202: =C202-C51 -> 4595 | G202: 12.76388889 | H202: =nss(G202,W4,W5,W6,W7,W8,W9) -> 1.752296294 | I202: 0.7995860266 | J202: 2.944466004 | K202: 0.9976388221 | L202: 2.937513596 | N202: 0.9974576656 | O202: 2.936980187
B203: 2025-06-16 | C203: =AddMonths(C51,152) -> 2025-07-16 | D203: 30 | E203: 0.08333333333 | F203: =C203-C51 -> 4625 | G203: 12.84722222 | H203: =nss(G203,W4,W5,W6,W7,W8,W9) -> 1.760005893 | I203: 0.7976288674 | J203: 2.944721057 | K203: 0.9974031525 | L203: 2.937074066 | N203: 0.9972043639 | O203: 2.936488689
... 209 more rows

Sheet EUR_3M
A2: Instrument | B2: Tenor | C2: Stamp | D2: Maturity | E2: Mkt.Values | F2: Zero Cpn. | G2: Discount | H2: Forward 3M | J2: Days | K2: t(ACT/360) | L2: NSS | M2: NSS_F | N2: Discount NSS | O2: Implied Rate | Q2: Mkt.Values | R2: Error
A3: M. Mkt. | B3: O/N | C3: 2012-11-14 | D3: =AddDays(C3,1) -> 2012-11-15 | E3: 0.01429 | F3: 0.0144884693 | G3: 0.9999996031 | H3: 0.1848392567 | J3: =D3-C3 -> 1 | K3: =J3/360 -> 0.002777777778 | L3: =nss(K3,V3,V4,V5,V6,V7,V8) -> 0.1956947602 | M3: =nss_F(K3,V3,V4,V5,V6,V7,V8) -> 0.1954026991 | N3: =EXP(-L3/100*K3) -> 0.999994564 | O3: =Q3 -> 0.01429 | Q3: 0.01429 | R3: =POWER(O3-Q3,2) -> 0 | T3: β₀ | U3: 1526.716909 | V3: =U3/1000 -> 1.526716909
A4: M. Mkt. | B4: T/N | C4: 2012-11-14 | D4: =AddDays(D3,1) -> 2012-11-16 | E4: 0.01429 | F4: 0.0144884693 | G4: 0.9999992061 | H4: 0.191 | J4: =D4-C4 -> 2 | K4: =J4/360 -> 0.005555555556 | L4: =nss(K4,V3,V4,V5,V6,V7,V8) -> 0.1954032961 | M4: =nss_F(K4,V3,V4,V5,V6,V7,V8) -> 0.1948215617 | N4: =EXP(-L4/100*K4) -> 0.9999891443 | O4: =Q4 -> 0.01429 | Q4: 0.01429 | R4: =POWER(O4-Q4,2) -> 0 | T4: β₁ | U4: 1866.927051 | V4: =(U4/100)-20 -> -1.33072949
A5: M. Mkt. | B5: 1W | C5: 2012-11-14 | D5: =AddDays(D4,7) -> 2012-11-23 | E5: 0.078 | F5: 0.0647284527 | G5: 0.9999840397 | H5: 0.197996502 | J5: =D5-D4 -> 7 | K5: 0.01944444444 | L5: =nss(K5,V3,V4,V5,V6,V7,V8) -> 0.1939638463 | M5: =nss_F(K5,V3,V4,V5,V6,V7,V8) -> 0.1919694189 | N5: 0.9999622855 | O5: =Q5 -> 0.078 | Q5: 0.078 | R5: 0 | T5: β₂ | U5: 1233.986988 | V5: =(U5/100)-20 -> -7.660130117
A6: M. Mkt. | B6: 1M | C6: 2012-11-14 | D6: =AddMonths(D4,1) -> 2012-12-17 | E6: 0.108 | F6: 0.1037369426 | G6: 0.9999062148 | H6: 0.2124447787 | J6: =D6-D4 -> 31 | K6: 0.08611111111 | L6: =nss(K6,V3,V4,V5,V6,V7,V8) -> 0.1874645027 | M6: =nss_F(K6,V3,V4,V5,V6,V7,V8) -> 0.1795031134 | N6: 0.9998385853 | O6: =Q6 -> 0.108 | Q6: 0.108 | R6: 0 | T6: β₃ | U6: 2913.393165 | V6: =(U6/100)-20 -> 9.133931647
A7: M. Mkt. | B7: 2M | C7: 2012-11-14 | D7: =AddMonths(D4,2) -> 2013-01-16 | E7: 0.144 | F7: 0.141807787 | G7: 0.9997552658 | H7: 0.2060525888 | J7: =D7-D4 -> 61 | K7: 0.1694444444 | L7: =nss(K7,V3,V4,V5,V6,V7,V8) -> 0.1802739998 | M7: =nss_F(K7,V3,V4,V5,V6,V7,V8) -> 0.1666869212 | N7: 0.9996945824 | O7: =-100*(LN(N7)-LN(N4))/(K7-K4) -> 0.1797611423 | Q7: 0.144 | R7: 0.001278859295 | T7: τ₁ | U7: 398.8698416 | V7: =U7/100 -> 3.988698416
A8: M. Mkt. | B8: 3M | C8: 2012-11-14 | D8: =AddMonths(D4,3) -> 2013-02-18 | E8: 0.191 | F8: 0.1898729203 | G8: 0.9995007329 | H8: 0.1602029141 | J8: =D8-D4 -> 94 | K8: 0.2611111111 | L8: =nss(K8,V3,V4,V5,V6,V7,V8) -> 0.1735243248 | M8: =nss_F(K8,V3,V4,V5,V6,V7,V8) -> 0.1559879471 | N8: 0.9995470113 | O8: =-100*(LN(N8)-LN(N4))/(K8-K4) -> 0.1730486949 | Q8: 0.191 | R8: 0.0003222493535 | T8: τ₂ | U8: 663.9531521 | V8: =U8/100 -> 6.639531521
A9: Fra | B9: 3X6 | C9: 2012-11-14 | D9: =AddMonths(D4,6) -> 2013-05-16 | E9: 0.16 | F9: 0.1767126 | G9: 0.9991144086 | H9: 0.16 | J9: =D9-D4 -> 181 | K9: 0.5027777778 | L9: =nss(K9,V3,V4,V5,V6,V7,V8) -> 0.1612346397 | M9: =nss_F(K9,V3,V4,V5,V6,V7,V8) -> 0.1435965656 | N9: 0.9991896766 | O9: =-100*(LN(N9)-LN(N8))/(K9-K8) -> 0.1479561294 | Q9: 0.16 | R9: 0.0001450548195
A10: Fra | B10: 6X9 | C10: 2012-11-14 | D10: =AddMonths(D4,9) -> 2013-08-16 | E10: 0.16 | F10: 0.1718538177 | G10: 0.9987060488 | H10: 0.18 | J10: =D10-D4 -> 273 | K10: 0.7583333333 | L10: =nss(K10,V3,V4,V5,V6,V7,V8) -> 0.1562463496 | M10: =nss_F(K10,V3,V4,V5,V6,V7,V8) -> 0.1528267505 | N10: 0.9988158335 | O10: =-100*(LN(N10)-LN(N9))/(K10-K9) -> 0.1464324312 | Q10: 0.16 | R10: 0.000184078923
A11: Fra | B11: 9X12 | C11: 2012-11-14 | D11: =AddMonths(D4,12) -> 2013-11-18 | E11: 0.18 | F11: 0.1745549314 | G11: 0.9982368775 | H11: 0.2454978447 | J11: =D11-D4 -> 367 | K11: 1.019444444 | L11: =nss(K11,V3,V4,V5,V6,V7,V8) -> 0.1587877742 | M11: =nss_F(K11,V3,V4,V5,V6,V7,V8) -> 0.1826890193 | N11: 0.9983825563 | O11: =-100*(LN(N11)-LN(N10))/(K11-K10) -> 0.1661687201 | Q11: 0.18 | R11: 0.000191304303
A12: Swap | B12: 1Y | C12: 2012-11-14 | D12: =AddYears(D4,1) -> 2013-11-18 | J12: =D12-D4 -> 367 | K12: 1.019444444 | L12: =nss(K12,V3,V4,V5,V6,V7,V8) -> 0.1587877742 | M12: =nss_F(K12,V3,V4,V5,V6,V7,V8) -> 0.1826890193 | N12: 0.9983825563 | O12: =100*(N4-N12)/P12 -> 0.1578497753 | P12: =N12*K12 -> 1.01779555
A13: Swap | B13: 2Y | C13: 2012-11-14 | D13: =AddYears(D4,2) -> 2014-11-17 | E13: 0.234 | F13: 0.2332012201 | G13: 0.9953277574 | H13: 0.480791085 | J13: =D13-D4 -> 731 | K13: 2.030555556 | L13: =nss(K13,V3,V4,V5,V6,V7,V8) -> 0.227039471 | M13: =nss_F(K13,V3,V4,V5,V6,V7,V8) -> 0.4404146483 | N13: 0.9954004479 | O13: =100*(N4-N13)/SUM(P12:P13) -> 0.2266855781 | P13: =N13*(K13-K12) -> 1.006460453 | Q13: 0.234 | R13: 5.350076742e-05
A14: Swap | B14: 3Y | C14: 2012-11-14 | D14: =AddYears(D4,3) -> 2015-11-16 | E14: 0.346 | F14: 0.3452551082 | G14: 0.9896770796 | H14: 0.8627198718 | J14: =D14-D4 -> 1095 | K14: 3.041666667 | L14: =nss(K14,V3,V4,V5,V6,V7,V8) -> 0.3601948709 | M14: =nss_F(K14,V3,V4,V5,V6,V7,V8) -> 0.8276889576 | N14: 0.9891038703 | O14: =100*(N4-N14)/SUM(P12:P14) -> 0.3599211186 | P14: =N14*(K14-K13) -> 1.000093913 | Q14: 0.346 | R14: 0.0001937975439
A15: Swap | B15: 4Y | C15: 2012-11-14 | D15: =AddYears(D4,4) -> 2016-11-16 | E15: 0.5085 | F15: 0.5079339998 | G15: 0.9798467393 | H15: 1.321056507 | J15: =D15-D4 -> 1461 | K15: 4.058333333 | L15: =nss(K15,V3,V4,V5,V6,V7,V8) -> 0.5310162369 | M15: =nss_F(K15,V3,V4,V5,V6,V7,V8) -> 1.257839213 | N15: 0.978680142 | O15: =100*(N4-N15)/SUM(P12:P15) -> 0.5301615424 | P15: =N15*(K15-K14) -> 0.9949914777 | Q15: 0.5085 | R15: 0.0004692224197
A16: Swap | B16: 5Y | C16: 2012-11-14 | D16: =AddYears(D4,5) -> 2017-11-16 | E16: 0.7015 | F16: 0.7025728091 | G16: 0.9654254575 | H16: 1.755606517 | J16: =D16-D4 -> 1826 | K16: 5.072222222 | L16: =nss(K16,V3,V4,V5,V6,V7,V8) -> 0.7183374745 | M16: =nss_F(K16,V3,V4,V5,V6,V7,V8) -> 1.672990799 | N16: 0.9642201173 | O16: =100*(N4-N16)/SUM(P12:P16) -> 0.715816694 | P16: =N16*(K16-K15) -> 0.9776120634 | Q16: 0.7015 | R16: 0.0002049677278
A17: Swap | B17: 6Y | C17: 2012-11-14 | D17: =AddYears(D4,6) -> 2018-11-16 | E17: 0.9023 | F17: 0.9066374707 | G17: 0.9469842983 | H17: 2.102028788 | J17: =D17-D4 -> 2191 | K17: 6.086111111 | L17: =nss(K17,V3,V4,V5,V6,V7,V8) -> 0.9090073525 | M17: =nss_F(K17,V3,V4,V5,V6,V7,V8) -> 2.043759549 | N17: 0.9461792958 | O17: =100*(N4-N17)/SUM(P12:P17) -> 0.9034145736 | P17: 0.9593206749 | Q17: 0.9023 | R17: 1.242274202e-06
A18: Swap | B18: 7Y | C18: 2012-11-14 | D18: =AddYears(D4,7) -> 2019-11-18 | E18: 1.093 | F18: 1.102214406 | G18: 0.9256065777 | H18: 2.34098227 | J18: =D18-D4 -> 2558 | K18: 7.105555556 | L18: =nss(K18,V3,V4,V5,V6,V7,V8) -> 1.095038954 | M18: =nss_F(K18,V3,V4,V5,V6,V7,V8) -> 2.356956728 | N18: 0.9251414805 | O18: =100*(N4-N18)/SUM(P12:P18) -> 1.084842381 | P18: 0.9431303426 | Q18: 1.093 | R18: 6.654674062e-05
A19: Swap | B19: 8Y | C19: 2012-11-14 | D19: =AddYears(D4,8) -> 2020-11-16 | E19: 1.261 | F19: 1.275733421 | G19: 0.9028503361 | H19: 2.527505149 | J19: =D19-D4 -> 2922 | K19: 8.116666667 | L19: =nss(K19,V3,V4,V5,V6,V7,V8) -> 1.268284397 | M19: =nss_F(K19,V3,V4,V5,V6,V7,V8) -> 2.604011623 | N19: 0.9021789222 | O19: =100*(N4-N19)/SUM(P12:P19) -> 1.252113867 | P19: 0.9122031325 | Q19: 1.261 | R19: 7.896335793e-05
A20: Swap | B20: 9Y | C20: 2012-11-14 | D20: =AddYears(D4,9) -> 2021-11-16 | E20: 1.409 | F20: 1.43047542 | G20: 0.879062261 | H20: 2.684124275 | J20: =D20-D4 -> 3287 | K20: 9.130555556 | L20: =nss(K20,V3,V4,V5,V6,V7,V8) -> 1.427479987 | M20: =nss_F(K20,V3,V4,V5,V6,V7,V8) -> 2.789853749 | N20: 0.8777996915 | O20: =100*(N4-N20)/SUM(P12:P20) -> 1.40421839 | P20: 0.8899913538 | Q20: 1.409 | R20: 2.286379207e-05
A21: Swap | B21: 10Y | C21: 2012-11-14 | D21: =AddYears(D4,10) -> 2022-11-16 | E21: 1.54 | F21: 1.568836133 | G21: 0.8546565894 | H21: 2.778436289 | J21: =D21-D4 -> 3652 | K21: 10.14444444 | L21: =nss(K21,V3,V4,V5,V6,V7,V8) -> 1.570540138 | M21: =nss_F(K21,V3,V4,V5,V6,V7,V8) -> 2.918977755 | N21: 0.8527212508 | O21: =100*(N4-N21)/SUM(P12:P21) -> 1.539466606 | P21: 0.8645646015 | Q21: 1.54 | R21: 2.845094359e-07
A22: Swap | B22: 11Y | C22: 2012-11-14 | D22: =AddYears(D4,11) -> 2023-11-16 | J22: =D22-D4 -> 4017 | K22: 11.15833333 | L22: =nss(K22,V3,V4,V5,V6,V7,V8) -> 1.697021439 | M22: =nss_F(K22,V3,V4,V5,V6,V7,V8) -> 2.99843328 | N22: 0.827489129 | O22: =100*(N4-N22)/SUM(P12:P22) -> 1.657833749 | P22: 0.8389820336
A23: Swap | B23: 12Y | C23: 2012-11-14 | D23: =AddYears(D4,12) -> 2024-11-18 | E23: 1.766 | F23: 1.811128357 | G23: 0.8043805969 | H23: 2.800882936 | J23: =D23-D4 -> 4385 | K23: 12.18055556 | L23: =nss(K23,V3,V4,V5,V6,V7,V8) -> 1.808088686 | M23: =nss_F(K23,V3,V4,V5,V6,V7,V8) -> 3.036056928 | N23: 0.8023300302 | O23: =100*(N4-N23)/SUM(P12:P23) -> 1.760835104 | P23: 0.8201595864 | Q23: 1.766 | R23: 2.667615293e-05
A24: Swap | B24: 13Y | C24: 2012-11-14 | D24: =AddYears(D4,13) -> 2025-11-17 | J24: =D24-D4 -> 4749 | K24: 13.19166667 | L24: =nss(K24,V3,V4,V5,V6,V7,V8) -> 1.902513867 | M24: =nss_F(K24,V3,V4,V5,V6,V7,V8) -> 3.038907961 | N24: 0.7780431546 | O24: =100*(N4-N24)/SUM(P12:P24) -> 1.847703248 | P24: 0.7866880786
A25: Swap | B25: 14Y | C25: 2012-11-14 | D25: =AddYears(D4,14) -> 2026-11-16 | J25: =D25-D4 -> 5113 | K25: 14.20277778 | L25: =nss(K25,V3,V4,V5,V6,V7,V8) -> 1.982691998 | M25: =nss_F(K25,V3,V4,V5,V6,V7,V8) -> 3.01462114 | N25: 0.7545774627 | O25: =100*(N4-N25)/SUM(P12:P25) -> 1.921037555 | P25: 0.7629616567
A26: Swap | B26: 15Y | C26: 2012-11-14 | D26: =AddYears(D4,15) -> 2027-11-16 | E26: 1.993 | F26: 2.059680474 | G26: 0.734008831 | H26: 2.478125613 | J26: =D26-D4 -> 5478 | K26: 15.21666667 | L26: =nss(K26,V3,V4,V5,V6,V7,V8) -> 2.050040922 | M26: =nss_F(K26,V3,V4,V5,V6,V7,V8) -> 2.969325658 | N26: 0.7320196701 | O26: =100*(N4-N26)/SUM(P12:P26) -> 1.982441877 | P26: 0.74218661 | Q26: 1.993 | R26: 0.0001114739623
A27: Swap | B27: 16Y | C27: 2012-11-14 | D27: =AddYears(D4,16) -> 2028-11-16 | J27: =D27-D4 -> 5844 | K27: 16.23333333 | L27: =nss(K27,V3,V4,V5,V6,V7,V8) -> 2.105773511 | M27: =nss_F(K27,V3,V4,V5,V6,V7,V8) -> 2.908366773 | N27: 0.7104638351 | O27: =100*(N4-N27)/SUM(P12:P27) -> 2.033262393 | P27: 0.7223048991
A28: Swap | B28: 17Y | C28: 2012-11-14 | D28: =AddYears(D4,17) -> 2029-11-16 | J28: =D28-D4 -> 6209 | K28: 17.24722222 | L28: =nss(K28,V3,V4,V5,V6,V7,V8) -> 2.150892052 | M28: =nss_F(K28,V3,V4,V5,V6,V7,V8) -> 2.836741852 | N28: 0.6900652422 | O28: =100*(N4-N28)/SUM(P12:P28) -> 2.074582719 | P28: 0.6996494817
A29: Swap | B29: 18Y | C29: 2012-11-14 | D29: =AddYears(D4,18) -> 2030-11-18 | J29: =D29-D4 -> 6576 | K29: 18.26666667 | L29: =nss(K29,V3,V4,V5,V6,V7,V8) -> 2.186988142 | M29: =nss_F(K29,V3,V4,V5,V6,V7,V8) -> 2.757713574 | N29: 0.6706621078 | O29: =100*(N4-N29)/SUM(P12:P29) -> 2.107990018 | P29: 0.6837027599
A30: Swap | B30: 19Y | C30: 2012-11-14 | D30: =AddYears(D4,19) -> 2031-11-17 | J30: =D30-D4 -> 6940 | K30: 19.27777778 | L30: =nss(K30,V3,V4,V5,V6,V7,V8) -> 2.214777443 | M30: =nss_F(K30,V3,V4,V5,V6,V7,V8) -> 2.675511098 | N30: 0.6524897336 | O30: =100*(N4-N30)/SUM(P12:P30) -> 2.134184514 | P30: 0.6597396196
A31: Swap | B31: 20Y | C31: 2012-11-14 | D31: =AddYears(D4,20) -> 2032-11-16 | E31: 2.132 | F31: 2.205571941 | G31: 0.6430470566 | H31: 2.26220482 | J31: =D31-D4 -> 7305 | K31: 20.29166667 | L31: =nss(K31,V3,V4,V5,V6,V7,V8) -> 2.235706789 | M31: =nss_F(K31,V3,V4,V5,V6,V7,V8) -> 2.591743292 | N31: 0.6352973199 | O31: =100*(N4-N31)/SUM(P12:P31) -> 2.154541073 | P31: 0.6441208938 | Q31: 2.132 | R31: 0.0005080999756
A32: Swap | B32: 21Y | C32: 2012-11-14 | D32: =AddYears(D4,21) -> 2033-11-16 | J32: =D32-D4 -> 7670 | K32: 21.30555556 | L32: =nss(K32,V3,V4,V5,V6,V7,V8) -> 2.250665044 | M32: =nss_F(K32,V3,V4,V5,V6,V7,V8) -> 2.508558371 | N32: 0.6190825275 | O32: =100*(N4-N32)/SUM(P12:P32) -> 2.169871468 | P32: 0.627680896
A33: Swap | B33: 22Y | C33: 2012-11-14 | D33: =AddYears(D4,22) -> 2034-11-16 | J33: =D33-D4 -> 8035 | K33: 22.31944444 | L33: =nss(K33,V3,V4,V5,V6,V7,V8) -> 2.260527108 | M33: =nss_F(K33,V3,V4,V5,V6,V7,V8) -> 2.427411965 | N33: 0.6037850077 | O33: =100*(N4-N33)/SUM(P12:P33) -> 2.180958891 | P33: 0.6121709106
A34: Swap | B34: 23Y | C34: 2012-11-14 | D34: =AddYears(D4,23) -> 2035-11-16 | J34: =D34-D4 -> 8400 | K34: 23.33333333 | L34: =nss(K34,V3,V4,V5,V6,V7,V8) -> 2.266070277 | M34: =nss_F(K34,V3,V4,V5,V6,V7,V8) -> 2.349367553 | N34: 0.5893413443 | O34: =100*(N4-N34)/SUM(P12:P34) -> 2.188483141 | P34: 0.5975266407
A35: Swap | B35: 24Y | C35: 2012-11-14 | D35: =AddYears(D4,24) -> 2036-11-17 | J35: =D35-D4 -> 8767 | K35: 24.35277778 | L35: =nss(K35,V3,V4,V5,V6,V7,V8) -> 2.267981326 | M35: =nss_F(K35,V3,V4,V5,V6,V7,V8) -> 2.274772041 | N35: 0.5756148803 | O35: =100*(N4-N35)/SUM(P12:P35) -> 2.19305288 | P35: 0.5868073919
A36: Swap | B36: 25Y | C36: 2012-11-14 | D36: =AddYears(D4,25) -> 2037-11-16 | J36: =D36-D4 -> 9131 | K36: 25.36388889 | L36: =nss(K36,V3,V4,V5,V6,V7,V8) -> 2.266848609 | M36: =nss_F(K36,V3,V4,V5,V6,V7,V8) -> 2.205107477 | N36: 0.5627268359 | O36: =100*(N4-N36)/SUM(P12:P36) -> 2.195111263 | P36: 0.5689793563
A37: Swap | B37: 26Y | C37: 2012-11-14 | D37: =AddYears(D4,26) -> 2038-11-16 | J37: =D37-D4 -> 9496 | K37: 26.37777778 | L37: =nss(K37,V3,V4,V5,V6,V7,V8) -> 2.263206245 | M37: =nss_F(K37,V3,V4,V5,V6,V7,V8) -> 2.139848016 | N37: 0.5504696181 | O37: =100*(N4-N37)/SUM(P12:P37) -> 2.195140426 | P37: 0.5581150294
A38: Swap | B38: 27Y | C38: 2012-11-14 | D38: =AddYears(D4,27) -> 2039-11-16 | J38: =D38-D4 -> 9861 | K38: 27.39166667 | L38: =nss(K38,V3,V4,V5,V6,V7,V8) -> 2.257505131 | M38: =nss_F(K38,V3,V4,V5,V6,V7,V8) -> 2.079305514 | N38: 0.5388229286 | O38: =100*(N4-N38)/SUM(P12:P38) -> 2.193497051 | P38: 0.5463065804
A39: Swap | B39: 28Y | C39: 2012-11-14 | D39: =AddYears(D4,28) -> 2040-11-16 | J39: =D39-D4 -> 10227 | K39: 28.40833333 | L39: =nss(K39,V3,V4,V5,V6,V7,V8) -> 2.250112067 | M39: =nss_F(K39,V3,V4,V5,V6,V7,V8) -> 2.023324472 | N39: 0.5277042228 | O39: =100*(N4-N39)/SUM(P12:P39) -> 2.190485141 | P39: 0.5364992931
A40: Swap | B40: 29Y | C40: 2012-11-14 | D40: =AddYears(D4,29) -> 2041-11-18 | J40: =D40-D4 -> 10594 | K40: 29.42777778 | L40: =nss(K40,V3,V4,V5,V6,V7,V8) -> 2.241350658 | M40: =nss_F(K40,V3,V4,V5,V6,V7,V8) -> 1.971841166 | N40: 0.5170686175 | O40: =100*(N4-N40)/SUM(P12:P40) -> 2.186360977 | P40: 0.5271227295
A41: Swap | B41: 30Y | C41: 2012-11-14 | D41: =AddYears(D4,30) -> 2042-11-17 | E41: 2.188 | F41: 2.245784018 | G41: 0.5094872309 | H41: 2.221300877 | J41: =D41-D4 -> 10958 | K41: 30.43888889 | L41: =nss(K41,V3,V4,V5,V6,V7,V8) -> 2.231611741 | M41: =nss_F(K41,V3,V4,V5,V6,V7,V8) -> 1.925210673 | N41: 0.5069829941 | O41: =100*(N4-N41)/SUM(P12:P41) -> 2.181396412 | P41: 0.5126161385 | Q41: 2.188 | R41: 4.36073793e-05
R42: =SUM(R3:R41) -> 0.003902793297
A46: Tenor | B46: Stamp | C46: Maturity | D46: Days | E46: t (ACT/360) | F46: t from zero | G46: t0/360 | H46: NSS | I46: Discount NSS | J46: Forward 3M | K46: Forward 3M NSS | L46: 3M Discount EONIA | M46: L*K | O46: 3M Discount EUR_6 | P46: M*J | Q46: O*K
A47: T/N | B47: 2012-11-14 | C47: 2012-11-16 | D47: =C47-B47 -> 2 | E47: =D47/360 -> 0.005555555556 | F47: =C47-B47 -> 2 | G47: =F47/360 -> 0.005555555556 | H47: 0.01429 | I47: 0.9999996031 | J47: 0.191 | K47: =100*(I47-I48)/(E48*I48) -> 0.1734115687 | L47: 0.9997992159 | M47: =L47*K47 -> 0.1733767504 | O47: 0.9991772316 | Q47: =O47*K47 -> 0.1732688912
A48: 3M | B48: 2012-11-16 | C48: =AddMonths(B48,3) -> 2013-02-18 | D48: 94 | E48: =D48/360 -> 0.2611111111 | F48: =C48-C47 -> 94 | G48: =F48/360 -> 0.2611111111 | H48: =nss(G48,V3,V4,V5,V6,V7,V8) -> 0.1735243248 | I48: =EXP(-(H48/100)*G48) -> 0.9995470113 | J48: 0.1602029141 | K48: =100*(I48-I49)/(E49*I49) -> 0.1479825842 | L48: 0.9999252131 | M48: =L48*K48 -> 0.147971517 | O48: 0.9992727839 | Q48: =O48*K48 -> 0.1478749689
A49: 6M | B49: =C48 -> 2013-02-18 | C49: =AddMonths(B48,6) -> 2013-05-16 | D49: 87 | E49: 0.2416666667 | F49: =C49-B48 -> 181 | G49: =F49/360 -> 0.5027777778 | H49: =nss(G49,V3,V4,V5,V6,V7,V8) -> 0.1612346397 | I49: =EXP(-(H49/100)*G49) -> 0.9991896766 | J49: 0.16 | K49: =100*(I49-I50)/(E50*I50) -> 0.1464598333 | L49: 0.9999696044 | M49: 0.1464553816 | O49: 0.9992137942 | Q49: 0.1463446857
A50: 9M | B50: 2013-05-16 | C50: =AddMonths(B48,9) -> 2013-08-16 | D50: 92 | E50: 0.2555555556 | F50: =C50-B48 -> 273 | G50: 0.7583333333 | H50: =nss(G50,V3,V4,V5,V6,V7,V8) -> 0.1562463496 | I50: 0.9988158335 | J50: 0.18 | K50: =100*(I50-I51)/(E51*I51) -> 0.1662047744 | L50: 0.9999568319 | M50: 0.1661975997 | O50: 0.9991291018 | Q50: 0.166060027
A51: 1Y | B51: 2013-08-16 | C51: =AddMonths(B48,12) -> 2013-11-18 | D51: 94 | E51: 0.2611111111 | F51: =C51-B48 -> 367 | G51: 1.019444444 | H51: =nss(G51,V3,V4,V5,V6,V7,V8) -> 0.1587877742 | I51: 0.9983825563 | J51: 0.2454978447 | K51: =100*(I51-I52)/(E52*I52) -> 0.2043233476 | L51: 0.9998930113 | M51: 0.2043014873 | O51: 0.9990504541 | Q51: 0.2041293332
B52: 2013-11-18 | C52: =AddMonths(B48,15) -> 2014-02-17 | D52: 91 | E52: 0.2527777778 | F52: =C52-B48 -> 458 | G52: 1.272222222 | H52: =nss(G52,V3,V4,V5,V6,V7,V8) -> 0.1678247551 | I52: 0.9978671739 | K52: 0.2562067579 | L52: 0.9997934929 | M52: 0.2561538493 | O52: 0.9989497816 | Q52: 0.2559376848
B53: 2014-02-17 | C53: =AddMonths(B48,18) -> 2014-05-16 | D53: 88 | E53: 0.2444444444 | F53: =C53-B48 -> 546 | G53: 1.516666667 | H53: =nss(G53,V3,V4,V5,V6,V7,V8) -> 0.1820565482 | I53: 0.9972426176 | K53: 0.3218161638 | L53: 0.99962902 | M53: 0.3216967764 | O53: 0.9987053888 | Q53: 0.321399537
B54: 2014-05-16 | C54: =AddMonths(B48,21) -> 2014-08-18 | D54: =C54-B54 -> 94 | E54: 0.2611111111 | F54: =C54-B48 -> 640 | G54: 1.777777778 | H54: =nss(G54,V3,V4,V5,V6,V7,V8) -> 0.2025638938 | I54: 0.9964053404 | K54: 0.3993768557 | L54: 0.9994612704 | M54: 0.3991616996 | O54: 0.9985525085 | Q54: 0.3987987611
A55: 2Y | B55: 2014-08-18 | C55: =AddMonths(B48,24) -> 2014-11-17 | D55: 91 | E55: 0.2527777778 | F55: =C55-B48 -> 731 | G55: 2.030555556 | H55: =nss(G55,V3,V4,V5,V6,V7,V8) -> 0.227039471 | I55: 0.9954004479 | J55: 0.480791085 | K55: 0.4845659573 | L55: 0.9992587539 | M55: 0.4842067747 | O55: 0.9983419365 | Q55: 0.4837625162
B56: 2014-11-17 | C56: =AddMonths(B48,27) -> 2015-02-16 | D56: 91 | E56: 0.2527777778 | F56: =C56-B48 -> 822 | G56: 2.283333333 | H56: =nss(G56,V3,V4,V5,V6,V7,V8) -> 0.2555162673 | I56: 0.9941826983 | K56: 0.5768099303 | L56: 0.9990356392 | M56: 0.5762536774 | O56: 0.9981159709 | Q56: 0.5757232036
B57: 2015-02-16 | C57: =AddMonths(B48,30) -> 2015-05-18 | D57: 91 | E57: 0.2527777778 | F57: =C57-B48 -> 913 | G57: 2.536111111 | H57: =nss(G57,V3,V4,V5,V6,V7,V8) -> 0.2874981887 | I57: 0.9927352433 | K57: 0.6745785868 | L57: 0.998796301 | M57: 0.6737665972 | O57: 0.9978780997 | Q57: 0.6731471983
B58: 2015-05-18 | C58: =AddMonths(B48,33) -> 2015-08-17 | D58: 91 | E58: 0.2527777778 | F58: =C58-B48 -> 1004 | G58: 2.788888889 | H58: =nss(G58,V3,V4,V5,V6,V7,V8) -> 0.3225300989 | I58: 0.9910453279 | K58: 0.7765101477 | L58: 0.9985446187 | M58: 0.7753800294 | O58: 0.9976314276 | Q58: 0.7746709272
A59: 3Y | B59: 2015-08-17 | C59: =AddMonths(B48,36) -> 2015-11-16 | D59: 91 | E59: 0.2527777778 | F59: =C59-B48 -> 1095 | G59: 3.041666667 | H59: =nss(G59,V3,V4,V5,V6,V7,V8) -> 0.3601948709 | I59: 0.9891038703 | J59: 0.8627198718 | K59: 0.8819910655 | L59: 0.9982637095 | M59: 0.8804596728 | O59: 0.9973485229 | Q59: 0.8796524864
B60: =C59 -> 2015-11-16 | C60: =AddMonths(B48,39) -> 2016-02-16 | D60: 92 | E60: 0.2555555556 | F60: =C60-B48 -> 1187 | G60: 3.297222222 | H60: =nss(G60,V3,V4,V5,V6,V7,V8) -> 0.4005604477 | I60: 0.9868794665 | K60: 0.9887433132 | L60: 0.9980378408 | M60: 0.9868032414 | O60: 0.9971525604 | Q60: 0.9859279263
B61: 2016-02-16 | C61: =AddMonths(B48,42) -> 2016-05-16 | D61: 90 | E61: 0.25 | F61: =C61-B48 -> 1277 | G61: 3.547222222 | H61: =nss(G61,V3,V4,V5,V6,V7,V8) -> 0.4419282295 | I61: 0.9844460553 | K61: 1.096492022 | L61: 0.9977215781 | M61: 1.09399375 | O61: 0.9968287541 | Q61: 1.093014776
B62: 2016-05-16 | C62: =AddMonths(B48,45) -> 2016-08-16 | D62: 92 | E62: 0.2555555556 | F62: =C62-B48 -> 1369 | G62: 3.802777778 | H62: =nss(G62,V3,V4,V5,V6,V7,V8) -> 0.4858133982 | I62: 0.9816952018 | K62: 1.205507254 | L62: 0.9974449548 | M62: 1.202427128 | O62: 0.9965657143 | Q62: 1.201367197
A63: 4Y | B63: 2016-08-16 | C63: =AddMonths(B48,48) -> 2016-11-16 | D63: 92 | E63: 0.2555555556 | F63: =C63-B48 -> 1461 | G63: 4.058333333 | H63: =nss(G63,V3,V4,V5,V6,V7,V8) -> 0.5310162369 | I63: 0.978680142 | J63: 1.321056507 | K63: 1.313892155 | L63: 0.9971694886 | M63: 1.310173168 | O63: 0.9963048249 | Q63: 1.309037094
B64: 2016-11-16 | C64: =AddMonths(B48,51) -> 2017-02-16 | D64: 92 | E64: 0.2555555556 | F64: =C64-B48 -> 1553 | G64: 4.313888889 | H64: =nss(G64,V3,V4,V5,V6,V7,V8) -> 0.5772635647 | I64: 0.9754050008 | K64: 1.419188172 | L64: 0.99700228 | M64: 1.414933844 | O64: 0.9961802152 | Q64: 1.413767179
B65: 2017-02-16 | C65: =AddMonths(B48,54) -> 2017-05-16 | D65: 89 | E65: 0.2472222222 | F65: =C65-B48 -> 1642 | G65: 4.561111111 | H65: =nss(G65,V3,V4,V5,V6,V7,V8) -> 0.6227630948 | I65: 0.9719947102 | K65: 1.52287478 | L65: 0.9966376684 | M65: 1.51775437 | O65: 0.9958033564 | Q65: 1.516483818
B66: 2017-05-16 | C66: =AddMonths(B48,57) -> 2017-08-16 | D66: 92 | E66: 0.2555555556 | F66: =C66-B48 -> 1734 | G66: 4.816666667 | H66: =nss(G66,V3,V4,V5,V6,V7,V8) -> 0.670363067 | I66: 0.9682265746 | K66: 1.625919387 | L66: 0.9963753243 | M66: 1.620025957 | O66: 0.9955567873 | Q66: 1.618695081
A67: 5Y | B67: 2017-08-16 | C67: =AddMonths(B48,60) -> 2017-11-16 | D67: 92 | E67: 0.2555555556 | F67: =C67-B48 -> 1826 | G67: 5.072222222 | H67: =nss(G67,V3,V4,V5,V6,V7,V8) -> 0.7183374745 | I67: 0.9642201173 | J67: 1.755606517 | K67: 1.726261207 | L67: 0.9961198978 | M67: 1.719563137 | O67: 0.9953171009 | Q67: 1.7181773
B68: 2017-11-16 | C68: =AddMonths(B48,63) -> 2018-02-16 | D68: 92 | E68: 0.2555555556 | F68: =C68-B48 -> 1918 | G68: 5.327777778 | H68: =nss(G68,V3,V4,V5,V6,V7,V8) -> 0.7665020716 | I68: 0.9599850889 | K68: 1.821870284 | L68: 0.9960104651 | M68: 1.814601868 | O68: 0.9952485311 | Q68: 1.813213724
B69: 2018-02-16 | C69: =AddMonths(B48,66) -> 2018-05-16 | D69: 89 | E69: 0.2472222222 | F69: =C69-B48 -> 2007 | G69: 5.575 | H69: =nss(G69,V3,V4,V5,V6,V7,V8) -> 0.8131207584 | I69: 0.9556806381 | K69: 1.914524578 | L69: 0.995640994 | M69: 1.906179154 | O69: 0.9948684779 | Q69: 1.904700153
B70: 2018-05-16 | C70: =AddMonths(B48,69) -> 2018-08-16 | D70: 92 | E70: 0.2555555556 | F70: =C70-B48 -> 2099 | G70: 5.830555556 | H70: =nss(G70,V3,V4,V5,V6,V7,V8) -> 0.8611911077 | I70: 0.9510275703 | K70: 2.005064923 | L70: 0.9954109291 | M70: 1.995863538 | O70: 0.9946532301 | Q70: 1.994344303
A71: 6Y | B71: 2018-08-16 | C71: =AddMonths(B48,72) -> 2018-11-16 | D71: 92 | E71: 0.2555555556 | F71: =C71-B48 -> 2191 | G71: 6.086111111 | H71: =nss(G71,V3,V4,V5,V6,V7,V8) -> 0.9090073525 | I71: 0.9461792958 | J71: 2.102028788 | K71: 2.092913732 | L71: 0.9950838769 | M71: 2.082624711 | O71: 0.9943245767 | Q71: 2.081035561
B72: 2018-11-16 | C72: =AddMonths(B48,75) -> 2019-02-18 | D72: 94 | E72: 0.2611111111 | F72: =C72-B48 -> 2285 | G72: 6.347222222 | H72: =nss(G72,V3,V4,V5,V6,V7,V8) -> 0.9574763203 | I72: 0.9410366899 | K72: 2.174070266 | L72: 0.9952533855 | M72: 2.163750792 | O72: 0.9945631504 | Q72: 2.162250172
B73: 2019-02-18 | C73: =AddMonths(B48,78) -> 2019-05-16 | D73: 87 | E73: 0.2416666667 | F73: =C73-B48 -> 2372 | G73: 6.588888889 | H73: =nss(G73,V3,V4,V5,V6,V7,V8) -> 1.001889695 | I73: 0.9361183213 | K73: 2.251282183 | L73: 0.9947865297 | M73: 2.23954519 | O73: 0.9940696537 | Q73: 2.2379313
B74: 2019-05-16 | C74: =AddMonths(B48,81) -> 2019-08-16 | D74: 92 | E74: 0.2555555556 | F74: =C74-B48 -> 2464 | G74: 6.844444444 | H74: =nss(G74,V3,V4,V5,V6,V7,V8) -> 1.04829821 | I74: 0.9307633821 | K74: 2.327285861 | L74: 0.9944774495 | M74: 2.314433307 | O74: 0.9937580454 | Q74: 2.312759048
A75: 7Y | B75: 2019-08-16 | C75: =AddMonths(B48,84) -> 2019-11-18 | D75: 94 | E75: 0.2611111111 | F75: =C75-B48 -> 2558 | G75: 7.105555556 | H75: =nss(G75,V3,V4,V5,V6,V7,V8) -> 1.095038954 | I75: 0.9251414805 | J75: 2.34098227 | K75: 2.398388347 | L75: 0.9944749599 | M75: 2.385137155 | O75: 0.9937902301 | Q75: 2.383494907
B76: 2019-11-18 | C76: =AddMonths(B48,87) -> 2020-02-17 | D76: 91 | E76: 0.2527777778 | F76: =C76-B48 -> 2649 | G76: 7.358333333 | H76: =nss(G76,V3,V4,V5,V6,V7,V8) -> 1.13956363 | I76: 0.9195665232 | K76: 2.464514545 | L76: 0.9943099206 | M76: 2.450491261 | O76: 0.9936362154 | Q76: 2.448830905
B77: 2020-02-17 | C77: =AddMonths(B48,90) -> 2020-05-18 | D77: 91 | E77: 0.2527777778 | F77: =C77-B48 -> 2740 | G77: 7.611111111 | H77: =nss(G77,V3,V4,V5,V6,V7,V8) -> 1.183313574 | I77: 0.9138733253 | K77: 2.526649801 | L77: 0.9941550633 | M77: 2.511881693 | O77: 0.9934917647 | Q77: 2.51020577
B78: 2020-05-18 | C78: =AddMonths(B48,93) -> 2020-08-17 | D78: 91 | E78: 0.2527777778 | F78: =C78-B48 -> 2831 | G78: 7.863888889 | H78: =nss(G78,V3,V4,V5,V6,V7,V8) -> 1.226235674 | I78: 0.9080736322 | K78: 2.584823405 | L78: 0.9940102921 | M78: 2.569341068 | O78: 0.993356794 | Q78: 2.567651891
A79: 8Y | B79: 2020-08-17 | C79: =AddMonths(B48,96) -> 2020-11-16 | D79: 91 | E79: 0.2527777778 | F79: =C79-B48 -> 2922 | G79: 8.116666667 | H79: =nss(G79,V3,V4,V5,V6,V7,V8) -> 1.268284397 | I79: 0.9021789222 | J79: 2.527505149 | K79: 2.639461879 | L79: 0.9938076611 | M79: 2.623117437 | O79: 0.9931563896 | Q79: 2.62139843
B80: 2020-11-16 | C80: =AddMonths(B48,99) -> 2021-02-16 | D80: 92 | E80: 0.2555555556 | F80: =C80-B48 -> 3014 | G80: 8.372222222 | H80: =nss(G80,V3,V4,V5,V6,V7,V8) -> 1.309868011 | I80: 0.8961342356 | K80: 2.689654342 | L80: 0.9938182138 | M80: 2.673027474 | O80: 0.9931895563 | Q80: 2.671336602
B81: 2021-02-16 | C81: =AddMonths(B48,102) -> 2021-05-17 | D81: 90 | E81: 0.25 | F81: =C81-B48 -> 3104 | G81: 8.622222222 | H81: =nss(G81,V3,V4,V5,V6,V7,V8) -> 1.349613677 | I81: 0.8901487545 | K81: 2.736106317 | L81: 0.9936349159 | M81: 2.71869077 | O81: 0.9930073744 | Q81: 2.71697375
B82: 2021-05-17 | C82: =AddMonths(B48,105) -> 2021-08-16 | D82: 91 | E82: 0.2527777778 | F82: =C82-B48 -> 3195 | G82: 8.875 | H82: =nss(G82,V3,V4,V5,V6,V7,V8) -> 1.388835509 | I82: 0.884034534 | K82: 2.779359609 | L82: 0.9934573092 | M82: 2.761175118 | O82: 0.9928306293 | Q82: 2.759433349
A83: 9Y | B83: 2021-08-16 | C83: =AddMonths(B48,108) -> 2021-11-16 | D83: 92 | E83: 0.2555555556 | F83: =C83-B48 -> 3287 | G83: 9.130555556 | H83: =nss(G83,V3,V4,V5,V6,V7,V8) -> 1.427479987 | I83: 0.8777996915 | J83: 2.684124275 | K83: 2.819074215 | L83: 0.993358165 | M83: 2.80035039 | O83: 0.9927387395 | Q83: 2.798604183
B84: 2021-11-16 | C84: =AddMonths(B48,111) -> 2022-02-16 | D84: 92 | E84: 0.2555555556 | F84: =C84-B48 -> 3379 | G84: 9.386111111 | H84: =nss(G84,V3,V4,V5,V6,V7,V8) -> 1.465093747 | I84: 0.8715209921 | K84: 2.854317714 | L84: 0.9934882301 | M84: 2.835731054 | O84: 0.9928953292 | Q84: 2.834038726
B85: 2022-02-16 | C85: =AddMonths(B48,114) -> 2022-05-16 | D85: 89 | E85: 0.2472222222 | F85: =C85-B48 -> 3468 | G85: 9.633333333 | H85: =nss(G85,V3,V4,V5,V6,V7,V8) -> 1.50048845 | I85: 0.8654141902 | K85: 2.886859756 | L85: 0.9931893224 | M85: 2.867198285 | O85: 0.992582834 | Q85: 2.865447438
B86: 2022-05-16 | C86: =AddMonths(B48,117) -> 2022-08-16 | D86: 92 | E86: 0.2555555556 | F86: =C86-B48 -> 3560 | G86: 9.888888889 | H86: =nss(G86,V3,V4,V5,V6,V7,V8) -> 1.536042172 | I86: 0.8590763284 | K86: 2.916274801 | L86: 0.9931162185 | M86: 2.896199802 | O86: 0.9925156932 | Q86: 2.894448505
A87: 10Y | B87: 2022-08-16 | C87: =AddMonths(B48,120) -> 2022-11-16 | D87: 92 | E87: 0.2555555556 | F87: =C87-B48 -> 3652 | G87: 10.14444444 | H87: =nss(G87,V3,V4,V5,V6,V7,V8) -> 1.570540138 | I87: 0.8527212508 | J87: 2.778436289 | K87: 2.942449123 | L87: 0.9930512605 | M87: 2.922002811 | O87: 0.9924563298 | Q87: 2.920252258
B88: 2022-11-16 | C88: =AddMonths(B48,123) -> 2023-02-16 | D88: 92 | E88: 0.2555555556 | F88: =C88-B48 -> 3744 | G88: 10.4 | H88: =nss(G88,V3,V4,V5,V6,V7,V8) -> 1.603981084 | I88: 0.8463569914 | K88: 2.964795494 | L88: 0.9932226185 | M88: 2.944701944 | O88: 0.9926519596 | Q88: 2.943010057
B89: 2023-02-16 | C89: =AddMonths(B48,126) -> 2023-05-16 | D89: 89 | E89: 0.2472222222 | F89: =C89-B48 -> 3833 | G89: 10.64722222 | H89: =nss(G89,V3,V4,V5,V6,V7,V8) -> 1.63532733 | I89: 0.8401986434 | K89: 2.984956142 | L89: 0.9929459649 | M89: 2.963900156 | O89: 0.9923610933 | Q89: 2.96215434
B90: 2023-05-16 | C90: =AddMonths(B48,129) -> 2023-08-16 | D90: 92 | E90: 0.2555555556 | F90: =C90-B48 -> 3925 | G90: 10.90277778 | H90: =nss(G90,V3,V4,V5,V6,V7,V8) -> 1.666696433 | I90: 0.8338379431 | K90: 3.002237091 | L90: 0.9929032274 | M90: 2.980930897 | O90: 0.9923230499 | Q90: 2.979189066
A91: 11Y | B91: 2023-08-16 | C91: =AddMonths(B48,132) -> 2023-11-16 | D91: 92 | E91: 0.2555555556 | F91: =C91-B48 -> 4017 | G91: 11.15833333 | H91: =nss(G91,V3,V4,V5,V6,V7,V8) -> 1.697021439 | I91: 0.827489129 | K91: 3.016768597 | L91: 0.9928673156 | M91: 2.995250939 | O91: 0.9922915907 | Q91: 2.99351411
B92: 2023-11-16 | C92: =AddMonths(B48,135) -> 2024-02-16 | D92: 92 | E92: 0.2555555556 | F92: =C92-B48 -> 4109 | G92: 11.41388889 | H92: =nss(G92,V3,V4,V5,V6,V7,V8) -> 1.726311375 | I92: 0.8211583922 | K92: 3.0283103 | L92: 0.9929933179 | M92: 3.007091893 | O92: 0.9924341222 | Q92: 3.005398475
B93: 2024-02-16 | C93: =AddMonths(B48,138) -> 2024-05-16 | D93: 90 | E93: 0.25 | F93: =C93-B48 -> 4199 | G93: 11.66388889 | H93: =nss(G93,V3,V4,V5,V6,V7,V8) -> 1.753973528 | I93: 0.8149882985 | K93: 3.037903878 | L93: 0.9928150874 | M93: 3.016076804 | O93: 0.9922475722 | Q93: 3.014352747
B94: 2024-05-16 | C94: =AddMonths(B48,141) -> 2024-08-16 | D94: 92 | E94: 0.2555555556 | F94: =C94-B48 -> 4291 | G94: 11.91944444 | H94: =nss(G94,V3,V4,V5,V6,V7,V8) -> 1.781249751 | I94: 0.8087098536 | K94: 3.045301244 | L94: 0.9926414027 | M94: 3.022892098 | O94: 0.9920656722 | Q94: 3.021138825
A95: 12Y | B95: 2024-08-16 | C95: =AddMonths(B48,144) -> 2024-11-18 | D95: 94 | E95: 0.2611111111 | F95: =C95-B48 -> 4385 | G95: 12.18055556 | H95: =nss(G95,V3,V4,V5,V6,V7,V8) -> 1.808088686 | I95: 0.8023300302 | J95: 2.800882936 | K95: 3.049739696 | L95: 0.9928635316 | M95: 3.027975326 | O95: 0.9923097843 | Q95: 3.02628654
B96: 2024-11-18 | C96: =AddMonths(B48,147) -> 2025-02-17 | D96: 91 | E96: 0.2527777778 | F96: =C96-B48 -> 4476 | G96: 12.43333333 | H96: =nss(G96,V3,V4,V5,V6,V7,V8) -> 1.833094489 | I96: 0.7961921339 | K96: 3.051961865 | L96: 0.9930916712 | M96: 3.030877909 | O96: 0.9925594515 | Q96: 3.029253595
B97: 2025-02-17 | C97: =AddMonths(B48,150) -> 2025-05-16 | D97: 88 | E97: 0.2444444444 | F97: =C97-B48 -> 4564 | G97: 12.67777778 | H97: =nss(G97,V3,V4,V5,V6,V7,V8) -> 1.856377455 | I97: 0.7902962463 | K97: 3.053411226 | L97: 0.992620448 | M97: 3.030878419 | O97: 0.9920558257 | Q97: 3.029154395
B98: 2025-05-16 | C98: =AddMonths(B48,153) -> 2025-08-18 | D98: 94 | E98: 0.2611111111 | F98: =C98-B48 -> 4658 | G98: 12.93888889 | H98: =nss(G98,V3,V4,V5,V6,V7,V8) -> 1.880289658 | I98: 0.7840452138 | K98: 3.051811406 | L98: 0.9928577572 | M98: 3.030014628 | O98: 0.9923145023 | Q98: 3.028356716
A99: 13Y | B99: 2025-08-18 | C99: =AddMonths(B48,156) -> 2025-11-17 | D99: 91 | E99: 0.2527777778 | F99: =C99-B48 -> 4749 | G99: 13.19166667 | H99: =nss(G99,V3,V4,V5,V6,V7,V8) -> 1.902513867 | I99: 0.7780431546 | K99: 3.048839874 | L99: 0.992864593 | M99: 3.027085161 | O99: 0.9923247139 | Q99: 3.025439156
B100: 2025-11-17 | C100: =AddMonths(B48,159) -> 2026-02-16 | D100: 91 | E100: 0.2527777778 | F100: =C100-B48 -> 4840 | G100: 13.44444444 | H100: =nss(G100,V3,V4,V5,V6,V7,V8) -> 1.92384693 | I100: 0.7720927978 | K100: 3.044214965 | L100: 0.9928753563 | M100: 3.022526018 | O100: 0.9923388207 | Q100: 3.020892688
B101: 2026-02-16 | C101: =AddMonths(B48,162) -> 2026-05-18 | D101: 91 | E101: 0.2527777778 | F101: =C101-B48 -> 4931 | G101: 13.69722222 | H101: =nss(G101,V3,V4,V5,V6,V7,V8) -> 1.944307905 | I101: 0.7661968373 | K101: 3.038038849 | L101: 0.9928897886 | M101: 3.016437751 | O101: 0.9923565788 | Q101: 3.014817839
B102: 2026-05-18 | C102: =AddMonths(B48,165) -> 2026-08-17 | D102: 91 | E102: 0.2527777778 | F102: =C102-B48 -> 5022 | G102: 13.95 | H102: =nss(G102,V3,V4,V5,V6,V7,V8) -> 1.963916304 | I102: 0.7603576804 | K102: 3.030410576 | L102: 0.9929076397 | M102: 3.008917813 | O102: 0.9923777517 | Q102: 3.007312034
A103: 14Y | B103: 2026-08-17 | C103: =AddMonths(B48,168) -> 2026-11-16 | D103: 91 | E103: 0.2527777778 | F103: =C103-B48 -> 5113 | G103: 14.20277778 | H103: =nss(G103,V3,V4,V5,V6,V7,V8) -> 1.982691998 | I103: 0.7545774627 | K103: 3.021498353 | L103: 0.9928513681 | M103: 2.999898774 | O103: 0.9923190853 | Q103: 2.998290482
B104: 2026-11-16 | C104: =AddMonths(B48,171) -> 2027-02-16 | D104: 92 | E104: 0.2555555556 | F104: =C104-B48 -> 5205 | G104: 14.45833333 | H104: =nss(G104,V3,V4,V5,V6,V7,V8) -> 2.00084809 | I104: 0.7487955577 | K104: 3.010993484 | L104: 0.993029952 | M104: 2.990006715 | O104: 0.9925124688 | Q104: 2.988448577
B105: 2027-02-16 | C105: =AddMonths(B48,174) -> 2027-05-17 | D105: 90 | E105: 0.25 | F105: =C105-B48 -> 5295 | G105: 14.70833333 | H105: =nss(G105,V3,V4,V5,V6,V7,V8) -> 2.017826039 | I105: 0.7432011234 | K105: 2.99975485 | L105: 0.9929793417 | M105: 2.978694596 | O105: 0.9924595098 | Q105: 2.977135228
B106: 2027-05-17 | C106: =AddMonths(B48,177) -> 2027-08-16 | D106: 91 | E106: 0.2527777778 | F106: =C106-B48 -> 5386 | G106: 14.96111111 | H106: =nss(G106,V3,V4,V5,V6,V7,V8) -> 2.034225179 | I106: 0.7376080527 | K106: 2.987294616 | L106: 0.9929321634 | M106: 2.966180906 | O106: 0.9924101316 | Q106: 2.964621443
A107: 15Y | B107: 2027-08-16 | C107: =AddMonths(B48,180) -> 2027-11-16 | D107: 92 | E107: 0.2555555556 | F107: =C107-B48 -> 5478 | G107: 15.21666667 | H107: =nss(G107,V3,V4,V5,V6,V7,V8) -> 2.050040922 | I107: 0.7320196701 | J107: 2.478125613 | K107: 2.973617112 | L107: 0.9929643941 | M107: 2.952695914 | O107: 0.9924458974 | Q107: 2.951154104
B108: 2027-11-16 | C108: =AddMonths(B48,183) -> 2028-02-16 | D108: 92 | E108: 0.2555555556 | F108: =C108-B48 -> 5570 | G108: 15.47222222 | H108: =nss(G108,V3,V4,V5,V6,V7,V8) -> 2.065110002 | I108: 0.7264988284 | K108: 2.958916422 | L108: 0.9931500983 | M108: 2.938648135 | O108: 0.9926462642 | Q108: 2.937157332
B109: 2028-02-16 | C109: =AddMonths(B48,186) -> 2028-05-16 | D109: 90 | E109: 0.25 | F109: =C109-B48 -> 5660 | G109: 15.72222222 | H109: =nss(G109,V3,V4,V5,V6,V7,V8) -> 2.079149304 | I109: 0.7211641672 | K109: 2.943848378 | L109: 0.993034378 | M109: 2.923342643 | O109: 0.9925230336 | Q109: 2.921837323
B110: 2028-05-16 | C110: =AddMonths(B48,189) -> 2028-08-16 | D110: 92 | E110: 0.2555555556 | F110: =C110-B48 -> 5752 | G110: 15.97777778 | H110: =nss(G110,V3,V4,V5,V6,V7,V8) -> 2.092803447 | I110: 0.7157792397 | K110: 2.927581672 | L110: 0.993072524 | M110: 2.907300921 | O110: 0.9925648854 | Q110: 2.905814767
A111: 16Y | B111: 2028-08-16 | C111: =AddMonths(B48,192) -> 2028-11-16 | D111: 92 | E111: 0.2555555556 | F111: =C111-B48 -> 5844 | G111: 16.23333333 | H111: =nss(G111,V3,V4,V5,V6,V7,V8) -> 2.105773511 | I111: 0.7104638351 | K111: 2.910592786 | L111: 0.9931122923 | M111: 2.890545473 | O111: 0.9926084251 | Q111: 2.889078921
B112: 2028-11-16 | C112: =AddMonths(B48,195) -> 2029-02-16 | D112: 92 | E112: =D112/360 -> 0.2555555556 | F112: =C112-B48 -> 5936 | G112: 16.48888889 | H112: =nss(G112,V3,V4,V5,V6,V7,V8) -> 2.118080184 | I112: 0.7052182934 | K112: 2.892896408 | L112: 0.9933753643 | M112: =L112*K112 -> 2.873732023 | O112: 0.9928914685 | Q112: =O112*K112 -> 2.872332163
B113: 2029-02-16 | C113: =AddMonths(B48,198) -> 2029-05-16 | D113: 89 | E113: 0.2472222222 | F113: =C113-B48 -> 6025 | G113: =F113/360 -> 16.73611111 | H113: =nss(G113,V3,V4,V5,V6,V7,V8) -> 2.129373515 | I113: =EXP(-(H113/100)*G113) -> 0.7002104702 | K113: 2.875322237 | L113: 0.9931946262 | M113: 2.855754594 | O113: 0.9926983803 | Q113: 2.854327727
B114: 2029-05-16 | C114: =AddMonths(B48,201) -> 2029-08-16 | D114: 92 | E114: 0.2555555556 | F114: =C114-B48 -> 6117 | G114: 16.99166667 | H114: =nss(G114,V3,V4,V5,V6,V7,V8) -> 2.140434513 | I114: 0.6951028229 | K114: 2.856580964 | L114: 0.9932382513 | M114: 2.837265481 | O114: 0.9927459847 | Q114: 2.835859282
A115: 17Y | B115: 2029-08-16 | C115: =AddMonths(B48,204) -> 2029-11-16 | D115: 92 | E115: 0.2555555556 | F115: =C115-B48 -> 6209 | G115: 17.24722222 | H115: =nss(G115,V3,V4,V5,V6,V7,V8) -> 2.150892052 | I115: 0.6900652422 | K115: =100*(I115-I116)/(E116*I116) -> 2.837381502 | L115: 0.9931378615 | M115: 2.817910998 | O115: 0.992639154 | Q115: 2.816495974
B116: 2029-11-16 | C116: =AddMonths(B48,207) -> 2030-02-18 | D116: 94 | E116: 0.2611111111 | F116: =C116-B48 -> 6303 | G116: 17.50833333 | H116: =nss(G116,V3,V4,V5,V6,V7,V8) -> 2.160974054 | I116: 0.6849903417 | K116: 2.817305751 | L116: 0.9936895833 | M116: 2.799527378 | O116: 0.9932316061 | Q116: 2.798237116
B117: 2030-02-18 | C117: =AddMonths(B48,210) -> 2030-05-16 | D117: 87 | E117: 0.2416666667 | F117: =C117-B48 -> 6390 | G117: 17.75 | H117: =nss(G117,V3,V4,V5,V6,V7,V8) -> 2.169780036 | I117: 0.6803581309 | K117: 2.798419307 | L117: 0.9933731035 | M117: 2.779874472 | O117: 0.9928930679 | Q117: 2.778531131
B118: 2030-05-16 | C118: =AddMonths(B48,213) -> 2030-08-16 | D118: =C118-B118 -> 92 | E118: 0.2555555556 | F118: =C118-B48 -> 6482 | G118: 18.00555556 | H118: =nss(G118,V3,V4,V5,V6,V7,V8) -> 2.178561058 | I118: 0.6755270881 | K118: 2.778126132 | L118: 0.9932779089 | M118: 2.759451315 | O118: 0.9927919128 | Q118: 2.758101156
A119: 18Y | B119: 2030-08-16 | C119: =AddMonths(B48,216) -> 2030-11-18 | D119: 94 | E119: 0.2611111111 | F119: =C119-B48 -> 6576 | G119: 18.26666667 | H119: =nss(G119,V3,V4,V5,V6,V7,V8) -> 2.186988142 | I119: 0.6706621078 | K119: 2.757144277 | L119: 0.9935388477 | M119: 2.739329948 | O119: 0.9930725655 | Q119: 2.73804434
B120: 2030-11-18 | C120: =AddMonths(B48,219) -> 2031-02-17 | D120: 91 | E120: 0.2527777778 | F120: =C120-B48 -> 6667 | G120: 18.51944444 | H120: =nss(G120,V3,V4,V5,V6,V7,V8) -> 2.194639849 | I120: 0.6660203139 | K120: 2.73663127 | L120: 0.9937956415 | M120: 2.719652229 | O120: 0.9933487254 | Q120: 2.718429184
B121: 2031-02-17 | C121: =AddMonths(B48,222) -> 2031-05-16 | D121: 88 | E121: 0.2444444444 | F121: =C121-B48 -> 6755 | G121: 18.76388889 | H121: =nss(G121,V3,V4,V5,V6,V7,V8) -> 2.201581865 | I121: 0.6615945486 | K121: 2.716536326 | L121: 0.993422589 | M121: 2.69866855 | O121: 0.9929499183 | Q121: 2.697384523
B122: 2031-05-16 | C122: =AddMonths(B48,225) -> 2031-08-18 | D122: 94 | E122: 0.2611111111 | F122: =C122-B48 -> 6849 | G122: 19.025 | H122: =nss(G122,V3,V4,V5,V6,V7,V8) -> 2.208517818 | I122: 0.6569347931 | K122: 2.695038655 | L122: 0.9936798483 | M122: 2.678005602 | O122: 0.9932266604 | Q122: 2.676784243
A123: 19Y | B123: 2031-08-18 | C123: =AddMonths(B48,228) -> 2031-11-17 | D123: 91 | E123: 0.2527777778 | F123: =C123-B48 -> 6940 | G123: 19.27777778 | H123: =nss(G123,V3,V4,V5,V6,V7,V8) -> 2.214777443 | I123: 0.6524897336 | K123: 2.674092325 | L123: 0.9937272048 | M123: 2.657318291 | O123: 0.9932784987 | Q123: 2.65611841
B124: 2031-11-17 | C124: =AddMonths(B48,231) -> 2032-02-16 | D124: 91 | E124: 0.2527777778 | F124: =C124-B48 -> 7031 | G124: 19.53055556 | H124: =nss(G124,V3,V4,V5,V6,V7,V8) -> 2.220605761 | I124: 0.6481088347 | K124: 2.653082414 | L124: 0.9937746045 | M124: 2.636565926 | O124: 0.9933304337 | Q124: 2.635387505
B125: =C124 -> 2032-02-16 | C125: =AddMonths(B48,234) -> 2032-05-17 | D125: 91 | E125: 0.2527777778 | F125: =C125-B48 -> 7122 | G125: 19.78333333 | H125: =nss(G125,V3,V4,V5,V6,V7,V8) -> 2.226018484 | I125: 0.6437913109 | K125: 2.632040874 | L125: 0.9938219742 | M125: 2.615780058 | O125: 0.993382389 | Q125: 2.614623051
B126: 2032-05-17 | C126: =AddMonths(B48,237) -> 2032-08-16 | D126: 91 | E126: 0.2527777778 | F126: =C126-B48 -> 7213 | G126: 20.03611111 | H126: =nss(G126,V3,V4,V5,V6,V7,V8) -> 2.231030931 | I126: 0.6395363385 | K126: 2.610976539 | L126: 0.9938023465 | M126: 2.594794611 | O126: 0.9933626706 | Q126: 2.593646627
A127: 20Y | B127: 2032-08-16 | C127: =AddMonths(B48,240) -> 2032-11-16 | D127: 92 | E127: 0.2555555556 | F127: =C127-B48 -> 7305 | G127: 20.29166667 | H127: =nss(G127,V3,V4,V5,V6,V7,V8) -> 2.235706789 | I127: 0.6352973199 | J127: 2.26220482 | K127: 2.589727529 | L127: 0.9938504933 | M127: 2.573801983 | N127: =SUM(M47:M126)/SUM(L47:L126) -> 2.240812689 | O127: 0.9934155961 | Q127: 2.572675717 | R127: =SUM(Q47:Q126)/SUM(O47:O126) -> 2.240931137
B128: 2032-11-16 | C128: =AddMonths(B48,243) -> 2033-02-16 | D128: 92 | E128: 0.2555555556 | F128: =C128-B48 -> 7397 | G128: 20.54722222 | H128: =nss(G128,V3,V4,V5,V6,V7,V8) -> 2.240003796 | I128: 0.6311204433 | K128: 2.56860289 | L128: 0.9940960357 | M128: 2.55343795 | O128: 0.9936798199 | Q128: 2.552368857
B129: 2033-02-16 | C129: =AddMonths(B48,246) -> 2033-05-16 | D129: 89 | E129: 0.2472222222 | F129: =C129-B48 -> 7486 | G129: 20.79444444 | H129: =nss(G129,V3,V4,V5,V6,V7,V8) -> 2.243813913 | I129: 0.6271380183 | K129: 2.548103403 | L129: 0.9939444997 | M129: 2.532673362 | O129: 0.9935191195 | Q129: 2.531589449
B130: 2033-05-16 | C130: =AddMonths(B48,249) -> 2033-08-16 | D130: 92 | E130: 0.2555555556 | F130: =C130-B48 -> 7578 | G130: 21.05 | H130: =nss(G130,V3,V4,V5,V6,V7,V8) -> 2.247407825 | I130: 0.6230806296 | K130: 2.527085861 | L130: 0.9939918112 | M130: 2.511902652 | O130: 0.9935713191 | Q130: 2.510840032
A131: 21Y | B131: 2033-08-16 | C131: =AddMonths(B48,252) -> 2033-11-16 | D131: 92 | E131: 0.2555555556 | F131: =C131-B48 -> 7670 | G131: 21.30555556 | H131: =nss(G131,V3,V4,V5,V6,V7,V8) -> 2.250665044 | I131: 0.6190825275 | K131: 2.506191461 | L131: 0.9940387409 | M131: 2.491251405 | O131: 0.9936231657 | Q131: 2.490209894
B132: 2033-11-16 | C132: =AddMonths(B48,255) -> 2034-02-16 | D132: 92 | E132: 0.2555555556 | F132: =C132-B48 -> 7762 | G132: 21.56111111 | H132: =nss(G132,V3,V4,V5,V6,V7,V8) -> 2.253598978 | I132: 0.6151427159 | K132: 2.485519954 | L132: 0.9942768354 | M132: 2.471294914 | O132: 0.9938794344 | Q132: 2.470307166
B133: 2034-02-16 | C133: =AddMonths(B48,258) -> 2034-05-16 | D133: 89 | E133: 0.2472222222 | F133: =C133-B48 -> 7851 | G133: 21.80833333 | H133: =nss(G133,V3,V4,V5,V6,V7,V8) -> 2.256141851 | I133: 0.6113858977 | K133: 2.465519172 | L133: 0.9941297895 | M133: 2.451046056 | O133: 0.9937239563 | Q133: 2.450045466
B134: 2034-05-16 | C134: =AddMonths(B48,261) -> 2034-08-16 | D134: 92 | E134: 0.2555555556 | F134: =C134-B48 -> 7943 | G134: 22.06388889 | H134: =nss(G134,V3,V4,V5,V6,V7,V8) -> 2.25847738 | I134: 0.6075578149 | K134: 2.445101926 | L134: 0.9941753425 | M134: 2.430860044 | O134: 0.9937744878 | Q134: 2.429879914
A135: 22Y | B135: 2034-08-16 | C135: =AddMonths(B48,264) -> 2034-11-16 | D135: 92 | E135: 0.2555555556 | F135: =C135-B48 -> 8035 | G135: 22.31944444 | H135: =nss(G135,V3,V4,V5,V6,V7,V8) -> 2.260527108 | I135: 0.6037850077 | K135: 2.424878271 | L135: 0.9942203613 | M135: 2.410863351 | O135: 0.9938244979 | Q135: 2.40990343
B136: 2034-11-16 | C136: =AddMonths(B48,267) -> 2035-02-16 | D136: 92 | E136: 0.2555555556 | F136: =C136-B48 -> 8127 | G136: 22.575 | H136: =nss(G136,V3,V4,V5,V6,V7,V8) -> 2.262302907 | I136: 0.6000664492 | K136: 2.404945957 | L136: 0.9944506178 | M136: 2.391599992 | O136: 0.9940723477 | Q136: 2.390690273
B137: 2035-02-16 | C137: =AddMonths(B48,270) -> 2035-05-16 | D137: 89 | E137: 0.2472222222 | F137: =C137-B48 -> 8216 | G137: 22.82222222 | H137: =nss(G137,V3,V4,V5,V6,V7,V8) -> 2.263770951 | I137: 0.5965198044 | K137: 2.385709382 | L137: 0.9943072591 | M137: 2.372128157 | O137: 0.9939212373 | Q137: 2.371207221
B138: 2035-05-16 | C138: =AddMonths(B48,273) -> 2035-08-16 | D138: 92 | E138: 0.2555555556 | F138: =C138-B48 -> 8308 | G138: 23.07777778 | H138: =nss(G138,V3,V4,V5,V6,V7,V8) -> 2.265041047 | I138: 0.5929049737 | K138: 2.366139283 | L138: 0.9943505285 | M138: 2.352771847 | O138: 0.9939695125 | Q138: 2.35187031
A139: 23Y | B139: 2035-08-16 | C139: =AddMonths(B48,276) -> 2035-11-16 | D139: 92 | E139: 0.2555555556 | F139: =C139-B48 -> 8400 | G139: 23.33333333 | H139: =nss(G139,V3,V4,V5,V6,V7,V8) -> 2.266070277 | I139: 0.5893413443 | K139: 2.346756542 | L139: 0.994272093 | M139: 2.333314539 | O139: 0.9938880099 | Q139: 2.332413189
B140: 2035-11-16 | C140: =AddMonths(B48,279) -> 2036-02-18 | D140: 94 | E140: 0.2611111111 | F140: =C140-B48 -> 8494 | G140: 23.59444444 | H140: =nss(G140,V3,V4,V5,V6,V7,V8) -> 2.266883957 | I140: 0.5857520653 | K140: 2.327436192 | L140: 0.9946764494 | M140: 2.315045967 | O140: 0.9943214754 | Q140: 2.314219788
B141: 2036-02-18 | C141: =AddMonths(B48,282) -> 2036-05-16 | D141: 88 | E141: 0.2444444444 | F141: =C141-B48 -> 8582 | G141: 23.83888889 | H141: =nss(G141,V3,V4,V5,V6,V7,V8) -> 2.267437228 | I141: 0.5824384052 | K141: 2.309275408 | L141: 0.9943562569 | M141: 2.296242451 | O141: 0.9939822615 | Q141: 2.295378792
B142: 2036-05-16 | C142: =AddMonths(B48,285) -> 2036-08-18 | D142: 94 | E142: 0.2611111111 | F142: =C142-B48 -> 8676 | G142: 24.1 | H142: =nss(G142,V3,V4,V5,V6,V7,V8) -> 2.267815393 | I142: 0.5789474823 | K142: 2.290406359 | L142: 0.9945762942 | M142: 2.277983869 | O142: 0.9942191138 | Q142: 2.27716578
A143: 24Y | B143: 2036-08-18 | C143: =AddMonths(B48,288) -> 2036-11-17 | D143: 91 | E143: 0.2527777778 | F143: =C143-B48 -> 8767 | G143: 24.35277778 | H143: =nss(G143,V3,V4,V5,V6,V7,V8) -> 2.267981326 | I143: 0.5756148803 | K143: 2.27233378 | L143: 0.9946153679 | M143: 2.260098099 | O143: 0.9942630375 | Q143: 2.259297487
B144: 2036-11-17 | C144: =AddMonths(B48,291) -> 2037-02-16 | D144: 91 | E144: 0.2527777778 | F144: =C144-B48 -> 8858 | G144: 24.60555556 | H144: =nss(G144,V3,V4,V5,V6,V7,V8) -> 2.267959252 | I144: 0.5723274573 | K144: 2.254536309 | L144: 0.9946537577 | M144: 2.242483012 | O144: 0.9943062579 | Q144: 2.241699561
B145: 2037-02-16 | C145: =AddMonths(B48,294) -> 2037-05-18 | D145: 91 | E145: 0.2527777778 | F145: =C145-B48 -> 8949 | G145: 24.85833333 | H145: =nss(G145,V3,V4,V5,V6,V7,V8) -> 2.267757678 | I145: 0.569084265 | K145: 2.237018844 | L145: 0.9946914556 | M145: 2.22514353 | O145: 0.9943487639 | Q145: 2.224376922
B146: 2037-05-18 | C146: =AddMonths(B48,297) -> 2037-08-17 | D146: 91 | E146: 0.2527777778 | F146: =C146-B48 -> 9040 | G146: 25.11111111 | H146: =nss(G146,V3,V4,V5,V6,V7,V8) -> 2.26738482 | I146: 0.5658843663 | K146: 2.219785555 | L146: 0.9947284553 | M146: 2.208083856 | O146: 0.9943905466 | Q146: 2.207333771
A147: 25Y | B147: 2037-08-17 | C147: =AddMonths(B48,300) -> 2037-11-16 | D147: 91 | E147: 0.2527777778 | F147: =C147-B48 -> 9131 | G147: 25.36388889 | H147: =nss(G147,V3,V4,V5,V6,V7,V8) -> 2.266848609 | I147: 0.5627268359 | K147: 2.202815155 | L147: 0.9947075736 | M147: 2.191156918 | O147: 0.9943708051 | Q147: 2.19041508
B148: 2037-11-16 | C148: =AddMonths(B48,303) -> 2038-02-16 | D148: 92 | E148: 0.2555555556 | F148: =C148-B48 -> 9223 | G148: 25.61944444 | H148: =nss(G148,V3,V4,V5,V6,V7,V8) -> 2.266148254 | I148: 0.5595767453 | K148: 2.186027591 | L148: 0.9948575273 | M148: 2.174786004 | O148: 0.9945327132 | Q148: 2.174075952
B149: 2038-02-16 | C149: =AddMonths(B48,306) -> 2038-05-17 | D149: 90 | E149: 0.25 | F149: =C149-B48 -> 9313 | G149: 25.86944444 | H149: =nss(G149,V3,V4,V5,V6,V7,V8) -> 2.265316458 | I149: 0.5565352418 | K149: 2.169822453 | L149: 0.9948352263 | M149: 2.158615811 | O149: 0.9945114877 | Q149: 2.157913356
B150: =C149 -> 2038-05-17 | C150: =AddMonths(B48,309) -> 2038-08-16 | D150: 91 | E150: 0.2527777778 | F150: =C150-B48 -> 9404 | G150: 26.12222222 | H150: =nss(G150,V3,V4,V5,V6,V7,V8) -> 2.264335016 | I150: 0.5534993923 | K150: 2.153731637 | L150: 0.9948133541 | M150: 2.142560993 | O150: 0.994490809 | Q150: 2.141866318
A151: 26Y | B151: =C150 -> 2038-08-16 | C151: =AddMonths(B48,312) -> 2038-11-16 | D151: 92 | E151: 0.2555555556 | F151: =C151-B48 -> 9496 | G151: 26.37777778 | H151: =nss(G151,V3,V4,V5,V6,V7,V8) -> 2.263206245 | I151: 0.5504696181 | K151: 2.137788325 | L151: 0.99484755 | M151: 2.126773477 | O151: 0.9945297235 | Q151: 2.126094031
B152: =C151 -> 2038-11-16 | C152: =AddMonths(B48,315) -> 2039-02-16 | D152: 92 | E152: 0.2555555556 | F152: =C152-B48 -> 9588 | G152: 26.63333333 | H152: =nss(G152,V3,V4,V5,V6,V7,V8) -> 2.261946989 | I152: 0.5474786128 | K152: 2.122212273 | L152: 0.9950470048 | M152: 2.111700966 | O152: 0.9947439414 | Q152: 2.111057801
B153: 2039-02-16 | C153: =AddMonths(B48,318) -> 2039-05-16 | D153: 89 | E153: 0.2472222222 | F153: =C153-B48 -> 9677 | G153: 26.88055556 | H153: =nss(G153,V3,V4,V5,V6,V7,V8) -> 2.260610817 | I153: 0.5446212138 | K153: 2.107305758 | L153: 0.9949126981 | M153: 2.096585257 | O153: 0.9946040322 | Q153: 2.095934804
B154: 2039-05-16 | C154: =AddMonths(B48,321) -> 2039-08-16 | D154: 92 | E154: 0.2555555556 | F154: =C154-B48 -> 9769 | G154: 27.13611111 | H154: =nss(G154,V3,V4,V5,V6,V7,V8) -> 2.259113813 | I154: 0.5417039555 | K154: 2.092261241 | L154: 0.9949447361 | M154: 2.081684308 | O154: 0.9946406601 | Q154: 2.081048101
A155: 27Y | B155: 2039-08-16 | C155: =AddMonths(B48,324) -> 2039-11-16 | D155: 92 | E155: 0.2555555556 | F155: =C155-B48 -> 9861 | G155: 27.39166667 | H155: =nss(G155,V3,V4,V5,V6,V7,V8) -> 2.257505131 | I155: 0.5388229286 | K155: 2.077518887 | L155: 0.9949760547 | M155: 2.067081545 | O155: 0.9946765211 | Q155: 2.066459259
B156: 2039-11-16 | C156: =AddMonths(B48,327) -> 2040-02-16 | D156: 92 | E156: 0.2555555556 | F156: =C156-B48 -> 9953 | G156: 27.64722222 | H156: =nss(G156,V3,V4,V5,V6,V7,V8) -> 2.25579064 | I156: 0.5359773099 | K156: 2.063114451 | L156: 0.9951146239 | M156: 2.053035361 | O156: 0.9948259178 | Q156: 2.052439728
B157: 2040-02-16 | C157: =AddMonths(B48,330) -> 2040-05-16 | D157: 90 | E157: 0.25 | F157: =C157-B48 -> 10043 | G157: 27.89722222 | H157: =nss(G157,V3,V4,V5,V6,V7,V8) -> 2.254016462 | I157: 0.5332270389 | K157: 2.04924045 | L157: 0.9950359128 | M157: 2.039067842 | O157: 0.9947452192 | Q157: 2.038472141
B158: 2040-05-16 | C158: =AddMonths(B48,333) -> 2040-08-16 | D158: 92 | E158: 0.2555555556 | F158: =C158-B48 -> 10135 | G158: 28.15277778 | H158: =nss(G158,V3,V4,V5,V6,V7,V8) -> 2.252109078 | I158: 0.5304491046 | K158: 2.035390568 | L158: 0.9950651227 | M158: 2.025346165 | O158: 0.9947788207 | Q158: 2.024763429
A159: 28Y | B159: 2040-08-16 | C159: =AddMonths(B48,336) -> 2040-11-16 | D159: 92 | E159: 0.2555555556 | F159: =C159-B48 -> 10227 | G159: 28.40833333 | H159: =nss(G159,V3,V4,V5,V6,V7,V8) -> 2.250112067 | I159: 0.5277042228 | K159: 2.021804936 | L159: 0.9949875574 | M159: 2.011670755 | O159: 0.9946995433 | Q159: 2.011088447
B160: 2040-11-16 | C160: =AddMonths(B48,339) -> 2041-02-18 | D160: 94 | E160: 0.2611111111 | F160: =C160-B48 -> 10321 | G160: 28.66944444 | H160: =nss(G160,V3,V4,V5,V6,V7,V8) -> 2.247984292 | I160: 0.5249330188 | K160: 2.008367059 | L160: 0.9953858536 | M160: 1.999100159 | O160: 0.9951231709 | Q160: 1.998572596
B161: 2041-02-18 | C161: =AddMonths(B48,342) -> 2041-05-16 | D161: 87 | E161: 0.2416666667 | F161: =C161-B48 -> 10408 | G161: 28.91111111 | H161: =nss(G161,V3,V4,V5,V6,V7,V8) -> 2.245940734 | I161: 0.5223975343 | K161: 1.996026308 | L161: 0.9951477431 | M161: 1.986341075 | O161: 0.9948741528 | Q161: 1.985794982
B162: 2041-05-16 | C162: =AddMonths(B48,345) -> 2041-08-16 | D162: 92 | E162: 0.2555555556 | F162: =C162-B48 -> 10500 | G162: 29.16666667 | H162: =nss(G162,V3,V4,V5,V6,V7,V8) -> 2.243706553 | I162: 0.519746331 | K162: 1.983309896 | L162: 0.9950698869 | M162: 1.973531954 | O162: 0.9947946874 | Q162: 1.972986148
A163: 29Y | B163: 2041-08-16 | C163: =AddMonths(B48,348) -> 2041-11-18 | D163: 94 | E163: 0.2611111111 | F163: =C163-B48 -> 10594 | G163: 29.42777778 | H163: =nss(G163,V3,V4,V5,V6,V7,V8) -> 2.241350658 | I163: 0.5170686175 | K163: 1.970678603 | L163: 0.9952525498 | M163: 1.961322905 | O163: 0.9949901812 | Q163: 1.96080586
B164: 2041-11-18 | C164: =AddMonths(B48,351) -> 2042-02-17 | D164: 91 | E164: 0.2527777778 | F164: =C164-B48 -> 10685 | G164: 29.68055556 | H164: =nss(G164,V3,V4,V5,V6,V7,V8) -> 2.239003784 | I164: 0.5145056398 | K164: 1.9587274 | L164: 0.9954321457 | M164: 1.949780219 | O164: 0.9951821604 | Q164: 1.949290565
B165: 2042-02-17 | C165: =AddMonths(B48,354) -> 2042-05-16 | D165: 88 | E165: 0.2444444444 | F165: =C165-B48 -> 10773 | G165: 29.925 | H165: =nss(G165,V3,V4,V5,V6,V7,V8) -> 2.236676145 | I165: 0.5120539254 | K165: 1.947328552 | L165: 0.9951462781 | M165: 1.93787676 | O165: 0.9948833723 | Q165: 1.937364796
B166: 2042-05-16 | C166: =AddMonths(B48,357) -> 2042-08-18 | D166: 94 | E166: 0.2611111111 | F166: =C166-B48 -> 10867 | G166: 30.18611111 | H166: =nss(G166,V3,V4,V5,V6,V7,V8) -> 2.234130596 | I166: 0.509463461 | K166: 1.935535595 | L166: 0.9953246227 | M166: 1.926486236 | O166: 0.9950739824 | Q166: 1.926001113
A167: 30Y | B167: 2042-08-18 | C167: =AddMonths(B48,360) -> 2042-11-17 | D167: 91 | E167: 0.2527777778 | F167: =C167-B48 -> 10958 | G167: 30.43888889 | H167: =nss(G167,V3,V4,V5,V6,V7,V8) -> 2.231611741 | I167: 0.5069829941 | J167: 2.221300877 | K167: 1.924358081 | L167: 0.9953474325 | M167: 1.915404875 | O167: 0.9951005846 | Q167: 1.914929852
B168: =C167 -> 2042-11-17 | C168: =AddMonths(B48,363) -> 2043-02-16 | D168: 91 | E168: 0.2527777778 | F168: =C168-B48 -> 11049 | G168: 30.69166667 | H168: =nss(G168,V3,V4,V5,V6,V7,V8) -> 2.229042764 | I168: 0.5045287897

Sheet EUR_6M
A2: Tenor | B2: Stamp | C2: Maturity | D2: Par Rate | E2: Zero Cpn. | F2: Discount | G2: Forward 3M | I2: Days | J2: t(ACT/360) | K2: NSS | L2: NSS_F | M2: Discount NSS | N2: Implied Rate | O2: Par Rate | Q2: Error
A3: O/N | B3: 2012-11-14 | C3: =AddDays(B3,1) -> 2012-11-15 | D3: 0.01429 | E3: 0.0144884693 | F3: 0.9999996031 | G3: 0.1848392567 | I3: =C3-B3 -> 1 | J3: =I3/360 -> 0.002777777778 | K3: =nss(J3,V3,V4,V5,V6,V7,V8) -> 0.3310116983 | L3: =nss_F(J3,V3,V4,V5,V6,V7,V8) -> 0.3307976461 | M3: =EXP(-K3/100*J3) -> 0.9999908053 | N3: =O3 -> 0.01429 | O3: 0.01429 | Q3: =POWER(O3-N3,2) -> 0 | T3: β₀ | U3: 1584.393179 | V3: =U3/1000 -> 1.584393179
A4: T/N | B4: 2012-11-15 | C4: =AddDays(B4,1) -> 2012-11-16 | D4: 0.01429 | E4: 0.0144884693 | F4: 0.9999992061 | G4: 0.191 | I4: 1 | J4: 0.002777777778 | K4: =nss(J4,V3,V4,V5,V6,V7,V8) -> 0.3310116983 | L4: =nss_F(J4,V3,V4,V5,V6,V7,V8) -> 0.3307976461 | M4: 0.9999908053 | N4: 0.01429 | O4: 0.01429 | Q4: 0 | T4: β₁ | U4: 1874.68331 | V4: =(U4/100)-20 -> -1.253166898
A5: DD | B5: 2012-11-16 | C5: =AddDays(B5,3) -> 2012-11-19 | D5: 0.078 | E5: 0.0360198908 | F5: 0.9999950658 | G5: 0.1975884887 | I5: 3 | J5: 0.008333333333 | K5: =nss(J5,V3,V4,V5,V6,V7,V8) -> 0.3305857135 | L5: =nss_F(J5,V3,V4,V5,V6,V7,V8) -> 0.3299499132 | M5: 0.9999724516 | N5: 0.078 | O5: 0.078 | Q5: 0 | T5: β₂ | U5: 1122.482632 | V5: =(U5/100)-20 -> -8.775173678
A6: 1 Week | B6: 2012-11-16 | C6: =AddDays(B6,7) -> 2012-11-23 | D6: 0.078 | E6: 0.0647284527 | F6: 0.9999840397 | G6: 0.2138421059 | I6: 7 | J6: 0.01944444444 | K6: =nss(J6,V3,V4,V5,V6,V7,V8) -> 0.329746433 | L6: =nss_F(J6,V3,V4,V5,V6,V7,V8) -> 0.3282924636 | M6: 0.9999358847 | N6: 0.078 | O6: 0.078 | Q6: 0 | T6: β₃ | U6: 3040.935822 | V6: =(U6/100)-20 -> 10.40935822
A7: 1 Month | B7: 2012-11-16 | C7: =AddMonths(B7,1) -> 2012-12-17 | D7: 0.108 | E7: 0.1037369426 | F7: 0.9999062148 | G7: 0.2912731693 | I7: 31 | J7: 0.08611111111 | K7: =nss(J7,V3,V4,V5,V6,V7,V8) -> 0.3250621265 | L7: =nss_F(J7,V3,V4,V5,V6,V7,V8) -> 0.3193965582 | M7: 0.9997201246 | N7: 0.108 | O7: 0.108 | Q7: 0 | T7: τ₁ | U7: 418.134088 | V7: =U7/100 -> 4.18134088
A8: 2 Months | B8: 2012-11-16 | C8: =AddMonths(B8,2) -> 2013-01-16 | D8: 0.144 | E8: 0.141807787 | F8: 0.9997552658 | G8: 0.4062802116 | I8: 61 | J8: 0.1694444444 | K8: =nss(J8,V3,V4,V5,V6,V7,V8) -> 0.3200357543 | L8: =nss_F(J8,V3,V4,V5,V6,V7,V8) -> 0.310733185 | M8: 0.9994578642 | N8: 0.144 | O8: 0.144 | Q8: 0 | T8: τ₂ | U8: 633.1478225 | V8: =U8/100 -> 6.331478225
A9: 3 Months | B9: 2012-11-16 | C9: =AddMonths(B9,3) -> 2013-02-18 | D9: 0.191 | E9: 0.1898729203 | F9: 0.9995007329 | G9: 0.5291669484 | I9: 94 | J9: 0.2611111111 | K9: =nss(J9,V3,V4,V5,V6,V7,V8) -> 0.3155365569 | L9: =nss_F(J9,V3,V4,V5,V6,V7,V8) -> 0.3042210624 | M9: 0.9991764383 | N9: =-100*(LN(M9)-LN(M4))/(J9-J4) -> 0.3153701575 | O9: 0.191 | Q9: 0.01546793607
A10: 4 Months | B10: 2012-11-16 | C10: =AddMonths(B10,4) -> 2013-03-18 | D10: 0.244747 | E10: 0.2442534353 | F10: 0.9991705517 | G10: 0.4978781721 | I10: 122 | J10: 0.3388888889 | K10: =nss(J10,V3,V4,V5,V6,V7,V8) -> 0.3125365229 | L10: =nss_F(J10,V3,V4,V5,V6,V7,V8) -> 0.3010623194 | M10: 0.9989414092 | N10: =-100*(LN(M10)-LN(M4))/(J10-J4) -> 0.3123838355 | O10: 0.244747 | Q10: 0.004574741521
A11: 5 Months | B11: 2012-11-16 | C11: =AddMonths(B11,5) -> 2013-04-16 | D11: 0.300414 | E11: 0.3005761115 | F11: 0.9987408442 | G11: 0.4324320962 | I11: 151 | J11: 0.4194444444 | K11: =nss(J11,V3,V4,V5,V6,V7,V8) -> 0.3101938384 | L11: =nss_F(J11,V3,V4,V5,V6,V7,V8) -> 0.2999771112 | M11: 0.9986997552 | N11: =-100*(LN(M11)-LN(M4))/(J11-J4) -> 0.3100550527 | O11: 0.300414 | Q11: 9.294989624e-05
A12: 6 Months | B12: 2012-11-16 | C12: =AddMonths(B12,6) -> 2013-05-16 | D12: 0.358 | E12: 0.358840949 | F12: 0.9982024971 | G12: 0.3232075403 | I12: 181 | J12: 0.5027777778 | K12: =nss(J12,V3,V4,V5,V6,V7,V8) -> 0.3085620991 | L12: =nss_F(J12,V3,V4,V5,V6,V7,V8) -> 0.3010912622 | M12: 0.9984498211 | N12: =-100*(LN(M12)-LN(M4))/(J12-J4) -> 0.3084373791 | O12: 0.358 | Q12: 0.002456453391
A13: 7 Months | B13: 2012-11-16 | C13: =AddMonths(B13,7) -> 2013-06-17 | D13: 0.354106 | E13: 0.3552011322 | F13: 0.9979099067 | G13: 0.3160217633 | I13: 213 | J13: 0.5916666667 | K13: =nss(J13,V3,V4,V5,V6,V7,V8) -> 0.3076783197 | L13: =nss_F(J13,V3,V4,V5,V6,V7,V8) -> 0.304668524 | M13: 0.9981812259 | N13: =-100*(LN(M13)-LN(M4))/(J13-J4) -> 0.3075682566 | O13: 0.354106 | Q13: 0.00216576156
A14: 8 Months | B14: 2012-11-16 | C14: =AddMonths(B14,8) -> 2013-07-16 | D14: 0.350578 | E14: 0.3519025483 | F14: 0.9976503204 | G14: 0.3095097668 | I14: 242 | J14: 0.6722222222 | K14: =nss(J14,V3,V4,V5,V6,V7,V8) -> 0.3076146208 | L14: =nss_F(J14,V3,V4,V5,V6,V7,V8) -> 0.3099382605 | M14: 0.9979342827 | N14: =-100*(LN(M14)-LN(M4))/(J14-J4) -> 0.3075175375 | O14: 0.350578 | Q14: 0.001854203434
A15: 9 Months | B15: 2012-11-16 | C15: =AddMonths(B15,9) -> 2013-08-16 | D15: 0.346806 | E15: 0.3483764759 | F15: 0.9973786874 | G15: 0.3023267794 | I15: 273 | J15: 0.7583333333 | K15: =nss(J15,V3,V4,V5,V6,V7,V8) -> 0.3082940704 | L15: =nss_F(J15,V3,V4,V5,V6,V7,V8) -> 0.3175986372 | M15: 0.9976648341 | N15: =-100*(LN(M15)-LN(M4))/(J15-J4) -> 0.3082105497 | O15: 0.346806 | Q15: 0.001489608782
A16: 10 Months | B16: 2012-11-16 | C16: =AddMonths(B16,10) -> 2013-09-16 | D16: 0.343034 | E16: 0.3448504034 | F16: 0.9971131005 | G16: 0.3258579795 | I16: 304 | J16: 0.8444444444 | K16: =nss(J16,V3,V4,V5,V6,V7,V8) -> 0.3097185114 | L16: =nss_F(J16,V3,V4,V5,V6,V7,V8) -> 0.3272501398 | M16: 0.9973880164 | N16: =-100*(LN(M16)-LN(M4))/(J16-J4) -> 0.3096482368 | O16: 0.343034 | Q16: 0.001114609183
A17: 11 Months | B17: 2012-11-16 | C17: =AddMonths(B17,11) -> 2013-10-16 | D17: 0.339383 | E17: 0.3414380752 | F17: 0.9968618332 | G17: 0.3566212916 | I17: 334 | J17: 0.9277777778 | K17: =nss(J17,V3,V4,V5,V6,V7,V8) -> 0.3117805864 | L17: =nss_F(J17,V3,V4,V5,V6,V7,V8) -> 0.3383896617 | M17: 0.9971115486 | N17: =-100*(LN(M17)-LN(M4))/(J17-J4) -> 0.3117228353 | O17: 0.339383 | Q17: 0.0007650847124
A18: 1 Year | B18: 2012-11-16 | C18: =AddYears(B18,1) -> 2013-11-18 | D18: 0.34 | E18: 0.3376845142 | F18: 0.9965919689 | G18: 0.3952689609 | I18: 367 | J18: 1.019444444 | K18: =nss(J18,V3,V4,V5,V6,V7,V8) -> 0.3147963907 | L18: =nss_F(J18,V3,V4,V5,V6,V7,V8) -> 0.3525792264 | M18: 0.9967959696 | N18: =100*(M4-M18)/P18 -> 0.3143972155 | O18: 0.34 | P18: =J18*M18 -> 1.016178113 | Q18: 0.0006555025753
A19: 2 Years | B19: 2012-11-16 | C19: =AddYears(B19,2) -> 2014-11-17 | D19: 0.389 | E19: 0.3873274974 | F19: 0.9922517883 | G19: 0.6198780152 | I19: 731 | J19: 2.030555556 | K19: =nss(J19,V3,V4,V5,V6,V7,V8) -> 0.3917120887 | L19: =nss_F(J19,V3,V4,V5,V6,V7,V8) -> 0.613622504 | M19: 0.9920776172 | N19: =100*(M4-M19)/SUM(P18:P19) -> 0.3918818926 | O19: 0.389 | P19: =(J19-J18)*M19 -> 1.003100702 | Q19: 8.305305073e-06
A20: 3 Years | B20: 2012-11-16 | C20: =AddYears(B20,3) -> 2015-11-16 | D20: 0.495 | E20: 0.4935107784 | F20: 0.9852770926 | G20: 1.001356834 | I20: 1095 | J20: 3.041666667 | K20: =nss(J20,V3,V4,V5,V6,V7,V8) -> 0.5258536078 | L20: =nss_F(J20,V3,V4,V5,V6,V7,V8) -> 0.9879229849 | M20: 0.9841325223 | N20: =100*(M4-M20)/SUM(P18:P20) -> 0.5260936289 | O20: 0.495 | P20: 0.9950673281 | Q20: 0.0009668137557
A21: 4 Years | B21: 2012-11-16 | C21: =AddYears(B21,4) -> 2016-11-16 | D21: 0.655 | E21: 0.6537187236 | F21: 0.9741378269 | G21: 1.462125897 | I21: 1461 | J21: 4.058333333 | K21: =nss(J21,V3,V4,V5,V6,V7,V8) -> 0.6928384825 | L21: =nss_F(J21,V3,V4,V5,V6,V7,V8) -> 1.397577632 | M21: 0.9722739282 | N21: =100*(M4-M21)/SUM(P18:P21) -> 0.6924329586 | O21: 0.655 | P21: 0.9884784937 | Q21: 0.001401226393
A22: 5 Years | B22: 2012-11-16 | C22: =AddYears(B22,5) -> 2017-11-16 | D22: 0.847 | E22: 0.8475916469 | F22: 0.9584391075 | G22: 1.875388328 | I22: 1826 | J22: 5.072222222 | K22: =nss(J22,V3,V4,V5,V6,V7,V8) -> 0.8734909157 | L22: =nss_F(J22,V3,V4,V5,V6,V7,V8) -> 1.790106906 | M22: 0.956661748 | N22: =100*(M4-M22)/SUM(P18:P22) -> 0.8713258006 | O22: 0.847 | P22: 0.9699487168 | Q22: 0.0005917445766
A23: 6 Years | B23: 2012-11-16 | C23: =AddYears(B23,6) -> 2018-11-16 | D23: 1.043 | E23: 1.047068288 | F23: 0.9390278343 | G23: 2.194190572 | I23: 2191 | J23: 6.086111111 | K23: =nss(J23,V3,V4,V5,V6,V7,V8) -> 1.055977109 | L23: =nss_F(J23,V3,V4,V5,V6,V7,V8) -> 2.138976149 | M23: 0.937753704 | N23: =100*(M4-M23)/SUM(P18:P23) -> 1.050672087 | O23: 1.043 | P23: 0.950778061 | Q23: 5.886091473e-05
A24: 7 Years | B24: 2012-11-16 | C24: =AddYears(B24,7) -> 2019-11-18 | D24: 1.226 | E24: 1.235021156 | F24: 0.9170248921 | G24: 2.444674766 | I24: 2558 | J24: 7.105555556 | K24: =nss(J24,V3,V4,V5,V6,V7,V8) -> 1.233129906 | L24: =nss_F(J24,V3,V4,V5,V6,V7,V8) -> 2.432343453 | M24: 0.9161082627 | N24: =100*(M4-M24)/SUM(P18:P24) -> 1.223228204 | O24: 1.226 | P24: 0.9339214789 | Q24: 7.682850361e-06
A25: 8 Years | B25: 2012-11-16 | C25: =AddYears(B25,8) -> 2020-11-16 | D25: 1.39 | E25: 1.404654065 | F25: 0.8935738817 | G25: 2.614701271 | I25: 2922 | J25: 8.116666667 | K25: =nss(J25,V3,V4,V5,V6,V7,V8) -> 1.397480792 | L25: =nss_F(J25,V3,V4,V5,V6,V7,V8) -> 2.662479504 | M25: 0.8927677078 | N25: =100*(M4-M25)/SUM(P18:P25) -> 1.381712415 | O25: 1.39 | P25: 0.902687349 | Q25: 6.868406937e-05
A26: 9 Years | B26: 2012-11-16 | C26: =AddYears(B26,9) -> 2021-11-16 | D26: 1.533 | E26: 1.554423234 | F26: 0.8692987396 | G26: 2.770671892 | I26: 3287 | J26: 9.130555556 | K26: =nss(J26,V3,V4,V5,V6,V7,V8) -> 1.548012225 | L26: =nss_F(J26,V3,V4,V5,V6,V7,V8) -> 2.834193502 | M26: 0.8681922382 | N26: =100*(M4-M26)/SUM(P18:P26) -> 1.525373868 | O26: 1.533 | P26: 0.8802504638 | Q26: 5.81578821e-05
A27: 10 Years | B27: 2012-11-16 | C27: =AddYears(B27,10) -> 2022-11-16 | D27: 1.66 | E27: 1.688810561 | F27: 0.8444530568 | G27: 2.845150584 | I27: 3652 | J27: 10.14444444 | K27: =nss(J27,V3,V4,V5,V6,V7,V8) -> 1.682863589 | L27: =nss_F(J27,V3,V4,V5,V6,V7,V8) -> 2.951859878 | M27: 0.8430599892 | N27: =100*(M4-M27)/SUM(P18:P27) -> 1.6527419 | O27: 1.66 | P27: 0.8547691558 | Q27: 5.268002092e-05
A28: 11 Years | B28: 2012-11-16 | C28: =AddYears(B28,11) -> 2023-11-16 | D28: 1.768199 | E28: 1.804314591 | F28: 0.8198184726 | G28: 3.086359493 | I28: 4017 | J28: 11.15833333 | K28: =nss(J28,V3,V4,V5,V6,V7,V8) -> 1.801697403 | L28: =nss_F(J28,V3,V4,V5,V6,V7,V8) -> 3.02223967 | M28: 0.8178802049 | N28: =100*(M4-M28)/SUM(P18:P28) -> 1.763882222 | O28: 1.768199 | P28: 0.8292396522 | Q28: 1.86345685e-05
A29: 12 Years | B29: 2012-11-16 | C29: =AddYears(B29,12) -> 2024-11-18 | D29: 1.877 | E29: 1.921816324 | F29: 0.7937501606 | G29: 2.846684571 | I29: 4385 | J29: 12.18055556 | K29: =nss(J29,V3,V4,V5,V6,V7,V8) -> 1.905667799 | L29: =nss_F(J29,V3,V4,V5,V6,V7,V8) -> 3.052794451 | M29: 0.7928502421 | N29: =100*(M4-M29)/SUM(P18:P29) -> 1.860284101 | O29: 1.877 | P29: 0.8104691363 | Q29: 0.0002794212915
A30: 13 Years | B30: 2012-11-16 | C30: =AddYears(B30,13) -> 2025-11-17 | D30: 1.948933 | E30: 1.999342695 | F30: 0.7708640815 | G30: 3.017818507 | I30: 4749 | J30: 13.19166667 | K30: =nss(J30,V3,V4,V5,V6,V7,V8) -> 1.993685239 | L30: =nss_F(J30,V3,V4,V5,V6,V7,V8) -> 3.050392002 | M30: 0.7687416582 | N30: =100*(M4-M30)/SUM(P18:P30) -> 1.941284506 | O30: 1.948933 | P30: 0.7772832322 | Q30: 5.849946044e-05
A31: 14 Years | B31: 2012-11-16 | C31: =AddYears(B31,14) -> 2026-11-16 | D31: 2.020866 | E31: 2.078159378 | F31: 0.747346017 | G31: 3.194086884 | I31: 5113 | J31: 14.20277778 | K31: =nss(J31,V3,V4,V5,V6,V7,V8) -> 2.068046922 | L31: =nss_F(J31,V3,V4,V5,V6,V7,V8) -> 3.022294711 | M31: 0.745485117 | N31: =100*(M4-M31)/SUM(P18:P31) -> 2.009370681 | O31: 2.020866 | P31: 0.753768285 | Q31: 0.0001321423549
A32: 15 Years | B32: 2012-11-16 | C32: =AddYears(B32,15) -> 2027-11-16 | D32: 2.093 | E32: 2.158571824 | F32: 0.7231913228 | G32: 2.502252832 | I32: 5478 | J32: 15.21666667 | K32: =nss(J32,V3,V4,V5,V6,V7,V8) -> 2.130126561 | L32: =nss_F(J32,V3,V4,V5,V6,V7,V8) -> 2.974378302 | M32: 0.7231531465 | N32: =100*(M4-M32)/SUM(P18:P32) -> 2.066085723 | O32: 2.093 | P32: 0.7331969402 | Q32: 0.0007243783029
A33: 16 Years | B33: 2012-11-16 | C33: =AddYears(B33,16) -> 2028-11-16 | D33: 2.118 | E33: 2.182898955 | F33: 0.704954043 | G33: 2.569411978 | I33: 5844 | J33: 16.23333333 | K33: =nss(J33,V3,V4,V5,V6,V7,V8) -> 2.181104091 | L33: =nss_F(J33,V3,V4,V5,V6,V7,V8) -> 2.911785402 | M33: 0.7018287171 | N33: =100*(M4-M33)/SUM(P18:P33) -> 2.112727334 | O33: 2.118 | P33: 0.7135258624 | Q33: 2.780100408e-05
A34: 17 Years | B34: 2012-11-16 | C34: =AddYears(B34,17) -> 2029-11-16 | D34: 2.143 | E34: 2.208327472 | F34: 0.6867543066 | G34: 2.631640773 | I34: 6209 | J34: 17.24722222 | K34: =nss(J34,V3,V4,V5,V6,V7,V8) -> 2.22196768 | L34: =nss_F(J34,V3,V4,V5,V6,V7,V8) -> 2.839345229 | M34: 0.6816576658 | N34: =100*(M4-M34)/SUM(P18:P34) -> 2.150349203 | O34: 2.143 | P34: 0.6911251333 | Q34: 5.40107854e-05
A35: 18 Years | B35: 2012-11-16 | C35: =AddYears(B35,18) -> 2030-11-18 | D35: 2.168139 | E35: 2.23456395 | F35: 0.6685050833 | G35: 2.694764013 | I35: 6576 | J35: 18.26666667 | K35: =nss(J35,V3,V4,V5,V6,V7,V8) -> 2.254235448 | L35: =nss_F(J35,V3,V4,V5,V6,V7,V8) -> 2.760169112 | M35: 0.6624741934 | N35: =100*(M4-M35)/SUM(P18:P35) -> 2.18046048 | O35: 2.168139 | P35: 0.675355636 | Q35: 0.0001518188669
A36: 19 Years | B36: 2012-11-16 | C36: =AddYears(B36,19) -> 2031-11-17 | D36: 2.193069 | E36: 2.261209761 | F36: 0.6504677813 | G36: 2.751860885 | I36: 6940 | J36: 19.27777778 | K36: =nss(J36,V3,V4,V5,V6,V7,V8) -> 2.278634745 | L36: =nss_F(J36,V3,V4,V5,V6,V7,V8) -> 2.678364378 | M36: 0.6445066475 | N36: =100*(M4-M36)/SUM(P18:P36) -> 2.203758665 | O36: 2.193069 | P36: 0.6516678325 | Q36: 0.0001142689391
A37: 20 Years | B37: 2012-11-16 | C37: =AddYears(B37,20) -> 2032-11-16 | D37: 2.218 | E37: 2.288146621 | F37: 0.6325043715 | G37: 2.318714256 | I37: 7305 | J37: 20.29166667 | K37: =nss(J37,V3,V4,V5,V6,V7,V8) -> 2.296535364 | L37: =nss_F(J37,V3,V4,V5,V6,V7,V8) -> 2.5954392 | M37: 0.6275039577 | N37: =100*(M4-M37)/SUM(P18:P37) -> 2.221543281 | O37: 2.218 | P37: 0.6362192904 | Q37: 1.255484217e-05
A38: 21 Years | B38: 2012-11-16 | C38: =AddYears(B38,21) -> 2033-11-16 | D38: 2.2236 | E38: 2.290900972 | F38: 0.6178382699 | G38: 2.332868529 | I38: 7670 | J38: 21.30555556 | K38: =nss(J38,V3,V4,V5,V6,V7,V8) -> 2.308802133 | L38: =nss_F(J38,V3,V4,V5,V6,V7,V8) -> 2.513457277 | M38: 0.6114616007 | N38: =100*(M4-M38)/SUM(P18:P38) -> 2.234597919 | O38: 2.2236 | P38: 0.6199541229 | Q38: 0.0001209542114
A39: 22 Years | B39: 2012-11-16 | C39: =AddYears(B39,22) -> 2034-11-16 | D39: 2.2292 | E39: 2.294067023 | F39: 0.6034242868 | G39: 2.347293292 | I39: 8035 | J39: 22.31944444 | K39: =nss(J39,V3,V4,V5,V6,V7,V8) -> 2.316278709 | L39: =nss_F(J39,V3,V4,V5,V6,V7,V8) -> 2.433803333 | M39: 0.5963183921 | N39: =100*(M4-M39)/SUM(P18:P39) -> 2.243673363 | O39: 2.2292 | P39: 0.604600592 | Q39: 0.0002094782369
A40: 23 Years | B40: 2012-11-16 | C40: =AddYears(B40,23) -> 2035-11-16 | D40: 2.2348 | E40: 2.297601534 | F40: 0.5892592798 | G40: 2.355921522 | I40: 8400 | J40: 23.33333333 | K40: =nss(J40,V3,V4,V5,V6,V7,V8) -> 2.319713732 | L40: =nss_F(J40,V3,V4,V5,V6,V7,V8) -> 2.357480548 | M40: 0.5820106471 | N40: =100*(M4-M40)/SUM(P18:P40) -> 2.249420746 | O40: 2.2348 | P40: 0.5900941283 | Q40: 0.0002137662029
A41: 24 Years | B41: 2012-11-16 | C41: =AddYears(B41,24) -> 2036-11-17 | D41: 2.240416 | E41: 2.301218149 | F41: 0.5753022181 | G41: 2.376976224 | I41: 8767 | J41: 24.35277778 | K41: =nss(J41,V3,V4,V5,V6,V7,V8) -> 2.31975824 | L41: =nss_F(J41,V3,V4,V5,V6,V7,V8) -> 2.284794944 | M41: 0.5684024519 | N41: =100*(M4-M41)/SUM(P18:P41) -> 2.252415456 | O41: 2.240416 | P41: 0.5794547218 | Q41: 0.0001439869441
A42: 25 Years | B42: 2012-11-16 | C42: =AddYears(B42,25) -> 2037-11-16 | D42: 2.246 | E42: 2.305386893 | F42: 0.5616636963 | G42: 2.26120462 | I42: 9131 | J42: 25.36388889 | K42: =nss(J42,V3,V4,V5,V6,V7,V8) -> 2.317001061 | L42: =nss_F(J42,V3,V4,V5,V6,V7,V8) -> 2.217157241 | M42: 0.5556139421 | N42: =100*(M4-M42)/SUM(P18:P42) -> 2.253098533 | O42: 2.246 | P42: 0.5617874304 | Q42: 5.038917605e-05
A43: 26 Years | B43: 2012-11-16 | C43: =AddYears(B43,26) -> 2038-11-16 | D43: 2.247799 | E43: 2.304620281 | F43: 0.5489727934 | G43: 2.265990671 | I43: 9496 | J43: 26.37777778 | K43: =nss(J43,V3,V4,V5,V6,V7,V8) -> 2.311934756 | L43: =nss_F(J43,V3,V4,V5,V6,V7,V8) -> 2.154024149 | M43: 0.5434394358 | N43: =100*(M4-M43)/SUM(P18:P43) -> 2.251915839 | O43: 2.247799 | P43: 0.5509872057 | Q43: 1.694836645e-05
A44: 27 Years | B44: 2012-11-16 | C44: =AddYears(B44,27) -> 2039-11-16 | D44: 2.249598 | E44: 2.304095652 | F44: 0.5365417862 | G44: 2.264817392 | I44: 9861 | J44: 27.39166667 | K44: =nss(J44,V3,V4,V5,V6,V7,V8) -> 2.304995037 | L44: =nss_F(J44,V3,V4,V5,V6,V7,V8) -> 2.09566857 | M44: 0.5318591624 | N44: =100*(M4-M44)/SUM(P18:P44) -> 2.249210364 | O44: 2.249598 | P44: 0.5392460952 | Q44: 1.502616566e-07
A45: 28 Years | B45: 2012-11-16 | C45: =AddYears(B45,28) -> 2040-11-16 | D45: 2.251397 | E45: 2.303564678 | F45: 0.5243656084 | G45: 2.27603117 | I45: 10227 | J45: 28.40833333 | K45: =nss(J45,V3,V4,V5,V6,V7,V8) -> 2.296527767 | L45: =nss_F(J45,V3,V4,V5,V6,V7,V8) -> 2.041912017 | M45: 0.5207916281 | N45: =100*(M4-M45)/SUM(P18:P45) -> 2.24526805 | O45: 2.251397 | P45: 0.5294714886 | Q45: 3.756402878e-05
A46: 29 Years | B46: 2012-11-16 | C46: =AddYears(B46,29) -> 2041-11-18 | D46: 2.253206 | E46: 2.303466838 | F46: 0.5123744475 | G46: 2.280918337 | I46: 10594 | J46: 29.42777778 | K46: =nss(J46,V3,V4,V5,V6,V7,V8) -> 2.286841089 | L46: =nss_F(J46,V3,V4,V5,V6,V7,V8) -> 1.992665607 | M46: 0.5101928366 | N46: =100*(M4-M46)/SUM(P18:P46) -> 2.240332048 | O46: 2.253206 | P46: 0.5201132529 | Q46: 0.0001657386291
A47: 30 Years | B47: 2012-11-16 | C47: =AddYears(B47,30) -> 2042-11-17 | D47: 2.255 | E47: 2.303549151 | F47: 0.5007261898 | G47: 2.278602299 | I47: 10958 | J47: 30.43888889 | K47: =nss(J47,V3,V4,V5,V6,V7,V8) -> 2.276319487 | L47: =nss_F(J47,V3,V4,V5,V6,V7,V8) -> 1.948238444 | M47: 0.5001304276 | N47: =100*(M4-M47)/SUM(P18:P47) -> 2.234669296 | O47: 2.255 | P47: 0.5056874324 | Q47: 0.0004133375149
Q48: =SUM(Q3:Q47) -> 0.03679685088
A51: Tenor | B51: Stamp | C51: Maturity | D51: Days | E51: t (ACT/360) | F51: t from zero | G51: t0/360 | I51: NSS | J51: Discount NSS | K51: Discount 3M NSS | M51: Tenor | N51: Stamp | O51: Maturity | P51: Days | Q51: t (ACT/360) | R51: t from zero | S51: t0/360 | T51: NSS | U51: Discount NSS | V51: Discount 1M NSS
A52: T/N | B52: 2012-11-14 | C52: 2012-11-16 | D52: =C52-B52 -> 2 | E52: =D52/360 -> 0.005555555556 | F52: =C52-B52 -> 2 | G52: =F52/360 -> 0.005555555556 | I52: 0.01429 | J52: 0.9999992061 | K52: =J53/J52 -> 0.9991772316 | M52: T/N | N52: 2012-11-14 | O52: 2012-11-16 | P52: =O52-N52 -> 2 | Q52: =P52/360 -> 0.005555555556 | R52: =O52-N52 -> 2 | S52: =R52/360 -> 0.005555555556 | T52: 0.01429 | U52: 0.9999992061 | V52: =U53/U52 -> 0.9999070086
A53: 3M | B53: 2012-11-16 | C53: =AddMonths(B53,3) -> 2013-02-18 | D53: 94 | E53: =D53/360 -> 0.2611111111 | F53: =C53-C52 -> 94 | G53: =F53/360 -> 0.2611111111 | I53: =nss(G53,V3,V4,V5,V6,V7,V8) -> 0.3155365569 | J53: =EXP(-I53/100*G53) -> 0.9991764383 | K53: =J54/J53 -> 0.9992727839 | M53: 1 M | N53: =O52 -> 2012-11-16 | O53: =AddMonths(O52,1) -> 2012-12-17 | P53: =O53-N53 -> 31 | Q53: =P53/360 -> 0.08611111111 | R53: =O53-O52 -> 31 | S53: =R53/360 -> 0.08611111111 | T53: 0.108 | U53: 0.9999062148 | V53: =U54/U53 -> 0.9998490368
A54: 6M | B54: =C53 -> 2013-02-18 | C54: =AddMonths(B53,6) -> 2013-05-16 | D54: 87 | E54: 0.2416666667 | F54: =C54-B53 -> 181 | G54: =F54/360 -> 0.5027777778 | I54: =nss(G54,V3,V4,V5,V6,V7,V8) -> 0.3085620991 | J54: =EXP(-I54/100*G54) -> 0.9984498211 | K54: 0.9992137942 | M54: 2 M | N54: =O53 -> 2012-12-17 | O54: =AddMonths(O52,2) -> 2013-01-16 | P54: =O54-N54 -> 30 | Q54: 0.08333333333 | R54: =O54-O52 -> 61 | S54: 0.1694444444 | T54: 0.144 | U54: 0.9997552658 | V54: 0.9997454048
A55: 9M | B55: 2013-05-16 | C55: =AddMonths(B53,9) -> 2013-08-16 | D55: 92 | E55: 0.2555555556 | F55: =C55-B53 -> 273 | G55: 0.7583333333 | I55: =nss(G55,V3,V4,V5,V6,V7,V8) -> 0.3082940704 | J55: 0.9976648341 | K55: 0.9991291018 | M55: 3 M | N55: =O54 -> 2013-01-16 | O55: =AddMonths(O52,3) -> 2013-02-18 | P55: =O55-N55 -> 33 | Q55: 0.09166666667 | R55: =O55-O52 -> 94 | S55: 0.2611111111 | T55: 0.191 | U55: 0.9995007329 | V55: 0.9994403969
A56: 1Y | B56: 2013-08-16 | C56: =AddMonths(B53,12) -> 2013-11-18 | D56: 94 | E56: 0.2611111111 | F56: =C56-B53 -> 367 | G56: 1.019444444 | I56: =nss(G56,V3,V4,V5,V6,V7,V8) -> 0.3147963907 | J56: 0.9967959696 | K56: 0.9990504541 | M56: 4 M | N56: 2013-02-18 | O56: =AddMonths(O52,4) -> 2013-03-18 | P56: =O56-N56 -> 28 | Q56: 0.07777777778 | R56: =O56-O52 -> 122 | S56: 0.3388888889 | T56: =nss(S56,V3,V4,V5,V6,V7,V8) -> 0.3125365229 | U56: =EXP(-T56/100*S56) -> 0.9989414092 | V56: 0.99975809
B57: 2013-11-18 | C57: =AddMonths(B53,15) -> 2014-02-17 | D57: 91 | E57: 0.2527777778 | F57: =C57-B53 -> 458 | G57: 1.272222222 | I57: =nss(G57,V3,V4,V5,V6,V7,V8) -> 0.3269217616 | J57: 0.9958494661 | K57: 0.9989497816 | M57: 5 M | N57: 2013-03-18 | O57: =AddMonths(O52,5) -> 2013-04-16 | P57: =O57-N57 -> 29 | Q57: 0.08055555556 | R57: =O57-O52 -> 151 | S57: 0.4194444444 | T57: =nss(S57,V3,V4,V5,V6,V7,V8) -> 0.3101938384 | U57: =EXP(-T57/100*S57) -> 0.9986997552 | V57: 0.9997497405
B58: 2014-02-17 | C58: =AddMonths(B53,18) -> 2014-05-16 | D58: 88 | E58: 0.2444444444 | F58: =C58-B53 -> 546 | G58: 1.516666667 | I58: =nss(G58,V3,V4,V5,V6,V7,V8) -> 0.3435126283 | J58: 0.9948036067 | K58: 0.9987053888 | M58: 6 M | N58: 2013-04-16 | O58: =AddMonths(O52,6) -> 2013-05-16 | P58: 30 | Q58: 0.08333333333 | R58: =O58-O52 -> 181 | S58: 0.5027777778 | T58: =nss(S58,V3,V4,V5,V6,V7,V8) -> 0.3085620991 | U58: 0.9984498211 | V58: 0.9997309878
B59: 2014-05-16 | C59: =AddMonths(B53,21) -> 2014-08-18 | D59: 94 | E59: 0.2611111111 | F59: =C59-B53 -> 640 | G59: 1.777777778 | I59: =nss(G59,V3,V4,V5,V6,V7,V8) -> 0.3659282697 | J59: 0.9935157228 | K59: 0.9985525085 | M59: 7 M | N59: 2013-05-16 | O59: =AddMonths(O52,7) -> 2013-06-17 | P59: 32 | Q59: 0.08888888889 | R59: =O59-O52 -> 213 | S59: 0.5916666667 | T59: =nss(S59,V3,V4,V5,V6,V7,V8) -> 0.3076783197 | U59: 0.9981812259 | V59: 0.9997526068
A60: 2Y | B60: 2014-08-18 | C60: =AddMonths(B53,24) -> 2014-11-17 | D60: 91 | E60: 0.2527777778 | F60: =C60-B53 -> 731 | G60: 2.030555556 | I60: =nss(G60,V3,V4,V5,V6,V7,V8) -> 0.3917120887 | J60: 0.9920776172 | K60: 0.9983419365 | M60: 8 M | N60: 2013-06-17 | O60: =AddMonths(O52,8) -> 2013-07-16 | P60: 29 | Q60: 0.08055555556 | R60: =O60-O52 -> 242 | S60: 0.6722222222 | T60: =nss(S60,V3,V4,V5,V6,V7,V8) -> 0.3076146208 | U60: 0.9979342827 | V60: 0.9997299936
B61: 2014-11-17 | C61: =AddMonths(B53,27) -> 2015-02-16 | D61: 91 | E61: 0.2527777778 | F61: =C61-B53 -> 822 | G61: 2.283333333 | I61: =nss(G61,V3,V4,V5,V6,V7,V8) -> 0.4210235541 | J61: 0.9904326896 | K61: 0.9981159709 | M61: 9 M | N61: 2013-07-16 | O61: =AddMonths(O52,9) -> 2013-08-16 | P61: 31 | Q61: 0.08611111111 | R61: =O61-O52 -> 273 | S61: 0.7583333333 | T61: =nss(S61,V3,V4,V5,V6,V7,V8) -> 0.3082940704 | U61: 0.9976648341 | V61: 0.9997225344
B62: 2015-02-16 | C62: =AddMonths(B53,30) -> 2015-05-18 | D62: 91 | E62: 0.2527777778 | F62: =C62-B53 -> 913 | G62: 2.536111111 | I62: =nss(G62,V3,V4,V5,V6,V7,V8) -> 0.4534177238 | J62: 0.9885666856 | K62: 0.9978780997 | M62: 10 M | N62: 2013-08-16 | O62: =AddMonths(O52,10) -> 2013-09-16 | P62: 31 | Q62: 0.08611111111 | R62: =O62-O52 -> 304 | S62: 0.8444444444 | T62: =nss(S62,V3,V4,V5,V6,V7,V8) -> 0.3097185114 | U62: 0.9973880164 | V62: 0.9997228082
B63: 2015-05-18 | C63: =AddMonths(B53,33) -> 2015-08-17 | D63: 91 | E63: 0.2527777778 | F63: =C63-B53 -> 1004 | G63: 2.788888889 | I63: =nss(G63,V3,V4,V5,V6,V7,V8) -> 0.4884860084 | J63: 0.9864690456 | K63: 0.9976314276 | M63: 11 M | N63: 2013-09-16 | O63: =AddMonths(O52,11) -> 2013-10-16 | P63: 30 | Q63: 0.08333333333 | R63: =O63-O52 -> 334 | S63: 0.9277777778 | T63: =nss(S63,V3,V4,V5,V6,V7,V8) -> 0.3117805864 | U63: 0.9971115486 | V63: 0.9996835068
A64: 3Y | B64: 2015-08-17 | C64: =AddMonths(B53,36) -> 2015-11-16 | D64: 91 | E64: 0.2527777778 | F64: =C64-B53 -> 1095 | G64: 3.041666667 | I64: =nss(G64,V3,V4,V5,V6,V7,V8) -> 0.5258536078 | J64: 0.9841325223 | K64: 0.9973485229 | M64: 1Y | N64: 2013-10-16 | O64: =AddMonths(O52,12) -> 2013-11-18 | P64: 33 | Q64: 0.09166666667 | R64: =O64-O52 -> 367 | S64: 1.019444444 | T64: =nss(S64,V3,V4,V5,V6,V7,V8) -> 0.3147963907 | U64: 0.9967959696 | V64: 0.9997206296
B65: 2015-11-16 | C65: =AddMonths(B53,39) -> 2016-02-16 | D65: 92 | E65: 0.2555555556 | F65: =C65-B53 -> 1187 | G65: 3.297222222 | I65: =nss(G65,V3,V4,V5,V6,V7,V8) -> 0.5656189106 | J65: 0.9815231174 | K65: 0.9971525604 | N65: 2013-11-18 | O65: =AddMonths(O52,13) -> 2013-12-16 | P65: 28 | Q65: 0.07777777778 | R65: =O65-O52 -> 395 | S65: 1.097222222 | T65: =nss(S65,V3,V4,V5,V6,V7,V8) -> 0.3179468726 | U65: 0.9965174943 | V65: 0.9996777732
B66: 2016-02-16 | C66: =AddMonths(B53,42) -> 2016-05-16 | D66: 90 | E66: 0.25 | F66: =C66-B53 -> 1277 | G66: 3.547222222 | I66: =nss(G66,V3,V4,V5,V6,V7,V8) -> 0.6061422794 | J66: 0.9787282897 | K66: 0.9968287541 | N66: 2013-12-16 | O66: =AddMonths(O52,14) -> 2014-01-16 | P66: 31 | Q66: 0.08611111111 | R66: =O66-O52 -> 426 | S66: 1.183333333 | T66: =nss(S66,V3,V4,V5,V6,V7,V8) -> 0.322044719 | U66: 0.9961963896 | V66: 0.9996517519
B67: 2016-05-16 | C67: =AddMonths(B53,45) -> 2016-08-16 | D67: 92 | E67: 0.2555555556 | F67: =C67-B53 -> 1369 | G67: 3.802777778 | I67: =nss(G67,V3,V4,V5,V6,V7,V8) -> 0.6489334922 | J67: 0.9756245015 | K67: 0.9965657143 | N67: 2014-01-16 | O67: =AddMonths(O52,15) -> 2014-02-17 | P67: 32 | Q67: 0.08888888889 | R67: =O67-O52 -> 458 | S67: 1.272222222 | T67: =nss(S67,V3,V4,V5,V6,V7,V8) -> 0.3269217616 | U67: 0.9958494661 | V67: 0.999681165
A68: 4Y | B68: 2016-08-16 | C68: =AddMonths(B53,48) -> 2016-11-16 | D68: 92 | E68: 0.2555555556 | F68: =C68-B53 -> 1461 | G68: 4.058333333 | I68: =nss(G68,V3,V4,V5,V6,V7,V8) -> 0.6928384825 | J68: 0.9722739282 | K68: 0.9963048249 | N68: 2014-02-17 | O68: =AddMonths(O52,16) -> 2014-03-17 | P68: 28 | Q68: 0.07777777778 | R68: =O68-O52 -> 486 | S68: 1.35 | T68: =nss(S68,V3,V4,V5,V6,V7,V8) -> 0.3317079351 | U68: 0.9955319544 | V68: 0.9996427291
B69: 2016-11-16 | C69: =AddMonths(B53,51) -> 2017-02-16 | D69: 92 | E69: 0.2555555556 | F69: =C69-B53 -> 1553 | G69: 4.313888889 | I69: =nss(G69,V3,V4,V5,V6,V7,V8) -> 0.7376108904 | J69: 0.9686812058 | K69: 0.9961802152 | N69: 2014-03-17 | O69: =AddMonths(O52,17) -> 2014-04-16 | P69: 30 | Q69: 0.08333333333 | R69: =O69-O52 -> 516 | S69: 1.433333333 | T69: =nss(S69,V3,V4,V5,V6,V7,V8) -> 0.3373529171 | U69: 0.9951762799 | V69: 0.9996255204
B70: 2017-02-16 | C70: =AddMonths(B53,54) -> 2017-05-16 | D70: 89 | E70: 0.2472222222 | F70: =C70-B53 -> 1642 | G70: 4.561111111 | I70: =nss(G70,V3,V4,V5,V6,V7,V8) -> 0.7815379224 | J70: 0.9649810521 | K70: 0.9958033564 | M70: 18M | N70: 2014-04-16 | O70: =AddMonths(O52,18) -> 2014-05-16 | P70: 30 | Q70: 0.08333333333 | R70: =O70-O52 -> 546 | S70: 1.516666667 | T70: =nss(S70,V3,V4,V5,V6,V7,V8) -> 0.3435126283 | U70: 0.9948036067 | V70: 0.9995939351
B71: 2017-05-16 | C71: =AddMonths(B53,57) -> 2017-08-16 | D71: 92 | E71: 0.2555555556 | F71: =C71-B53 -> 1734 | G71: 4.816666667 | I71: =nss(G71,V3,V4,V5,V6,V7,V8) -> 0.8273831264 | J71: 0.9609313705 | K71: 0.9955567873 | N71: 2014-05-16 | O71: =AddMonths(O52,19) -> 2014-06-16 | P71: 31 | Q71: 0.08611111111 | R71: =O71-O52 -> 577 | S71: 1.602777778 | T71: =nss(S71,V3,V4,V5,V6,V7,V8) -> 0.3503972249 | U71: 0.9943996519 | V71: 0.9995876086
A72: 5Y | B72: 2017-08-16 | C72: =AddMonths(B53,60) -> 2017-11-16 | D72: 92 | E72: 0.2555555556 | F72: =C72-B53 -> 1826 | G72: 5.072222222 | I72: =nss(G72,V3,V4,V5,V6,V7,V8) -> 0.8734909157 | J72: 0.956661748 | K72: 0.9953171009 | N72: 2014-06-16 | O72: =AddMonths(O52,20) -> 2014-07-16 | P72: 30 | Q72: 0.08333333333 | R72: =O72-O52 -> 607 | S72: 1.686111111 | T72: =nss(S72,V3,V4,V5,V6,V7,V8) -> 0.3575425871 | U72: 0.99398957 | V72: 0.9995232875
B73: 2017-11-16 | C73: =AddMonths(B53,63) -> 2018-02-16 | D73: 92 | E73: 0.2555555556 | F73: =C73-B53 -> 1918 | G73: 5.327777778 | I73: =nss(G73,V3,V4,V5,V6,V7,V8) -> 0.9196948637 | J73: 0.9521817976 | K73: 0.9952485311 | N73: 2014-07-16 | O73: =AddMonths(O52,21) -> 2014-08-18 | P73: 33 | Q73: 0.09166666667 | R73: =O73-O52 -> 640 | S73: 1.777777778 | T73: =nss(S73,V3,V4,V5,V6,V7,V8) -> 0.3659282697 | U73: 0.9935157228 | V73: 0.9995602742
B74: 2018-02-16 | C74: =AddMonths(B53,66) -> 2018-05-16 | D74: 89 | E74: 0.2472222222 | F74: =C74-B53 -> 2007 | G74: 5.575 | I74: =nss(G74,V3,V4,V5,V6,V7,V8) -> 0.9643424498 | J74: 0.9476575354 | K74: 0.9948684779 | N74: 2014-08-18 | O74: =AddMonths(O52,22) -> 2014-09-16 | P74: 29 | Q74: 0.08055555556 | R74: =O74-O52 -> 669 | S74: 1.858333333 | T74: =nss(S74,V3,V4,V5,V6,V7,V8) -> 0.3737334885 | U74: 0.9930788483 | V74: 0.9995239063
B75: 2018-05-16 | C75: =AddMonths(B53,69) -> 2018-08-16 | D75: 92 | E75: 0.2555555556 | F75: =C75-B53 -> 2099 | G75: 5.830555556 | I75: =nss(G75,V3,V4,V5,V6,V7,V8) -> 1.010312389 | J75: 0.9427946098 | K75: 0.9946532301 | N75: 2014-09-16 | O75: =AddMonths(O52,23) -> 2014-10-16 | P75: 30 | Q75: 0.08333333333 | R75: =O75-O52 -> 699 | S75: 1.941666667 | T75: =nss(S75,V3,V4,V5,V6,V7,V8) -> 0.3822191092 | U75: 0.9926060497 | V75: 0.9994676312
A76: 6Y | B76: 2018-08-16 | C76: =AddMonths(B53,72) -> 2018-11-16 | D76: 92 | E76: 0.2555555556 | F76: =C76-B53 -> 2191 | G76: 6.086111111 | I76: =nss(G76,V3,V4,V5,V6,V7,V8) -> 1.055977109 | J76: 0.937753704 | K76: 0.9943245767 | M76: 2 Y | N76: 2014-10-16 | O76: =AddMonths(O52,24) -> 2014-11-17 | P76: 32 | Q76: 0.08888888889 | R76: =O76-O52 -> 731 | S76: 2.030555556 | T76: =nss(S76,V3,V4,V5,V6,V7,V8) -> 0.3917120887 | U76: 0.9920776172 | V76: 0.9994950031
B77: 2018-11-16 | C77: =AddMonths(B53,75) -> 2019-02-18 | D77: 94 | E77: 0.2611111111 | F77: =C77-B53 -> 2285 | G77: 6.347222222 | I77: =nss(G77,V3,V4,V5,V6,V7,V8) -> 1.102207034 | J77: 0.9324315548 | K77: 0.9945631504 | N77: 2014-11-17 | O77: =AddMonths(O52,25) -> 2014-12-16 | P77: 29 | Q77: 0.08055555556 | R77: =O77-O52 -> 760 | S77: 2.111111111 | T77: =nss(S77,V3,V4,V5,V6,V7,V8) -> 0.4006921279 | U77: 0.9915766211 | V77: 0.99943587
B78: 2019-02-18 | C78: =AddMonths(B53,78) -> 2019-05-16 | D78: 87 | E78: 0.2416666667 | F78: =C78-B53 -> 2372 | G78: 6.588888889 | I78: =nss(G78,V3,V4,V5,V6,V7,V8) -> 1.144520938 | J78: 0.9273620646 | K78: 0.9940696537 | N78: 2014-12-16 | O78: =AddMonths(O52,26) -> 2015-01-16 | P78: 31 | Q78: 0.08611111111 | R78: =O78-O52 -> 791 | S78: 2.197222222 | T78: =nss(S78,V3,V4,V5,V6,V7,V8) -> 0.4106705779 | U78: 0.991017243 | V78: 0.9994101481
B79: 2019-05-16 | C79: =AddMonths(B53,81) -> 2019-08-16 | D79: 92 | E79: 0.2555555556 | F79: =C79-B53 -> 2464 | G79: 6.844444444 | I79: =nss(G79,V3,V4,V5,V6,V7,V8) -> 1.188689808 | J79: 0.9218624865 | K79: 0.9937580454 | N79: 2015-01-16 | O79: =AddMonths(O52,27) -> 2015-02-16 | P79: 31 | Q79: 0.08611111111 | R79: =O79-O52 -> 822 | S79: 2.283333333 | T79: =nss(S79,V3,V4,V5,V6,V7,V8) -> 0.4210235541 | U79: 0.9904326896 | V79: 0.9994446374
A80: 7Y | B80: 2019-08-16 | C80: =AddMonths(B53,84) -> 2019-11-18 | D80: 94 | E80: 0.2611111111 | F80: =C80-B53 -> 2558 | G80: 7.105555556 | I80: =nss(G80,V3,V4,V5,V6,V7,V8) -> 1.233129906 | J80: 0.9161082627 | K80: 0.9937902301 | N80: 2015-02-16 | O80: =AddMonths(O52,28) -> 2015-03-16 | P80: 28 | Q80: 0.07777777778 | R80: =O80-O52 -> 850 | S80: 2.361111111 | T80: =nss(S80,V3,V4,V5,V6,V7,V8) -> 0.4306823153 | U80: 0.9898826403 | V80: 0.9993596811
B81: 2019-11-18 | C81: =AddMonths(B53,87) -> 2020-02-17 | D81: 91 | E81: 0.2527777778 | F81: =C81-B53 -> 2649 | G81: 7.358333333 | I81: =nss(G81,V3,V4,V5,V6,V7,V8) -> 1.275422803 | J81: 0.9104194412 | K81: 0.9936362154 | N81: 2015-03-16 | O81: =AddMonths(O52,29) -> 2015-04-16 | P81: 31 | Q81: 0.08611111111 | R81: =O81-O52 -> 881 | S81: 2.447222222 | T81: =nss(S81,V3,V4,V5,V6,V7,V8) -> 0.4417012838 | U81: 0.9892487998 | V81: 0.9993104725
B82: 2020-02-17 | C82: =AddMonths(B53,90) -> 2020-05-18 | D82: 91 | E82: 0.2527777778 | F82: =C82-B53 -> 2740 | G82: 7.611111111 | I82: =nss(G82,V3,V4,V5,V6,V7,V8) -> 1.316942817 | J82: 0.904625728 | K82: 0.9934917647 | N82: 2015-04-16 | O82: =AddMonths(O52,30) -> 2015-05-18 | P82: 32 | Q82: 0.08888888889 | R82: =O82-O52 -> 913 | S82: 2.536111111 | T82: =nss(S82,V3,V4,V5,V6,V7,V8) -> 0.4534177238 | U82: 0.9885666856 | V82: 0.9993496412
B83: 2020-05-18 | C83: =AddMonths(B53,93) -> 2020-08-17 | D83: 91 | E83: 0.2527777778 | F83: =C83-B53 -> 2831 | G83: 7.863888889 | I83: =nss(G83,V3,V4,V5,V6,V7,V8) -> 1.357642367 | J83: 0.8987382109 | K83: 0.993356794 | N83: 2015-05-18 | O83: =AddMonths(O52,31) -> 2015-06-16 | P83: 29 | Q83: 0.08055555556 | R83: =O83-O52 -> 942 | S83: 2.616666667 | T83: =nss(S83,V3,V4,V5,V6,V7,V8) -> 0.4643215644 | U83: 0.9879237626 | V83: 0.9993014037
A84: 8Y | B84: 2020-08-17 | C84: =AddMonths(B53,96) -> 2020-11-16 | D84: 91 | E84: 0.2527777778 | F84: =C84-B53 -> 2922 | G84: 8.116666667 | I84: =nss(G84,V3,V4,V5,V6,V7,V8) -> 1.397480792 | J84: 0.8927677078 | K84: 0.9931563896 | N84: 2015-06-16 | O84: =AddMonths(O52,32) -> 2015-07-16 | P84: 30 | Q84: 0.08333333333 | R84: =O84-O52 -> 972 | S84: 2.7 | T84: =nss(S84,V3,V4,V5,V6,V7,V8) -> 0.475873629 | U84: 0.9872336027 | V84: 0.999225556
B85: 2020-11-16 | C85: =AddMonths(B53,99) -> 2021-02-16 | D85: 92 | E85: 0.2555555556 | F85: =C85-B53 -> 3014 | G85: 8.372222222 | I85: =nss(G85,V3,V4,V5,V6,V7,V8) -> 1.436846631 | J85: 0.8866579534 | K85: 0.9931895563 | N85: 2015-07-16 | O85: =AddMonths(O52,33) -> 2015-08-17 | P85: 32 | Q85: 0.08888888889 | R85: =O85-O52 -> 1004 | S85: 2.788888889 | T85: =nss(S85,V3,V4,V5,V6,V7,V8) -> 0.4884860084 | U85: 0.9864690456 | V85: 0.9992461802
B86: 2021-02-16 | C86: =AddMonths(B53,102) -> 2021-05-17 | D86: 90 | E86: 0.25 | F86: =C86-B53 -> 3104 | G86: 8.622222222 | I86: =nss(G86,V3,V4,V5,V6,V7,V8) -> 1.474442786 | J86: 0.8806194193 | K86: 0.9930073744 | N86: 2015-08-17 | O86: =AddMonths(O52,34) -> 2015-09-16 | P86: 30 | Q86: 0.08333333333 | R86: =O86-O52 -> 1034 | S86: 2.872222222 | T86: =nss(S86,V3,V4,V5,V6,V7,V8) -> 0.5005683748 | U86: 0.9857254257 | V86: 0.9992190597
B87: 2021-05-17 | C87: =AddMonths(B53,105) -> 2021-08-16 | D87: 91 | E87: 0.2527777778 | F87: =C87-B53 -> 3195 | G87: 8.875 | I87: =nss(G87,V3,V4,V5,V6,V7,V8) -> 1.511514615 | J87: 0.8744615774 | K87: 0.9928306293 | N87: 2015-09-16 | O87: =AddMonths(O52,35) -> 2015-10-16 | P87: 30 | Q87: 0.08333333333 | R87: =O87-O52 -> 1064 | S87: 2.955555556 | T87: =nss(S87,V3,V4,V5,V6,V7,V8) -> 0.5128877206 | U87: 0.9849556329 | V87: 0.999164317
A88: 9Y | B88: 2021-08-16 | C88: =AddMonths(B53,108) -> 2021-11-16 | D88: 92 | E88: 0.2555555556 | F88: =C88-B53 -> 3287 | G88: 9.130555556 | I88: =nss(G88,V3,V4,V5,V6,V7,V8) -> 1.548012225 | J88: 0.8681922382 | K88: 0.9927387395 | M88: 3 Y | N88: 2015-10-16 | O88: =AddMonths(O52,36) -> 2015-11-16 | P88: 31 | Q88: 0.08611111111 | R88: =O88-O52 -> 1095 | S88: 3.041666667 | T88: =nss(S88,V3,V4,V5,V6,V7,V8) -> 0.5258536078 | U88: 0.9841325223 | V88: 0.9991632751
B89: 2021-11-16 | C89: =AddMonths(B53,111) -> 2022-02-16 | D89: 92 | E89: 0.2555555556 | F89: =C89-B53 -> 3379 | G89: 9.386111111 | I89: =nss(G89,V3,V4,V5,V6,V7,V8) -> 1.583508508 | J89: 0.8618880682 | K89: 0.9928953292 | N89: 2015-11-16 | O89: =AddMonths(O52,37) -> 2015-12-16 | P89: 30 | Q89: 0.08333333333 | R89: =O89-O52 -> 1125 | S89: 3.125 | T89: =nss(S89,V3,V4,V5,V6,V7,V8) -> 0.5386172512 | U89: 0.983309074 | V89: 0.9990476569
B90: 2022-02-16 | C90: =AddMonths(B53,114) -> 2022-05-16 | D90: 89 | E90: 0.2472222222 | F90: =C90-B53 -> 3468 | G90: 9.633333333 | I90: =nss(G90,V3,V4,V5,V6,V7,V8) -> 1.616884746 | J90: 0.8557646372 | K90: 0.992582834 | N90: 2015-12-16 | O90: =AddMonths(O52,38) -> 2016-01-18 | P90: 33 | Q90: 0.09166666667 | R90: =O90-O52 -> 1158 | S90: 3.216666667 | T90: =nss(S90,V3,V4,V5,V6,V7,V8) -> 0.5528886837 | U90: 0.9823726264 | V90: 0.9991352477
B91: 2022-05-16 | C91: =AddMonths(B53,117) -> 2022-08-16 | D91: 92 | E91: 0.2555555556 | F91: =C91-B53 -> 3560 | G91: 9.888888889 | I91: =nss(G91,V3,V4,V5,V6,V7,V8) -> 1.650384679 | J91: 0.8494172888 | K91: 0.9925156932 | N91: 2016-01-18 | O91: =AddMonths(O52,39) -> 2016-02-16 | P91: 29 | Q91: 0.08055555556 | R91: =O91-O52 -> 1187 | S91: 3.297222222 | T91: =nss(S91,V3,V4,V5,V6,V7,V8) -> 0.5656189106 | U91: 0.9815231174 | V91: 0.9991091475
A92: 10Y | B92: 2022-08-16 | C92: =AddMonths(B53,120) -> 2022-11-16 | D92: 92 | E92: 0.2555555556 | F92: =C92-B53 -> 3652 | G92: 10.14444444 | I92: =nss(G92,V3,V4,V5,V6,V7,V8) -> 1.682863589 | J92: 0.8430599892 | K92: 0.9924563298 | N92: 2016-02-16 | O92: =AddMonths(O52,40) -> 2016-03-16 | P92: 29 | Q92: 0.08055555556 | R92: =O92-O52 -> 1216 | S92: 3.377777778 | T92: =nss(S92,V3,V4,V5,V6,V7,V8) -> 0.5785153201 | U92: 0.9806487251 | V92: 0.9989545011
B93: 2022-11-16 | C93: =AddMonths(B53,123) -> 2023-02-16 | D93: 92 | E93: 0.2555555556 | F93: =C93-B53 -> 3744 | G93: 10.4 | I93: =nss(G93,V3,V4,V5,V6,V7,V8) -> 1.714321437 | J93: 0.8367002227 | K93: 0.9926519596 | N93: 2016-03-16 | O93: =AddMonths(O52,41) -> 2016-04-18 | P93: 33 | Q93: 0.09166666667 | R93: =O93-O52 -> 1249 | S93: 3.469444444 | T93: =nss(S93,V3,V4,V5,V6,V7,V8) -> 0.5933805275 | U93: 0.9796234579 | V93: 0.9990862119
B94: 2023-02-16 | C94: =AddMonths(B53,126) -> 2023-05-16 | D94: 89 | E94: 0.2472222222 | F94: =C94-B53 -> 3833 | G94: 10.64722222 | I94: =nss(G94,V3,V4,V5,V6,V7,V8) -> 1.743784396 | J94: 0.8305521157 | K94: 0.9923610933 | N94: 2016-04-18 | O94: =AddMonths(O52,42) -> 2016-05-16 | P94: 28 | Q94: 0.07777777778 | R94: =O94-O52 -> 1277 | S94: 3.547222222 | T94: =nss(S94,V3,V4,V5,V6,V7,V8) -> 0.6061422794 | U94: 0.9787282897 | V94: 0.9989598137
B95: 2023-05-16 | C95: =AddMonths(B53,129) -> 2023-08-16 | D95: 92 | E95: 0.2555555556 | F95: =C95-B53 -> 3925 | G95: 10.90277778 | I95: =nss(G95,V3,V4,V5,V6,V7,V8) -> 1.773243812 | J95: 0.8242076056 | K95: 0.9923230499 | N95: 2016-05-16 | O95: =AddMonths(O52,43) -> 2016-06-16 | P95: 31 | Q95: 0.08611111111 | R95: =O95-O52 -> 1308 | S95: 3.633333333 | T95: =nss(S95,V3,V4,V5,V6,V7,V8) -> 0.6204204016 | U95: 0.9777102299 | V95: 0.9988948114
A96: 11Y | B96: 2023-08-16 | C96: =AddMonths(B53,132) -> 2023-11-16 | D96: 92 | E96: 0.2555555556 | F96: =C96-B53 -> 4017 | G96: 11.15833333 | I96: =nss(G96,V3,V4,V5,V6,V7,V8) -> 1.801697403 | J96: 0.8178802049 | K96: 0.9922915907 | N96: 2016-06-16 | O96: =AddMonths(O52,44) -> 2016-07-18 | P96: 32 | Q96: 0.08888888889 | R96: =O96-O52 -> 1340 | S96: 3.722222222 | T96: =nss(S96,V3,V4,V5,V6,V7,V8) -> 0.6353124449 | U96: 0.9766296758 | V96: 0.9989707724
B97: 2023-11-16 | C97: =AddMonths(B53,135) -> 2024-02-16 | D97: 92 | E97: 0.2555555556 | F97: =C97-B53 -> 4109 | G97: 11.41388889 | I97: =nss(G97,V3,V4,V5,V6,V7,V8) -> 1.829154608 | J97: 0.8115756495 | K97: 0.9924341222 | N97: 2016-07-18 | O97: =AddMonths(O52,45) -> 2016-08-16 | P97: 29 | Q97: 0.08055555556 | R97: =O97-O52 -> 1369 | S97: 3.802777778 | T97: =nss(S97,V3,V4,V5,V6,V7,V8) -> 0.6489334922 | U97: 0.9756245015 | V97: 0.9988708517
B98: 2024-02-16 | C98: =AddMonths(B53,138) -> 2024-05-16 | D98: 90 | E98: 0.25 | F98: =C98-B53 -> 4199 | G98: 11.66388889 | I98: =nss(G98,V3,V4,V5,V6,V7,V8) -> 1.855061557 | J98: 0.8054353673 | K98: 0.9922475722 | N98: 2016-08-16 | O98: =AddMonths(O52,46) -> 2016-09-16 | P98: 31 | Q98: 0.08611111111 | R98: =O98-O52 -> 1400 | S98: 3.888888889 | T98: =nss(S98,V3,V4,V5,V6,V7,V8) -> 0.6636158966 | U98: 0.9745228768 | V98: 0.9988409673
B99: 2024-05-16 | C99: =AddMonths(B53,141) -> 2024-08-16 | D99: 92 | E99: 0.2555555556 | F99: =C99-B53 -> 4291 | G99: 11.91944444 | I99: =nss(G99,V3,V4,V5,V6,V7,V8) -> 1.88058222 | J99: 0.7991912877 | K99: 0.9920656722 | N99: 2016-09-16 | O99: =AddMonths(O52,47) -> 2016-10-17 | P99: 31 | Q99: 0.08611111111 | R99: =O99-O52 -> 1431 | S99: 3.975 | T99: =nss(S99,V3,V4,V5,V6,V7,V8) -> 0.6784148372 | U99: 0.9733933729 | V99: 0.9988499565
A100: 12Y | B100: 2024-08-16 | C100: =AddMonths(B53,144) -> 2024-11-18 | D100: 94 | E100: 0.2611111111 | F100: =C100-B53 -> 4385 | G100: 12.18055556 | I100: =nss(G100,V3,V4,V5,V6,V7,V8) -> 1.905667799 | J100: 0.7928502421 | K100: 0.9923097843 | M100: 4 Y | N100: 2016-10-17 | O100: =AddMonths(O52,48) -> 2016-11-16 | P100: 30 | Q100: 0.08333333333 | R100: =O100-O52 -> 1461 | S100: 4.058333333 | T100: =nss(S100,V3,V4,V5,V6,V7,V8) -> 0.6928384825 | U100: 0.9722739282 | V100: 0.9988221368
B101: 2024-11-18 | C101: =AddMonths(B53,147) -> 2025-02-17 | D101: 91 | E101: 0.2527777778 | F101: =C101-B53 -> 4476 | G101: 12.43333333 | I101: =nss(G101,V3,V4,V5,V6,V7,V8) -> 1.929014983 | J101: 0.7867530527 | K101: 0.9925594515 | N101: 2016-11-16 | O101: =AddMonths(O52,49) -> 2016-12-16 | P101: 30 | Q101: 0.08333333333 | R101: =O101-O52 -> 1491 | S101: 4.141666667 | T101: =nss(S101,V3,V4,V5,V6,V7,V8) -> 0.7073541844 | U101: 0.9711287226 | V101: 0.9987537896
B102: 2025-02-17 | C102: =AddMonths(B53,150) -> 2025-05-16 | D102: 88 | E102: 0.2444444444 | F102: =C102-B53 -> 4564 | G102: 12.67777778 | I102: =nss(G102,V3,V4,V5,V6,V7,V8) -> 1.950730125 | J102: 0.7808991785 | K102: 0.9920558257 | N102: 2016-12-16 | O102: =AddMonths(O52,50) -> 2017-01-16 | P102: 31 | Q102: 0.08611111111 | R102: =O102-O52 -> 1522 | S102: 4.227777778 | T102: =nss(S102,V3,V4,V5,V6,V7,V8) -> 0.7224419462 | U102: 0.9699184918 | V102: 0.9987243402
B103: 2025-05-16 | C103: =AddMonths(B53,153) -> 2025-08-18 | D103: 94 | E103: 0.2611111111 | F103: =C103-B53 -> 4658 | G103: 12.93888889 | I103: =nss(G103,V3,V4,V5,V6,V7,V8) -> 1.973006569 | J103: 0.7746955793 | K103: 0.9923145023 | N103: 2017-01-16 | O103: =AddMonths(O52,51) -> 2017-02-16 | P103: 31 | Q103: 0.08611111111 | R103: =O103-O52 -> 1553 | S103: 4.313888889 | T103: =nss(S103,V3,V4,V5,V6,V7,V8) -> 0.7376108904 | U103: 0.9686812058 | V103: 0.9988225334
A104: 13Y | B104: 2025-08-18 | C104: =AddMonths(B53,156) -> 2025-11-17 | D104: 91 | E104: 0.2527777778 | F104: =C104-B53 -> 4749 | G104: 13.19166667 | I104: =nss(G104,V3,V4,V5,V6,V7,V8) -> 1.993685239 | J104: 0.7687416582 | K104: 0.9923247139 | N104: 2017-02-16 | O104: =AddMonths(O52,52) -> 2017-03-16 | P104: 28 | Q104: 0.07777777778 | R104: =O104-O52 -> 1581 | S104: 4.391666667 | T104: =nss(S104,V3,V4,V5,V6,V7,V8) -> 0.751374753 | U104: 0.967540616 | V104: 0.9985819112
B105: 2025-11-17 | C105: =AddMonths(B53,159) -> 2026-02-16 | D105: 91 | E105: 0.2527777778 | F105: =C105-B53 -> 4840 | G105: 13.44444444 | I105: =nss(G105,V3,V4,V5,V6,V7,V8) -> 2.01350978 | J105: 0.762841346 | K105: 0.9923388207 | N105: 2017-03-16 | O105: =AddMonths(O52,53) -> 2017-04-18 | P105: 33 | Q105: 0.09166666667 | R105: =O105-O52 -> 1614 | S105: 4.483333333 | T105: =nss(S105,V3,V4,V5,V6,V7,V8) -> 0.7676647549 | U105: 0.9661685575 | V105: 0.9987709128
B106: 2026-02-16 | C106: =AddMonths(B53,162) -> 2026-05-18 | D106: 91 | E106: 0.2527777778 | F106: =C106-B53 -> 4931 | G106: 13.69722222 | I106: =nss(G106,V3,V4,V5,V6,V7,V8) -> 2.032498825 | J106: 0.7569970816 | K106: 0.9923565788 | N106: 2017-04-18 | O106: =AddMonths(O52,54) -> 2017-05-16 | P106: 28 | Q106: 0.07777777778 | R106: =O106-O52 -> 1642 | S106: 4.561111111 | T106: =nss(S106,V3,V4,V5,V6,V7,V8) -> 0.7815379224 | U106: 0.9649810521 | V106: 0.9986119534
B107: 2026-05-18 | C107: =AddMonths(B53,165) -> 2026-08-17 | D107: 91 | E107: 0.2527777778 | F107: =C107-B53 -> 5022 | G107: 13.95 | I107: =nss(G107,V3,V4,V5,V6,V7,V8) -> 2.050671416 | J107: 0.7512110341 | K107: 0.9923777517 | N107: 2017-05-16 | O107: =AddMonths(O52,55) -> 2017-06-16 | P107: 31 | Q107: 0.08611111111 | R107: =O107-O52 -> 1673 | S107: 4.647222222 | T107: =nss(S107,V3,V4,V5,V6,V7,V8) -> 0.7969454023 | U107: 0.9636416134 | V107: 0.9985834091
A108: 14Y | B108: 2026-08-17 | C108: =AddMonths(B53,168) -> 2026-11-16 | D108: 91 | E108: 0.2527777778 | F108: =C108-B53 -> 5113 | G108: 14.20277778 | I108: =nss(G108,V3,V4,V5,V6,V7,V8) -> 2.068046922 | J108: 0.745485117 | K108: 0.9923190853 | N108: 2017-06-16 | O108: =AddMonths(O52,56) -> 2017-07-17 | P108: 31 | Q108: 0.08611111111 | R108: =O108-O52 -> 1704 | S108: 4.733333333 | T108: =nss(S108,V3,V4,V5,V6,V7,V8) -> 0.8123961764 | U108: 0.9622765275 | V108: 0.9986021097
B109: 2026-11-16 | C109: =AddMonths(B53,171) -> 2027-02-16 | D109: 92 | E109: 0.2555555556 | F109: =C109-B53 -> 5205 | G109: 14.45833333 | I109: =nss(G109,V3,V4,V5,V6,V7,V8) -> 2.084823102 | J109: 0.7397591094 | K109: 0.9925124688 | N109: 2017-07-17 | O109: =AddMonths(O52,57) -> 2017-08-16 | P109: 30 | Q109: 0.08333333333 | R109: =O109-O52 -> 1734 | S109: 4.816666667 | T109: =nss(S109,V3,V4,V5,V6,V7,V8) -> 0.8273831264 | U109: 0.9609313705 | V109: 0.998432062
B110: 2027-02-16 | C110: =AddMonths(B53,174) -> 2027-05-17 | D110: 90 | E110: 0.25 | F110: =C110-B53 -> 5295 | G110: 14.70833333 | I110: =nss(G110,V3,V4,V5,V6,V7,V8) -> 2.100485283 | J110: 0.7342201401 | K110: 0.9924595098 | N110: 2017-08-16 | O110: =AddMonths(O52,58) -> 2017-09-18 | P110: 33 | Q110: 0.09166666667 | R110: =O110-O52 -> 1767 | S110: 4.908333333 | T110: =nss(S110,V3,V4,V5,V6,V7,V8) -> 0.8439006257 | U110: 0.9594246897 | V110: 0.9986447365
B111: 2027-05-17 | C111: =AddMonths(B53,177) -> 2027-08-16 | D111: 91 | E111: 0.2527777778 | F111: =C111-B53 -> 5386 | G111: 14.96111111 | I111: =nss(G111,V3,V4,V5,V6,V7,V8) -> 2.115587793 | J111: 0.7286837603 | K111: 0.9924101316 | N111: 2017-09-18 | O111: =AddMonths(O52,59) -> 2017-10-16 | P111: 28 | Q111: 0.07777777778 | R111: =O111-O52 -> 1795 | S111: 4.986111111 | T111: =nss(S111,V3,V4,V5,V6,V7,V8) -> 0.8579359232 | U111: 0.9581244165 | V111: 0.9984734045
A112: 15Y | B112: 2027-08-16 | C112: =AddMonths(B53,180) -> 2027-11-16 | D112: 92 | E112: 0.2555555556 | F112: =C112-B53 -> 5478 | G112: 15.21666667 | I112: =nss(G112,V3,V4,V5,V6,V7,V8) -> 2.130126561 | J112: 0.7231531465 | K112: 0.9924458974 | M112: 5 Y | N112: 2017-10-16 | O112: =AddMonths(O52,60) -> 2017-11-16 | P112: 31 | Q112: 0.08611111111 | R112: =O112-O52 -> 1826 | S112: 5.072222222 | T112: =nss(S112,V3,V4,V5,V6,V7,V8) -> 0.8734909157 | U112: 0.956661748 | V112: 0.9983955645
B113: 2027-11-16 | C113: =AddMonths(B53,183) -> 2028-02-16 | D113: 92 | E113: 0.2555555556 | F113: =C113-B53 -> 5570 | G113: 15.47222222 | I113: =nss(G113,V3,V4,V5,V6,V7,V8) -> 2.143952129 | J113: 0.7176903734 | K113: 0.9926462642 | N113: 2017-11-16 | O113: =AddMonths(O52,61) -> 2017-12-18 | P113: 32 | Q113: 0.08888888889 | R113: =O113-O52 -> 1858 | S113: 5.161111111 | T113: =nss(S113,V3,V4,V5,V6,V7,V8) -> 0.8895589213 | U113: 0.955126846 | V113: 0.9985209998
B114: 2028-02-16 | C114: =AddMonths(B53,186) -> 2028-05-16 | D114: 90 | E114: 0.25 | F114: =C114-B53 -> 5660 | G114: 15.72222222 | I114: =nss(G114,V3,V4,V5,V6,V7,V8) -> 2.156806721 | J114: 0.712412668 | K114: 0.9925230336 | N114: 2017-12-18 | O114: =AddMonths(O52,62) -> 2018-01-16 | P114: 29 | Q114: 0.08055555556 | R114: =O114-O52 -> 1887 | S114: 5.241666667 | T114: =nss(S114,V3,V4,V5,V6,V7,V8) -> 0.9041250108 | U114: 0.9537142132 | V114: 0.998393213
B115: 2028-05-16 | C115: =AddMonths(B53,189) -> 2028-08-16 | D115: 92 | E115: 0.2555555556 | F115: =C115-B53 -> 5752 | G115: 15.97777778 | I115: =nss(G115,V3,V4,V5,V6,V7,V8) -> 2.16928167 | J115: 0.7070859824 | K115: 0.9925648854 | N115: 2018-01-16 | O115: =AddMonths(O52,63) -> 2018-02-16 | P115: 31 | Q115: 0.08611111111 | R115: =O115-O52 -> 1918 | S115: 5.327777778 | T115: =nss(S115,V3,V4,V5,V6,V7,V8) -> 0.9196948637 | U115: 0.9521817976 | V115: 0.9985258625
A116: 16Y | B116: 2028-08-16 | C116: =AddMonths(B53,192) -> 2028-11-16 | D116: =C116-B116 -> 92 | E116: 0.2555555556 | F116: =C116-B53 -> 5844 | G116: 16.23333333 | I116: =nss(G116,V3,V4,V5,V6,V7,V8) -> 2.181104091 | J116: 0.7018287171 | K116: 0.9926084251 | N116: 2018-02-16 | O116: =AddMonths(O52,64) -> 2018-03-16 | P116: 28 | Q116: 0.07777777778 | R116: =O116-O52 -> 1946 | S116: 5.405555556 | T116: =nss(S116,V3,V4,V5,V6,V7,V8) -> 0.9337527513 | U116: 0.9507781506 | V116: 0.998343168
B117: 2028-11-16 | C117: =AddMonths(B53,195) -> 2029-02-16 | D117: 92 | E117: =D117/360 -> 0.2555555556 | F117: =C117-B53 -> 5936 | G117: 16.48888889 | I117: =nss(G117,V3,V4,V5,V6,V7,V8) -> 2.192294022 | J117: 0.6966410976 | K117: =J118/J117 -> 0.9928914685 | N117: 2018-03-16 | O117: =AddMonths(O52,65) -> 2018-04-16 | P117: 31 | Q117: =P117/360 -> 0.08611111111 | R117: =O117-O52 -> 1977 | S117: =R117/360 -> 5.491666667 | T117: =nss(S117,V3,V4,V5,V6,V7,V8) -> 0.949306157 | U117: 0.949202871 | V117: =U118/U117 -> 0.9983719649
B118: =C117 -> 2029-02-16 | C118: =AddMonths(B53,198) -> 2029-05-16 | D118: 89 | E118: 0.2472222222 | F118: =C118-B53 -> 6025 | G118: =F118/360 -> 16.73611111 | I118: =nss(G118,V3,V4,V5,V6,V7,V8) -> 2.202535825 | J118: =EXP(-I118/100*G118) -> 0.6916890024 | K118: 0.9926983803 | N118: 2018-04-16 | O118: =AddMonths(O52,66) -> 2018-05-16 | P118: 30 | Q118: 0.08333333333 | R118: =O118-O52 -> 2007 | S118: 5.575 | T118: =nss(S118,V3,V4,V5,V6,V7,V8) -> 0.9643424498 | U118: 0.9476575354 | V118: 0.9981817112
B119: 2029-05-16 | C119: =AddMonths(B53,201) -> 2029-08-16 | D119: 92 | E119: 0.2555555556 | F119: =C119-B53 -> 6117 | G119: 16.99166667 | I119: =nss(G119,V3,V4,V5,V6,V7,V8) -> 2.212538989 | J119: 0.6866385523 | K119: 0.9927459847 | N119: =O118 -> 2018-05-16 | O119: =AddMonths(O52,67) -> 2018-06-18 | P119: 33 | Q119: 0.09166666667 | R119: =O119-O52 -> 2040 | S119: 5.666666667 | T119: =nss(S119,V3,V4,V5,V6,V7,V8) -> 0.980859449 | U119: 0.9459344203 | V119: 0.9984346064
A120: 17Y | B120: 2029-08-16 | C120: =AddMonths(B53,204) -> 2029-11-16 | D120: 92 | E120: 0.2555555556 | F120: =C120-B53 -> 6209 | G120: 17.24722222 | I120: =nss(G120,V3,V4,V5,V6,V7,V8) -> 2.22196768 | J120: 0.6816576658 | K120: 0.992639154 | N120: 2018-06-18 | O120: =AddMonths(O52,68) -> 2018-07-16 | P120: 28 | Q120: 0.07777777778 | R120: =O120-O52 -> 2068 | S120: 5.744444444 | T120: =nss(S120,V3,V4,V5,V6,V7,V8) -> 0.9948508699 | U120: 0.9444536607 | V120: 0.9982433751
B121: 2029-11-16 | C121: =AddMonths(B53,207) -> 2030-02-18 | D121: 94 | E121: 0.2611111111 | F121: =C121-B53 -> 6303 | G121: 17.50833333 | I121: =nss(G121,V3,V4,V5,V6,V7,V8) -> 2.231027744 | J121: 0.6766400887 | K121: 0.9932316061 | N121: 2018-07-16 | O121: =AddMonths(O52,69) -> 2018-08-16 | P121: =O121-N121 -> 31 | Q121: 0.08611111111 | R121: =O121-O52 -> 2099 | S121: 5.830555556 | T121: =nss(S121,V3,V4,V5,V6,V7,V8) -> 1.010312389 | U121: =EXP(-T121/100*S121) -> 0.9427946098 | V121: 0.9981610391
B122: 2030-02-18 | C122: =AddMonths(B53,210) -> 2030-05-16 | D122: 87 | E122: 0.2416666667 | F122: =C122-B53 -> 6390 | G122: 17.75 | I122: =nss(G122,V3,V4,V5,V6,V7,V8) -> 2.238913676 | J122: 0.672060322 | K122: 0.9928930679 | N122: 2018-08-16 | O122: =AddMonths(O52,70) -> 2018-09-17 | P122: 32 | Q122: 0.08888888889 | R122: =O122-O52 -> 2131 | S122: 5.919444444 | T122: =nss(S122,V3,V4,V5,V6,V7,V8) -> 1.026236154 | U122: 0.9410608474 | V122: 0.9983110395
B123: 2030-05-16 | C123: =AddMonths(B53,213) -> 2030-08-16 | D123: 92 | E123: 0.2555555556 | F123: =C123-B53 -> 6482 | G123: 18.00555556 | I123: =nss(G123,V3,V4,V5,V6,V7,V8) -> 2.246748138 | J123: 0.6672840349 | K123: 0.9927919128 | N123: 2018-09-17 | O123: =AddMonths(O52,71) -> 2018-10-16 | P123: 29 | Q123: 0.08055555556 | R123: =O123-O52 -> 2160 | S123: 6 | T123: =nss(S123,V3,V4,V5,V6,V7,V8) -> 1.040631123 | U123: 0.9394714328 | V123: 0.9981716008
A124: 18Y | B124: 2030-08-16 | C124: =AddMonths(B53,216) -> 2030-11-18 | D124: 94 | E124: 0.2611111111 | F124: =C124-B53 -> 6576 | G124: 18.26666667 | I124: =nss(G124,V3,V4,V5,V6,V7,V8) -> 2.254235448 | J124: 0.6624741934 | K124: 0.9930725655 | M124: 6 Y | N124: 2018-10-16 | O124: =AddMonths(O52,72) -> 2018-11-16 | P124: 31 | Q124: 0.08611111111 | R124: =O124-O52 -> 2191 | S124: 6.086111111 | T124: =nss(S124,V3,V4,V5,V6,V7,V8) -> 1.055977109 | U124: 0.937753704 | V124: 0.9981481168
B125: 2030-11-18 | C125: =AddMonths(B53,219) -> 2031-02-17 | D125: 91 | E125: 0.2527777778 | F125: =C125-B53 -> 6667 | G125: 18.51944444 | I125: =nss(G125,V3,V4,V5,V6,V7,V8) -> 2.261003115 | J125: 0.6578849468 | K125: 0.9933487254 | N125: 2018-11-16 | O125: =AddMonths(O52,73) -> 2018-12-17 | P125: 31 | Q125: 0.08611111111 | R125: =O125-O52 -> 2222 | S125: 6.172222222 | T125: =nss(S125,V3,V4,V5,V6,V7,V8) -> 1.071276079 | U125: 0.9360170937 | V125: 0.9981857793
B126: 2031-02-17 | C126: =AddMonths(B53,222) -> 2031-05-16 | D126: 88 | E126: 0.2444444444 | F126: =C126-B53 -> 6755 | G126: 18.76388889 | I126: =nss(G126,V3,V4,V5,V6,V7,V8) -> 2.26711377 | J126: 0.6535091734 | K126: 0.9929499183 | N126: 2018-12-17 | O126: =AddMonths(O52,74) -> 2019-01-16 | P126: 30 | Q126: 0.08333333333 | R126: =O126-O52 -> 2252 | S126: 6.255555556 | T126: =nss(S126,V3,V4,V5,V6,V7,V8) -> 1.086033175 | U126: 0.9343189521 | V126: 0.9979799219
B127: 2031-05-16 | C127: =AddMonths(B53,225) -> 2031-08-18 | D127: 94 | E127: 0.2611111111 | F127: =C127-B53 -> 6849 | G127: 19.025 | I127: =nss(G127,V3,V4,V5,V6,V7,V8) -> 2.273186647 | J127: 0.6489018803 | K127: 0.9932266604 | N127: 2019-01-16 | O127: =AddMonths(O52,75) -> 2019-02-18 | P127: 33 | Q127: 0.09166666667 | R127: =O127-O52 -> 2285 | S127: 6.347222222 | T127: =nss(S127,V3,V4,V5,V6,V7,V8) -> 1.102207034 | U127: 0.9324315548 | V127: 0.9982658211
A128: 19Y | B128: 2031-08-18 | C128: =AddMonths(B53,228) -> 2031-11-17 | D128: 91 | E128: 0.2527777778 | F128: =C128-B53 -> 6940 | G128: 19.27777778 | I128: =nss(G128,V3,V4,V5,V6,V7,V8) -> 2.278634745 | J128: 0.6445066475 | K128: 0.9932784987 | N128: 2019-02-18 | O128: =AddMonths(O52,76) -> 2019-03-18 | P128: 28 | Q128: 0.07777777778 | R128: =O128-O52 -> 2313 | S128: 6.425 | T128: =nss(S128,V3,V4,V5,V6,V7,V8) -> 1.115878819 | U128: 0.9308145517 | V128: 0.998184981
B129: 2031-11-17 | C129: =AddMonths(B53,231) -> 2032-02-16 | D129: 91 | E129: 0.2527777778 | F129: =C129-B53 -> 7031 | G129: 19.53055556 | I129: =nss(G129,V3,V4,V5,V6,V7,V8) -> 2.283674591 | J129: 0.6401745952 | K129: 0.9933304337 | N129: 2019-03-18 | O129: =AddMonths(O52,77) -> 2019-04-16 | P129: 29 | Q129: 0.08055555556 | R129: =O129-O52 -> 2342 | S129: 6.505555556 | T129: =nss(S129,V3,V4,V5,V6,V7,V8) -> 1.129986234 | U129: 0.9291251056 | V129: 0.9981024719
B130: 2032-02-16 | C130: =AddMonths(B53,234) -> 2032-05-17 | D130: 91 | E130: 0.2527777778 | F130: =C130-B53 -> 7122 | G130: 19.78333333 | I130: =nss(G130,V3,V4,V5,V6,V7,V8) -> 2.288321358 | J130: 0.6359049083 | K130: 0.993382389 | N130: 2019-04-16 | O130: =AddMonths(O52,78) -> 2019-05-16 | P130: 30 | Q130: 0.08333333333 | R130: =O130-O52 -> 2372 | S130: 6.588888889 | T130: =nss(S130,V3,V4,V5,V6,V7,V8) -> 1.144520938 | U130: 0.9273620646 | V130: 0.9979540819
B131: 2032-05-17 | C131: =AddMonths(B53,237) -> 2032-08-16 | D131: 91 | E131: 0.2527777778 | F131: =C131-B53 -> 7213 | G131: 20.03611111 | I131: =nss(G131,V3,V4,V5,V6,V7,V8) -> 2.292589834 | J131: 0.631696737 | K131: 0.9933626706 | N131: 2019-05-16 | O131: =AddMonths(O52,79) -> 2019-06-17 | P131: 32 | Q131: 0.08888888889 | R131: =O131-O52 -> 2404 | S131: 6.677777778 | T131: =nss(S131,V3,V4,V5,V6,V7,V8) -> 1.159955143 | U131: 0.9254647578 | V131: 0.9981264132
A132: 20Y | B132: 2032-08-16 | C132: =AddMonths(B53,240) -> 2032-11-16 | D132: 92 | E132: 0.2555555556 | F132: =C132-B53 -> 7305 | G132: 20.29166667 | I132: =nss(G132,V3,V4,V5,V6,V7,V8) -> 2.296535364 | J132: 0.6275039577 | K132: 0.9934155961 | N132: 2019-06-17 | O132: =AddMonths(O52,80) -> 2019-07-16 | P132: 29 | Q132: 0.08055555556 | R132: =O132-O52 -> 2433 | S132: 6.758333333 | T132: =nss(S132,V3,V4,V5,V6,V7,V8) -> 1.173877744 | U132: 0.9237308193 | V132: 0.9979774056
B133: 2032-11-16 | C133: =AddMonths(B53,243) -> 2033-02-16 | D133: 92 | E133: 0.2555555556 | F133: =C133-B53 -> 7397 | G133: 20.54722222 | I133: =nss(G133,V3,V4,V5,V6,V7,V8) -> 2.300123455 | J133: 0.6233722182 | K133: 0.9936798199 | N133: 2019-07-16 | O133: =AddMonths(O52,81) -> 2019-08-16 | P133: 31 | Q133: 0.08611111111 | R133: =O133-O52 -> 2464 | S133: 6.844444444 | T133: =nss(S133,V3,V4,V5,V6,V7,V8) -> 1.188689808 | U133: 0.9218624865 | V133: 0.9979571877
B134: 2033-02-16 | C134: =AddMonths(B53,246) -> 2033-05-16 | D134: 89 | E134: 0.2472222222 | F134: =C134-B53 -> 7486 | G134: 20.79444444 | I134: =nss(G134,V3,V4,V5,V6,V7,V8) -> 2.303267663 | J134: 0.6194323935 | K134: 0.9935191195 | N134: 2019-08-16 | O134: =AddMonths(O52,82) -> 2019-09-16 | P134: 31 | Q134: 0.08611111111 | R134: =O134-O52 -> 2495 | S134: 6.930555556 | T134: =nss(S134,V3,V4,V5,V6,V7,V8) -> 1.203426112 | U134: 0.9199792944 | V134: 0.9980041258
B135: 2033-05-16 | C135: =AddMonths(B53,249) -> 2033-08-16 | D135: 92 | E135: 0.2555555556 | F135: =C135-B53 -> 7578 | G135: 21.05 | I135: =nss(G135,V3,V4,V5,V6,V7,V8) -> 2.306193289 | J135: 0.6154179262 | K135: 0.9935713191 | N135: 2019-09-16 | O135: =AddMonths(O52,83) -> 2019-10-16 | P135: 30 | Q135: 0.08333333333 | R135: =O135-O52 -> 2525 | S135: 7.013888889 | T135: =nss(S135,V3,V4,V5,V6,V7,V8) -> 1.217612443 | U135: 0.9181431315 | V135: 0.9977837129
A136: 21Y | B136: 2033-08-16 | C136: =AddMonths(B53,252) -> 2033-11-16 | D136: 92 | E136: 0.2555555556 | F136: =C136-B53 -> 7670 | G136: 21.30555556 | I136: =nss(G136,V3,V4,V5,V6,V7,V8) -> 2.308802133 | J136: 0.6114616007 | K136: 0.9936231657 | M136: 7 Y | N136: 2019-10-16 | O136: =AddMonths(O52,84) -> 2019-11-18 | P136: 33 | Q136: 0.09166666667 | R136: =O136-O52 -> 2558 | S136: 7.105555556 | T136: =nss(S136,V3,V4,V5,V6,V7,V8) -> 1.233129906 | U136: 0.9161082627 | V136: 0.9981022341
B137: 2033-11-16 | C137: =AddMonths(B53,255) -> 2034-02-16 | D137: 92 | E137: 0.2555555556 | F137: =C137-B53 -> 7762 | G137: 21.56111111 | I137: =nss(G137,V3,V4,V5,V6,V7,V8) -> 2.311107121 | J137: 0.6075624114 | K137: 0.9938794344 | N137: 2019-11-18 | O137: =AddMonths(O52,85) -> 2019-12-16 | P137: 28 | Q137: 0.07777777778 | R137: =O137-O52 -> 2586 | S137: 7.183333333 | T137: =nss(S137,V3,V4,V5,V6,V7,V8) -> 1.246222267 | U137: 0.9143697037 | V137: 0.9978813123
B138: 2034-02-16 | C138: =AddMonths(B53,258) -> 2034-05-16 | D138: 89 | E138: 0.2472222222 | F138: =C138-B53 -> 7851 | G138: 21.80833333 | I138: =nss(G138,V3,V4,V5,V6,V7,V8) -> 2.313059598 | J138: 0.6038437858 | K138: 0.9937239563 | N138: 2019-12-16 | O138: =AddMonths(O52,86) -> 2020-01-16 | P138: 31 | Q138: 0.08611111111 | R138: =O138-O52 -> 2617 | S138: 7.269444444 | T138: =nss(S138,V3,V4,V5,V6,V7,V8) -> 1.260636016 | U138: 0.9124324398 | V138: 0.9977938108
B139: 2034-05-16 | C139: =AddMonths(B53,261) -> 2034-08-16 | D139: 92 | E139: 0.2555555556 | F139: =C139-B53 -> 7943 | G139: 22.06388889 | I139: =nss(G139,V3,V4,V5,V6,V7,V8) -> 2.314803028 | J139: 0.6000540358 | K139: 0.9937744878 | N139: 2020-01-16 | O139: =AddMonths(O52,87) -> 2020-02-17 | P139: 32 | Q139: 0.08888888889 | R139: =O139-O52 -> 2649 | S139: 7.358333333 | T139: =nss(S139,V3,V4,V5,V6,V7,V8) -> 1.275422803 | U139: 0.9104194412 | V139: 0.9980536129
A140: 22Y | B140: 2034-08-16 | C140: =AddMonths(B53,264) -> 2034-11-16 | D140: 92 | E140: 0.2555555556 | F140: =C140-B53 -> 8035 | G140: 22.31944444 | I140: =nss(G140,V3,V4,V5,V6,V7,V8) -> 2.316278709 | J140: 0.5963183921 | K140: 0.9938244979 | N140: 2020-02-17 | O140: =AddMonths(O52,88) -> 2020-03-16 | P140: 28 | Q140: 0.07777777778 | R140: =O140-O52 -> 2677 | S140: 7.436111111 | T140: =nss(S140,V3,V4,V5,V6,V7,V8) -> 1.288282862 | U140: 0.9086474125 | V140: 0.9978285556
B141: 2034-11-16 | C141: =AddMonths(B53,267) -> 2035-02-16 | D141: 92 | E141: 0.2555555556 | F141: =C141-B53 -> 8127 | G141: 22.575 | I141: =nss(G141,V3,V4,V5,V6,V7,V8) -> 2.317498069 | J141: 0.5926358266 | K141: 0.9940723477 | N141: 2020-03-16 | O141: =AddMonths(O52,89) -> 2020-04-16 | P141: 31 | Q141: 0.08611111111 | R141: =O141-O52 -> 2708 | S141: 7.522222222 | T141: =nss(S141,V3,V4,V5,V6,V7,V8) -> 1.302433611 | U141: 0.9066743352 | V141: 0.9977405259
B142: 2035-02-16 | C142: =AddMonths(B53,270) -> 2035-05-16 | D142: 89 | E142: 0.2472222222 | F142: =C142-B53 -> 8216 | G142: 22.82222222 | I142: =nss(G142,V3,V4,V5,V6,V7,V8) -> 2.318444166 | J142: 0.5891228875 | K142: 0.9939212373 | N142: 2020-04-16 | O142: =AddMonths(O52,90) -> 2020-05-18 | P142: 32 | Q142: 0.08888888889 | R142: =O142-O52 -> 2740 | S142: 7.611111111 | T142: =nss(S142,V3,V4,V5,V6,V7,V8) -> 1.316942817 | U142: 0.904625728 | V142: 0.9979366271
B143: 2035-05-16 | C143: =AddMonths(B53,273) -> 2035-08-16 | D143: 92 | E143: 0.2555555556 | F143: =C143-B53 -> 8308 | G143: 23.07777778 | I143: =nss(G143,V3,V4,V5,V6,V7,V8) -> 2.319191208 | J143: 0.5855417493 | K143: 0.9939695125 | N143: 2020-05-18 | O143: =AddMonths(O52,91) -> 2020-06-16 | P143: 29 | Q143: 0.08055555556 | R143: =O143-O52 -> 2769 | S143: 7.691666667 | T143: =nss(S143,V3,V4,V5,V6,V7,V8) -> 1.330004148 | U143: 0.9027591477 | V143: 0.9978503772
A144: 23Y | B144: 2035-08-16 | C144: =AddMonths(B53,276) -> 2035-11-16 | D144: 92 | E144: 0.2555555556 | F144: =C144-B53 -> 8400 | G144: 23.33333333 | I144: =nss(G144,V3,V4,V5,V6,V7,V8) -> 2.319713732 | J144: 0.5820106471 | K144: 0.9938880099 | N144: 2020-06-16 | O144: =AddMonths(O52,92) -> 2020-07-16 | P144: 30 | Q144: 0.08333333333 | R144: =O144-O52 -> 2799 | S144: 7.775 | T144: =nss(S144,V3,V4,V5,V6,V7,V8) -> 1.343426653 | U144: 0.900818556 | V144: 0.9976906058
B145: 2035-11-16 | C145: =AddMonths(B53,279) -> 2036-02-18 | D145: 94 | E145: 0.2611111111 | F145: =C145-B53 -> 8494 | G145: 23.59444444 | I145: =nss(G145,V3,V4,V5,V6,V7,V8) -> 2.320026155 | J145: 0.5784534038 | K145: 0.9943214754 | N145: 2020-07-16 | O145: =AddMonths(O52,93) -> 2020-08-17 | P145: 32 | Q145: 0.08888888889 | R145: =O145-O52 -> 2831 | S145: 7.863888889 | T145: =nss(S145,V3,V4,V5,V6,V7,V8) -> 1.357642367 | U145: 0.8987382109 | V145: 0.9978195547
B146: 2036-02-18 | C146: =AddMonths(B53,282) -> 2036-05-16 | D146: 88 | E146: 0.2444444444 | F146: =C146-B53 -> 8582 | G146: 23.83888889 | I146: =nss(G146,V3,V4,V5,V6,V7,V8) -> 2.320124874 | J146: 0.5751686419 | K146: 0.9939822615 | N146: 2020-08-17 | O146: =AddMonths(O52,94) -> 2020-09-16 | P146: 30 | Q146: 0.08333333333 | R146: =O146-O52 -> 2861 | S146: 7.947222222 | T146: =nss(S146,V3,V4,V5,V6,V7,V8) -> 1.370872868 | U146: 0.8967785614 | V146: 0.9978051598
B147: 2036-05-16 | C147: =AddMonths(B53,285) -> 2036-08-18 | D147: 94 | E147: 0.2611111111 | F147: =C147-B53 -> 8676 | G147: 24.1 | I147: =nss(G147,V3,V4,V5,V6,V7,V8) -> 2.320032817 | J147: 0.5717074275 | K147: 0.9942191138 | N147: 2020-09-16 | O147: =AddMonths(O52,95) -> 2020-10-16 | P147: 30 | Q147: 0.08333333333 | R147: =O147-O52 -> 2891 | S147: 8.030555556 | T147: =nss(S147,V3,V4,V5,V6,V7,V8) -> 1.384008427 | U147: 0.8948102757 | V147: 0.9977173173
A148: 24Y | B148: 2036-08-18 | C148: =AddMonths(B53,288) -> 2036-11-17 | D148: 91 | E148: 0.2527777778 | F148: =C148-B53 -> 8767 | G148: 24.35277778 | I148: =nss(G148,V3,V4,V5,V6,V7,V8) -> 2.31975824 | J148: 0.5684024519 | K148: 0.9942630375 | M148: 8 Y | N148: 2020-10-16 | O148: =AddMonths(O52,96) -> 2020-11-16 | P148: 31 | Q148: 0.08611111111 | R148: =O148-O52 -> 2922 | S148: 8.116666667 | T148: =nss(S148,V3,V4,V5,V6,V7,V8) -> 1.397480792 | U148: 0.8927677078 | V148: 0.9977769261
B149: 2036-11-17 | C149: =AddMonths(B53,291) -> 2037-02-16 | D149: 91 | E149: 0.2527777778 | F149: =C149-B53 -> 8858 | G149: 24.60555556 | I149: =nss(G149,V3,V4,V5,V6,V7,V8) -> 2.319309759 | J149: 0.5651415483 | K149: 0.9943062579 | N149: 2020-11-16 | O149: =AddMonths(O52,97) -> 2020-12-16 | P149: 30 | Q149: 0.08333333333 | R149: =O149-O52 -> 2952 | S149: 8.2 | T149: =nss(S149,V3,V4,V5,V6,V7,V8) -> 1.410419588 | U149: 0.8907830192 | V149: 0.9975394535
B150: 2037-02-16 | C150: =AddMonths(B53,294) -> 2037-05-18 | D150: 91 | E150: 0.2527777778 | F150: =C150-B53 -> 8949 | G150: 24.85833333 | I150: =nss(G150,V3,V4,V5,V6,V7,V8) -> 2.318695532 | J150: 0.5619237781 | K150: 0.9943487639 | N150: 2020-12-16 | O150: =AddMonths(O52,98) -> 2021-01-18 | P150: 33 | Q150: 0.09166666667 | R150: =O150-O52 -> 2985 | S150: 8.291666667 | T150: =nss(S150,V3,V4,V5,V6,V7,V8) -> 1.424538511 | U150: 0.8885912061 | V150: 0.9978243621
B151: 2037-05-18 | C151: =AddMonths(B53,297) -> 2037-08-17 | D151: 91 | E151: 0.2527777778 | F151: =C151-B53 -> 9040 | G151: 25.11111111 | I151: =nss(G151,V3,V4,V5,V6,V7,V8) -> 2.317923435 | J151: 0.5587482142 | K151: 0.9943905466 | N151: 2021-01-18 | O151: =AddMonths(O52,99) -> 2021-02-16 | P151: 29 | Q151: 0.08055555556 | R151: =O151-O52 -> 3014 | S151: 8.372222222 | T151: =nss(S151,V3,V4,V5,V6,V7,V8) -> 1.436846631 | U151: 0.8866579534 | V151: 0.9978880416
A152: 25Y | B152: 2037-08-17 | C152: =AddMonths(B53,300) -> 2037-11-16 | D152: 91 | E152: 0.2527777778 | F152: =C152-B53 -> 9131 | G152: 25.36388889 | I152: =nss(G152,V3,V4,V5,V6,V7,V8) -> 2.317001061 | J152: 0.5556139421 | K152: 0.9943708051 | N152: 2021-02-16 | O152: =AddMonths(O52,100) -> 2021-03-16 | P152: 28 | Q152: 0.07777777778 | R152: =O152-O52 -> 3042 | S152: 8.45 | T152: =nss(S152,V3,V4,V5,V6,V7,V8) -> 1.448641238 | U152: 0.8847853687 | V152: 0.9976494446
B153: 2037-11-16 | C153: =AddMonths(B53,303) -> 2038-02-16 | D153: 92 | E153: 0.2555555556 | F153: =C153-B53 -> 9223 | G153: 25.61944444 | I153: =nss(G153,V3,V4,V5,V6,V7,V8) -> 2.31592326 | J153: 0.552486283 | K153: 0.9945327132 | N153: 2021-03-16 | O153: =AddMonths(O52,101) -> 2021-04-16 | P153: 31 | Q153: 0.08611111111 | R153: =O153-O52 -> 3073 | S153: 8.536111111 | T153: =nss(S153,V3,V4,V5,V6,V7,V8) -> 1.461596567 | U153: 0.8827056316 | V153: 0.9976365707
B154: 2038-02-16 | C154: =AddMonths(B53,306) -> 2038-05-17 | D154: 90 | E154: 0.25 | F154: =C154-B53 -> 9313 | G154: 25.86944444 | I154: =nss(G154,V3,V4,V5,V6,V7,V8) -> 2.314734518 | J154: 0.5494656821 | K154: 0.9945114877 | N154: 2021-04-16 | O154: =AddMonths(O52,102) -> 2021-05-17 | P154: 31 | Q154: 0.08611111111 | R154: =O154-O52 -> 3104 | S154: 8.622222222 | T154: =nss(S154,V3,V4,V5,V6,V7,V8) -> 1.474442786 | U154: 0.8806194193 | V154: 0.9977007993
B155: =C154 -> 2038-05-17 | C155: =AddMonths(B53,309) -> 2038-08-16 | D155: 91 | E155: 0.2527777778 | F155: =C155-B53 -> 9404 | G155: 26.12222222 | I155: =nss(G155,V3,V4,V5,V6,V7,V8) -> 2.313404214 | J155: 0.5464499329 | K155: 0.994490809 | N155: 2021-05-17 | O155: =AddMonths(O52,103) -> 2021-06-16 | P155: 30 | Q155: 0.08333333333 | R155: =O155-O52 -> 3134 | S155: 8.705555556 | T155: =nss(S155,V3,V4,V5,V6,V7,V8) -> 1.486769921 | U155: 0.8785946985 | V155: 0.997689394
A156: 26Y | B156: =C155 -> 2038-08-16 | C156: =AddMonths(B53,312) -> 2038-11-16 | D156: 92 | E156: 0.2555555556 | F156: =C156-B53 -> 9496 | G156: 26.37777778 | I156: =nss(G156,V3,V4,V5,V6,V7,V8) -> 2.311934756 | J156: 0.5434394358 | K156: 0.9945297235 | N156: 2021-06-16 | O156: =AddMonths(O52,104) -> 2021-07-16 | P156: 30 | Q156: 0.08333333333 | R156: =O156-O52 -> 3164 | S156: 8.788888889 | T156: =nss(S156,V3,V4,V5,V6,V7,V8) -> 1.498993362 | U156: 0.8765646123 | V156: 0.9976008216
B157: =C156 -> 2038-11-16 | C157: =AddMonths(B53,315) -> 2039-02-16 | D157: 92 | E157: 0.2555555556 | F157: =C157-B53 -> 9588 | G157: 26.63333333 | I157: =nss(G157,V3,V4,V5,V6,V7,V8) -> 2.310346579 | J157: 0.5404666718 | K157: 0.9947439414 | N157: 2021-07-16 | O157: =AddMonths(O52,105) -> 2021-08-16 | P157: 31 | Q157: 0.08611111111 | R157: =O157-O52 -> 3195 | S157: 8.875 | T157: =nss(S157,V3,V4,V5,V6,V7,V8) -> 1.511514615 | U157: 0.8744615774 | V157: 0.9975893295
B158: 2039-02-16 | C158: =AddMonths(B53,318) -> 2039-05-16 | D158: 89 | E158: 0.2472222222 | F158: =C158-B53 -> 9677 | G158: 26.88055556 | I158: =nss(G158,V3,V4,V5,V6,V7,V8) -> 2.308703124 | J158: 0.5376259473 | K158: 0.9946040322 | N158: 2021-08-16 | O158: =AddMonths(O52,106) -> 2021-09-16 | P158: 31 | Q158: 0.08611111111 | R158: =O158-O52 -> 3226 | S158: 8.961111111 | T158: =nss(S158,V3,V4,V5,V6,V7,V8) -> 1.523923777 | U158: 0.8723535387 | V158: 0.997499974
B159: 2039-05-16 | C159: =AddMonths(B53,321) -> 2039-08-16 | D159: 92 | E159: 0.2555555556 | F159: =C159-B53 -> 9769 | G159: 27.13611111 | I159: =nss(G159,V3,V4,V5,V6,V7,V8) -> 2.306899474 | J159: 0.534724935 | K159: 0.9946406601 | N159: 2021-09-16 | O159: =AddMonths(O52,107) -> 2021-10-18 | P159: 32 | Q159: 0.08888888889 | R159: =O159-O52 -> 3258 | S159: 9.05 | T159: =nss(S159,V3,V4,V5,V6,V7,V8) -> 1.536615019 | U159: 0.8701726322 | V159: 0.9977241367
A160: 27Y | B160: 2039-08-16 | C160: =AddMonths(B53,324) -> 2039-11-16 | D160: 92 | E160: 0.2555555556 | F160: =C160-B53 -> 9861 | G160: 27.39166667 | I160: =nss(G160,V3,V4,V5,V6,V7,V8) -> 2.304995037 | J160: 0.5318591624 | K160: 0.9946765211 | M160: 9 Y | N160: 2021-10-18 | O160: =AddMonths(O52,108) -> 2021-11-16 | P160: 29 | Q160: 0.08055555556 | R160: =O160-O52 -> 3287 | S160: 9.130555556 | T160: =nss(S160,V3,V4,V5,V6,V7,V8) -> 1.548012225 | U160: 0.8681922382 | V160: 0.9976361014
B161: 2039-11-16 | C161: =AddMonths(B53,327) -> 2040-02-16 | D161: 92 | E161: 0.2555555556 | F161: =C161-B53 -> 9953 | G161: 27.64722222 | I161: =nss(G161,V3,V4,V5,V6,V7,V8) -> 2.302995401 | J161: 0.5290278213 | K161: 0.9948259178 | N161: 2021-11-16 | O161: =AddMonths(O52,109) -> 2021-12-16 | P161: 30 | Q161: 0.08333333333 | R161: =O161-O52 -> 3317 | S161: 9.213888889 | T161: =nss(S161,V3,V4,V5,V6,V7,V8) -> 1.559697702 | U161: 0.8661399198 | V161: 0.9974682298
B162: 2040-02-16 | C162: =AddMonths(B53,330) -> 2040-05-16 | D162: 90 | E162: 0.25 | F162: =C162-B53 -> 10043 | G162: 27.89722222 | I162: =nss(G162,V3,V4,V5,V6,V7,V8) -> 2.300952278 | J162: 0.5262905879 | K162: 0.9947452192 | N162: 2021-12-16 | O162: =AddMonths(O52,110) -> 2022-01-17 | P162: 32 | Q162: 0.08888888889 | R162: =O162-O52 -> 3349 | S162: 9.302777778 | T162: =nss(S162,V3,V4,V5,V6,V7,V8) -> 1.572044365 | U162: 0.8639470525 | V162: 0.9976167702
B163: 2040-05-16 | C163: =AddMonths(B53,333) -> 2040-08-16 | D163: 92 | E163: 0.2555555556 | F163: =C163-B53 -> 10135 | G163: 28.15277778 | I163: =nss(G163,V3,V4,V5,V6,V7,V8) -> 2.298779932 | J163: 0.5235250463 | K163: 0.9947788207 | N163: 2022-01-17 | O163: =AddMonths(O52,111) -> 2022-02-16 | P163: 30 | Q163: 0.08333333333 | R163: =O163-O52 -> 3379 | S163: 9.386111111 | T163: =nss(S163,V3,V4,V5,V6,V7,V8) -> 1.583508508 | U163: 0.8618880682 | V163: 0.997767441
A164: 28Y | B164: 2040-08-16 | C164: =AddMonths(B53,336) -> 2040-11-16 | D164: 92 | E164: 0.2555555556 | F164: =C164-B53 -> 10227 | G164: 28.40833333 | I164: =nss(G164,V3,V4,V5,V6,V7,V8) -> 2.296527767 | J164: 0.5207916281 | K164: 0.9946995433 | N164: 2022-02-16 | O164: =AddMonths(O52,112) -> 2022-03-16 | P164: 28 | Q164: 0.07777777778 | R164: =O164-O52 -> 3407 | S164: 9.463888889 | T164: =nss(S164,V3,V4,V5,V6,V7,V8) -> 1.594111307 | U164: 0.8599638523 | V164: 0.997279612
B165: 2040-11-16 | C165: =AddMonths(B53,339) -> 2041-02-18 | D165: 94 | E165: 0.2611111111 | F165: =C165-B53 -> 10321 | G165: 28.66944444 | I165: =nss(G165,V3,V4,V5,V6,V7,V8) -> 2.294149154 | J165: 0.5180311947 | K165: 0.9951231709 | N165: 2022-03-16 | O165: =AddMonths(O52,113) -> 2022-04-19 | P165: 34 | Q165: 0.09444444444 | R165: =O165-O52 -> 3441 | S165: 9.558333333 | T165: =nss(S165,V3,V4,V5,V6,V7,V8) -> 1.60685982 | U165: 0.8576244169 | V165: 0.9978314753
B166: 2041-02-18 | C166: =AddMonths(B53,342) -> 2041-05-16 | D166: 87 | E166: 0.2416666667 | F166: =C166-B53 -> 10408 | G166: 28.91111111 | I166: =nss(G166,V3,V4,V5,V6,V7,V8) -> 2.291882087 | J166: 0.515504845 | K166: 0.9948741528 | N166: 2022-04-19 | O166: =AddMonths(O52,114) -> 2022-05-16 | P166: 27 | Q166: 0.075 | R166: =O166-O52 -> 3468 | S166: 9.633333333 | T166: =nss(S166,V3,V4,V5,V6,V7,V8) -> 1.616884746 | U166: 0.8557646372 | V166: 0.9975026
B167: 2041-05-16 | C167: =AddMonths(B53,345) -> 2041-08-16 | D167: 92 | E167: 0.2555555556 | F167: =C167-B53 -> 10500 | G167: 29.16666667 | I167: =nss(G167,V3,V4,V5,V6,V7,V8) -> 2.289420364 | J167: 0.512862446 | K167: 0.9947946874 | N167: 2022-05-16 | O167: =AddMonths(O52,115) -> 2022-06-16 | P167: 31 | Q167: 0.08611111111 | R167: =O167-O52 -> 3499 | S167: 9.719444444 | T167: =nss(S167,V3,V4,V5,V6,V7,V8) -> 1.628286697 | U167: 0.8536274506 | V167: 0.9974134775
A168: 29Y | B168: 2041-08-16 | C168: =AddMonths(B53,348) -> 2041-11-18 | D168: 94 | E168: 0.2611111111 | F168: =C168-B53 -> 10594 | G168: 29.42777778 | I168: =nss(G168,V3,V4,V5,V6,V7,V8) -> 2.286841089 | J168: 0.5101928366 | K168: 0.9949901812 | N168: 2022-06-16 | O168: =AddMonths(O52,116) -> 2022-07-18 | P168: 32 | Q168: 0.08888888889 | R168: =O168-O52 -> 3531 | S168: 9.808333333 | T168: =nss(S168,V3,V4,V5,V6,V7,V8) -> 1.63993503 | U168: 0.851419524 | V168: 0.9976483565
B169: 2041-11-18 | C169: =AddMonths(B53,351) -> 2042-02-17 | D169: 91 | E169: 0.2527777778 | F169: =C169-B53 -> 10685 | G169: 29.68055556 | I169: =nss(G169,V3,V4,V5,V6,V7,V8) -> 2.2842865 | J169: 0.5076368629 | K169: 0.9951821604 | N169: 2022-07-18 | O169: =AddMonths(O52,117) -> 2022-08-16 | P169: 29 | Q169: 0.08055555556 | R169: =O169-O52 -> 3560 | S169: 9.888888889 | T169: =nss(S169,V3,V4,V5,V6,V7,V8) -> 1.650384679 | U169: 0.8494172888 | V169: 0.997478973
B170: 2042-02-17 | C170: =AddMonths(B53,354) -> 2042-05-16 | D170: 88 | E170: 0.2444444444 | F170: =C170-B53 -> 10773 | G170: 29.925 | I170: =nss(G170,V3,V4,V5,V6,V7,V8) -> 2.281765769 | J170: 0.50519115 | K170: 0.9948833723 | N170: 2022-08-16 | O170: =AddMonths(O52,118) -> 2022-09-16 | P170: 31 | Q170: 0.08611111111 | R170: =O170-O52 -> 3591 | S170: 9.975 | T170: =nss(S170,V3,V4,V5,V6,V7,V8) -> 1.66144278 | U170: 0.8472758849 | V170: 0.9974716171
B171: 2042-05-16 | C171: =AddMonths(B53,357) -> 2042-08-18 | D171: 94 | E171: 0.2611111111 | F171: =C171-B53 -> 10867 | G171: 30.18611111 | I171: =nss(G171,V3,V4,V5,V6,V7,V8) -> 2.279022185 | J171: 0.502606275 | K171: 0.9950739824 | N171: 2022-09-16 | O171: =AddMonths(O52,119) -> 2022-10-17 | P171: 31 | Q171: 0.08611111111 | R171: =O171-O52 -> 3622 | S171: 10.06111111 | T171: =nss(S171,V3,V4,V5,V6,V7,V8) -> 1.672384889 | U171: 0.8451336471 | V171: 0.9975463552
A172: 30Y | B172: 2042-08-18 | C172: =AddMonths(B53,360) -> 2042-11-17 | D172: 91 | E172: 0.2527777778 | F172: =C172-B53 -> 10958 | G172: 30.43888889 | I172: =nss(G172,V3,V4,V5,V6,V7,V8) -> 2.276319487 | J172: 0.5001304276 | K172: 0.9951005846 | M172: 10 Y | N172: 2022-10-17 | O172: =AddMonths(O52,120) -> 2022-11-16 | P172: 30 | Q172: 0.08333333333 | R172: =O172-O52 -> 3652 | S172: 10.14444444 | T172: =nss(S172,V3,V4,V5,V6,V7,V8) -> 1.682863589 | U172: 0.8430599892 | V172: 0.9975400131
B173: =C172 -> 2042-11-17 | C173: =AddMonths(B53,363) -> 2043-02-16 | D173: 91 | E173: 0.2527777778 | F173: =C173-B53 -> 11049 | G173: 30.69166667 | I173: =nss(G173,V3,V4,V5,V6,V7,V8) -> 2.273574204 | J173: 0.4976800809 | N173: 2022-11-16 | O173: =AddMonths(O52,121) -> 2022-12-16 | P173: 30 | Q173: 0.08333333333 | R173: =O173-O52 -> 3682 | S173: 10.22777778 | T173: =nss(S173,V3,V4,V5,V6,V7,V8) -> 1.693233695 | U173: 0.8409860727 | V173: 0.9974517362
N174: 2022-12-16 | O174: =AddMonths(O52,122) -> 2023-01-16 | P174: 31 | Q174: 0.08611111111 | R174: =O174-O52 -> 3713 | S174: 10.31388889 | T174: =nss(S174,V3,V4,V5,V6,V7,V8) -> 1.703835456 | U174: 0.8388430183 | V174: 0.9974455345
N175: 2023-01-16 | O175: =AddMonths(O52,123) -> 2023-02-16 | P175: 31 | Q175: 0.08611111111 | R175: =O175-O52 -> 3744 | S175: 10.4 | T175: =nss(S175,V3,V4,V5,V6,V7,V8) -> 1.714321437 | U175: 0.8367002227 | V175: 0.9976873597
N176: 2023-02-16 | O176: =AddMonths(O52,124) -> 2023-03-16 | P176: 28 | Q176: 0.07777777778 | R176: =O176-O52 -> 3772 | S176: 10.47777778 | T176: =nss(S176,V3,V4,V5,V6,V7,V8) -> 1.723693247 | U176: 0.8347652361 | V176: 0.9973517728
N177: 2023-03-16 | O177: =AddMonths(O52,125) -> 2023-04-17 | P177: 32 | Q177: 0.08888888889 | R177: =O177-O52 -> 3804 | S177: 10.56666667 | T177: =nss(S177,V3,V4,V5,V6,V7,V8) -> 1.73428853 | U177: 0.8325545881 | V177: 0.9975947855
N178: 2023-04-17 | O178: =AddMonths(O52,126) -> 2023-05-16 | P178: 29 | Q178: 0.08055555556 | R178: =O178-O52 -> 3833 | S178: 10.64722222 | T178: =nss(S178,V3,V4,V5,V6,V7,V8) -> 1.743784396 | U178: 0.8305521157 | V178: 0.9974241681
N179: 2023-05-16 | O179: =AddMonths(O52,127) -> 2023-06-16 | P179: 31 | Q179: 0.08611111111 | R179: =O179-O52 -> 3864 | S179: 10.73333333 | T179: =nss(S179,V3,V4,V5,V6,V7,V8) -> 1.753823802 | U179: 0.8284127531 | V179: 0.997419312
N180: 2023-06-16 | O180: =AddMonths(O52,128) -> 2023-07-17 | P180: 31 | Q180: 0.08611111111 | R180: =O180-O52 -> 3895 | S180: 10.81944444 | T180: =nss(S180,V3,V4,V5,V6,V7,V8) -> 1.763748402 | U180: 0.8262748782 | V180: 0.9974980812
N181: 2023-07-17 | O181: =AddMonths(O52,129) -> 2023-08-16 | P181: 30 | Q181: =P181/360 -> 0.08333333333 | R181: =O181-O52 -> 3925 | S181: =R181/360 -> 10.90277778 | T181: =nss(S181,V3,V4,V5,V6,V7,V8) -> 1.773243812 | U181: 0.8242076056 | V181: =U182/U181 -> 0.9972435503
N182: 2023-08-16 | O182: =AddMonths(O52,130) -> 2023-09-18 | P182: 33 | Q182: 0.09166666667 | R182: =O182-O52 -> 3958 | S182: 10.99444444 | T182: =nss(S182,V3,V4,V5,V6,V7,V8) -> 1.783565227 | U182: 0.8219357188 | V182: 0.9976570794
N183: =O182 -> 2023-09-18 | O183: =AddMonths(O52,131) -> 2023-10-16 | P183: 28 | Q183: 0.07777777778 | R183: =O183-O52 -> 3986 | S183: 11.07222222 | T183: =nss(S183,V3,V4,V5,V6,V7,V8) -> 1.792221594 | U183: 0.8200099886 | V183: 0.9974027344
M184: 11 Y | N184: 2023-10-16 | O184: =AddMonths(O52,132) -> 2023-11-16 | P184: 31 | Q184: 0.08611111111 | R184: =O184-O52 -> 4017 | S184: 11.15833333 | T184: =nss(S184,V3,V4,V5,V6,V7,V8) -> 1.801697403 | U184: 0.8178802049 | V184: 0.997315304
N185: 2023-11-16 | O185: =AddMonths(O52,133) -> 2023-12-18 | P185: =O185-N185 -> 32 | Q185: 0.08888888889 | R185: =O185-O52 -> 4049 | S185: 11.24722222 | T185: =nss(S185,V3,V4,V5,V6,V7,V8) -> 1.81136021 | U185: =EXP(-T185/100*S185) -> 0.8156844452 | V185: 0.9975636111
N186: 2023-12-18 | O186: =AddMonths(O52,134) -> 2024-01-16 | P186: 29 | Q186: 0.08055555556 | R186: =O186-O52 -> 4078 | S186: 11.32777778 | T186: =nss(S186,V3,V4,V5,V6,V7,V8) -> 1.820013368 | U186: 0.8136971207 | V186: 0.9973928
N187: 2024-01-16 | O187: =AddMonths(O52,135) -> 2024-02-16 | P187: 31 | Q187: 0.08611111111 | R187: =O187-O52 -> 4109 | S187: 11.41388889 | T187: =nss(S187,V3,V4,V5,V6,V7,V8) -> 1.829154608 | U187: 0.8115756495 | V187: 0.9973899291
N188: 2024-02-16 | O188: =AddMonths(O52,136) -> 2024-03-18 | P188: 31 | Q188: 0.08611111111 | R188: =O188-O52 -> 4140 | S188: 11.5 | T188: =nss(S188,V3,V4,V5,V6,V7,V8) -> 1.838183979 | U188: 0.8094573795 | V188: 0.9975557228
N189: 2024-03-18 | O189: =AddMonths(O52,137) -> 2024-04-16 | P189: 29 | Q189: 0.08055555556 | R189: =O189-O52 -> 4169 | S189: 11.58055556 | T189: =nss(S189,V3,V4,V5,V6,V7,V8) -> 1.846529952 | U189: 0.8074788413 | V189: 0.9974693157
N190: 2024-04-16 | O190: =AddMonths(O52,138) -> 2024-05-16 | P190: 30 | Q190: 0.08333333333 | R190: =O190-O52 -> 4199 | S190: 11.66388889 | T190: =nss(S190,V3,V4,V5,V6,V7,V8) -> 1.855061557 | U190: 0.8054353673 | V190: 0.9972985626
N191: 2024-05-16 | O191: =AddMonths(O52,139) -> 2024-06-17 | P191: 32 | Q191: 0.08888888889 | R191: =O191-O52 -> 4231 | S191: 11.75277778 | T191: =nss(S191,V3,V4,V5,V6,V7,V8) -> 1.864047937 | U191: 0.8032595341 | V191: 0.9975496892
N192: 2024-06-17 | O192: =AddMonths(O52,140) -> 2024-07-16 | P192: 29 | Q192: 0.08055555556 | R192: =O192-O52 -> 4260 | S192: 11.83333333 | T192: =nss(S192,V3,V4,V5,V6,V7,V8) -> 1.872090671 | U192: 0.8012912985 | V192: 0.9973792167
N193: 2024-07-16 | O193: =AddMonths(O52,141) -> 2024-08-16 | P193: 31 | Q193: 0.08611111111 | R193: =O193-O52 -> 4291 | S193: 11.91944444 | T193: =nss(S193,V3,V4,V5,V6,V7,V8) -> 1.88058222 | U193: 0.7991912877 | V193: 0.9973776632
N194: 2024-08-16 | O194: =AddMonths(O52,142) -> 2024-09-16 | P194: 31 | Q194: 0.08611111111 | R194: =O194-O52 -> 4322 | S194: 12.00555556 | T194: =nss(S194,V3,V4,V5,V6,V7,V8) -> 1.88896493 | U194: 0.797095539 | V194: 0.9974608671
N195: 2024-09-16 | O195: =AddMonths(O52,143) -> 2024-10-16 | P195: 30 | Q195: 0.08333333333 | R195: =O195-O52 -> 4352 | S195: 12.08888889 | T195: =nss(S195,V3,V4,V5,V6,V7,V8) -> 1.89697414 | U195: 0.7950716075 | V195: 0.9972060813
M196: 12 Y | N196: 2024-10-16 | O196: =AddMonths(O52,144) -> 2024-11-18 | P196: 33 | Q196: 0.09166666667 | R196: =O196-O52 -> 4385 | S196: 12.18055556 | T196: =nss(S196,V3,V4,V5,V6,V7,V8) -> 1.905667799 | U196: 0.7928502421 | V196: 0.9976280685
N197: 2024-11-18 | O197: =AddMonths(O52,145) -> 2024-12-16 | P197: 28 | Q197: 0.07777777778 | R197: =O197-O52 -> 4413 | S197: 12.25833333 | T197: =nss(S197,V3,V4,V5,V6,V7,V8) -> 1.912949074 | U197: 0.7909696556 | V197: 0.9973735651
N198: 2024-12-16 | O198: =AddMonths(O52,146) -> 2025-01-16 | P198: 31 | Q198: 0.08611111111 | R198: =O198-O52 -> 4444 | S198: 12.34444444 | T198: =nss(S198,V3,V4,V5,V6,V7,V8) -> 1.92090916 | U198: 0.7888922253 | V198: 0.9972883843
N199: 2025-01-16 | O199: =AddMonths(O52,147) -> 2025-02-17 | P199: 32 | Q199: 0.08888888889 | R199: =O199-O52 -> 4476 | S199: 12.43333333 | T199: =nss(S199,V3,V4,V5,V6,V7,V8) -> 1.929014983 | U199: 0.7867530527 | V199: 0.9976266218
N200: 2025-02-17 | O200: =AddMonths(O52,148) -> 2025-03-17 | P200: 28 | Q200: 0.07777777778 | R200: =O200-O52 -> 4504 | S200: 12.51111111 | T200: =nss(S200,V3,V4,V5,V6,V7,V8) -> 1.936015593 | U200: 0.7848857902 | V200: 0.9974571533
N201: 2025-03-17 | O201: =AddMonths(O52,149) -> 2025-04-16 | P201: 30 | Q201: 0.08333333333 | R201: =O201-O52 -> 4534 | S201: 12.59444444 | T201: =nss(S201,V3,V4,V5,V6,V7,V8) -> 1.943421548 | U201: 0.782889946 | V201: 0.9974571554
N202: 2025-04-16 | O202: =AddMonths(O52,150) -> 2025-05-16 | P202: 30 | Q202: 0.08333333333 | R202: =O202-O52 -> 4564 | S202: 12.67777778 | T202: =nss(S202,V3,V4,V5,V6,V7,V8) -> 1.950730125 | U202: 0.7808991785 | V202: 0.9973726829
N203: 2025-05-16 | O203: =AddMonths(O52,151) -> 2025-06-16 | P203: 31 | Q203: 0.08611111111 | R203: =O203-O52 -> 4595 | S203: 12.76388889 | T203: =nss(S203,V3,V4,V5,V6,V7,V8) -> 1.95818067 | U203: 0.7788475087 | V203: 0.9974576656
... 210 more rows

Sheet formula

Sheet Curves
A1: Tenor | B1: t(ACT/360) | C1: EONIA Discount | D1: EUR_6M Discount | E1: NSS Spot Rate EONIA | F1: NSS Spot Rate EUR_6M
A2: O/N | B2: 0.002777777778 | C2: 0.9999968844 | D2: 0.9999908053 | E2: 0.1121610696 | F2: 0.3310116983
A3: T/N | B3: 0.005555555556 | C3: 0.9999937928 | D3: 0.9999908053 | E3: 0.1117302537 | F3: 0.3310116983
A4: 1 Month | B4: 0.08611111111 | C4: 0.9999140427 | D4: 0.9997201246 | E4: 0.099825642 | F4: 0.3250621265
A5: 2 Months | B5: 0.1694444444 | C5: 0.9998497438 | D5: 0.9994578642 | E5: 0.08868246835 | F5: 0.3200357543
A6: 3 Months | B6: 0.2611111111 | C6: 0.9997969941 | D6: 0.9991764383 | E6: 0.07775482074 | F6: 0.3155365569
A7: 4 Months | B7: 0.3388888889 | C7: 0.9997643696 | D7: 0.9989414092 | E7: 0.06953847132 | F7: 0.3125365229
A8: 5 Months | B8: 0.4194444444 | C8: 0.9997399117 | D8: 0.9986997552 | E8: 0.06201586746 | F8: 0.3101938384
A9: 6 Months | B9: 0.5027777778 | C9: 0.9997222224 | D9: 0.9984498211 | E9: 0.05525624893 | F9: 0.3085620991
A10: 7 Months | B10: 0.5916666667 | C10: 0.9997092239 | D10: 0.9981812259 | E10: 0.04915240722 | F10: 0.3076783197
A11: 8 Months | B11: 0.6722222222 | C11: 0.9997004154 | D11: 0.9979342827 | E11: 0.04457297508 | F11: 0.3076146208
A12: 9 Months | B12: 0.7583333333 | C12: 0.9996918353 | D12: 0.9976648341 | E12: 0.04064336342 | F12: 0.3082940704
A13: 10 Months | B13: 0.8444444444 | C13: 0.9996818953 | D13: 0.9973880164 | E13: 0.03767628681 | F13: 0.3097185114
A14: 11 Months | B14: 0.9277777778 | C14: 0.9996689464 | D14: 0.9971115486 | E14: 0.03568833185 | F14: 0.3117805864
A15: 1 Year | B15: 1.019444444 | C15: 0.9996486806 | D15: 0.9967959696 | E15: 0.03446790749 | F15: 0.3147963907
A16: 2 Years | B16: 2.030555556 | C16: 0.9984264118 | D16: 0.9920776172 | E16: 0.07755648716 | F16: 0.3917120887
A17: 3 Years | B17: 3.041666667 | C17: 0.9940755789 | D17: 0.9841325223 | E17: 0.1953547419 | F17: 0.5258536078
A18: 4 Years | B18: 4.058333333 | C18: 0.9856211152 | D18: 0.9722739282 | E18: 0.35687711 | F18: 0.6928384825
A19: 5 Years | B19: 5.072222222 | C19: 0.9730505285 | D19: 0.956661748 | E19: 0.5386054931 | F19: 0.8734909157
A20: 6 Years | B20: 6.086111111 | C20: 0.956788803 | D20: 0.937753704 | E20: 0.7257934922 | F20: 1.055977109
A21: 7 Years | B21: 7.105555556 | C21: 0.9374201249 | D21: 0.9161082627 | E21: 0.9094816632 | F21: 1.233129906
A22: 8 Years | B22: 8.116666667 | C22: 0.9159988065 | D22: 0.8927677078 | E22: 1.080988303 | F22: 1.397480792
A23: 9 Years | B23: 9.130555556 | C23: 0.8930592093 | D23: 0.8681922382 | E23: 1.238724148 | F23: 1.548012225
A24: 10 Years | B24: 10.14444444 | C24: 0.8693225832 | D24: 0.8430599892 | E24: 1.380469984 | F24: 1.682863589
A25: 11 Years | B25: 11.15833333 | C25: 0.8453406776 | D25: 0.8178802049 | E25: 1.50574068 | F25: 1.801697403
A26: 12 Years | B26: 12.18055556 | C26: 0.8213534049 | D26: 0.7928502421 | E26: 1.615704675 | F26: 1.905667799
A27: 13 Years | B27: 13.19166667 | C27: 0.7981402474 | D27: 0.7687416582 | E27: 1.70919228 | F27: 1.993685239
A28: 14 Years | B28: 14.20277778 | C28: 0.7756644056 | D28: 0.745485117 | E28: 1.788631234 | F28: 2.068046922
A29: 15 Years | B29: 15.21666667 | C29: 0.7540154439 | D29: 0.7231531465 | E29: 1.855481459 | F29: 2.130126561
A30: 16 Years | B30: 16.23333333 | C30: 0.7332871198 | D30: 0.7018287171 | E30: 1.910993524 | F30: 2.181104091
A31: 17 Years | B31: 17.24722222 | C31: 0.7136308187 | D31: 0.6816576658 | E31: 1.956196231 | F31: 2.22196768
A32: 18 Years | B32: 18.26666667 | C32: 0.6948915757 | D32: 0.6624741934 | E32: 1.992697729 | F32: 2.254235448
A33: 19 Years | B33: 19.27777778 | C33: 0.6772975439 | D33: 0.6445066475 | E33: 2.021211177 | F33: 2.278634745
A34: 20 Years | B34: 20.29166667 | C34: 0.6606070246 | D34: 0.6275039577 | E34: 2.043184225 | F34: 2.296535364
A35: 21 Years | B35: 21.30555556 | C35: 0.6448185584 | D35: 0.6114616007 | E35: 2.059492443 | F35: 2.308802133
A36: 22 Years | B36: 22.31944444 | C36: 0.6298748031 | D36: 0.5963183921 | E36: 2.070993325 | F36: 2.316278709
A37: 23 Years | B37: 23.33333333 | C37: 0.6157157027 | D37: 0.5820106471 | E37: 2.078442615 | F37: 2.319713732
A38: 24 Years | B38: 24.35277778 | C38: 0.6022092602 | D38: 0.5684024519 | E38: 2.082515146 | F38: 2.31975824
A39: 25 Years | B39: 25.36388889 | C39: 0.5894777963 | D39: 0.5556139421 | E39: 2.083742865 | F39: 2.317001061
A40: 26 Years | B40: 26.37777778 | C40: 0.5773198998 | D40: 0.5434394358 | E40: 2.082657423 | F40: 2.311934756
A41: 27 Years | B41: 27.39166667 | C41: 0.5657187741 | D41: 0.5318591624 | E41: 2.079676994 | F41: 2.304995037
A42: 28 Years | B42: 28.40833333 | C42: 0.5545958164 | D42: 0.5207916281 | E42: 2.075150564 | F42: 2.296527767
A43: 29 Years | B43: 29.42777778 | C43: 0.5439097567 | D43: 0.5101928366 | E43: 2.069377915 | F43: 2.286841089
A44: 30 Years | B44: 30.43888889 | C44: 0.5337322936 | D44: 0.5001304276 | E44: 2.062693191 | F44: 2.276319487
